Workbook

Sheet 1. Information Sheet
M12: Version | N12: 2
E14: Utility Name | F14: Horizon Utilities Corporation
E16: Service Territory | F16: Hamilton & St. Catharines
E18: Assigned EB Number
E20: Name of Contact and Title | F20: Indy J. Butany-DeSouza, Vice President - Regulatory Services
E22: Phone Number | F22: 905-317-4765
E24: Email Address | F24: indy.butany@horizonutilities.com
B27: General Notes 1. Please ensure that your macros have been enabled. (Tools -> Macro -> Security) 2. Due to the time lag of deferral/variance account dispositions, this model assumes that all opening balances include previously disposed of amounts. Accordingly, all "Board Approved Dispositions" are deducted from the opening balance. 3. Please provide information in this model since the last time your balances were disposed. 4. For all Board-Approved dispositions, please ensure that the disposition amount has the same sign (e.g: debit balances are to have a positive figure and credit balance are to have a negative figure) as per the related Board decision.
B29: Notes
C31: Pale green cells represent input cells.
C33: Pale blue cells represent drop-down lists. The applicant should select the appropriate item from the drop-down list.
C35: White cells contain fixed values, automatically generated values or formulae.

Sheet 2. 2013 Continuity Schedule
BN16: =BM30+BN30-BO30 -> -4973890.1
E19: 2005 | O19: 2006 | Y19: 2009 | AI19: 2010 | AS19: 2011 | BC19: 2012 | BM19: 2013 | BZ19: 2014 (Bridge) | CF19: Projected Interest on Dec-31-13 Balances | CH19: 2.1.7 RRR
C20: Account Descriptions | D20: Account Number | E20: Opening Principal Amounts as of Jan-1-05 | F20: Transactions Debit / (Credit) during 2005 excluding interest and adjustments 3 | G20: Board-Approved Disposition during 2005 | H20: Adjustments during 2005 - other 2 | I20: Closing Principal Balance as of Dec-31-05 | J20: Opening Interest Amounts as of Jan-1-05 | K20: Interest Jan-1 to Dec-31-05 | L20: Board-Approved Disposition during 2005 | M20: Adjustments during 2005 - other 2 | N20: Closing Interest Amounts as of Dec-31-05 | O20: Opening Principal Amounts as of Jan-1-06 | P20: Transactions Debit / (Credit) during 2006 excluding interest and adjustments 3 | Q20: Board-Approved Disposition during 2006 1, 1A | R20: Adjustments during 2006 - other 2 | S20: Closing Principal Balance as of Dec-31-06 | T20: Opening Interest Amounts as of Jan-1-06 | U20: Interest Jan-1 to Dec-31-06 | V20: Board-Approved Disposition during 2006 1, 1A | W20: Adjustments during 2006 - other 2 | X20: Closing Interest Amounts as of Dec-31-06 | Y20: Opening Principal Amounts as of Jan-1-09 | Z20: Transactions Debit / (Credit) during 2009 excluding interest and adjustments 3 | AA20: Board-Approved Disposition during 2009 | AB20: Adjustments during 2009 - other 2 | AC20: Closing Principal Balance as of Dec-31-09 | AD20: Opening Interest Amounts as of Jan-1-09 | AE20: Interest Jan-1 to Dec-31-09 | AF20: Board-Approved Disposition during 2009 | AG20: Adjustments during 2009 - other 2 | AH20: Closing Interest Amounts as of Dec-31-09 | AI20: Opening Principal Amounts as of Jan-1-10 | AJ20: Transactions Debit / (Credit) during 2010 excluding interest and adjustments 3 | AK20: Board-Approved Disposition during 2010 | AL20: Adjustments during 2010 - other 2 | AM20: Closing Principal Balance as of Dec-31-10 | AN20: Opening Interest Amounts as of Jan-1-10 | AO20: Interest Jan-1 to Dec-31-10 | AP20: Board-Approved Disposition during 2010 | AQ20: Adjustments during 2010 - other 2 | AR20: Closing Interest Amounts as of Dec-31-10 | AS20: Opening Principal Amounts as of Jan-1-11 | AT20: Transactions Debit / (Credit) during 2011 excluding interest and adjustments 3 | AU20: Board-Approved Disposition during 2011 | AV20: Adjustments during 2010 - other 2 | AW20: Closing Principal Balance as of Dec-31-11 | AX20: Opening Interest Amounts as of Jan-1-11 | AY20: Interest Jan-1 to Dec-31-11 | AZ20: Board-Approved Disposition during 2011 | BA20: Adjustments during 2011 - other 2 | BB20: Closing Interest Amounts as of Dec-31-11 | BC20: Opening Principal Amounts as of Jan-1-12 | BD20: Transactions Debit / (Credit) during 2012 excluding interest and adjustments 3 | BE20: Board-Approved Disposition during 2012 | BF20: Other 2 Adjustments during 2012 | BG20: Closing Principal Balance as of Dec-31-12 | BH20: Opening Interest Amounts as of Jan-1-12 | BI20: Interest Jan-1 to Dec-31-12 | BJ20: Board-Approved Disposition during 2012 | BK20: Adjustments during 2012 - other 2 | BL20: Closing Interest Amounts as of Dec-31-12 | BM20: Opening Principal Amounts as of Jan-1-13 | BN20: Transactions Debit / (Credit) during 2013excluding interest and adjustments 3 | BO20: Board-Approved Disposition during 2013 | BP20: Other 2 Adjustments during Q1 2013 | BQ20: Other 2 Adjustments during Q2 2013 | BR20: Other 2 Adjustments during Q3 2013 | BS20: Other 2 Adjustments during Q4 2013 | BT20: Closing Principal Balance as of Dec-31-13 | BU20: Opening Interest Amounts as of Jan-1-13 | BV20: Interest Jan-1 to Dec-31-13 | BW20: Board-Approved Disposition during 2013 | BX20: Adjustments during 2013 | BY20: Closing Interest Amounts as of Dec-31-13 | BZ20: Principal Disposition during 2014 - instructed by Board | CA20: Interest Disposition during 2014 - instructed by Board | CB20: Closing Principal Balances as of Dec 31-13 Adjusted for Dispositions during 2014 | CC20: Closing Interest Balances as of Dec 31-13 Adjusted for Dispositions during 2014 | CD20: Transactions Debit / (Credit) during 2014 excluding interest and adjustments 3 (Forecast) | CE20: Forecasted Interest in 2014 (On Opening Balance + Forecasted Activity) | CF20: Projected Interest from Jan 1, 2014 to December 31, 2014 on Dec 31 - 13 balance adjusted for disposition during 2014 6 | CG20: Total Claim | CH20: As of Dec 31-13 | CI20: Variance RRR vs. 2013 Balance (Principal + Interest)
CK21: 2013 Ending Bal.
CG22: Claim before Forecasted Transactions | CK22: 2013 Forecast Bal. (Col. BT + BY) | CL22: 2013 Reg Assets Forecast Model | CM22: Variance
C23: Group 1 Accounts
C24: LV Variance Account | D24: 1550 | E24: 0 | I24: =E24+F24-G24+H24 -> 0 | N24: =J24+K24-L24+M24 -> 0 | O24: =I24 -> 0 | S24: =O24+P24-Q24+R24 -> 0 | T24: =N24 -> 0 | X24: =T24+U24-V24+W24 -> 0 | Y24: =S24 -> 0 | AB24: ='[5]1550'!$H$6+'[5]1550'!$E$7 -> -670490.12 | AC24: =Y24+Z24-AA24+AB24 -> -670490.12 | AD24: =X24 -> 0 | AG24: ='[5]1550'!$I$6+'[5]1550'!$I$7 -> -38695.61 | AH24: =AD24+AE24-AF24+AG24 -> -38695.61 | AI24: =AC24 -> -670490.12 | AJ24: ='[5]1550'!$E$10 -> 95125 | AK24: =-'[5]1550'!$F$8 -> -739175 | AM24: =AI24+AJ24-AK24+AL24 -> 163809.88 | AN24: =AH24 -> -38695.61 | AO24: =SUM('[5]1550'!$I$8:$I$10) -> -423.64 | AP24: =-'[5]1550'!$J$8 -> -40280.74 | AR24: =AN24+AO24-AP24+AQ24 -> 1161.49 | AS24: =AM24 -> 163809.88 | AT24: =SUM('[5]1550'!$D$23:$E$23) -> 115767.8 | AU24: =-SUM('[5]1550'!$F$23:$G$23) -> 163809.88 | AW24: =AS24+AT24-AU24+AV24 -> 115767.8 | AX24: =AR24 -> 1161.49 | AY24: ='[5]1550'!$I$23 -> 2969.7 | AZ24: =-'[5]1550'!$J$23 -> 2506.49 | BA24: ='[5]1550'!$K$23 -> -53.34 | BB24: =AX24+AY24-AZ24+BA24 -> 1571.36 | BC24: =AW24 -> 115767.8 | BD24: ='[6]1550'!$D$26+'[6]1550'!$E$26 -> 16682.93 | BG24: =BC24+BD24-BE24+BF24 -> 132450.73 | BH24: =BB24 -> 1571.36 | BI24: ='[6]1550'!$I$26 -> 1800.8 | BL24: =BH24+BI24-BJ24+BK24 -> 3372.16 | BM24: =BG24 -> 132450.73 | BN24: =SUM('[7]1550'!$D$30:E$30) -> 288057.23 | BO24: =-'[7]1550'!$F$30 -> 117339.16 | BT24: =BM24+BN24-BO24+SUM(BP24:BS24) -> 303168.8 | BU24: =BL24 -> 3372.16 | BV24: ='[7]1550'!$I$30 -> 2247.76 | BW24: =-'[7]1550'!$J$30 -> 1702 | BY24: =BU24+BV24-BW24+BX24 -> 3917.92 | BZ24: =-'[8]Summary By Group - Revised'!$R$5 -> 15111 | CA24: =-'[8]Summary By Group - Revised'!$S$5 -> 1892 | CB24: =BT24-BZ24 -> 288057.8 | CC24: =BY24-CA24 -> 2025.92 | CE24: =BT24*0.0147 -> 4456.58136 | CF24: =BT24*0.0147 -> 4456.58136 | CG24: =SUM(CB24+CC24+CF24) -> 294540.3014 | CH24: =SUMIF('[9]3a. 2013 Worksheet'!$P$1:$P$5000,D24,'[9]3a. 2013 Worksheet'!$AO$1:$AO$5000) -> 307086.72 | CI24: =BT24+BY24-CH24 -> 0 | CK24: =BT24+BY24 -> 307086.72 | CL24: ='[7]1550'!$N$29 -> 307086.72 | CM24: =CK24-CL24 -> 0
C25: Smart Meter Entity | D25: 1551 | E25: 10 | Y25: =S25 -> 0 | AC25: 0 | AD25: =X25 -> 0 | AH25: =AD25+AE25-AF25+AG25 -> 0 | AI25: =AC25 -> 0 | AM25: =AI25+AJ25-AK25+AL25 -> 0 | AN25: =AH25 -> 0 | AR25: =AN25+AO25-AP25+AQ25 -> 0 | AS25: =AM25 -> 0 | AW25: =AS25+AT25-AU25+AV25 -> 0 | AX25: =AR25 -> 0 | BB25: =AX25+AY25-AZ25+BA25 -> 0 | BC25: =AW25 -> 0 | BG25: =BC25+BD25-BE25+BF25 -> 0 | BH25: 0 | BL25: =BH25+BI25-BJ25+BK25 -> 0 | BM25: =BG25 -> 0 | BN25: =SUM('[7]1551 Residential'!$D$30:E$30)+SUM('[7]1551 GS<50'!$D$30:E$30) -> -17910.51 | BT25: =BM25+BN25-BO25+SUM(BP25:BS25) -> -17910.51 | BU25: =BL25 -> 0 | BV25: ='[7]1551 Residential'!$I$30+'[7]1551 GS<50'!$I$30 -> -71.11 | BY25: =BU25+BV25-BW25+BX25 -> -71.11 | BZ25: =-'[8]Summary By Group - Revised'!$R$6 -> 0 | CA25: =-'[8]Summary By Group - Revised'!$S$6 -> 0 | CB25: =BT25-BZ25 -> -17910.51 | CC25: -71.11 | CE25: =BT25*0.0147 -> -263.284497 | CF25: =BT25*0.0147 -> -263.284497 | CG25: -18244.9045 | CH25: =SUMIF('[9]3a. 2013 Worksheet'!$P$1:$P$5000,D25,'[9]3a. 2013 Worksheet'!$AO$1:$AO$5000) -> -17981.62 | CI25: =BT25+BY25-CH25 -> -4.292814992e-10 | CK25: -17981.62 | CL25: ='[7]1551 Residential'!$N$29+'[7]1551 GS<50'!$N$29 -> -17981.62 | CM25: =CK25-CL25 -> -3.783497959e-10
C26: RSVA - Wholesale Market Service Charge | D26: 1580 | E26: 0 | I26: =E26+F26-G26+H26 -> 0 | N26: =J26+K26-L26+M26 -> 0 | O26: =I26 -> 0 | S26: =O26+P26-Q26+R26 -> 0 | T26: =N26 -> 0 | X26: =T26+U26-V26+W26 -> 0 | Y26: =S26 -> 0 | AB26: ='[5]1580'!$H$6+'[5]1580'!$E$7 -> -12710628.01 | AC26: -12710628.01 | AD26: =X26 -> 0 | AG26: ='[5]1580'!$I$6+'[5]1580'!$I$7 -> -644235.12 | AH26: =AD26+AE26-AF26+AG26 -> -644235.12 | AI26: =AC26 -> -12710628.01 | AJ26: ='[5]1580'!$D$10+'[5]1580'!$E$10 -> -5485795.55 | AK26: =-'[5]1580'!$F$8 -> -10715389 | AM26: =AI26+AJ26-AK26+AL26 -> -7481034.56 | AN26: =AH26 -> -644235.12 | AO26: =SUM('[5]1580'!$I$8:$I$10) -> -59736.68 | AP26: =-'[5]1580'!$J$8 -> -657134.47 | AR26: =AN26+AO26-AP26+AQ26 -> -46837.33 | AS26: =AM26 -> -7481034.56 | AT26: =SUM('[5]1580'!$D$23:$E$23) -> -5518757.61 | AU26: =-SUM('[5]1580'!$F$23:$G$23) -> -7481034.56 | AW26: =AS26+AT26-AU26+AV26 -> -5518757.61 | AX26: =AR26 -> -46837.33 | AY26: ='[5]1580'!$I$23 -> -138885.18 | AZ26: =-'[5]1580'!$J$23 -> -125932.1 | BA26: ='[5]1580'!$K$23 -> 1546.42 | BB26: =AX26+AY26-AZ26+BA26 -> -58243.99 | BC26: =AW26 -> -5518757.61 | BD26: ='[6]1580'!$D$28+'[6]1580'!$E$28 -> -6544300.15 | BG26: =BC26+BD26-BE26+SUM(BF26:BF26) -> -12063057.76 | BH26: -58243.99 | BI26: ='[6]1580'!$I$28 -> -125746.44 | BL26: =BH26+BI26-BJ26+BK26 -> -183990.43 | BM26: =BG26 -> -12063057.76 | BN26: =SUM('[7]1580'!$D$32:E$32) -> -3416930.31 | BO26: =-'[7]1580'!$F$32 -> -5577001.6 | BS26: 16968 | BT26: =BM26+BN26-BO26+SUM(BP26:BS26) -> -9886018.47 | BU26: =BL26 -> -183990.43 | BV26: ='[7]1580'!$I$32 -> -134976.81 | BW26: =-'[7]1580'!$J$32 -> -81126 | BY26: -237841.24 | BZ26: =-'[8]Summary By Group - Revised'!$R$7 -> -6486056 | CA26: =-'[8]Summary By Group - Revised'!$S$7 -> -198210 | CB26: -3399962.47 | CC26: -39631.24 | CE26: -145324.4715 | CF26: -145324.4715 | CG26: -3584918.182 | CH26: =SUMIF('[9]3a. 2013 Worksheet'!$P$1:$P$5000,D26,'[9]3a. 2013 Worksheet'!$AO$1:$AO$5000) -> -10123859.71 | CI26: 0 | CK26: -10123859.71 | CL26: ='[7]1580'!$N$31+'[10]1580'!$G$21 -> -10123152.71 | CM26: -707
C27: RSVA - Retail Transmission Network Charge | D27: 1584 | E27: 0 | I27: =E27+F27-G27+H27 -> 0 | N27: 0 | O27: 0 | S27: 0 | T27: 0 | X27: 0 | Y27: 0 | AB27: ='[5]1584'!$H$8+'[5]1584'!$H$6 -> -5580696.8 | AC27: -5580696.8 | AD27: 0 | AG27: ='[5]1584'!$I$6+'[5]1584'!$I$7 -> -191909.76 | AH27: -191909.76 | AI27: -5580696.8 | AJ27: ='[5]1584'!$D$10+'[5]1584'!$E$10 -> 1804941.77 | AK27: =-'[5]1584'!$F$8 -> -6487893 | AL27: ='[5]1584'!$G$10 -> -94197.52 | AM27: 2617940.45 | AN27: -191909.76 | AO27: =SUM('[5]1584'!$I$8:$I$10) -> 7142.67 | AP27: =-'[5]1584'!$J$8 -> -209159.5 | AR27: 24392.41 | AS27: 2617940.45 | AT27: =SUM('[5]1584'!$D$23:$E$23) -> 631982.64 | AU27: =-SUM('[5]1584'!$F$23:$G$23) -> 2617940.5 | AW27: 631982.59 | AX27: 24392.41 | AY27: ='[5]1584'!$I$23 -> 51266.22 | AZ27: =-'[5]1584'!$J$23 -> 48837.3 | BA27: ='[5]1584'!$K$23 -> -703.05 | BB27: 26118.28 | BC27: 631982.59 | BD27: ='[6]1584'!$D$28+'[6]1584'!$E$28 -> 177337.63 | BG27: 809320.22 | BH27: 26118.28 | BI27: ='[6]1584'!$I$28 -> 12236.08 | BL27: 38354.36 | BM27: 809320.22 | BN27: =SUM('[7]1584'!$D$32:E$32) -> 3378169.16 | BO27: =-'[7]1584'!$F$32 -> 658101 | BT27: 3529388.38 | BU27: 38354.36 | BV27: ='[7]1584'!$I$32 -> 24797.88 | BW27: =-'[7]1584'!$J$32 -> 9290 | BY27: 53862.24 | BZ27: =-'[8]Summary By Group - Revised'!$R$8 -> 151219 | CA27: =-'[8]Summary By Group - Revised'!$S$8 -> 31287 | CB27: 3378169.38 | CC27: 22575.24 | CE27: 51882.00919 | CF27: 51882.00919 | CG27: 3452626.629 | CH27: =SUMIF('[9]3a. 2013 Worksheet'!$P$1:$P$5000,D27,'[9]3a. 2013 Worksheet'!$AO$1:$AO$5000) -> 3583250.67 | CI27: -0.050000004 | CK27: 3583250.62 | CL27: ='[7]1584'!$N$31 -> 3583250.67 | CM27: -0.05000000726
C28: RSVA - Retail Transmission Connection Charge | D28: 1586 | E28: 0 | I28: =E28+F28-G28+H28 -> 0 | N28: 0 | O28: 0 | S28: 0 | T28: 0 | X28: 0 | Y28: 0 | AB28: ='[5]1586'!$E$6+'[5]1586'!$E$7 -> 4617.5 | AC28: 4617.5 | AD28: 0 | AG28: ='[5]1586'!$I$6+'[5]1586'!$I$7 -> 58575.44 | AH28: 58575.44 | AI28: 4617.5 | AJ28: ='[5]1586'!$D$10+'[5]1586'!$E$10 -> 965255.27 | AK28: =-'[5]1586'!$F$8 -> 328719 | AL28: ='[5]1586'!$G$10 -> -23751.09 | AM28: 617402.68 | AN28: 58575.44 | AO28: =SUM('[5]1586'!$I$8:$I$10) -> 4011.89 | AP28: =-'[5]1586'!$J$8 -> 59732.65 | AR28: 2854.68 | AS28: 617402.68 | AT28: =SUM('[5]1586'!$D$23:$E$23) -> -390342.61 | AU28: =-'[5]1586'!$F$23 -> 617402.41 | AV28: ='[5]1586'!$G$23 -> 219999.67 | AW28: -170342.67 | AX28: 2854.68 | AY28: ='[5]1586'!$I$23 -> 14540.06 | AZ28: =-'[5]1586'!$J$23 -> 16946.06 | BA28: ='[5]1586'!$K$23 -> 251.27 | BB28: 699.95 | BC28: -170342.67 | BD28: ='[6]1586'!$D$28+'[6]1586'!$E$28 -> -76744.959 | BG28: -247087.629 | BH28: 699.95 | BI28: ='[6]1586'!$I$28 -> -2601.08 | BL28: -1901.13 | BM28: -247087.629 | BN28: =SUM('[7]1586'!$D$32:E$32) -> 1314693.93 | BO28: =-'[7]1586'!$F$32 -> -169642.72 | BT28: 1237249.021 | BU28: -1901.13 | BV28: ='[7]1586'!$I$32 -> 5832.14 | BW28: =-'[7]1586'!$J$32 -> -2504 | BY28: 6435.01 | BZ28: =-'[8]Summary By Group - Revised'!$R$9 -> -77445 | CA28: =-'[8]Summary By Group - Revised'!$S$9 -> -536 | CB28: =BT28-BZ28 -> 1314694.021 | CC28: 6971.01 | CE28: 18187.56061 | CF28: 18187.56061 | CG28: 1339852.592 | CH28: =SUMIF('[9]3a. 2013 Worksheet'!$P$1:$P$5000,D28,'[9]3a. 2013 Worksheet'!$AO$1:$AO$5000) -> 1243684.03 | CI28: 0.0009999936447 | CK28: 1243684.031 | CL28: ='[7]1586'!$N$31 -> 1243684.03 | CM28: 0.0009999915492
C29: RSVA - Power (excluding Global Adjustment) | D29: 1588 | I29: 0 | N29: 0 | O29: 0 | S29: 0 | T29: 0 | X29: 0 | Y29: 0 | AB29: ='[5]1588 (Power)'!$E$6+'[5]1588 (Power)'!$E$8 -> -3745168.95 | AC29: -3745168.95 | AD29: 0 | AG29: =SUM('[5]1588 (Power)'!$I$6:$I$8) -> -90746.65 | AH29: -90746.65 | AI29: -3745168.95 | AJ29: ='[5]1588 (Power)'!$D$11+'[5]1588 (Power)'!$E$11 -> -4225520.33 | AK29: =-'[5]1588 (Power)'!$F$9 -> -2338954 | AM29: -5631735.28 | AN29: -90746.65 | AO29: =SUM('[5]1588 (Power)'!$I$9:$I$11) -> -24430.97 | AP29: =-SUM('[5]1588 (Power)'!$J$9:$K$9) -> -99247.45 | AR29: -15930.17 | AS29: -5631735.28 | AT29: =SUM('[5]1588 (Power)'!$D$24:$E$24) -> -1031401.67 | AU29: =-'[5]1588 (Power)'!$F$24 -> -5631735.64 | AV29: ='[5]1588 (Power)'!$G$24 -> -0.3600000001 | AW29: -1031401.67 | AX29: -15930.17 | AY29: ='[5]1588 (Power)'!$I$24 -> -81689.71 | AZ29: =-'[5]1588 (Power)'!$J$24 -> -76954.96 | BA29: ='[5]1588 (Power)'!$K$24 -> 1090.36 | BB29: -19574.56 | BC29: -1031401.67 | BD29: ='[6]1588'!$D$29+'[6]1588'!$E$29 -> -541508.42 | BG29: -1572910.09 | BH29: -19574.56 | BI29: ='[6]1588'!$I$29 -> -3471.59 | BL29: -23046.15 | BM29: -1572910.09 | BN29: =SUM('[7]1588'!$D$33:E$33) -> 924467.16 | BO29: =-'[7]1588'!$F$33 -> -1050976.23 | BS29: =+'[11]Summary Impact 2012_13'!$B$8+'[11]Summary Impact 2012_13'!$D$8 -> -4668526.987 | BT29: =BM29+BN29-BO29+SUM(BP29:BS29) -> -4265993.687 | BU29: -23046.15 | BV29: ='[7]1588'!$I$33 -> 11467.69 | BW29: =-'[7]1588'!$J$33 -> -15162 | BX29: =+'[11]Summary Impact 2012_13'!$F$8 -> -60232.10175 | BY29: -56648.56175 | BZ29: =-'[8]Summary By Group - Revised'!$R$10 -> -521933 | CA29: =-'[8]Summary By Group - Revised'!$S$10 -> -15756 | CB29: =BT29-BZ29 -> -3744060.687 | CC29: -40892.56175 | CE29: -62710.1072 | CF29: -62710.1072 | CG29: -3847663.356 | CH29: =SUMIF('[9]3a. 2013 Worksheet'!$P$1:$P$5000,D29,'[9]3a. 2013 Worksheet'!$AO$1:$AO$5000) -> -4322642.251 | CI29: =BT29+BY29-CH29 -> 0.002645862289 | CK29: -4322642.249 | CL29: ='[7]1588'!$N$32 -> -4322642.255 | CM29: 0.006383937784
C30: RSVA - Power - Sub-account - Global Adjustment | D30: 1589 | I30: 0 | N30: 0 | O30: 0 | S30: 0 | T30: 0 | X30: 0 | Y30: 0 | AB30: ='[5]1588 (PowerGA)'!$E$6+'[5]1588 (PowerGA)'!$E$8 -> 6510568.12 | AC30: 6510568.12 | AD30: 0 | AG30: =SUM('[5]1588 (PowerGA)'!$I$6:$I$8) -> -50257.16 | AH30: -50257.16 | AI30: 6510568.12 | AJ30: ='[5]1588 (PowerGA)'!$D$11+'[5]1588 (PowerGA)'!$E$11 -> -685719.08 | AK30: =-'[5]1588 (PowerGA)'!$F$9 -> 1257370 | AL30: ='[5]1588 (PowerGA)'!$G$11 -> -1490210.86 | AM30: 3077268.18 | AN30: -50257.16 | AO30: =SUM('[5]1588 (PowerGA)'!$I$9:$I$11) -> 24621.7 | AP30: =-SUM('[5]1588 (PowerGA)'!$J$9:$K$9) -> -72243.17 | AR30: 46607.71 | AS30: 3077268.18 | AT30: =SUM('[5]1588 (PowerGA)'!$D$24:$E$24) -> 1058062.99 | AU30: =-'[5]1588 (PowerGA)'!$F$24 -> 3077270.14 | AV30: ='[5]1588 (PowerGA)'!$G$24 -> 1.96 | AW30: 1058062.99 | AX30: 46607.71 | AY30: =SUM('[5]1588 (PowerGA)'!$I$24) -> 37611.77 | AZ30: =-'[5]1588 (PowerGA)'!$J$24 -> 10548.58 | BA30: ='[5]1588 (PowerGA)'!$K$24 -> -4072.96 | BB30: 69597.94 | BC30: 1058062.99 | BD30: ='[6]1589'!$D$29+'[6]1589'!$E$29 -> -3235246.12 | BG30: -2177183.13 | BH30: 69597.94 | BI30: ='[6]1589'!$I$29 -> 495.22 | BL30: 70093.16 | BM30: -2177183.13 | BN30: =SUM('[7]1589'!$D$33:E$33) -> -1669046.04 | BO30: =-'[7]1589'!$F$33 -> 1127660.93 | BS30: =+'[11]Summary Impact 2012_13'!$C$8+'[11]Summary Impact 2012_13'!$E$8 -> 4668526.987 | BT30: =BM30+BN30-BO30+SUM(BP30:BS30) -> -305363.1131 | BU30: =BL30 -> 70093.16 | BV30: ='[7]1589'!$I$33 -> -16958.78 | BW30: =-'[7]1589'!$J$33 -> 15553 | BX30: =+'[11]Summary Impact 2012_13'!$G$8 -> 60232.10175 | BY30: 97813.48175 | BZ30: =-'[8]Summary By Group - Revised'!$R$11 -> -3304844 | CA30: =-'[8]Summary By Group - Revised'!$S$11 -> 5959 | CB30: =BT30-BZ30 -> 2999480.887 | CC30: 91854.48175 | CE30: -4488.837762 | CF30: -4488.837762 | CG30: 3086846.531 | CH30: =SUMIF('[9]3a. 2013 Worksheet'!$P$1:$P$5000,D30,'[9]3a. 2013 Worksheet'!$AO$1:$AO$5000) -> -207549.6287 | CI30: =BT30+BY30-CH30 -> -0.002645856584 | CK30: -207549.6313 | CL30: ='[7]1589'!$N$32 -> -207549.6249 | CM30: -0.006383912463
C31: Recovery of Regulatory Asset Balances | D31: 1590 | I31: 0 | N31: 0 | O31: 0 | S31: 0 | T31: 0 | X31: 0 | Y31: 0 | AC31: 0 | AD31: 0 | AH31: 0 | AI31: 0 | AM31: 0 | AN31: 0 | AR31: 0 | AS31: 0 | AW31: 0 | AX31: 0 | BB31: 0 | BC31: 0 | BG31: 0 | BH31: 0 | BL31: 0 | BM31: 0 | BT31: 0 | BU31: 0 | BY31: =BU31+BV31-BW31+BX31 -> 0 | CB31: 0 | CC31: 0 | CE31: 0 | CF31: 0 | CG31: 0 | CH31: =SUMIF('[9]3a. 2013 Worksheet'!$P$1:$P$5000,D31,'[9]3a. 2013 Worksheet'!$AO$1:$AO$5000) -> 0 | CI31: 0 | CK31: 0 | CL31: 0 | CM31: 0
C32: Disposition and Recovery/Refund of Regulatory Balances (2008)7 - (COS08) | D32: 1595 | I32: 0 | N32: 0 | O32: =I32 -> 0 | S32: 0 | T32: =N32 -> 0 | X32: 0 | Y32: =S32 -> 0 | AB32: ='[5]1595 (COS08)'!$I$6+'[5]1595 (COS08)'!$F$7 -> -3731346.87 | AC32: -3731346.87 | AD32: =X32 -> 0 | AG32: ='[5]1595 (COS08)'!$J$6+'[5]1595 (COS08)'!$J$7+'[5]1595 (COS08)'!$D$6 -> -1109718.8 | AH32: -1109718.8 | AI32: =AC32 -> -3731346.87 | AJ32: ='[5]1595 (COS08)'!$F$8 -> 2664724.21 | AM32: -1066622.66 | AN32: =AH32 -> -1109718.8 | AO32: ='[5]1595 (COS08)'!$J$8 -> -7907.34 | AQ32: ='[5]1595 (COS08)'!$D$8 -> 5513.39 | AR32: -1112112.75 | AS32: =AM32 -> -1066622.66 | AT32: ='[5]1595 (COS08)'!$F$22 -> 801572.39 | AW32: -265050.27 | AX32: =AR32 -> -1112112.75 | AY32: ='[5]1595 (COS08)'!$J$22 -> -6332.2 | BB32: -1118444.95 | BC32: =AW32 -> -265050.27 | BG32: -265050.27 | BH32: -1118444.95 | BI32: ='[6]1595 (COS08)'!$J$22 -> -3896.28 | BL32: -1122341.23 | BM32: =BG32 -> -265050.27 | BT32: -265050.27 | BU32: =BL32 -> -1122341.23 | BV32: ='[7]1595 (COS08)'!$J$26 -> -3896.28 | BY32: -1126237.51 | CB32: -265050.27 | CC32: -1126237.51 | CE32: -3896.238969 | CF32: -3896.238969 | CG32: -1395184.019 | CK32: -1391287.78 | CL32: ='[7]1595 (COS08)'!$O$25 -> -1391287.78 | CM32: 0
C33: Disposition and Recovery/Refund of Regulatory Balances (2009)7 - (IRM10) | D33: 1595 | I33: 0 | N33: 0 | O33: 0 | S33: 0 | T33: 0 | X33: 0 | Y33: 0 | AC33: =Y33+Z33-AA33+AB33 -> 0 | AD33: 0 | AG33: ='[5]1595 (IRM10)'!$D$6+'[5]1595 (IRM10)'!$J$6 -> 0 | AH33: 0 | AI33: 0 | AJ33: ='[5]1595 (IRM10)'!$I$8 -> -11612352.77 | AM33: -11612352.77 | AN33: 0 | AO33: ='[5]1595 (IRM10)'!$J$8 -> -89989.78 | AQ33: ='[5]1595 (IRM10)'!$D$8 -> -1172790 | AR33: -1262779.78 | AS33: -11612352.77 | AT33: ='[5]1595 (IRM10)'!$F$22 -> 8963507.19 | AW33: -2648845.58 | AX33: -1262779.78 | AY33: ='[5]1595 (IRM10)'!$J$22 -> -110856.83 | BB33: -1373636.61 | BC33: -2648845.58 | BD33: ='[6]1595 (IRM10)'!$F$22 -> 2840650.07 | BG33: 191804.49 | BH33: -1373636.61 | BI33: ='[6]1595 (IRM10)'!$J$22 -> -5706.64 | BL33: -1379343.25 | BM33: 191804.49 | BT33: 191804.49 | BU33: -1379343.25 | BV33: ='[7]1595 (IRM10)'!$J$26 -> 2819.52 | BY33: -1376523.73 | CB33: 191804.49 | CC33: -1376523.73 | CE33: 2819.526003 | CF33: 2819.526003 | CG33: -1181899.714 | CK33: -1184719.24 | CL33: ='[7]1595 (IRM10)'!$O$25 -> -1184719.24 | CM33: 0
C34: Disposition and Recovery/Refund of Regulatory Balances (2010)7 - (COS11) | D34: 1595 | I34: =E34+F34-G34+H34 -> 0 | N34: =J34+K34-L34+M34 -> 0 | O34: =I34 -> 0 | S34: =O34+P34-Q34+R34 -> 0 | T34: =N34 -> 0 | X34: =T34+U34-V34+W34 -> 0 | Y34: =S34 -> 0 | AC34: 0 | AD34: =X34 -> 0 | AH34: =AD34+AE34-AF34+AG34 -> 0 | AI34: =AC34 -> 0 | AM34: =AI34+AJ34-AK34+AL34 -> 0 | AN34: =AH34 -> 0 | AR34: =AN34+AO34-AP34+AQ34 -> 0 | AS34: =AM34 -> 0 | AT34: ='[5]1595 (COS11)'!$F$22 -> -939598.96 | AU34: =-'[5]1595 (COS11)'!$G$22 -> -2867040.53 | AW34: =AS34+AT34-AU34+AV34 -> 1927441.57 | AX34: =AR34 -> 0 | AY34: ='[5]1595 (COS11)'!$J$22 -> 11686.82 | AZ34: =-'[5]1595 (COS11)'!$D$22 -> 33242.71 | BB34: =AX34+AY34-AZ34+BA34 -> -21555.89 | BC34: =AW34 -> 1927441.57 | BD34: ='[6]1595 (COS11)'!$F$22 -> -2230636.57 | BG34: -303195 | BH34: -21555.89 | BI34: ='[6]1595 (COS11)'!$J$22 -> 13368.49 | BL34: =BH34+BI34-BJ34+BK34 -> -8187.4 | BM34: -303195 | BT34: =BM34+BN34-BO34+SUM(BP34:BS34) -> -303195 | BU34: -8187.4 | BV34: ='[7]1595 (COS11)'!$J$26 -> -4456.92 | BY34: =BU34+BV34-BW34+BX34 -> -12644.32 | CB34: -303195 | CC34: -12644.32 | CE34: -4456.9665 | CF34: -4456.9665 | CG34: -320296.2865 | CK34: -315839.32 | CL34: ='[7]1595 (COS11)'!$O$25 -> -315839.32 | CM34: 0
C35: Disposition and Recovery/Refund of Regulatory Balances (2011)7 - (IRM12) | D35: 1595 | Y35: =S35 -> 0 | AC35: 0 | AD35: =X35 -> 0 | AH35: =AD35+AE35-AF35+AG35 -> 0 | AI35: =AC35 -> 0 | AM35: =AI35+AJ35-AK35+AL35 -> 0 | AN35: =AH35 -> 0 | AR35: =AN35+AO35-AP35+AQ35 -> 0 | AS35: =AM35 -> 0 | AU35: =-'[5]1595 (IRM12)'!$G$22 -> 8695917.68 | AW35: =AS35+AT35-AU35+AV35 -> -8695917.68 | AX35: =AR35 -> 0 | AZ35: =-'[5]1595 (IRM12)'!$D$22 -> 154326.92 | BB35: =AX35+AY35-AZ35+BA35 -> -154326.92 | BC35: =AW35 -> -8695917.68 | BD35: ='[6]1595 (IRM12)'!$F$22 -> 9300673.24 | BG35: 604755.56 | BH35: -154326.92 | BI35: ='[6]1595 (IRM12)'!$J$22 -> -65930.35 | BL35: =BH35+BI35-BJ35+BK35 -> -220257.27 | BM35: 604755.56 | BT35: =BM35+BN35-BO35+SUM(BP35:BS35) -> 604755.56 | BU35: -220257.27 | BV35: ='[7]1595 (IRM12)'!$J$26 -> 8889.96 | BY35: =BU35+BV35-BW35+BX35 -> -211367.31 | CB35: 604755.56 | CC35: -211367.31 | CE35: 8889.906732 | CF35: 8889.906732 | CG35: 402278.1567 | CK35: 393388.25 | CL35: ='[7]1595 (IRM12)'!$O$25 -> 393388.25 | CM35: 0
C36: Disposition and Recovery/Refund of Regulatory Balances (2012)7 - (Def PILS) | D36: 1595 | Y36: =S36 -> 0 | AC36: 0 | AD36: =X36 -> 0 | AH36: =AD36+AE36-AF36+AG36 -> 0 | AI36: =AC36 -> 0 | AM36: =AI36+AJ36-AK36+AL36 -> 0 | AN36: =AH36 -> 0 | AR36: =AN36+AO36-AP36+AQ36 -> 0 | AS36: =AM36 -> 0 | AW36: =AS36+AT36-AU36+AV36 -> 0 | AX36: =AR36 -> 0 | BB36: =AX36+AY36-AZ36+BA36 -> 0 | BC36: =AW36 -> 0 | BE36: =-'[6]1595 (Def PILs)'!$F$23 -> -2039038 | BF36: ='[6]1595 (Def PILs)'!$D$23 -> -493721.79 | BG36: 1545316.21 | BH36: 0 | BJ36: =-'[6]1595 (Def PILs)'!$J$23 -> -1284828 | BK36: ='[6]1595 (Def PILs)'!$I$23 -> 2206.5 | BL36: =BH36+BI36-BJ36+BK36 -> 1287034.5 | BM36: 1545316.21 | BN36: ='[7]1595 (Def PILs)'!$D$27 -> -2940696.39 | BT36: =BM36+BN36-BO36+SUM(BP36:BS36) -> -1395380.18 | BU36: 1287034.5 | BV36: ='[7]1595 (Def PILs)'!$I$27 -> 1788.85 | BX36: ='[7]1595 (Def PILs)'!$K$27 -> 1306.01415 | BY36: =BU36+BV36-BW36+BX36 -> 1290129.364 | CB36: -1395380.18 | CC36: 1290129.364 | CE36: -20512.08865 | CF36: -20512.08865 | CG36: -125762.9045 | CK36: -105250.8158 | CL36: ='[7]1595 (Def PILs)'!$N$26 -> -105250.8159 | CM36: 6.4028427e-10
C37: Disposition and Recovery/Refund of Regulatory Balances (2013)7 - (IRM 13) | D37: 1595 | Y37: =S37 -> 0 | AC37: 0 | AD37: =X37 -> 0 | AH37: =AD37+AE37-AF37+AG37 -> 0 | AI37: =AC37 -> 0 | AM37: =AI37+AJ37-AK37+AL37 -> 0 | AN37: =AH37 -> 0 | AR37: =AN37+AO37-AP37+AQ37 -> 0 | AS37: =AM37 -> 0 | AW37: =AS37+AT37-AU37+AV37 -> 0 | AX37: =AR37 -> 0 | BB37: =AX37+AY37-AZ37+BA37 -> 0 | BC37: =AW37 -> 0 | BG37: 0 | BH37: 0 | BL37: =BH37+BI37-BJ37+BK37 -> 0 | BM37: 0 | BN37: ='[7]1595 (IRM13)'!$D$27 -> 5370488.58 | BO37: =-'[7]1595 (IRM13)'!$F$27 -> 4894519.46 | BT37: =BM37+BN37-BO37+SUM(BP37:BS37) -> 475969.12 | BU37: 0 | BV37: ='[7]1595 (IRM13)'!$I$27 -> -30180.30351 | BW37: =-'[7]1595 (IRM13)'!$J$27 -> 72247 | BY37: =BU37+BV37-BW37+BX37 -> -102427.3035 | BZ37: =-'[8]Summary By Group - Revised'!$R$18 -> 0 | CA37: =-'[8]Summary By Group - Revised'!$S$18 -> 0 | CB37: 475969.12 | CC37: -102427.3035 | CE37: 6996.746064 | CF37: 6996.746064 | CG37: 380538.5626 | CK37: 373541.8165 | CL37: ='[7]1595 (IRM13)'!$N$26 -> 373541.8165 | CM37: -2.211891115e-09
C38: Disposition and Recovery/Refund of Regulatory Balances (2014)7 - (IRM 14) | D38: 1595 | Y38: =S38 -> 0 | AC38: 0 | AD38: =X38 -> 0 | AH38: =AD38+AE38-AF38+AG38 -> 0 | AI38: =AC38 -> 0 | AM38: =AI38+AJ38-AK38+AL38 -> 0 | AN38: =AH38 -> 0 | AR38: =AN38+AO38-AP38+AQ38 -> 0 | AS38: =AM38 -> 0 | AW38: =AS38+AT38-AU38+AV38 -> 0 | AX38: =AR38 -> 0 | BB38: =AX38+AY38-AZ38+BA38 -> 0 | BC38: =AW38 -> 0 | BG38: =BC38+BD38-BE38+SUM(BF38:BF38) -> 0 | BH38: =BB38 -> 0 | BL38: =BH38+BI38-BJ38+BK38 -> 0 | BM38: =BG38 -> 0 | BT38: =BM38+BN38-BO38+SUM(BP38:BS38) -> 0 | BU38: =BL38 -> 0 | BY38: =BU38+BV38-BW38+BX38 -> 0 | CB38: 0 | CC38: 0 | CE38: 0 | CF38: 0 | CG38: =SUM(CB38+CC38+CF38) -> 0 | CH38: =SUMIF('[9]3a. 2013 Worksheet'!$P$1:$P$5000,D38,'[9]3a. 2013 Worksheet'!$AO$1:$AO$5000) -> -2230167.09 | CI38: =SUM(BT32:BT38)+SUM(BY32:BY38)-SUM(CH32:CH38) -> 0.0006435001269 | CK38: 0 | CL38: ='[8]Summary By Group - Revised'!$M$19 -> 0 | CM38: 0
C40: Group 1 Sub-Total (including Account 1589 - Global Adjustment) | E40: =SUM(E24:E34) -> 10 | F40: =SUM(F24:F34) -> 0 | G40: 0 | H40: 0 | I40: 0 | J40: 0 | K40: 0 | L40: 0 | M40: 0 | N40: 0 | O40: 0 | P40: 0 | Q40: 0 | R40: 0 | S40: 0 | T40: 0 | U40: 0 | V40: 0 | W40: 0 | X40: 0 | Y40: 0 | Z40: =SUM(Z24:Z37) -> 0 | AA40: =SUM(AA24:AA37) -> 0 | AB40: =SUM(AB24:AB38) -> -19923145.13 | AC40: =SUM(AC24:AC38) -> -19923145.13 | AD40: =SUM(AD24:AD38) -> 0 | AE40: 0 | AF40: 0 | AG40: =SUM(AG24:AG38) -> -2066987.66 | AH40: =SUM(AH24:AH38) -> -2066987.66 | AI40: =SUM(AI24:AI38) -> -19923145.13 | AJ40: =SUM(AJ24:AJ38) -> -16479341.48 | AK40: -18695322 | AL40: -1608159.47 | AM40: =SUM(AM24:AM38) -> -19315324.08 | AN40: =SUM(AN24:AN38) -> -2066987.66 | AO40: -146712.15 | AP40: -1018332.68 | AQ40: -1167276.61 | AR40: =SUM(AR24:AR38) -> -2362643.74 | AS40: =SUM(AS24:AS38) -> -19315324.08 | AT40: =SUM(AT24:AT38) -> 3690792.16 | AU40: -807470.12 | AV40: 220001.27 | AW40: -14597060.53 | AX40: -2362643.74 | AY40: -219689.35 | AZ40: 63521 | BA40: -1941.3 | BB40: -2647795.39 | BC40: -14597060.53 | BD40: -293092.349 | BE40: -2039038 | BF40: -493721.79 | BG40: -13344836.67 | BH40: -2647795.39 | BI40: -179451.79 | BJ40: -1284828 | BK40: 2206.5 | BL40: =SUM(BL24:BL38) -> -1540212.68 | BM40: =SUM(BM24:BM38) -> -13344836.67 | BN40: =SUM(BN24:BN38) -> 3231292.81 | BO40: =SUM(BO24:BO38) -> 0 | BP40: =SUM(BP24:BP38) -> 0 | BQ40: 0 | BR40: 0 | BS40: 16968 | BT40: =SUM(BT24:BT38) -> -10096575.86 | BU40: -1540212.68 | BV40: -132696.4035 | BW40: 0 | BX40: 1306.01415 | BY40: -1671603.069 | BZ40: =SUM(BZ24:BZ38) -> -10223948 | CA40: -175364 | CB40: 127372.141 | CC40: =SUM(CC24:CC38) -> -1496239.069 | CD40: =SUM(CD24:CD38) -> 0 | CE40: =SUM(CE24:CE38) -> -148419.6651 | CF40: -148419.6651 | CG40: =SUM(CG24:CG38) -> -1517286.593 | CH40: =SUM(CH24:CH38) -> -11768178.88 | CI40: -0.04835650325 | CK40: =BT40+BY40 -> -11768178.93 | CL40: =SUM(CL24:CL38) -> -11767471.88 | CM40: -707.049 | CO40: Group 1
C41: Group 1 Sub-Total (excluding Account 1589 - Global Adjustment) | E41: =E40-E42 -> 10 | F41: =F40-F42 -> 0 | G41: =G40-G42 -> 0 | H41: 0 | I41: 0 | J41: 0 | K41: 0 | L41: =L40-L42 -> 0 | M41: =M40-M42 -> 0 | N41: 0 | O41: 0 | P41: 0 | Q41: =Q40-Q42 -> 0 | R41: 0 | S41: 0 | T41: 0 | U41: 0 | V41: =V40-V42 -> 0 | W41: =W40-W42 -> 0 | X41: =X40-X42 -> 0 | Y41: 0 | Z41: =Z40-Z42 -> 0 | AA41: 0 | AB41: =AB40-AB42 -> -26433713.25 | AC41: =AC40-AC42 -> -26433713.25 | AD41: 0 | AE41: 0 | AF41: =AF40-AF42 -> 0 | AG41: =AG40-AG42 -> -2016730.5 | AH41: =AH40-AH42 -> -2016730.5 | AI41: -26433713.25 | AJ41: =AJ40-AJ42 -> -15793622.4 | AK41: -19952692 | AL41: -117948.61 | AM41: =AM40-AM42 -> -22392592.26 | AN41: =AN40-AN42 -> -2016730.5 | AO41: -171333.85 | AP41: =AP40-AP42 -> -946089.51 | AQ41: =AQ40-AQ42 -> -1167276.61 | AR41: =AR40-AR42 -> -2409251.45 | AS41: =AS40-AS42 -> -22392592.26 | AT41: =AT40-AT42 -> 2632729.17 | AU41: -3884740.26 | AV41: 219999.31 | AW41: =AW40-AW42 -> -15655123.52 | AX41: -2409251.45 | AY41: -257301.12 | AZ41: =AZ40-AZ42 -> 52972.42 | BA41: =BA40-BA42 -> 2131.66 | BB41: =BB40-BB42 -> -2717393.33 | BC41: -15655123.52 | BD41: 2942153.771 | BE41: -2039038 | BF41: -493721.79 | BG41: -11167653.54 | BH41: -2717393.33 | BI41: -179947.01 | BJ41: =BJ40-BJ42 -> -1284828 | BK41: 2206.5 | BL41: =BL40-BL42 -> -1610305.84 | BM41: =BM40-BM42 -> -11167653.54 | BN41: =BN40-BN42 -> 4900338.85 | BO41: =BO40-BO42 -> -1127660.93 | BP41: 0 | BQ41: 0 | BR41: 0 | BS41: -4651558.987 | BT41: =BT40-BT42 -> -9791212.746 | BU41: -1610305.84 | BV41: -115737.6235 | BW41: -15553 | BX41: -58926.0876 | BY41: -1769416.551 | BZ41: =BZ40-BZ42 -> -6919104 | CA41: -181323 | CB41: =CB40-CB42 -> -2872108.746 | CC41: =CC40-CC42 -> -1588093.551 | CD41: =CD40-CD42 -> 0 | CE41: -143930.8274 | CF41: -143930.8274 | CG41: =CG40-CG42 -> -4604133.124 | CH41: =CH40-CH42 -> -11560629.25 | CI41: -0.04571064748 | CK41: =BT41+BY41 -> -11560629.3 | CL41: =CL40-CL42 -> -11559922.25 | CM41: -707.0426161
C42: =C30 -> RSVA - Power - Sub-account - Global Adjustment | D42: 1589 | E42: =E30 -> 0 | F42: =F30 -> 0 | G42: =G30 -> 0 | H42: 0 | I42: 0 | J42: 0 | K42: 0 | L42: =L30 -> 0 | M42: =M30 -> 0 | N42: 0 | O42: 0 | P42: 0 | Q42: =Q30 -> 0 | R42: 0 | S42: 0 | T42: 0 | U42: 0 | V42: 0 | W42: 0 | X42: 0 | Y42: 0 | Z42: =Z30 -> 0 | AA42: =AA30 -> 0 | AB42: =AB30 -> 6510568.12 | AC42: =AC30 -> 6510568.12 | AD42: 0 | AE42: 0 | AF42: 0 | AG42: -50257.16 | AH42: -50257.16 | AI42: 6510568.12 | AJ42: =AJ30 -> -685719.08 | AK42: 1257370 | AL42: -1490210.86 | AM42: =AM30 -> 3077268.18 | AN42: =AN30 -> -50257.16 | AO42: 24621.7 | AP42: =AP30 -> -72243.17 | AQ42: =AQ30 -> 0 | AR42: =AR30 -> 46607.71 | AS42: =AS30 -> 3077268.18 | AT42: =AT30 -> 1058062.99 | AU42: 3077270.14 | AV42: =AV30 -> 1.96 | AW42: =AW30 -> 1058062.99 | AX42: =AX30 -> 46607.71 | AY42: 37611.77 | AZ42: 10548.58 | BA42: -4072.96 | BB42: 69597.94 | BC42: =BC30 -> 1058062.99 | BD42: -3235246.12 | BE42: 0 | BF42: 0 | BG42: -2177183.13 | BH42: 69597.94 | BI42: 495.22 | BJ42: 0 | BK42: 0 | BL42: =BL30 -> 70093.16 | BM42: =BM30 -> -2177183.13 | BN42: =BN30 -> -1669046.04 | BO42: =BO30 -> 1127660.93 | BP42: =BP30 -> 0 | BQ42: 0 | BR42: 0 | BS42: 4668526.987 | BT42: =BT30 -> -305363.1131 | BU42: 70093.16 | BV42: -16958.78 | BW42: 15553 | BX42: 60232.10175 | BY42: 97813.48175 | BZ42: =BZ30 -> -3304844 | CA42: 5959 | CB42: =CB30 -> 2999480.887 | CC42: =CC30 -> 91854.48175 | CD42: 0 | CE42: =CE30 -> -4488.837762 | CF42: -4488.837762 | CG42: =CG30 -> 3086846.531 | CH42: =CH30 -> -207549.6287 | CI42: -0.002645856584 | CK42: =BT42+BY42 -> -207549.6313 | CL42: =CL30 -> -207549.6249 | CM42: -0.006383912463
C44: Group 2 Accounts
C45: Other Regulatory Assets - Sub-Account - Deferred IFRS Transition Costs | D45: 1508 | I45: =E45+F45-G45+H45 -> 0 | N45: =J45+K45-L45+M45 -> 0 | O45: =I45 -> 0 | S45: =O45+P45-Q45+R45 -> 0 | T45: =N45 -> 0 | X45: =T45+U45-V45+W45 -> 0 | Y45: =S45 -> 0 | AB45: ='[5]1508 (IFRS)'!$H$7 -> 560752.59 | AC45: =Y45+Z45-AA45+AB45 -> 560752.59 | AD45: =X45 -> 0 | AG45: ='[5]1508 (IFRS)'!$I$7 -> 689.7 | AH45: =AD45+AE45-AF45+AG45 -> 689.7 | AI45: =AC45 -> 560752.59 | AJ45: ='[5]1508 (IFRS)'!$D$9 -> 313912.19 | AM45: =AI45+AJ45-AK45+AL45 -> 874664.78 | AN45: =AH45 -> 689.7 | AO45: ='[5]1508 (IFRS)'!$I$8++'[5]1508 (IFRS)'!$I$9 -> 6042.22 | AR45: =AN45+AO45-AP45+AQ45 -> 6731.92 | AS45: =AM45 -> 874664.78 | AT45: ='[5]1508 (IFRS)'!$D$22 -> 195171.76 | AU45: =-'[5]1508 (IFRS)'!$F$22 -> 560752.59 | AV45: ='[5]1508 (IFRS)'!$G$22 -> 0 | AW45: =AS45+AT45-AU45+AV45 -> 509083.95 | AX45: =AR45 -> 6731.92 | AY45: ='[5]1508 (IFRS)'!$I$22 -> 11255.17 | AZ45: =-'[5]1508 (IFRS)'!$J$22 -> 4726.61 | BA45: ='[5]1508 (IFRS)'!$K$22 -> -435 | BB45: =AX45+AY45-AZ45+BA45 -> 12825.48 | BC45: =AW45 -> 509083.95 | BG45: =BC45+BD45-BE45+SUM(BF45:BF45) -> 509083.95 | BH45: =BB45 -> 12825.48 | BI45: ='[6]1508 (IFRS)'!$I$25 -> 7483.56 | BL45: =BH45+BI45-BJ45+BK45 -> 20309.04 | BM45: =BG45 -> 509083.95 | BT45: =BM45+BN45-BO45+SUM(BP45:BS45) -> 509083.95 | BU45: =BL45 -> 20309.04 | BV45: ='[7]1508 (IFRS)'!$I$29 -> 7483.56 | BY45: =BU45+BV45-BW45+BX45 -> 27792.6 | CB45: =BT45-BZ45 -> 509083.95 | CC45: =BY45-CA45 -> 27792.6 | CE45: =BT45*0.0147 -> 7483.534065 | CF45: =BT45*0.0147 -> 7483.534065 | CG45: =SUM(CB45+CC45+CF45) -> 544360.0841 | CH45: =SUMIF('[9]3a. 2013 Worksheet'!$P$1:$P$5000,D45,'[9]3a. 2013 Worksheet'!$AO$1:$AO$5000) -> 549201.42 | CI45: =SUM(BT45:BT46)+SUM(BY45:BY46)-SUM(CH45:CH46) -> 0 | CK45: =BT45+BY45 -> 536876.55 | CL45: ='[7]1508 (IFRS)'!$N$28+'[7]1508 (H1)'!$N$28 -> 549201.42 | CM45: =CK45-CL45+CK46 -> -1.12777343e-10
C46: Other Regulatory Assets - Sub-Account - Incremental Capital Charges | D46: 1508 | Y46: 0 | AB46: ='[5]1508 (H1)'!$H$7 -> 10017.25 | AC46: =Y46+Z46-AA46+AB46 -> 10017.25 | AD46: =X46 -> 0 | AG46: ='[5]1508 (H1)'!$I$7 -> 3.42 | AH46: =AD46+AE46-AF46+AG46 -> 3.42 | AI46: =AC46 -> 10017.25 | AJ46: ='[5]1508 (H1)'!$D$9 -> 7693.79 | AM46: =AI46+AJ46-AK46+AL46 -> 17711.04 | AN46: =AH46 -> 3.42 | AO46: =SUM('[5]1508 (H1)'!$I$8:$I$9) -> 124.06 | AR46: =AN46+AO46-AP46+AQ46 -> 127.48 | AS46: 17711.04 | AT46: ='[5]1508 (H1)'!$D$22 -> 4005.92 | AU46: =-'[5]1508 (H1)'!$F$22 -> 10017.25 | AV46: ='[5]1508 (H1)'!$G$22 -> 0 | AW46: =AS46+AT46-AU46+AV46 -> 11699.71 | AX46: =AR46 -> 127.48 | AY46: ='[5]1508 (H1)'!$I$22 -> 238.15 | AZ46: =-'[5]1508 (H1)'!$J$22 -> 75.42 | BA46: ='[5]1508 (H1)'!$K$22 -> -8 | BB46: =AX46+AY46-AZ46+BA46 -> 282.21 | BC46: =AW46 -> 11699.71 | BG46: =BC46+BD46-BE46+SUM(BF46:BF46) -> 11699.71 | BH46: =BB46 -> 282.21 | BI46: ='[6]1508 (H1)'!$I$25 -> 171.27 | BL46: =BH46+BI46-BJ46+BK46 -> 453.48 | BM46: =BG46 -> 11699.71 | BT46: 11699.71 | BU46: 453.48 | BV46: ='[7]1508 (H1)'!$I$29 -> 171.68 | BY46: =BU46+BV46-BW46+BX46 -> 625.16 | CB46: =BT46-BZ46 -> 11699.71 | CC46: =BY46-CA46 -> 625.16 | CE46: 171.985737 | CF46: 171.985737 | CG46: =SUM(CB46+CC46+CF46) -> 12496.85574 | CK46: =BT46+BY46 -> 12324.87
C47: Other Regulatory Assets - Sub-Account - 2008 LRAM/SSM approved | D47: 1508 | I47: 0 | N47: 0 | O47: 0 | S47: 0 | T47: 0 | X47: 0 | Y47: 0 | AB47: ='[5]1508 (LRAM08)'!$H$7 -> 517822.54 | AC47: 517822.54 | AD47: 0 | AE47: ='[5]1508 (LRAM08)'!$I$7 -> 8480.37 | AG47: ='[5]1508 (LRAM08)'!$I$6 -> 2423.38 | AH47: 10903.75 | AI47: 517822.54 | AJ47: ='[5]1508 (LRAM08)'!$E$9 -> -338154.55 | AM47: 179667.99 | AN47: 10903.75 | AO47: ='[5]1508 (LRAM08)'!$I$9 -> 2671.94 | AR47: =AN47+AO47-AP47+AQ47 -> 13575.69 | AS47: 179667.99 | AT47: ='[5]1508 (LRAM08)'!$E$22 -> -105147.35 | AW47: 74520.64 | AX47: 13575.69 | AY47: ='[5]1508 (LRAM08)'!$I$22 -> 1408.63 | BB47: 14984.32 | BC47: 74520.64 | BF47: ='[6]1508 (LRAM08)'!$G$25 -> -74520.64 | BG47: =BC47+BD47-BE47+SUM(BF47:BF47) -> 0 | BH47: =BB47 -> 14984.32 | BI47: ='[6]1508 (LRAM08)'!$I$25 -> 639.03 | BK47: ='[6]1508 (LRAM08)'!$K$25 -> -15623.35 | BL47: 0 | BM47: =BG47 -> 0 | BT47: 0 | BU47: 0 | BY47: =BU47+BV47-BW47+BX47 -> 0 | CB47: =BT47-BZ47 -> 0 | CC47: =BY47-CA47 -> 0 | CE47: 0 | CF47: =BT47*0.0147 -> 0 | CG47: =SUM(CB47+CC47+CF47) -> 0 | CI47: =BT47+BY47-CH47 -> 0 | CK47: 0 | CM47: 0
C48: Other Regulatory Assets - Sub-Account - 2009 LRAM/SSM approved | D48: 1508 | I48: =E48+F48-G48+H48 -> 0 | N48: =J48+K48-L48+M48 -> 0 | O48: =I48 -> 0 | S48: =O48+P48-Q48+R48 -> 0 | T48: =N48 -> 0 | X48: =T48+U48-V48+W48 -> 0 | Y48: =S48 -> 0 | AB48: =+'[5]1508 (LRAM09)'!$H$7 -> 551393.86 | AC48: =Y48+Z48-AA48+AB48 -> 551393.86 | AD48: =X48 -> 0 | AE48: ='[5]1508 (LRAM09)'!$I$7 -> 720.73 | AH48: =AD48+AE48-AF48+AG48 -> 720.73 | AI48: =AC48 -> 551393.86 | AJ48: =+'[5]1508 (LRAM09)'!$E$9 -> -564659.69 | AM48: =AI48+AJ48-AK48+AL48 -> -13265.83 | AN48: =AH48 -> 720.73 | AO48: =+'[5]1508 (LRAM09)'!$I$9 -> 530.03 | AR48: =AN48+AO48-AP48+AQ48 -> 1250.76 | AS48: =AM48 -> -13265.83 | AT48: ='[5]1508 (LRAM09)'!$E$22 -> 0 | AW48: =AS48+AT48-AU48+AV48 -> -13265.83 | AX48: =AR48 -> 1250.76 | AY48: ='[5]1508 (LRAM09)'!$I$22 -> -195 | BB48: =AX48+AY48-AZ48+BA48 -> 1055.76 | BC48: =AW48 -> -13265.83 | BF48: ='[6]1508 (LRAM09)'!$G$25 -> 13265.83 | BG48: =BC48+BD48-BE48+SUM(BF48:BF48) -> 4.183675628e-11 | BH48: =BB48 -> 1055.76 | BI48: ='[6]1508 (LRAM09)'!$I$25 -> -113.75 | BK48: ='[6]1508 (LRAM09)'!$K$25 -> -942.01 | BL48: =BH48+BI48-BJ48+BK48 -> 0 | BM48: =BG48 -> 4.183675628e-11 | BT48: =BM48+BN48-BO48+SUM(BP48:BS48) -> 4.183675628e-11 | BU48: =BL48 -> 0 | BY48: =BU48+BV48-BW48+BX48 -> 0 | CB48: 4.183675628e-11 | CC48: 0 | CE48: 6.150003173e-13 | CF48: 6.150003173e-13 | CG48: 4.24517566e-11 | CI48: 4.183675628e-11 | CK48: 4.183675628e-11 | CM48: 4.183675628e-11
C49: Other Regulatory Assets - Sub-Account - Other 4 | D49: 1508 | I49: =E49+F49-G49+H49 -> 0 | N49: =J49+K49-L49+M49 -> 0 | O49: =I49 -> 0 | S49: =O49+P49-Q49+R49 -> 0 | T49: =N49 -> 0 | X49: =T49+U49-V49+W49 -> 0 | Y49: =S49 -> 0 | AC49: =Y49+Z49-AA49+AB49 -> 0 | AD49: =X49 -> 0 | AH49: =AD49+AE49-AF49+AG49 -> 0 | AI49: =AC49 -> 0 | AM49: =AI49+AJ49-AK49+AL49 -> 0 | AN49: =AH49 -> 0 | AR49: =AN49+AO49-AP49+AQ49 -> 0 | AS49: =AM49 -> 0 | AW49: =AS49+AT49-AU49+AV49 -> 0 | AX49: =AR49 -> 0 | BB49: =AX49+AY49-AZ49+BA49 -> 0 | BC49: =AW49 -> 0 | BG49: =BC49+BD49-BE49+SUM(BF49:BF49) -> 0 | BH49: =BB49 -> 0 | BL49: =BH49+BI49-BJ49+BK49 -> 0 | BM49: =BG49 -> 0 | BT49: =BM49+BN49-BO49+SUM(BP49:BS49) -> 0 | BU49: =BL49 -> 0 | BY49: =BU49+BV49-BW49+BX49 -> 0 | CB49: 0 | CC49: 0 | CE49: 0 | CF49: 0 | CG49: 0 | CI49: 0 | CK49: 0 | CM49: 0
C50: Retail Cost Variance Account - Retail | D50: 1518 | I50: 0 | N50: 0 | O50: 0 | S50: 0 | T50: 0 | X50: 0 | Y50: 0 | AB50: ='[5]1518'!$H$7 -> 310336.18 | AC50: 310336.18 | AD50: 0 | AG50: ='[5]1518'!$I$5+'[5]1518'!$I$6+'[5]1518'!$I$7 -> -11025.07 | AH50: -11025.07 | AI50: 310336.18 | AJ50: ='[5]1518'!$D$9 -> 167753.78 | AM50: 478089.96 | AN50: -11025.07 | AO50: =SUM('[5]1518'!$I$8:$I$9) -> 1304.44 | AR50: -9720.63 | AS50: 478089.96 | AT50: =SUM('[5]1518'!$D$22:$E$22) -> 172965.95 | AU50: =-'[5]1518'!$F$22 -> 310336.18 | AW50: 340719.73 | AX50: -9720.63 | AY50: ='[5]1518'!$I$22 -> 4167.21 | AZ50: =-'[5]1518'!$J$22 -> -8791.06 | BA50: ='[5]1518'!$K$22 -> -241 | BB50: 2996.64 | BC50: 340719.73 | BD50: ='[6]1518'!$D$25+'[6]1518'!$F$25 -> 103468.61 | BG50: =BC50+BD50-BE50+SUM(BF50:BF50) -> 444188.34 | BH50: =BB50 -> 2996.64 | BI50: ='[6]1518'!$J$25 -> 5636.33 | BL50: 8632.97 | BM50: 444188.34 | BN50: =SUM('[7]1518'!$D$29:E$29) -> 140843.1 | BT50: 585031.44 | BU50: 8632.97 | BV50: ='[7]1518'!$J$29 -> 7443.32 | BY50: 16076.29 | CB50: 585031.44 | CC50: 16076.29 | CE50: 8599.962168 | CF50: 8599.962168 | CG50: 609707.6922 | CH50: =SUMIF('[9]3a. 2013 Worksheet'!$P$1:$P$5000,D50,'[9]3a. 2013 Worksheet'!$AO$1:$AO$5000) -> 601107.73 | CI50: 0 | CK50: 601107.73 | CL50: ='[7]1518'!$O$28 -> 601107.73 | CM50: 0
C51: Renewable Generation Connection OM&A Deferral Account | D51: 1532 | I51: 0 | N51: 0 | S51: 0 | T51: 0 | X51: 0 | AI51: 0 | AJ51: ='[5]1532'!$D$8 -> 28000 | AM51: 28000 | AN51: 0 | AR51: 0 | AS51: 28000 | AW51: 28000 | AX51: 0 | BB51: 0 | BC51: 28000 | BD51: ='[6]1532'!$D$22 -> -46718.84 | BF51: ='[6]1532'!$G$22 -> 18718.84 | BG51: 0 | BH51: 0 | BI51: ='[6]1532'!$I$22 -> 280.100579 | BK51: ='[6]1532'!$K$22 -> -280.1 | BL51: 0.0005790000001 | BM51: 0 | BT51: 0 | BU51: 0.0005790000001 | BY51: 0.0005790000001 | CB51: 0 | CC51: 0.0005790000001 | CE51: 0 | CF51: 0 | CG51: 0.0005790000001 | CH51: =SUMIF('[9]3a. 2013 Worksheet'!$P$1:$P$5000,D51,'[9]3a. 2013 Worksheet'!$AO$1:$AO$5000) -> 0 | CI51: 0.0005790000001 | CK51: 0.0005790000001 | CM51: 0.0005790000001
C52: Renewable Generation Connection Funding Adder Deferral Account | D52: 1533 | I52: 0 | N52: 0 | S52: 0 | T52: 0 | X52: 0 | AW52: 0 | AX52: 0 | BB52: 0 | BC52: 0 | BD52: ='[6]1533'!$D$34 -> -93595.53 | BF52: ='[6]1533'!$G$34 -> -46718.84 | BG52: -140314.37 | BH52: 0 | BI52: ='[6]1533'!$I$34 -> -859.200579 | BK52: ='[6]1533'!$K$34 -> -85.83 | BL52: -945.030579 | BM52: -140314.37 | BN52: ='[7]1533'!$D$38 -> -140836.26 | BS52: =-BS26 -> -16968 | BT52: -298118.63 | BU52: -945.030579 | BV52: ='[7]1533'!$I$38 -> -3010.44 | BY52: -3955.470579 | CB52: -298118.63 | CC52: -3955.470579 | CE52: -4382.343861 | CF52: -4382.343861 | CG52: -306456.4444 | CH52: =SUMIF('[9]3a. 2013 Worksheet'!$P$1:$P$5000,D52,'[9]3a. 2013 Worksheet'!$AO$1:$AO$5000) -> -302074.1 | CI52: -0.0005790000432 | CK52: -302074.1006 | CL52: ='[7]1533'!$N$37+'[10]1533'!$G$27 -> -302781.1 | CM52: 706.999421
C53: Retail Cost Variance Account - STR | D53: 1548 | I53: 0 | N53: 0 | O53: =I53 -> 0 | S53: 0 | T53: 0 | X53: 0 | Y53: =S53 -> 0 | AB53: ='[5]1548'!$H$7 -> 57079.69 | AC53: 57079.69 | AD53: =X53 -> 0 | AG53: ='[5]1548'!$I$7+'[5]1548'!$I$5+'[5]1548'!$I$6 -> 1669.65 | AH53: 1669.65 | AI53: =AC53 -> 57079.69 | AJ53: ='[5]1548'!$D$9 -> -16797 | AM53: 40282.69 | AN53: =AH53 -> 1669.65 | AO53: =SUM('[5]1548'!$I$8:$I$9) -> 363.31 | AR53: 2032.96 | AS53: =AM53 -> 40282.69 | AT53: ='[5]1548'!$E$22 -> -8030.75 | AU53: =-'[5]1548'!$F$22 -> 57079.69 | AW53: -24827.75 | AX53: 2032.96 | AY53: ='[5]1548'!$I$22 -> 254.68 | AZ53: =-'[5]1548'!$J$22 -> 2081 | BA53: ='[5]1548'!$K$22 -> -44 | BB53: 162.64 | BC53: -24827.75 | BD53: ='[6]1548'!$E$25 -> -8800 | BG53: -33627.75 | BH53: 162.64 | BI53: ='[6]1548'!$I$25 -> -426.24 | BL53: -263.6 | BM53: -33627.75 | BN53: ='[7]1548'!$E$29 -> -7385.5 | BT53: -41013.25 | BU53: -263.6 | BV53: ='[7]1548'!$I$29 -> -546.6 | BY53: -810.2 | CB53: -41013.25 | CC53: -810.2 | CE53: -602.894775 | CF53: -602.894775 | CG53: -42426.34478 | CH53: =SUMIF('[9]3a. 2013 Worksheet'!$P$1:$P$5000,D53,'[9]3a. 2013 Worksheet'!$AO$1:$AO$5000) -> -41823.48 | CI53: 0.02999999999 | CK53: -41823.45 | CL53: ='[7]1548'!$N$28 -> -41823.47 | CM53: 0.02000000002
C54: Board-Approved CDM Variance Account | D54: 1567 | BG54: 0 | BH54: 0 | BL54: =BH54+BI54-BJ54+BK54 -> 0 | BM54: 0 | BT54: =BM54+BN54-BO54+SUM(BP54:BS54) -> 0 | BU54: =BL54 -> 0 | BY54: =BU54+BV54-BW54+BX54 -> 0 | CB54: 0 | CC54: 0 | CE54: 0 | CF54: 0 | CG54: 0 | CH54: =SUMIF('[9]3a. 2013 Worksheet'!$P$1:$P$5000,D54,'[9]3a. 2013 Worksheet'!$AO$1:$AO$5000) -> 0 | CI54: 0 | CK54: 0 | CM54: 0
C55: Other Regulatory Liabilities or Credits | D55: 2405 | Y55: =S55 -> 0 | AB55: ='[5]2405'!$O$16 -> -220000 | AC55: =Y55+Z55-AA55+AB55 -> -220000 | AD55: =X55 -> 0 | AH55: =AD55+AE55-AF55+AG55 -> 0 | AI55: =AC55 -> -220000 | AM55: =AI55+AJ55-AK55+AL55 -> -220000 | AN55: =AH55 -> 0 | AR55: =AN55+AO55-AP55+AQ55 -> 0 | AS55: =AM55 -> -220000 | AW55: =AS55+AT55-AU55+AV55 -> -220000 | AX55: =AR55 -> 0 | BB55: =AX55+AY55-AZ55+BA55 -> 0 | BC55: =AW55 -> -220000 | BG55: =BC55+BD55-BE55+SUM(BF55:BF55) -> -220000 | BH55: =BB55 -> 0 | BL55: =BH55+BI55-BJ55+BK55 -> 0 | BM55: =BG55 -> -220000 | BT55: =BM55+BN55-BO55+SUM(BP55:BS55) -> -220000 | BU55: =BL55 -> 0 | BY55: 0 | CB55: =BT55-BZ55 -> -220000 | CC55: =BY55-CA55 -> 0 | CE55: 0 | CF55: 0 | CG55: -220000 | CH55: =SUMIF('[9]3a. 2013 Worksheet'!$P$1:$P$5000,D55,'[9]3a. 2013 Worksheet'!$AO$1:$AO$5000) -> -219999.99 | CI55: -0.01000000001 | CK55: -220000 | CL55: ='[7]2405'!$O$21 -> -220000.25 | CM55: =CK55-CL55 -> 0.25
C57: Group 2 Sub-Total | E57: =SUM(E45:E55) -> 0 | F57: 0 | G57: 0 | H57: 0 | I57: 0 | J57: 0 | K57: 0 | L57: 0 | M57: 0 | N57: 0 | O57: 0 | P57: 0 | Q57: 0 | R57: 0 | S57: 0 | T57: 0 | U57: 0 | V57: 0 | W57: 0 | X57: 0 | Y57: 0 | Z57: 0 | AA57: 0 | AB57: 1787402.11 | AC57: 1787402.11 | AD57: 0 | AE57: 9201.1 | AF57: 0 | AG57: -6238.92 | AH57: 2962.18 | AI57: 1787402.11 | AJ57: -402251.48 | AK57: =SUM(AK45:AK55) -> 0 | AL57: 0 | AM57: 1385150.63 | AN57: 2962.18 | AO57: 11036 | AP57: 0 | AQ57: 0 | AR57: 13998.18 | AS57: 1385150.63 | AT57: 258965.53 | AU57: 938185.71 | AV57: 0 | AW57: 705930.45 | AX57: 13998.18 | AY57: 17128.84 | AZ57: -1908.03 | BA57: -728 | BB57: 32307.05 | BC57: 705930.45 | BD57: -45645.76 | BE57: 0 | BF57: -89254.81 | BG57: 571029.88 | BH57: 32307.05 | BI57: 12811.1 | BJ57: 0 | BK57: -16931.29 | BL57: 28186.86 | BM57: 571029.88 | BN57: -7378.66 | BO57: 0 | BP57: 0 | BQ57: =SUM(BQ45:BQ55) -> 0 | BR57: 0 | BS57: -16968 | BT57: 546683.22 | BU57: 28186.86 | BV57: 11541.52 | BW57: 0 | BX57: 0 | BY57: 39728.38 | BZ57: 0 | CA57: 0 | CB57: 546683.22 | CC57: 39728.38 | CD57: 0 | CE57: 11270.24333 | CF57: 11270.24333 | CG57: 597681.8433 | CH57: 586411.58 | CI57: 0.02000000014
C59: Deferred Payments in Lieu of Taxes | D59: 1562 | I59: =E59+F59-G59+H59 -> 0 | N59: =J59+K59-L59+M59 -> 0 | O59: =I59 -> 0 | S59: =O59+P59-Q59+R59 -> 0 | T59: =N59 -> 0 | X59: =T59+U59-V59+W59 -> 0 | Y59: =S59 -> 0 | AB59: ='[6]1562 (Def PILs)'!$H$7 -> -4476650.05 | AC59: =Y59+Z59-AA59+AB59 -> -4476650.05 | AD59: =X59 -> 0 | AG59: ='[5]1562 (Def PILs)'!$I$7 -> 833591.58 | AH59: =AD59+AE59-AF59+AG59 -> 833591.58 | AI59: =AC59 -> -4476650.05 | AJ59: ='[5]1562 (Def PILs)'!$D$9 -> -708560 | AM59: =AI59+AJ59-AK59+AL59 -> -5185210.05 | AN59: =AH59 -> 833591.58 | AO59: ='[5]1562 (Def PILs)'!$I$9 -> -35682.9 | AR59: =AN59+AO59-AP59+AQ59 -> 797908.68 | AS59: =AM59 -> -5185210.05 | AT59: ='[5]1562 (Def PILs)'!$E$22 -> 0 | AW59: =AS59+AT59-AU59+AV59 -> -5185210.05 | AX59: =AR59 -> 797908.68 | AY59: ='[5]1562 (Def PILs)'!$I$22 -> -76222.56 | BA59: ='[5]1562 (Def PILs)'!$K$22 -> -1267988 | BB59: =AX59+AY59-AZ59+BA59 -> -546301.88 | BC59: =AW59 -> -5185210.05 | BD59: ='[6]1562 (Def PILs)'!$G$23 -> 8935693 | BE59: =-'[6]1562 (Def PILs)'!$F$23 -> 3750482.95 | BG59: =BC59+BD59-BE59+SUM(BF59:BF59) -> 0 | BH59: =BB59 -> -546301.88 | BI59: ='[6]1562 (Def PILs)'!$I$23 -> 2158.521614 | BJ59: =-'[6]1562 (Def PILs)'!$J$23 -> -319982.36 | BK59: ='[6]1562 (Def PILs)'!$K$23 -> 224161.0031 | BL59: =BH59+BI59-BJ59+BK59 -> 0.0047524744 | BM59: =BG59 -> 0 | BT59: =BM59+BN59-BO59+SUM(BP59:BS59) -> 0 | BU59: =BL59 -> 0.0047524744 | BY59: =BU59+BV59-BW59+BX59 -> 0.0047524744 | CB59: =BT59-BZ59 -> 0 | CC59: =BY59-CA59 -> 0.0047524744 | CF59: =BT59*0.0147 -> 0 | CG59: =SUM(CB59+CC59+CF59) -> 0.0047524744 | CH59: =SUMIF('[9]3a. 2013 Worksheet'!$P$1:$P$5000,D59,'[9]3a. 2013 Worksheet'!$AO$1:$AO$5000) -> 0 | CI59: 0.0047524744 | CK59: =BT59+BY59 -> 0.0047524744 | CM59: 0.0047524744
C60: PILs and Tax Variance for 2006 and Subsequent Years (excludes sub-account and contra account below) | D60: 1592 | I60: =E60+F60-G60+H60 -> 0 | N60: =J60+K60-L60+M60 -> 0 | O60: =I60 -> 0 | S60: =O60+P60-Q60+R60 -> 0 | T60: =N60 -> 0 | X60: =T60+U60-V60+W60 -> 0 | Y60: =S60 -> 0 | AC60: =Y60+Z60-AA60+AB60 -> 0 | AD60: =X60 -> 0 | AH60: =AD60+AE60-AF60+AG60 -> 0 | AI60: =AC60 -> 0 | AM60: =AI60+AJ60-AK60+AL60 -> 0 | AN60: =AH60 -> 0 | AR60: =AN60+AO60-AP60+AQ60 -> 0 | AS60: =AM60 -> 0 | AW60: =AS60+AT60-AU60+AV60 -> 0 | AX60: =AR60 -> 0 | BB60: =AX60+AY60-AZ60+BA60 -> 0 | BC60: =AW60 -> 0 | BG60: =BC60+BD60-BE60+SUM(BF60:BF60) -> 0 | BH60: =BB60 -> 0 | BL60: =BH60+BI60-BJ60+BK60 -> 0 | BM60: =BG60 -> 0 | BT60: =BM60+BN60-BO60+SUM(BP60:BS60) -> 0 | BU60: =BL60 -> 0 | BY60: =BU60+BV60-BW60+BX60 -> 0 | CB60: =BT60-BZ60 -> 0 | CC60: =BY60-CA60 -> 0 | CF60: 0 | CG60: =SUM(CB60+CC60+CF60) -> 0 | CI60: 0 | CK60: =BT60+BY60 -> 0 | CM60: 0
C61: PILs and Tax Variance for 2006 and Subsequent Years - Sub-Account HST/OVAT Input Tax Credits (ITCs) | D61: 1592 | I61: =E61+F61-G61+H61 -> 0 | N61: =J61+K61-L61+M61 -> 0 | O61: =I61 -> 0 | S61: =O61+P61-Q61+R61 -> 0 | T61: =N61 -> 0 | X61: =T61+U61-V61+W61 -> 0 | Y61: =S61 -> 0 | AB61: ='[5]1592'!$H$7 -> -877121 | AC61: =Y61+Z61-AA61+AB61 -> -877121 | AD61: =X61 -> 0 | AG61: ='[5]1592'!$L$7 -> -45835.48 | AH61: =AD61+AE61-AF61+AG61 -> -45835.48 | AI61: =AC61 -> -877121 | AJ61: ='[5]1592'!$D$9 -> -140053.96 | AM61: =AI61+AJ61-AK61+AL61 -> -1017174.96 | AN61: =AH61 -> -45835.48 | AO61: ='[5]1592'!$I$9 -> -34287.26 | AR61: =AN61+AO61-AP61+AQ61 -> -80122.74 | AS61: =AM61 -> -1017174.96 | AU61: =-'[5]1592'!$F$22 -> -1017174.96 | AW61: =AS61+AT61-AU61+AV61 -> 0 | AX61: =AR61 -> -80122.74 | AY61: ='[5]1592'!$I$22 -> -9968.32 | AZ61: =-'[5]1592'!$J$22 -> -79335 | BA61: ='[5]1592'!$K$22 -> 788 | BB61: =AX61+AY61-AZ61+BA61 -> -9968.06 | BC61: =AW61 -> 0 | BD61: ='[6]1592'!$D$24 -> 8456.503484 | BF61: ='[6]1592'!$G$24 -> 11428.88283 | BG61: =BC61+BD61-BE61+SUM(BF61:BF61) -> 19885.38632 | BH61: =BB61 -> -9968.06 | BI61: ='[6]1592'!$I$24 -> 131.7642413 | BL61: =BH61+BI61-BJ61+BK61 -> -9836.295759 | BM61: =BG61 -> 19885.38632 | BT61: =BM61+BN61-BO61+SUM(BP61:BS61) -> 19885.38632 | BU61: =BL61 -> -9836.295759 | BV61: ='[7]1592'!$I$28 -> 292.32 | BY61: =BU61+BV61-BW61+BX61 -> -9543.975759 | CB61: =BT61-BZ61 -> 19885.38632 | CC61: =BY61-CA61 -> -9543.975759 | CE61: =BT61*0.0147 -> 292.3151789 | CF61: 292.3151789 | CG61: =SUM(CB61+CC61+CF61) -> 10633.72574 | CH61: =SUMIF('[9]3a. 2013 Worksheet'!$P$1:$P$5000,D61,'[9]3a. 2013 Worksheet'!$AO$1:$AO$5000) -> 10341.4 | CI61: 0.01055803059 | CK61: =BT61+BY61 -> 10341.41056 | CL61: ='[7]1592'!$N$27 -> 10341.4 | CM61: 0.01055803057
C63: Total of Group 1 and Group 2 Accounts (including 1562 and 1592) | E63: =+E57+E40+E59+E60+E61 -> 10 | F63: 0 | G63: 0 | H63: 0 | I63: 0 | J63: 0 | K63: 0 | L63: 0 | M63: 0 | N63: 0 | O63: 0 | P63: 0 | Q63: 0 | R63: 0 | S63: 0 | T63: 0 | U63: 0 | V63: 0 | W63: 0 | X63: 0 | Y63: 0 | Z63: 0 | AA63: 0 | AB63: -23489514.07 | AC63: -23489514.07 | AD63: 0 | AE63: 9201.1 | AF63: 0 | AG63: -1285470.48 | AH63: -1276269.38 | AI63: -23489514.07 | AJ63: -17730206.92 | AK63: =+AK57+AK40+AK59+AK60+AK61 -> -18695322 | AL63: -1608159.47 | AM63: -24132558.46 | AN63: -1276269.38 | AO63: -205646.31 | AP63: -1018332.68 | AQ63: -1167276.61 | AR63: -1630859.62 | AS63: -24132558.46 | AT63: 3949757.69 | AU63: -886459.37 | AV63: 220001.27 | AW63: -19076340.13 | AX63: -1630859.62 | AY63: -288751.39 | AZ63: -17722.03 | BA63: -1269869.3 | BB63: -3171758.28 | BC63: -19076340.13 | BD63: 8605411.394 | BE63: 1711444.95 | BF63: -571547.7172 | BG63: -12753921.4 | BH63: -3171758.28 | BI63: -164350.4041 | BJ63: -1604810.36 | BK63: 209436.2131 | BL63: -1521862.111 | BM63: -12753921.4 | BN63: 3223914.15 | BO63: 0 | BP63: 0 | BQ63: =+BQ57+BQ40+BQ59+BQ60+BQ61 -> 0 | BR63: 0 | BS63: 0 | BT63: -9530007.253 | BU63: -1521862.111 | BV63: -120862.5635 | BW63: 0 | BX63: 1306.01415 | BY63: -1641418.66 | BZ63: -10223948 | CA63: -175364 | CB63: 693940.7473 | CC63: -1466054.66 | CD63: 0 | CE63: -136857.1066 | CF63: -136857.1066 | CG63: -908971.0197 | CH63: -11171425.9 | CI63: -0.01304599829
C66: LRAM Variance Account | D66: 1568 | BC66: =AW66 -> 0 | BD66: ='[6]1568 Residential'!$D$25+'[6]1568 Residential'!$G$25+'[6]1568 GS<50'!$D$25+'[6]1568 GS<50'!$G$25+'[6]1568 GS>50'!$D$25+'[6]1568 GS>50'!$G$25+'[6]1568 Large User'!$D$25+'[6]1568 Large User'!$G$25 -> -237215.678 | BG66: =BC66+BD66-BE66+SUM(BF66:BF66) -> -237215.678 | BI66: =SUM('[6]1568 Residential'!$I$25:$L$25)+SUM('[6]1568 GS<50'!$I$25:$L$25)+SUM('[6]1568 GS>50'!$I$25:$L$25)+SUM('[6]1568 Large User'!$I$25:$L$25) -> -277.63 | BL66: =BH66+BI66-BJ66+BK66 -> -277.63 | BM66: =BG66 -> -237215.678 | BN66: ='[7]1568 Residential'!$E$27+'[7]1568 GS<50'!$E$27+'[7]1568 GS>50'!$E$27+'[7]1568 Large User'!$E$27 -> 0 | BT66: =BM66+BN66-BO66+SUM(BP66:BS66) -> -237215.678 | BU66: =BL66 -> -277.63 | BV66: ='[7]1568 Residential'!$I$27+'[7]1568 GS<50'!$I$27+'[7]1568 GS>50'!$I$27+'[7]1568 Large User'!$I$27 -> -3487.08 | BY66: =BU66+BV66-BW66+BX66 -> -3764.71 | CB66: =BT66-BZ66 -> -237215.678 | CC66: =BY66-CA66 -> -3764.71 | CE66: =BT66*0.0147 -> -3487.070467 | CF66: =BT66*0.0147 -> -3487.070467 | CG66: =SUM(CB66+CC66+CF66) -> -244467.4585 | CH66: =SUMIF('[9]3a. 2013 Worksheet'!$P$1:$P$5000,D66,'[9]3a. 2013 Worksheet'!$AO$1:$AO$5000) -> -240980.38 | CI66: =BT66+BY66-CH66 -> -0.008037657011 | CK66: =BT66+BY66 -> -240980.388 | CL66: ='[7]1568 Residential'!$N$26+'[7]1568 GS<50'!$N$26+'[7]1568 GS>50'!$N$26+'[7]1568 Large User'!$N$26 -> -240980.3831 | CM66: -0.004949174792
C69: Total including Account 1568 | E69: =#REF!+E63+E66 ->  | F69: =#REF!+F63+F66 ->  | G69: =#REF!+G63+G66 ->  | H69: =#REF!+H63+H66 ->  | I69: =#REF!+I63+I66 ->  | J69: =#REF!+J63+J66 ->  | K69: =#REF!+K63+K66 ->  | L69: =#REF!+L63+L66 ->  | M69: =#REF!+M63+M66 ->  | N69: =#REF!+N63+N66 ->  | O69: =#REF!+O63+O66 ->  | P69: =#REF!+P63+P66 ->  | Q69: =#REF!+Q63+Q66 ->  | R69: =#REF!+R63+R66 ->  | S69: =#REF!+S63+S66 ->  | T69: =#REF!+T63+T66 ->  | U69: =#REF!+U63+U66 ->  | V69: =#REF!+V63+V66 ->  | W69: =#REF!+W63+W66 ->  | X69: =#REF!+X63+X66 ->  | Y69: =Y63+Y66 -> 0 | Z69: 0 | AA69: 0 | AB69: -23489514.07 | AC69: -23489514.07 | AD69: 0 | AE69: 9201.1 | AF69: 0 | AG69: -1285470.48 | AH69: -1276269.38 | AI69: -23489514.07 | AJ69: -17730206.92 | AK69: -18695322 | AL69: -1608159.47 | AM69: -24132558.46 | AN69: -1276269.38 | AO69: -205646.31 | AP69: -1018332.68 | AQ69: -1167276.61 | AR69: -1630859.62 | AS69: -24132558.46 | AT69: 3949757.69 | AU69: -886459.37 | AV69: 220001.27 | AW69: -19076340.13 | AX69: -1630859.62 | AY69: -288751.39 | AZ69: -17722.03 | BA69: -1269869.3 | BB69: -3171758.28 | BC69: -19076340.13 | BD69: 8368195.716 | BE69: =BE63+BE66 -> 1711444.95 | BF69: -571547.7172 | BG69: -12991137.08 | BH69: -3171758.28 | BI69: -164628.0341 | BJ69: -1604810.36 | BK69: 209436.2131 | BL69: -1522139.741 | BM69: -12991137.08 | BN69: 3223914.15 | BO69: 0 | BP69: 0 | BQ69: 0 | BR69: 0 | BS69: 0 | BT69: -9767222.931 | BU69: -1522139.741 | BV69: -124349.6435 | BW69: 0 | BX69: 1306.01415 | BY69: -1645183.37 | BZ69: -10223948 | CA69: -175364 | CB69: 456725.0693 | CC69: -1469819.37 | CD69: =CD63+CD66 -> 0 | CE69: -140344.1771 | CF69: -140344.1771 | CG69: -1153438.478 | CH69: =CH63+CH66 -> -11412406.28 | CI69: =BT69+BY69-CH69 -> -0.02108365484
C71: Smart Meter Capital and Recovery Offset Variance - Sub-Account - Capital11 | D71: 1555 | I71: =E71+F71-G71+H71 -> 0 | N71: =J71+K71-L71+M71 -> 0 | O71: =I71 -> 0 | S71: =O71+P71-Q71+R71 -> 0 | T71: =N71 -> 0 | X71: =T71+U71-V71+W71 -> 0 | Y71: =S71 -> 0 | AB71: ='[12]1555'!$E$4+'[12]1555'!$J$4 -> -3471996.43 | AC71: =Y71+Z71-AA71+AB71 -> -3471996.43 | AD71: =X71 -> 0 | AG71: ='[12]1555'!$H$4 -> -276155.56 | AH71: =AD71+AE71-AF71+AG71 -> -276155.56 | AI71: =AC71 -> -3471996.43 | AJ71: ='[12]1555'!$D$17+'[12]1555'!$I$17 -> -534823.46 | AM71: =AI71+AJ71-AK71+AL71 -> -4006819.89 | AN71: =AH71 -> -276155.56 | AO71: ='[12]1555'!$F$17 -> 847207.08 | AR71: =AN71+AO71-AP71+AQ71 -> 571051.52 | AS71: =AM71 -> -4006819.89 | AT71: ='[5]1555'!$D$17+'[5]1555'!$I$17 -> -1991179.43 | AW71: =AS71+AT71-AU71+AV71 -> -5997999.32 | AX71: =AR71 -> 571051.52 | AY71: ='[5]1555'!$F$17 -> 72304.55 | BB71: =AX71+AY71-AZ71+BA71 -> 643356.07 | BC71: =AW71 -> -5997999.32 | BD71: =SUM('[6]1555'!$D$5:$D$8) -> -2024182.36 | BF71: ='[6]1555'!$D$12+'[6]1555'!$I$17 -> 8827487.102 | BG71: =BC71+BD71-BE71+SUM(BF71:BF71) -> 805305.4225 | BH71: =BB71 -> 643356.07 | BI71: ='[6]1555'!$F$17+'[6]1555'!$L$17 -> 21436.00648 | BK71: ='[6]1555'!$G$17 -> -659733.9472 | BL71: =BH71+BI71-BJ71+BK71 -> 5058.129302 | BM71: =BG71 -> 805305.4225 | BN71: ='[7]1555'!$I$21 -> 995588.2293 | BS71: =+'[13]Summary $''s'!$L$30 -> 5390.580789 | BT71: =BM71+BN71-BO71+SUM(BP71:BS71) -> 1806284.233 | BU71: =BL71 -> 5058.129302 | BV71: =SUM('[7]1555'!$K$21:$L$21) -> 15660.54331 | BY71: =BU71+BV71-BW71+BX71 -> 20718.67261 | CB71: =BT71-BZ71 -> 1806284.233 | CC71: =BY71-CA71 -> 20718.67261 | CE71: =BT71*0.0147 -> 26552.37822 | CF71: =BT71*0.0147 -> 26552.37822 | CG71: 0 | CH71: =SUMIF('[9]3a. 2013 Worksheet'!$P$1:$P$5000,D71,'[9]3a. 2013 Worksheet'!$AO$1:$AO$5000) -> 1821612.32 | CI71: 5390.585141 | CK71: =BT71+BY71 -> 1827002.905 | CL71: ='[7]1555'!$O$20+'[13]Summary $''s'!$L$30 -> 1827002.905 | CM71: -1.862645149e-09
C72: Smart Meter OM&A Variance11 | D72: 1556 | I72: =E72+F72-G72+H72 -> 0 | N72: =J72+K72-L72+M72 -> 0 | O72: =I72 -> 0 | S72: =O72+P72-Q72+R72 -> 0 | T72: =N72 -> 0 | X72: =T72+U72-V72+W72 -> 0 | Y72: =S72 -> 0 | AB72: ='[12]1556'!$E$4 -> 2822991.03 | AC72: =Y72+Z72-AA72+AB72 -> 2822991.03 | AD72: =X72 -> 0 | AG72: ='[12]1556'!$H$4 -> 87909.76 | AH72: =AD72+AE72-AF72+AG72 -> 87909.76 | AI72: =AC72 -> 2822991.03 | AJ72: ='[12]1556'!$D$17 -> 1150191 | AM72: =AI72+AJ72-AK72+AL72 -> 3973182.03 | AN72: =AH72 -> 87909.76 | AO72: ='[12]1556'!$F$17 -> 96887.67 | AR72: =AN72+AO72-AP72+AQ72 -> 184797.43 | AS72: =AM72 -> 3973182.03 | AT72: ='[5]1556'!$D$17 -> 1180303 | AW72: =AS72+AT72-AU72+AV72 -> 5153485.03 | AX72: =AR72 -> 184797.43 | AY72: ='[5]1556'!$F$17 -> 142509.79 | BB72: =AX72+AY72-AZ72+BA72 -> 327307.22 | BC72: =AW72 -> 5153485.03 | BF72: ='[6]1556'!$D$17 -> -5153485.03 | BG72: =BC72+BD72-BE72+SUM(BF72:BF72) -> 0 | BH72: =BB72 -> 327307.22 | BI72: ='[6]1556'!$F$17-2 -> 88134.08271 | BK72: ='[6]1556'!$G$17 -> -415441.4627 | BL72: =BH72+BI72-BJ72+BK72 -> -0.16 | BM72: =BG72 -> 0 | BT72: =BM72+BN72-BO72+SUM(BP72:BS72) -> 0 | BU72: =BL72 -> -0.16 | BY72: =BU72+BV72-BW72+BX72 -> -0.16 | CB72: =BT72-BZ72 -> 0 | CC72: =BY72-CA72 -> -0.16 | CF72: 0 | CG72: =SUM(CB72+CC72+CF72) -> -0.16 | CH72: =SUMIF('[9]3a. 2013 Worksheet'!$P$1:$P$5000,D72,'[9]3a. 2013 Worksheet'!$AO$1:$AO$5000) -> 0 | CI72: -0.16 | CK72: =BT72+BY72 -> -0.16 | CL72: ='[7]1556'!$O$20 -> 0 | CM72: -0.16
C74: IFRS-CGAAP Transition PP&E Amounts10 | D74: 1575 | I74: =E74+F74-G74+H74 -> 0 | N74: =J74+K74-L74+M74 -> 0 | O74: =I74 -> 0 | S74: =O74+P74-Q74+R74 -> 0 | T74: =N74 -> 0 | X74: =T74+U74-V74+W74 -> 0 | Y74: =S74 -> 0 | AC74: =Y74+Z74-AA74+AB74 -> 0 | AD74: =X74 -> 0 | AH74: =AD74+AE74-AF74+AG74 -> 0 | AI74: =AC74 -> 0 | AM74: =AI74+AJ74-AK74+AL74 -> 0 | AN74: =AH74 -> 0 | AR74: =AN74+AO74-AP74+AQ74 -> 0 | AS74: =AM74 -> 0 | AW74: =AS74+AT74-AU74+AV74 -> 0 | AX74: =AR74 -> 0 | BB74: =AX74+AY74-AZ74+BA74 -> 0 | BC74: =AW74 -> 0 | BF74: -1030198.94 | BG74: =BC74+BD74-BE74+SUM(BF74:BF74) -> -1030198.94 | BH74: =BB74 -> 0 | BL74: =BH74+BI74-BJ74+BK74 -> 0 | BM74: =BG74 -> -1030198.94 | BN74: =SUM('[7]1575'!$G$19:G26) -> 872860.5341 | BS74: -745999 | BT74: =BM74+BN74-BO74+SUM(BP74:BS74) -> -903337.4059 | BU74: =BL74 -> 0 | BX74: ='[14]Summary By Group - Revised'!$H$31 -> 0 | BY74: =BU74+BV74-BW74+BX74 -> 0 | CB74: =BT74-BZ74 -> -903337.4059 | CC74: =BY74-CA74 -> 0 | CD74: =1562650.14-94218 -> 1468432.14 | CE74: ='[8]Summary By Group - Revised'!$Q$31 -> 0 | CF74: 0 | CG74: =SUM(CB74+CC74+CF74+CD74) -> 565094.7341 | CH74: =SUMIF('[9]3a. 2013 Worksheet'!$P$1:$P$5000,D74,'[9]3a. 2013 Worksheet'!$AO$1:$AO$5000) -> -903336.96 | CI74: -0.4458711338 | CK74: =BT74+BY74 -> -903337.4059 | CL74: ='[7]1575'!$N$26++'[10]1575'!$G$16 -> -157338.4096 | CM74: -745998.9963
CF75: =BT75*0.0147 -> 0 | CI75: 0 | CK75: =BT75+BY75 -> 0 | CM75: =CK75-CL75 -> 0
C76: The following is not included in the total claim but are included on a memo basis: | CI76: =CH76-SUM(BG76,BL76) -> 0
C77: Deferred PILs Contra Account 5 | D77: 1563 | I77: =E77+F77-G77+H77 -> 0 | N77: =J77+K77-L77+M77 -> 0 | O77: =I77 -> 0 | S77: =O77+P77-Q77+R77 -> 0 | T77: =N77 -> 0 | X77: =T77+U77-V77+W77 -> 0 | Y77: =S77 -> 0 | AC77: =Y77+Z77-AA77+AB77 -> 0 | AD77: =X77 -> 0 | AH77: =AD77+AE77-AF77+AG77 -> 0 | AI77: =AC77 -> 0 | AM77: =AI77+AJ77-AK77+AL77 -> 0 | AN77: =AH77 -> 0 | AR77: =AN77+AO77-AP77+AQ77 -> 0 | AS77: =AM77 -> 0 | AW77: =AS77+AT77-AU77+AV77 -> 0 | AX77: =AR77 -> 0 | BB77: =AX77+AY77-AZ77+BA77 -> 0 | BC77: =AW77 -> 0 | BG77: =BC77+BD77-BE77+SUM(BF77:BF77) -> 0 | BH77: =BB77 -> 0 | BL77: =BH77+BI77-BJ77+BK77 -> 0 | BM77: =BG77 -> 0 | BT77: =BM77+BN77-BO77+SUM(BP77:BS77) -> 0 | BU77: =BL77 -> 0 | BY77: =BU77+BV77-BW77+BX77 -> 0 | CB77: =BT77-BZ77 -> 0 | CC77: =BY77-CA77 -> 0 | CF77: =BT77*0.0147 -> 0 | CG77: =SUM(CB77+CC77+CF77) -> 0 | CI77: 0 | CK77: =BT77+BY77 -> 0 | CM77: 0
C78: PILs and Tax Variance for 2006 and Subsequent Years - Sub-Account HST/OVAT Contra Account | D78: 1592 | I78: =E78+F78-G78+H78 -> 0 | N78: =J78+K78-L78+M78 -> 0 | O78: =I78 -> 0 | S78: =O78+P78-Q78+R78 -> 0 | T78: =N78 -> 0 | X78: =T78+U78-V78+W78 -> 0 | Y78: =S78 -> 0 | AC78: =Y78+Z78-AA78+AB78 -> 0 | AD78: =X78 -> 0 | AH78: =AD78+AE78-AF78+AG78 -> 0 | AI78: =AC78 -> 0 | AM78: =AI78+AJ78-AK78+AL78 -> 0 | AN78: =AH78 -> 0 | AR78: =AN78+AO78-AP78+AQ78 -> 0 | AS78: =AM78 -> 0 | AW78: =AS78+AT78-AU78+AV78 -> 0 | AX78: =AR78 -> 0 | BB78: =AX78+AY78-AZ78+BA78 -> 0 | BC78: =AW78 -> 0 | BG78: =BC78+BD78-BE78+SUM(BF78:BF78) -> 0 | BH78: =BB78 -> 0 | BL78: =BH78+BI78-BJ78+BK78 -> 0 | BM78: =BG78 -> 0 | BT78: =BM78+BN78-BO78+SUM(BP78:BS78) -> 0 | BU78: =BL78 -> 0 | BY78: =BU78+BV78-BW78+BX78 -> 0 | CB78: =BT78-BZ78 -> 0 | CC78: =BY78-CA78 -> 0 | CF78: 0 | CG78: =SUM(CB78+CC78+CF78) -> 0 | CI78: 0 | CK78: =BT78+BY78 -> 0 | CM78: 0
C79: Disposition and Recovery of Regulatory Balances7 | D79: 1595 | I79: =E79+F79-G79+H79 -> 0 | N79: =J79+K79-L79+M79 -> 0 | O79: =I79 -> 0 | S79: =O79+P79-Q79+R79 -> 0 | T79: =N79 -> 0 | X79: =T79+U79-V79+W79 -> 0 | Y79: =S79 -> 0 | AC79: =Y79+Z79-AA79+AB79 -> 0 | AD79: =X79 -> 0 | AH79: =AD79+AE79-AF79+AG79 -> 0 | AI79: =AC79 -> 0 | AM79: =AI79+AJ79-AK79+AL79 -> 0 | AN79: =AH79 -> 0 | AR79: =AN79+AO79-AP79+AQ79 -> 0 | AS79: =AM79 -> 0 | AW79: =AS79+AT79-AU79+AV79 -> 0 | AX79: =AR79 -> 0 | BB79: =AX79+AY79-AZ79+BA79 -> 0 | BC79: =AW79 -> 0 | BG79: =BC79+BD79-BE79+SUM(BF79:BF79) -> 0 | BH79: =BB79 -> 0 | BL79: =BH79+BI79-BJ79+BK79 -> 0 | BM79: =BG79 -> 0 | BT79: =BM79+BN79-BO79+SUM(BP79:BS79) -> 0 | BU79: =BL79 -> 0 | BY79: =BU79+BV79-BW79+BX79 -> 0 | CB79: =BT79-BZ79 -> 0 | CC79: =BY79-CA79 -> 0 | CF79: 0 | CG79: =SUM(CB79+CC79+CF79) -> 0 | CI79: 0 | CK79: =BT79+BY79 -> 0 | CM79: 0
CK81: =SUM(CK45:CK79) -> 1279437.967 | CL81: =SUM(CL45:CL79) -> 2024729.842 | CM81: =SUM(CM45:CM79) -> -745291.8759 | CO81: Group 2
C82: For all Board-Approved dispositions, please ensure that the disposition amount has the same sign (e.g: debit balances are to have a positive figure and credit balance are to have a negative figure) as per the related Board decision. | CK82: =CK40+CK81 -> -10488740.96 | CL82: =CL40+CL81 -> -9742742.037 | CM82: =CM40+CM81 -> -745998.9249 | CN82: =CN40+CN81 -> 0
B83: 1 | C83: Provide supporting statement indicating whether due to denial of costs in 2006 EDR by the Board, 10% transition costs write-off, etc.
B84: 1A | C84: Adjustments Instructed by the Board include deferral/variance account balances moved to Account 1590 as a result of the 2006 EDR and account 1595 during the 2008 EDR and subsequent years as ordered by the Board.
B85: 2 | C85: Please provide explanations for the nature of the adjustments. If the adjustment relates to previously Board Approved disposed balances, please provide amounts for adjustments and include supporting documentations.
B86: 3 | C86: For RSVA accounts only, report the net variance to the account during the year. For all other accounts, record the transactions during the year.
B87: 4 | C87: Please describe "other" components of 1508 and add more component lines if necessary.
B88: 5 | C88: 1563 is a contra-account and is not included in the total but is shown on a memo basis. Account 1562 establishes the obligation to the ratepayer.
B89: 6 | C89: If the LDC’s 2013 rate year begins January 1, 2013, the projected interest is recorded from January 1, 2012 to December 31, 2012 on the December 31, 2011 balance adjusted for the disposed balances approved by the Board in the 2012 rate decision. If the LDC’s 2013 rate year begins May 1, 2013 the projected interest is recorded from January 1, 2012 to April 30, 2013 on the December 31, 2011 balance adjusted for the disposed balances approved by the Board in the 2012 rate decision.
B92: 7 | C92: Include Account 1595 as part of Group 1 accounts (lines 31, 32 and 33) for review and disposition if the recovery (or refund) period has been completed. If the recovery (or refund) period has not been completed, include the
C93: balances in Account 1595 on a memo basis only (line 85).
B94: 8 | C94: As per the January 6, 2011 Letter from the Board, regarding the implementation of the Ontario Clean Energy Benefit:
C95: "By way of exception... The Board does acticipate that licensed distributors that cannot adapt their invoices as of January 1, 2011 will require a variance account for OCEB purposes... The Board expects that any principal
C96: balances in "Sub account Financial Assistance Payment and Recovery Variance - Ontario Clean Energy Benefit Act" will be addressed through the monthly settlement process with the IESO or the host distributor, as applicable.
B97: 9 | C97: The Board expected that requests for disposition of the balances in Account 1521 were to be addressed as part of the proceedings to set rates for the 2012 rate year, except in cases where this approach would have resulted in
C98: non-compliance with the timeline set out in section 8 of the SPC regulation.
B99: 10 | C99: Account 1575 shall not be cleared through the distributor's deferral and variance account rate rider. Account 1575 shall be cleared as an adjustment to the distributor's revenue requirement.
B100: 11 | C100: Deferral accounts related to Smart Meter deployment are not to be recovered/refunded through the Deferral and Variance Account rate rider. For details on how to dispose of balances in Smart Meter accounts see the Board's
C101: Guideline: Smart Meter Disposition and Cost Recovery (G-2011-0001)

Sheet 3. Appendix A
B16: Accounts that produced a variance on the 2015 continuity schedule are listed below. Please provide a detailed explanation for each variance below.
C20: Account Descriptions | D20: Account Number | E20: Variance RRR vs. 2012 Balance (Principal + Interest) | F20: Explanation
C23: Group 1 Accounts
A24: 1 | C24: LV Variance Account | D24: 1550 | E24: =IF(ISNA(VLOOKUP('3. Appendix A'!D24,'2. 2013 Continuity Schedule'!$D$24:$CI$79,84,FALSE))=TRUE,0,VLOOKUP('3. Appendix A'!D24,'2. 2013 Continuity Schedule'!$D$24:$CI$79,84,FALSE)) -> 0
A25: 2 | C25: Smart Meter Entity | D25: 1551 | E25: =IF(ISNA(VLOOKUP('3. Appendix A'!D25,'2. 2013 Continuity Schedule'!$D$24:$CI$79,84,FALSE))=TRUE,0,VLOOKUP('3. Appendix A'!D25,'2. 2013 Continuity Schedule'!$D$24:$CI$79,84,FALSE)) -> -4.292814992e-10
A26: 3 | C26: RSVA - Wholesale Market Service Charge | D26: 1580 | E26: =IF(ISNA(VLOOKUP('3. Appendix A'!D26,'2. 2013 Continuity Schedule'!$D$24:$CI$79,84,FALSE))=TRUE,0,VLOOKUP('3. Appendix A'!D26,'2. 2013 Continuity Schedule'!$D$24:$CI$79,84,FALSE)) -> 0
A27: 4 | C27: RSVA - Retail Transmission Network Charge | D27: 1584 | E27: =IF(ISNA(VLOOKUP('3. Appendix A'!D27,'2. 2013 Continuity Schedule'!$D$24:$CI$79,84,FALSE))=TRUE,0,VLOOKUP('3. Appendix A'!D27,'2. 2013 Continuity Schedule'!$D$24:$CI$79,84,FALSE)) -> -0.050000004
A28: 5 | C28: RSVA - Retail Transmission Connection Charge | D28: 1586 | E28: =IF(ISNA(VLOOKUP('3. Appendix A'!D28,'2. 2013 Continuity Schedule'!$D$24:$CI$79,84,FALSE))=TRUE,0,VLOOKUP('3. Appendix A'!D28,'2. 2013 Continuity Schedule'!$D$24:$CI$79,84,FALSE)) -> 0.0009999936447
A29: 6 | C29: RSVA - Power (excluding Global Adjustment) | D29: 1588 | E29: =IF(ISNA(VLOOKUP('3. Appendix A'!D29,'2. 2013 Continuity Schedule'!$D$24:$CI$79,84,FALSE))=TRUE,0,VLOOKUP('3. Appendix A'!D29,'2. 2013 Continuity Schedule'!$D$24:$CI$79,84,FALSE)) -> 0.002645862289
A30: 7 | C30: RSVA - Power - Sub-account - Global Adjustment | D30: 1589 | E30: =IF(ISNA(VLOOKUP('3. Appendix A'!D30,'2. 2013 Continuity Schedule'!$D$24:$CI$79,84,FALSE))=TRUE,0,VLOOKUP('3. Appendix A'!D30,'2. 2013 Continuity Schedule'!$D$24:$CI$79,84,FALSE)) -> -0.002645856584
A31: 8 | C31: Recovery of Regulatory Asset Balances | D31: 1590 | E31: =IF(ISNA(VLOOKUP('3. Appendix A'!D31,'2. 2013 Continuity Schedule'!$D$24:$CI$79,84,FALSE))=TRUE,0,VLOOKUP('3. Appendix A'!D31,'2. 2013 Continuity Schedule'!$D$24:$CI$79,84,FALSE)) -> 0
A32: 9 | C32: Disposition and Recovery/Refund of Regulatory Balances (2008)7 - (COS08) | D32: 1595 | E32: =IF(ISNA(VLOOKUP('3. Appendix A'!D32,'2. 2013 Continuity Schedule'!$D$24:$CI$79,84,FALSE))=TRUE,0,VLOOKUP('3. Appendix A'!D32,'2. 2013 Continuity Schedule'!$D$24:$CI$79,84,FALSE)) -> 0
A33: 10 | C33: Disposition and Recovery/Refund of Regulatory Balances (2009)7 - (IRM10) | D33: 1595 | E33: =IF(ISNA(VLOOKUP('3. Appendix A'!D33,'2. 2013 Continuity Schedule'!$D$24:$CI$79,84,FALSE))=TRUE,0,VLOOKUP('3. Appendix A'!D33,'2. 2013 Continuity Schedule'!$D$24:$CI$79,84,FALSE)) -> 0
A34: 11 | C34: Disposition and Recovery/Refund of Regulatory Balances (2010)7 - (COS11) | D34: 1595 | E34: =IF(ISNA(VLOOKUP('3. Appendix A'!D34,'2. 2013 Continuity Schedule'!$D$24:$CI$79,84,FALSE))=TRUE,0,VLOOKUP('3. Appendix A'!D34,'2. 2013 Continuity Schedule'!$D$24:$CI$79,84,FALSE)) -> 0
A35: 12 | C35: Disposition and Recovery/Refund of Regulatory Balances (2011)7 - (IRM12) | D35: 1595 | E35: =IF(ISNA(VLOOKUP('3. Appendix A'!D35,'2. 2013 Continuity Schedule'!$D$24:$CI$79,84,FALSE))=TRUE,0,VLOOKUP('3. Appendix A'!D35,'2. 2013 Continuity Schedule'!$D$24:$CI$79,84,FALSE)) -> 0
A36: 13 | C36: Disposition and Recovery/Refund of Regulatory Balances (2012)7 - (Def PILS) | D36: 1595 | E36: =IF(ISNA(VLOOKUP('3. Appendix A'!D36,'2. 2013 Continuity Schedule'!$D$24:$CI$79,84,FALSE))=TRUE,0,VLOOKUP('3. Appendix A'!D36,'2. 2013 Continuity Schedule'!$D$24:$CI$79,84,FALSE)) -> 0
A37: 14 | C37: Disposition and Recovery/Refund of Regulatory Balances (2013)7 - (IRM 13) | D37: 1595 | E37: =IF(ISNA(VLOOKUP('3. Appendix A'!D37,'2. 2013 Continuity Schedule'!$D$24:$CI$79,84,FALSE))=TRUE,0,VLOOKUP('3. Appendix A'!D37,'2. 2013 Continuity Schedule'!$D$24:$CI$79,84,FALSE)) -> 0
A38: 15 | C38: Disposition and Recovery/Refund of Regulatory Balances (2014)7 - (IRM 14) | D38: 1595 | E38: =IF(ISNA(VLOOKUP('3. Appendix A'!D38,'2. 2013 Continuity Schedule'!$D$24:$CI$79,84,FALSE))=TRUE,0,VLOOKUP('3. Appendix A'!D38,'2. 2013 Continuity Schedule'!$D$24:$CI$79,84,FALSE)) -> 0
A40: 9 | C40: Disposition and Recovery/Refund of Regulatory Balances (2013)7 | D40: 1595 | E40: =IF(ISNA(VLOOKUP('3. Appendix A'!D40,'2. 2013 Continuity Schedule'!$D$24:$CI$79,84,FALSE))=TRUE,0,VLOOKUP('3. Appendix A'!D40,'2. 2013 Continuity Schedule'!$D$24:$CI$79,84,FALSE)) -> 0
C42: Group 2 Accounts
A43: 16 | C43: Other Regulatory Assets - Sub-Account - OEB Cost Assessments | D43: 1508 | E43: =IF(ISNA(VLOOKUP('3. Appendix A'!D43,'2. 2013 Continuity Schedule'!$D$24:$CI$79,84,FALSE))=TRUE,0,VLOOKUP('3. Appendix A'!D43,'2. 2013 Continuity Schedule'!$D$24:$CI$79,84,FALSE)) -> 0
A44: 16 | C44: Other Regulatory Assets - Sub-Account - Pension Contributions | D44: 1508
A45: 18 | C45: Other Regulatory Assets - Sub-Account - Deferred IFRS Transition Costs | D45: 1508
A46: 19 | C46: Other Regulatory Assets - Sub-Account - Incremental Capital Charges | D46: 1508
A47: 16 | C47: Other Regulatory Assets - Sub-Account - Financial Assistance Payment and Recovery Variance - Ontario Clean Energy Benefit Act8 | D47: 1508
A48: 16 | C48: Other Regulatory Assets - Sub-Account - Financial Assistance Payment and Recovery Carrying Charges | D48: 1508
A49: 16 | C49: Other Regulatory Assets - Sub-Account - Other 4 | D49: 1508
A50: 25 | C50: Retail Cost Variance Account - Retail | D50: 1518 | E50: =IF(ISNA(VLOOKUP('3. Appendix A'!D50,'2. 2013 Continuity Schedule'!$D$24:$CI$79,84,FALSE))=TRUE,0,VLOOKUP('3. Appendix A'!D50,'2. 2013 Continuity Schedule'!$D$24:$CI$79,84,FALSE)) -> 0
A51: 26 | C51: Misc. Deferred Debits | D51: 1525 | E51: =IF(ISNA(VLOOKUP('3. Appendix A'!D51,'2. 2013 Continuity Schedule'!$D$24:$CI$79,84,FALSE))=TRUE,0,VLOOKUP('3. Appendix A'!D51,'2. 2013 Continuity Schedule'!$D$24:$CI$79,84,FALSE)) -> 0
A52: 27 | C52: Renewable Generation Connection Capital Deferral Account | D52: 1531 | E52: =IF(ISNA(VLOOKUP('3. Appendix A'!D52,'2. 2013 Continuity Schedule'!$D$24:$CI$79,84,FALSE))=TRUE,0,VLOOKUP('3. Appendix A'!D52,'2. 2013 Continuity Schedule'!$D$24:$CI$79,84,FALSE)) -> 0
A53: 28 | C53: Renewable Generation Connection OM&A Deferral Account | D53: 1532 | E53: =IF(ISNA(VLOOKUP('3. Appendix A'!D53,'2. 2013 Continuity Schedule'!$D$24:$CI$79,84,FALSE))=TRUE,0,VLOOKUP('3. Appendix A'!D53,'2. 2013 Continuity Schedule'!$D$24:$CI$79,84,FALSE)) -> 0.0005790000001
A54: 29 | C54: Renewable Generation Connection Funding Adder Deferral Account | D54: 1533 | E54: =IF(ISNA(VLOOKUP('3. Appendix A'!D54,'2. 2013 Continuity Schedule'!$D$24:$CI$79,84,FALSE))=TRUE,0,VLOOKUP('3. Appendix A'!D54,'2. 2013 Continuity Schedule'!$D$24:$CI$79,84,FALSE)) -> -0.0005790000432
A55: 30 | C55: Smart Grid Capital Deferral Account | D55: 1534 | E55: =IF(ISNA(VLOOKUP('3. Appendix A'!D55,'2. 2013 Continuity Schedule'!$D$24:$CI$79,84,FALSE))=TRUE,0,VLOOKUP('3. Appendix A'!D55,'2. 2013 Continuity Schedule'!$D$24:$CI$79,84,FALSE)) -> 0
A56: 31 | C56: Smart Grid OM&A Deferral Account | D56: 1535 | E56: =IF(ISNA(VLOOKUP('3. Appendix A'!D56,'2. 2013 Continuity Schedule'!$D$24:$CI$79,84,FALSE))=TRUE,0,VLOOKUP('3. Appendix A'!D56,'2. 2013 Continuity Schedule'!$D$24:$CI$79,84,FALSE)) -> 0
A57: 32 | C57: Smart Grid Funding Adder Deferral Account | D57: 1536 | E57: =IF(ISNA(VLOOKUP('3. Appendix A'!D57,'2. 2013 Continuity Schedule'!$D$24:$CI$79,84,FALSE))=TRUE,0,VLOOKUP('3. Appendix A'!D57,'2. 2013 Continuity Schedule'!$D$24:$CI$79,84,FALSE)) -> 0
A58: 33 | C58: Retail Cost Variance Account - STR | D58: 1548 | E58: =IF(ISNA(VLOOKUP('3. Appendix A'!D58,'2. 2013 Continuity Schedule'!$D$24:$CI$79,84,FALSE))=TRUE,0,VLOOKUP('3. Appendix A'!D58,'2. 2013 Continuity Schedule'!$D$24:$CI$79,84,FALSE)) -> 0.02999999999
A59: 34 | C59: Board-Approved CDM Variance Account | D59: 1567 | E59: =IF(ISNA(VLOOKUP('3. Appendix A'!D59,'2. 2013 Continuity Schedule'!$D$24:$CI$79,84,FALSE))=TRUE,0,VLOOKUP('3. Appendix A'!D59,'2. 2013 Continuity Schedule'!$D$24:$CI$79,84,FALSE)) -> 0
A60: 35 | C60: Extra-Ordinary Event Costs | D60: 1572 | E60: =IF(ISNA(VLOOKUP('3. Appendix A'!D60,'2. 2013 Continuity Schedule'!$D$24:$CI$79,84,FALSE))=TRUE,0,VLOOKUP('3. Appendix A'!D60,'2. 2013 Continuity Schedule'!$D$24:$CI$79,84,FALSE)) -> 0
A61: 36 | C61: Deferred Rate Impact Amounts | D61: 1574 | E61: =IF(ISNA(VLOOKUP('3. Appendix A'!D61,'2. 2013 Continuity Schedule'!$D$24:$CI$79,84,FALSE))=TRUE,0,VLOOKUP('3. Appendix A'!D61,'2. 2013 Continuity Schedule'!$D$24:$CI$79,84,FALSE)) -> 0
A62: 37 | C62: RSVA - One-time | D62: 1582 | E62: =IF(ISNA(VLOOKUP('3. Appendix A'!D62,'2. 2013 Continuity Schedule'!$D$24:$CI$79,84,FALSE))=TRUE,0,VLOOKUP('3. Appendix A'!D62,'2. 2013 Continuity Schedule'!$D$24:$CI$79,84,FALSE)) -> 0
A63: 38 | C63: Other Regulatory Liabilities or Credits | D63: 2405 | E63: =IF(ISNA(VLOOKUP('3. Appendix A'!D63,'2. 2013 Continuity Schedule'!$D$24:$CI$79,84,FALSE))=TRUE,0,VLOOKUP('3. Appendix A'!D63,'2. 2013 Continuity Schedule'!$D$24:$CI$79,84,FALSE)) -> -0.01000000001
A64: 39 | C64: Other Deferred Credits | D64: 2425 | E64: =IF(ISNA(VLOOKUP('3. Appendix A'!D64,'2. 2013 Continuity Schedule'!$D$24:$CI$79,84,FALSE))=TRUE,0,VLOOKUP('3. Appendix A'!D64,'2. 2013 Continuity Schedule'!$D$24:$CI$79,84,FALSE)) -> 0
A65: 40 | C65: Deferred Payments in Lieu of Taxes | D65: 1562 | E65: =IF(ISNA(VLOOKUP('3. Appendix A'!D65,'2. 2013 Continuity Schedule'!$D$24:$CI$79,84,FALSE))=TRUE,0,VLOOKUP('3. Appendix A'!D65,'2. 2013 Continuity Schedule'!$D$24:$CI$79,84,FALSE)) -> 0.0047524744
A66: 41 | C66: PILs and Tax Variance for 2006 and Subsequent Years (excludes sub-account and contra account below) | D66: 1592 | E66: =IF(ISNA(VLOOKUP('3. Appendix A'!D66,'2. 2013 Continuity Schedule'!$D$24:$CI$79,84,FALSE))=TRUE,0,VLOOKUP('3. Appendix A'!D66,'2. 2013 Continuity Schedule'!$D$24:$CI$79,84,FALSE)) -> 0
A67: 42 | C67: PILs and Tax Variance for 2006 and Subsequent Years - Sub-Account HST/OVAT | D67: 1592 | E67: =IF(ISNA(VLOOKUP('3. Appendix A'!D67,'2. 2013 Continuity Schedule'!$D$24:$CI$79,84,FALSE))=TRUE,0,VLOOKUP('3. Appendix A'!D67,'2. 2013 Continuity Schedule'!$D$24:$CI$79,84,FALSE)) -> 0
A68: 43 | C68: LRAM Variance Account | D68: 1568 | E68: =IF(ISNA(VLOOKUP('3. Appendix A'!D68,'2. 2013 Continuity Schedule'!$D$24:$CI$79,84,FALSE))=TRUE,0,VLOOKUP('3. Appendix A'!D68,'2. 2013 Continuity Schedule'!$D$24:$CI$79,84,FALSE)) -> -0.008037657011
A69: 44 | C69: Smart Meter Capital and Recovery Offset Variance - Sub-Account - Capital10 | D69: 1555 | E69: =IF(ISNA(VLOOKUP('3. Appendix A'!D69,'2. 2013 Continuity Schedule'!$D$24:$CI$79,84,FALSE))=TRUE,0,VLOOKUP('3. Appendix A'!D69,'2. 2013 Continuity Schedule'!$D$24:$CI$79,84,FALSE)) -> 5390.585141
A70: 43 | C70: Smart Meter Capital and Recovery Offset Variance - Sub-Account - Recoveries10 | D70: 1555
A71: 43 | C71: Smart Meter Capital and Recovery Offset Variance - Sub-Account - Stranded Meter Costs10 | D71: 1555
A72: 46 | C72: Smart Meter OM&A Variance10 | D72: 1556 | E72: =IF(ISNA(VLOOKUP('3. Appendix A'!D72,'2. 2013 Continuity Schedule'!$D$24:$CI$79,84,FALSE))=TRUE,0,VLOOKUP('3. Appendix A'!D72,'2. 2013 Continuity Schedule'!$D$24:$CI$79,84,FALSE)) -> -0.16
A73: 48 | C73: IFRS-CGAAP Transition PP&E Amounts Balance + Return Component9 | D73: 1575 | E73: =IF(ISNA(VLOOKUP('3. Appendix A'!D73,'2. 2013 Continuity Schedule'!$D$24:$CI$79,84,FALSE))=TRUE,0,VLOOKUP('3. Appendix A'!D73,'2. 2013 Continuity Schedule'!$D$24:$CI$79,84,FALSE)) -> -0.4458711338
C74: Accounting Changes Under CGAAP Balance + Return Component9 | D74: 1576 | E74: =IF(ISERROR(VLOOKUP($A74, '2. 2013 Continuity Schedule'!$A$20:$CO$76, MATCH('3. Appendix A'!$E$20, '2. 2013 Continuity Schedule'!$A$20:$CO$20,0),FALSE)), 0, VLOOKUP($A74, '2. 2013 Continuity Schedule'!$A$20:$CO$76, MATCH('3. Appendix A'!$E$20, '2. 2013 Continuity Schedule'!$A$20:$CO$20,0),FALSE)) -> 0
C75: Deferred PILs Contra Account 5 | D75: 1563 | E75: =IF(ISERROR(VLOOKUP($A75, '2. 2013 Continuity Schedule'!$A$20:$CO$76, MATCH('3. Appendix A'!$E$20, '2. 2013 Continuity Schedule'!$A$20:$CO$20,0),FALSE)), 0, VLOOKUP($A75, '2. 2013 Continuity Schedule'!$A$20:$CO$76, MATCH('3. Appendix A'!$E$20, '2. 2013 Continuity Schedule'!$A$20:$CO$20,0),FALSE)) -> 0
C76: PILs and Tax Variance for 2006 and Subsequent Years - Sub-Account HST/OVAT Contra Account | D76: 1592 | E76: =IF(ISERROR(VLOOKUP($A76, '2. 2013 Continuity Schedule'!$A$20:$CO$76, MATCH('3. Appendix A'!$E$20, '2. 2013 Continuity Schedule'!$A$20:$CO$20,0),FALSE)), 0, VLOOKUP($A76, '2. 2013 Continuity Schedule'!$A$20:$CO$76, MATCH('3. Appendix A'!$E$20, '2. 2013 Continuity Schedule'!$A$20:$CO$20,0),FALSE)) -> 0
C77: Disposition and Recovery of Regulatory Balances7 | D77: 1595 | E77: =IF(ISERROR(VLOOKUP($A77, '2. 2013 Continuity Schedule'!$A$20:$CO$76, MATCH('3. Appendix A'!$E$20, '2. 2013 Continuity Schedule'!$A$20:$CO$20,0),FALSE)), 0, VLOOKUP($A77, '2. 2013 Continuity Schedule'!$A$20:$CO$76, MATCH('3. Appendix A'!$E$20, '2. 2013 Continuity Schedule'!$A$20:$CO$20,0),FALSE)) -> 0

Sheet 3. Appendix A(old) (hidden)
B16: Accounts that produced a variance on the 2013 continuity schedule are listed below. Please provide a detailed explanation for each variance below.
C20: Account Descriptions | D20: Account Number | E20: Variance RRR vs. 2011 Balance (Principal + Interest) | F20: Explanation
C23: Group 1 Accounts
A24: 1 | C24: LV Variance Account | D24: 1550 | E24: =IF(ISERROR(VLOOKUP($A24, '2. 2013 Continuity Schedule'!$A$20:$CI$81, MATCH('3. Appendix A(old)'!$E$20, '2. 2013 Continuity Schedule'!$A$20:$CI$20,0),FALSE)), 0, VLOOKUP($A24, '2. 2013 Continuity Schedule'!$A$20:$CI$81, MATCH('3. Appendix A(old)'!$E$20, '2. 2013 Continuity Schedule'!$A$20:$CI$20,0),FALSE)) -> 0
A25: 2 | C25: RSVA - Wholesale Market Service Charge | D25: 1580 | E25: =IF(ISERROR(VLOOKUP($A25, '2. 2013 Continuity Schedule'!$A$20:$CI$81, MATCH('3. Appendix A(old)'!$E$20, '2. 2013 Continuity Schedule'!$A$20:$CI$20,0),FALSE)), 0, VLOOKUP($A25, '2. 2013 Continuity Schedule'!$A$20:$CI$81, MATCH('3. Appendix A(old)'!$E$20, '2. 2013 Continuity Schedule'!$A$20:$CI$20,0),FALSE)) -> 0
A26: 3 | C26: RSVA - Retail Transmission Network Charge | D26: 1584 | E26: =IF(ISERROR(VLOOKUP($A26, '2. 2013 Continuity Schedule'!$A$20:$CI$81, MATCH('3. Appendix A(old)'!$E$20, '2. 2013 Continuity Schedule'!$A$20:$CI$20,0),FALSE)), 0, VLOOKUP($A26, '2. 2013 Continuity Schedule'!$A$20:$CI$81, MATCH('3. Appendix A(old)'!$E$20, '2. 2013 Continuity Schedule'!$A$20:$CI$20,0),FALSE)) -> 0
A27: 4 | C27: RSVA - Retail Transmission Connection Charge | D27: 1586 | E27: =IF(ISERROR(VLOOKUP($A27, '2. 2013 Continuity Schedule'!$A$20:$CI$81, MATCH('3. Appendix A(old)'!$E$20, '2. 2013 Continuity Schedule'!$A$20:$CI$20,0),FALSE)), 0, VLOOKUP($A27, '2. 2013 Continuity Schedule'!$A$20:$CI$81, MATCH('3. Appendix A(old)'!$E$20, '2. 2013 Continuity Schedule'!$A$20:$CI$20,0),FALSE)) -> 0
A28: 5 | C28: RSVA - Power | D28: 1588 | E28: =IF(ISERROR(VLOOKUP($A28, '2. 2013 Continuity Schedule'!$A$20:$CI$81, MATCH('3. Appendix A(old)'!$E$20, '2. 2013 Continuity Schedule'!$A$20:$CI$20,0),FALSE)), 0, VLOOKUP($A28, '2. 2013 Continuity Schedule'!$A$20:$CI$81, MATCH('3. Appendix A(old)'!$E$20, '2. 2013 Continuity Schedule'!$A$20:$CI$20,0),FALSE)) -> 0
A29: 6 | C29: RSVA - Power - Sub-account - Global Adjustment | D29: 1588 | E29: =IF(ISERROR(VLOOKUP($A29, '2. 2013 Continuity Schedule'!$A$20:$CI$81, MATCH('3. Appendix A(old)'!$E$20, '2. 2013 Continuity Schedule'!$A$20:$CI$20,0),FALSE)), 0, VLOOKUP($A29, '2. 2013 Continuity Schedule'!$A$20:$CI$81, MATCH('3. Appendix A(old)'!$E$20, '2. 2013 Continuity Schedule'!$A$20:$CI$20,0),FALSE)) -> 0
A30: 7 | C30: Recovery of Regulatory Asset Balances | D30: 1590 | E30: =IF(ISERROR(VLOOKUP($A30, '2. 2013 Continuity Schedule'!$A$20:$CI$81, MATCH('3. Appendix A(old)'!$E$20, '2. 2013 Continuity Schedule'!$A$20:$CI$20,0),FALSE)), 0, VLOOKUP($A30, '2. 2013 Continuity Schedule'!$A$20:$CI$81, MATCH('3. Appendix A(old)'!$E$20, '2. 2013 Continuity Schedule'!$A$20:$CI$20,0),FALSE)) -> 0
A31: 8 | C31: Disposition and Recovery/Refund of Regulatory Balances (2008)7 | D31: 1595 | E31: =IF(ISERROR(VLOOKUP($A31, '2. 2013 Continuity Schedule'!$A$20:$CI$81, MATCH('3. Appendix A(old)'!$E$20, '2. 2013 Continuity Schedule'!$A$20:$CI$20,0),FALSE)), 0, VLOOKUP($A31, '2. 2013 Continuity Schedule'!$A$20:$CI$81, MATCH('3. Appendix A(old)'!$E$20, '2. 2013 Continuity Schedule'!$A$20:$CI$20,0),FALSE)) -> 0
A32: 9 | C32: Disposition and Recovery/Refund of Regulatory Balances (2009)7 | D32: 1595 | E32: =IF(ISERROR(VLOOKUP($A32, '2. 2013 Continuity Schedule'!$A$20:$CI$81, MATCH('3. Appendix A(old)'!$E$20, '2. 2013 Continuity Schedule'!$A$20:$CI$20,0),FALSE)), 0, VLOOKUP($A32, '2. 2013 Continuity Schedule'!$A$20:$CI$81, MATCH('3. Appendix A(old)'!$E$20, '2. 2013 Continuity Schedule'!$A$20:$CI$20,0),FALSE)) -> 0
A33: 9 | C33: Disposition and Recovery/Refund of Regulatory Balances (2010)7 | D33: 1595 | E33: =IF(ISERROR(VLOOKUP($A33, '2. 2013 Continuity Schedule'!$A$20:$CI$81, MATCH('3. Appendix A(old)'!$E$20, '2. 2013 Continuity Schedule'!$A$20:$CI$20,0),FALSE)), 0, VLOOKUP($A33, '2. 2013 Continuity Schedule'!$A$20:$CI$81, MATCH('3. Appendix A(old)'!$E$20, '2. 2013 Continuity Schedule'!$A$20:$CI$20,0),FALSE)) -> 0
C34: Group 2 Accounts
A35: 10 | C35: Other Regulatory Assets - Sub-Account - OEB Cost Assessments | D35: 1508 | E35: =IF(ISERROR(VLOOKUP($A35, '2. 2013 Continuity Schedule'!$A$20:$CI$81, MATCH('3. Appendix A(old)'!$E$20, '2. 2013 Continuity Schedule'!$A$20:$CI$20,0),FALSE)), 0, VLOOKUP($A35, '2. 2013 Continuity Schedule'!$A$20:$CI$81, MATCH('3. Appendix A(old)'!$E$20, '2. 2013 Continuity Schedule'!$A$20:$CI$20,0),FALSE)) -> 0
A36: 11 | C36: Other Regulatory Assets - Sub-Account - Pension Contributions | D36: 1508 | E36: =IF(ISERROR(VLOOKUP($A36, '2. 2013 Continuity Schedule'!$A$20:$CI$81, MATCH('3. Appendix A(old)'!$E$20, '2. 2013 Continuity Schedule'!$A$20:$CI$20,0),FALSE)), 0, VLOOKUP($A36, '2. 2013 Continuity Schedule'!$A$20:$CI$81, MATCH('3. Appendix A(old)'!$E$20, '2. 2013 Continuity Schedule'!$A$20:$CI$20,0),FALSE)) -> 0
A37: 12 | C37: Other Regulatory Assets - Sub-Account - Deferred IFRS Transition Costs | D37: 1508 | E37: =IF(ISERROR(VLOOKUP($A37, '2. 2013 Continuity Schedule'!$A$20:$CI$81, MATCH('3. Appendix A(old)'!$E$20, '2. 2013 Continuity Schedule'!$A$20:$CI$20,0),FALSE)), 0, VLOOKUP($A37, '2. 2013 Continuity Schedule'!$A$20:$CI$81, MATCH('3. Appendix A(old)'!$E$20, '2. 2013 Continuity Schedule'!$A$20:$CI$20,0),FALSE)) -> 0
A38: 13 | C38: Other Regulatory Assets - Sub-Account - Incremental Capital Charges | D38: 1508 | E38: =IF(ISERROR(VLOOKUP($A38, '2. 2013 Continuity Schedule'!$A$20:$CI$81, MATCH('3. Appendix A(old)'!$E$20, '2. 2013 Continuity Schedule'!$A$20:$CI$20,0),FALSE)), 0, VLOOKUP($A38, '2. 2013 Continuity Schedule'!$A$20:$CI$81, MATCH('3. Appendix A(old)'!$E$20, '2. 2013 Continuity Schedule'!$A$20:$CI$20,0),FALSE)) -> 0
A39: 14 | C39: Other Regulatory Assets - Sub-Account - Financial Assistance Payment and Recovery Variance - Ontario Clean Energy Benefit Act8 | D39: 1508 | E39: =IF(ISERROR(VLOOKUP($A39, '2. 2013 Continuity Schedule'!$A$20:$CI$81, MATCH('3. Appendix A(old)'!$E$20, '2. 2013 Continuity Schedule'!$A$20:$CI$20,0),FALSE)), 0, VLOOKUP($A39, '2. 2013 Continuity Schedule'!$A$20:$CI$81, MATCH('3. Appendix A(old)'!$E$20, '2. 2013 Continuity Schedule'!$A$20:$CI$20,0),FALSE)) -> 0
A40: 15 | C40: Other Regulatory Assets - Sub-Account - Financial Assistance Payment and Recovery Carrying Charges | D40: 1508 | E40: =IF(ISERROR(VLOOKUP($A40, '2. 2013 Continuity Schedule'!$A$20:$CI$81, MATCH('3. Appendix A(old)'!$E$20, '2. 2013 Continuity Schedule'!$A$20:$CI$20,0),FALSE)), 0, VLOOKUP($A40, '2. 2013 Continuity Schedule'!$A$20:$CI$81, MATCH('3. Appendix A(old)'!$E$20, '2. 2013 Continuity Schedule'!$A$20:$CI$20,0),FALSE)) -> 0
A41: 16 | C41: Other Regulatory Assets - Sub-Account - Other 4 | D41: 1508 | E41: =IF(ISERROR(VLOOKUP($A41, '2. 2013 Continuity Schedule'!$A$20:$CI$81, MATCH('3. Appendix A(old)'!$E$20, '2. 2013 Continuity Schedule'!$A$20:$CI$20,0),FALSE)), 0, VLOOKUP($A41, '2. 2013 Continuity Schedule'!$A$20:$CI$81, MATCH('3. Appendix A(old)'!$E$20, '2. 2013 Continuity Schedule'!$A$20:$CI$20,0),FALSE)) -> 0
A42: 17 | C42: Retail Cost Variance Account - Retail | D42: 1518 | E42: =IF(ISERROR(VLOOKUP($A42, '2. 2013 Continuity Schedule'!$A$20:$CI$81, MATCH('3. Appendix A(old)'!$E$20, '2. 2013 Continuity Schedule'!$A$20:$CI$20,0),FALSE)), 0, VLOOKUP($A42, '2. 2013 Continuity Schedule'!$A$20:$CI$81, MATCH('3. Appendix A(old)'!$E$20, '2. 2013 Continuity Schedule'!$A$20:$CI$20,0),FALSE)) -> 0
A43: 18 | C43: Misc. Deferred Debits | D43: 1525 | E43: =IF(ISERROR(VLOOKUP($A43, '2. 2013 Continuity Schedule'!$A$20:$CI$81, MATCH('3. Appendix A(old)'!$E$20, '2. 2013 Continuity Schedule'!$A$20:$CI$20,0),FALSE)), 0, VLOOKUP($A43, '2. 2013 Continuity Schedule'!$A$20:$CI$81, MATCH('3. Appendix A(old)'!$E$20, '2. 2013 Continuity Schedule'!$A$20:$CI$20,0),FALSE)) -> 0
A44: 19 | C44: Renewable Generation Connection Capital Deferral Account | D44: 1531 | E44: =IF(ISERROR(VLOOKUP($A44, '2. 2013 Continuity Schedule'!$A$20:$CI$81, MATCH('3. Appendix A(old)'!$E$20, '2. 2013 Continuity Schedule'!$A$20:$CI$20,0),FALSE)), 0, VLOOKUP($A44, '2. 2013 Continuity Schedule'!$A$20:$CI$81, MATCH('3. Appendix A(old)'!$E$20, '2. 2013 Continuity Schedule'!$A$20:$CI$20,0),FALSE)) -> 0
A45: 20 | C45: Renewable Generation Connection OM&A Deferral Account | D45: 1532 | E45: =IF(ISERROR(VLOOKUP($A45, '2. 2013 Continuity Schedule'!$A$20:$CI$81, MATCH('3. Appendix A(old)'!$E$20, '2. 2013 Continuity Schedule'!$A$20:$CI$20,0),FALSE)), 0, VLOOKUP($A45, '2. 2013 Continuity Schedule'!$A$20:$CI$81, MATCH('3. Appendix A(old)'!$E$20, '2. 2013 Continuity Schedule'!$A$20:$CI$20,0),FALSE)) -> 0
A46: 21 | C46: Renewable Generation Connection Funding Adder Deferral Account | D46: 1533 | E46: =IF(ISERROR(VLOOKUP($A46, '2. 2013 Continuity Schedule'!$A$20:$CI$81, MATCH('3. Appendix A(old)'!$E$20, '2. 2013 Continuity Schedule'!$A$20:$CI$20,0),FALSE)), 0, VLOOKUP($A46, '2. 2013 Continuity Schedule'!$A$20:$CI$81, MATCH('3. Appendix A(old)'!$E$20, '2. 2013 Continuity Schedule'!$A$20:$CI$20,0),FALSE)) -> 0
A47: 22 | C47: Smart Grid Capital Deferral Account | D47: 1534 | E47: =IF(ISERROR(VLOOKUP($A47, '2. 2013 Continuity Schedule'!$A$20:$CI$81, MATCH('3. Appendix A(old)'!$E$20, '2. 2013 Continuity Schedule'!$A$20:$CI$20,0),FALSE)), 0, VLOOKUP($A47, '2. 2013 Continuity Schedule'!$A$20:$CI$81, MATCH('3. Appendix A(old)'!$E$20, '2. 2013 Continuity Schedule'!$A$20:$CI$20,0),FALSE)) -> 0
A48: 23 | C48: Smart Grid OM&A Deferral Account | D48: 1535 | E48: =IF(ISERROR(VLOOKUP($A48, '2. 2013 Continuity Schedule'!$A$20:$CI$81, MATCH('3. Appendix A(old)'!$E$20, '2. 2013 Continuity Schedule'!$A$20:$CI$20,0),FALSE)), 0, VLOOKUP($A48, '2. 2013 Continuity Schedule'!$A$20:$CI$81, MATCH('3. Appendix A(old)'!$E$20, '2. 2013 Continuity Schedule'!$A$20:$CI$20,0),FALSE)) -> 0
A49: 24 | C49: Smart Grid Funding Adder Deferral Account | D49: 1536 | E49: =IF(ISERROR(VLOOKUP($A49, '2. 2013 Continuity Schedule'!$A$20:$CI$81, MATCH('3. Appendix A(old)'!$E$20, '2. 2013 Continuity Schedule'!$A$20:$CI$20,0),FALSE)), 0, VLOOKUP($A49, '2. 2013 Continuity Schedule'!$A$20:$CI$81, MATCH('3. Appendix A(old)'!$E$20, '2. 2013 Continuity Schedule'!$A$20:$CI$20,0),FALSE)) -> 0
A50: 25 | C50: Retail Cost Variance Account - STR | D50: 1548 | E50: =IF(ISERROR(VLOOKUP($A50, '2. 2013 Continuity Schedule'!$A$20:$CI$81, MATCH('3. Appendix A(old)'!$E$20, '2. 2013 Continuity Schedule'!$A$20:$CI$20,0),FALSE)), 0, VLOOKUP($A50, '2. 2013 Continuity Schedule'!$A$20:$CI$81, MATCH('3. Appendix A(old)'!$E$20, '2. 2013 Continuity Schedule'!$A$20:$CI$20,0),FALSE)) -> 0
A51: 26 | C51: Board-Approved CDM Variance Account | D51: 1567 | E51: =IF(ISERROR(VLOOKUP($A51, '2. 2013 Continuity Schedule'!$A$20:$CI$81, MATCH('3. Appendix A(old)'!$E$20, '2. 2013 Continuity Schedule'!$A$20:$CI$20,0),FALSE)), 0, VLOOKUP($A51, '2. 2013 Continuity Schedule'!$A$20:$CI$81, MATCH('3. Appendix A(old)'!$E$20, '2. 2013 Continuity Schedule'!$A$20:$CI$20,0),FALSE)) -> 0
A52: 27 | C52: Extra-Ordinary Event Costs | D52: 1572 | E52: =IF(ISERROR(VLOOKUP($A52, '2. 2013 Continuity Schedule'!$A$20:$CI$81, MATCH('3. Appendix A(old)'!$E$20, '2. 2013 Continuity Schedule'!$A$20:$CI$20,0),FALSE)), 0, VLOOKUP($A52, '2. 2013 Continuity Schedule'!$A$20:$CI$81, MATCH('3. Appendix A(old)'!$E$20, '2. 2013 Continuity Schedule'!$A$20:$CI$20,0),FALSE)) -> 0
A53: 28 | C53: Deferred Rate Impact Amounts | D53: 1574 | E53: =IF(ISERROR(VLOOKUP($A53, '2. 2013 Continuity Schedule'!$A$20:$CI$81, MATCH('3. Appendix A(old)'!$E$20, '2. 2013 Continuity Schedule'!$A$20:$CI$20,0),FALSE)), 0, VLOOKUP($A53, '2. 2013 Continuity Schedule'!$A$20:$CI$81, MATCH('3. Appendix A(old)'!$E$20, '2. 2013 Continuity Schedule'!$A$20:$CI$20,0),FALSE)) -> 0
A54: 29 | C54: RSVA - One-time | D54: 1582 | E54: =IF(ISERROR(VLOOKUP($A54, '2. 2013 Continuity Schedule'!$A$20:$CI$81, MATCH('3. Appendix A(old)'!$E$20, '2. 2013 Continuity Schedule'!$A$20:$CI$20,0),FALSE)), 0, VLOOKUP($A54, '2. 2013 Continuity Schedule'!$A$20:$CI$81, MATCH('3. Appendix A(old)'!$E$20, '2. 2013 Continuity Schedule'!$A$20:$CI$20,0),FALSE)) -> 0
A55: 30 | C55: Other Deferred Credits | D55: 2425 | E55: =IF(ISERROR(VLOOKUP($A55, '2. 2013 Continuity Schedule'!$A$20:$CI$81, MATCH('3. Appendix A(old)'!$E$20, '2. 2013 Continuity Schedule'!$A$20:$CI$20,0),FALSE)), 0, VLOOKUP($A55, '2. 2013 Continuity Schedule'!$A$20:$CI$81, MATCH('3. Appendix A(old)'!$E$20, '2. 2013 Continuity Schedule'!$A$20:$CI$20,0),FALSE)) -> 0
A56: 31 | C56: Deferred Payments in Lieu of Taxes | D56: 1562 | E56: =IF(ISERROR(VLOOKUP($A56, '2. 2013 Continuity Schedule'!$A$20:$CI$81, MATCH('3. Appendix A(old)'!$E$20, '2. 2013 Continuity Schedule'!$A$20:$CI$20,0),FALSE)), 0, VLOOKUP($A56, '2. 2013 Continuity Schedule'!$A$20:$CI$81, MATCH('3. Appendix A(old)'!$E$20, '2. 2013 Continuity Schedule'!$A$20:$CI$20,0),FALSE)) -> 0
A57: 32 | C57: PILs and Tax Variance for 2006 and Subsequent Years (excludes sub-account and contra account below) | D57: 1592 | E57: =IF(ISERROR(VLOOKUP($A57, '2. 2013 Continuity Schedule'!$A$20:$CI$81, MATCH('3. Appendix A(old)'!$E$20, '2. 2013 Continuity Schedule'!$A$20:$CI$20,0),FALSE)), 0, VLOOKUP($A57, '2. 2013 Continuity Schedule'!$A$20:$CI$81, MATCH('3. Appendix A(old)'!$E$20, '2. 2013 Continuity Schedule'!$A$20:$CI$20,0),FALSE)) -> 0
A58: 33 | C58: PILs and Tax Variance for 2006 and Subsequent Years - Sub-Account HST/OVAT Input Tax Credits (ITCs) | D58: 1592 | E58: =IF(ISERROR(VLOOKUP($A58, '2. 2013 Continuity Schedule'!$A$20:$CI$81, MATCH('3. Appendix A(old)'!$E$20, '2. 2013 Continuity Schedule'!$A$20:$CI$20,0),FALSE)), 0, VLOOKUP($A58, '2. 2013 Continuity Schedule'!$A$20:$CI$81, MATCH('3. Appendix A(old)'!$E$20, '2. 2013 Continuity Schedule'!$A$20:$CI$20,0),FALSE)) -> 0
A59: 34 | C59: Special Purpose Charge Assessment Variance Account9 | D59: 1521 | E59: =IF(ISERROR(VLOOKUP($A59, '2. 2013 Continuity Schedule'!$A$20:$CI$81, MATCH('3. Appendix A(old)'!$E$20, '2. 2013 Continuity Schedule'!$A$20:$CI$20,0),FALSE)), 0, VLOOKUP($A59, '2. 2013 Continuity Schedule'!$A$20:$CI$81, MATCH('3. Appendix A(old)'!$E$20, '2. 2013 Continuity Schedule'!$A$20:$CI$20,0),FALSE)) -> 0
A60: 35 | C60: Smart Meter Capital and Recovery Offset Variance - Sub-Account - Capital11 | D60: 1555 | E60: =IF(ISERROR(VLOOKUP($A60, '2. 2013 Continuity Schedule'!$A$20:$CI$81, MATCH('3. Appendix A(old)'!$E$20, '2. 2013 Continuity Schedule'!$A$20:$CI$20,0),FALSE)), 0, VLOOKUP($A60, '2. 2013 Continuity Schedule'!$A$20:$CI$81, MATCH('3. Appendix A(old)'!$E$20, '2. 2013 Continuity Schedule'!$A$20:$CI$20,0),FALSE)) -> 0
A61: 36 | C61: Smart Meter Capital and Recovery Offset Variance - Sub-Account - Recoveries11 | D61: 1555 | E61: =IF(ISERROR(VLOOKUP($A61, '2. 2013 Continuity Schedule'!$A$20:$CI$81, MATCH('3. Appendix A(old)'!$E$20, '2. 2013 Continuity Schedule'!$A$20:$CI$20,0),FALSE)), 0, VLOOKUP($A61, '2. 2013 Continuity Schedule'!$A$20:$CI$81, MATCH('3. Appendix A(old)'!$E$20, '2. 2013 Continuity Schedule'!$A$20:$CI$20,0),FALSE)) -> 0
A62: 37 | C62: Smart Meter Capital and Recovery Offset Variance - Sub-Account - Stranded Meter Costs11 | D62: 1555 | E62: =IF(ISERROR(VLOOKUP($A62, '2. 2013 Continuity Schedule'!$A$20:$CI$81, MATCH('3. Appendix A(old)'!$E$20, '2. 2013 Continuity Schedule'!$A$20:$CI$20,0),FALSE)), 0, VLOOKUP($A62, '2. 2013 Continuity Schedule'!$A$20:$CI$81, MATCH('3. Appendix A(old)'!$E$20, '2. 2013 Continuity Schedule'!$A$20:$CI$20,0),FALSE)) -> 0
A63: 38 | C63: Smart Meter OM&A Variance11 | D63: 1556 | E63: =IF(ISERROR(VLOOKUP($A63, '2. 2013 Continuity Schedule'!$A$20:$CI$81, MATCH('3. Appendix A(old)'!$E$20, '2. 2013 Continuity Schedule'!$A$20:$CI$20,0),FALSE)), 0, VLOOKUP($A63, '2. 2013 Continuity Schedule'!$A$20:$CI$81, MATCH('3. Appendix A(old)'!$E$20, '2. 2013 Continuity Schedule'!$A$20:$CI$20,0),FALSE)) -> 0
A64: 39 | C64: Deferred PILs Contra Account 5 | D64: 1563 | E64: =IF(ISERROR(VLOOKUP($A64, '2. 2013 Continuity Schedule'!$A$20:$CI$81, MATCH('3. Appendix A(old)'!$E$20, '2. 2013 Continuity Schedule'!$A$20:$CI$20,0),FALSE)), 0, VLOOKUP($A64, '2. 2013 Continuity Schedule'!$A$20:$CI$81, MATCH('3. Appendix A(old)'!$E$20, '2. 2013 Continuity Schedule'!$A$20:$CI$20,0),FALSE)) -> 0
A65: 40 | C65: IFRS-CGAAP Transition PP&E Amounts10 | D65: 1575 | E65: =IF(ISERROR(VLOOKUP($A65, '2. 2013 Continuity Schedule'!$A$20:$CI$81, MATCH('3. Appendix A(old)'!$E$20, '2. 2013 Continuity Schedule'!$A$20:$CI$20,0),FALSE)), 0, VLOOKUP($A65, '2. 2013 Continuity Schedule'!$A$20:$CI$81, MATCH('3. Appendix A(old)'!$E$20, '2. 2013 Continuity Schedule'!$A$20:$CI$20,0),FALSE)) -> 0
A66: 41 | C66: PILs and Tax Variance for 2006 and Subsequent Years - Sub-Account HST/OVAT Contra Account | D66: 1592 | E66: =IF(ISERROR(VLOOKUP($A66, '2. 2013 Continuity Schedule'!$A$20:$CI$81, MATCH('3. Appendix A(old)'!$E$20, '2. 2013 Continuity Schedule'!$A$20:$CI$20,0),FALSE)), 0, VLOOKUP($A66, '2. 2013 Continuity Schedule'!$A$20:$CI$81, MATCH('3. Appendix A(old)'!$E$20, '2. 2013 Continuity Schedule'!$A$20:$CI$20,0),FALSE)) -> 0
A67: 42 | C67: Disposition and Recovery of Regulatory Balances7 | D67: 1595 | E67: =IF(ISERROR(VLOOKUP($A67, '2. 2013 Continuity Schedule'!$A$20:$CI$81, MATCH('3. Appendix A(old)'!$E$20, '2. 2013 Continuity Schedule'!$A$20:$CI$20,0),FALSE)), 0, VLOOKUP($A67, '2. 2013 Continuity Schedule'!$A$20:$CI$81, MATCH('3. Appendix A(old)'!$E$20, '2. 2013 Continuity Schedule'!$A$20:$CI$20,0),FALSE)) -> 0

Sheet 4. Billing Determinants(old) (hidden)
B16: In the green shaded cells, enter the most recent Board Approved volumetric forecast. If there is a material difference between the latest Board-approved volumetric forecast and the most recent 12-month actual volumetric data, use the most recent 12-month actual data. Do not enter data for the MicroFit class.
B19: Rate Class (Enter Rate Classes in cells below) | C19: Units | D19: # of Customers | E19: Metered kWh | F19: Metered kW | G19: Billed kWh for Non-RPP Customers | H19: Estimated kW for Non-RPP Customers | I19: Distribution Revenue 1 | J19: 1590 Recovery Share Proportion | K19: 1595 Recovery Share Proportion (2008) 2 | L19: 1595 Recovery Share Proportion (2009) 2 | M19: 1595 Recovery Share Proportion (2010) 2 | N19: 1595 Recovery Share Proportion (2011) 2 | O19: 1568 LRAM Variance Account Class Allocation ($ amounts)
B21: RESIDENTIAL | C21: kWh | E21: 1539676985 | G21: 253330245 | H21: =IF(ISERROR(F21/E21*G21), 0, F21/E21*G21) -> 0 | I21: 59154378
B22: GENERAL SERVICE LESS THAN 50 KW | C22: kWh | E22: 537886860 | G22: 87269524 | H22: =IF(ISERROR(F22/E22*G22), 0, F22/E22*G22) -> 0 | I22: 11456614
B23: GENERAL SERVICE 50 TO 4,999 KW | C23: kW | E23: 1745006174 | F23: 4758680 | G23: 1610816769 | H23: 4392741.789 | I23: 16036352
B24: LARGE USE | C24: kW | E24: 538081868 | F24: 2500000 | G24: 542278907 | H24: 2519500.002 | I24: 6600126
B25: UNMETERED SCATTERED LOAD | C25: kWh | E25: 12541586 | G25: 854908 | H25: 0 | I25: 529235
B26: SENTINEL LIGHTING | C26: kW | E26: 502459 | F26: 1421 | G26: 14537 | H26: 41.11196535 | I26: 43849
B27: STREET LIGHTING | C27: kW | E27: 40006298 | F27: 111295 | G27: 41413891 | H27: 115210.835 | I27: 2136477
B28: STANDBY POWER | C28: kW | F28: 199012 | H28: 0 | I28: 493704
H29: 0
H30: 0
H31: 0
H32: 0
H33: 0
H34: 0
H35: 0
H36: 0
H37: 0
H38: 0
H39: 0
H40: 0
B41: Total | D41: =SUM(D21:D40) -> 0 | E41: =SUM(E21:E40) -> 4413702230 | F41: =SUM(F21:F40) -> 7570408 | G41: 2535978781 | H41: 7027493.738 | I41: 96450735 | J41: 0 | K41: 0 | L41: 0 | M41: 0 | N41: 0 | O41: 0
N42: Balance as per Sheet 2 | O42: ='[15]2. 2013 Continuity Schedule'!CP72 -> -242142.7353
N43: Variance | O43: =O41-O42 -> 242142.7353
A45: 1 For Account 1562, the allocation to customer classes should be performed on the basis of the test year distribution revenue allocation to customer classes found in the Applicant’s Cost of Service application that was most recently approved at the time of disposition of the 1562 account balances
A47: 2 Residual Account balance to be allocated to rate classes in proportion to the recovery share as established when rate riders were implemented.

Sheet 4. Billing Determinants (old) (hidden)
B16: In the green shaded cells, enter the most recent Board Approved volumetric forecast. If there is a material difference between the latest Board-approved volumetric forecast and the most recent 12-month actual volumetric data, use the most recent 12-month actual data. Do not enter data for the MicroFit class.
B19: Rate Class (Enter Rate Classes in cells below) | C19: Units | D19: # of Customers | E19: Metered kWh | F19: Metered kW | G19: Billed kWh for Non-RPP Customers | H19: Estimated kW for Non-RPP Customers | I19: Distribution Revenue 1 | J19: 1590 Recovery Share Proportion | K19: 1595 Recovery Share Proportion (2008) 2 | L19: 1595 Recovery Share Proportion (2009) 2 | M19: 1595 Recovery Share Proportion (2010) 2 | N19: 1568 LRAM Variance Account Class Allocation ($ amounts)
H21: =IF(ISERROR(F21/E21*G21), 0, F21/E21*G21) -> 0
H22: =IF(ISERROR(F22/E22*G22), 0, F22/E22*G22) -> 0
H23: 0
H24: 0
H25: 0
H26: 0
H27: 0
H28: 0
H29: 0
H30: 0
H31: 0
H32: 0
H33: 0
H34: 0
H35: 0
H36: 0
H37: 0
H38: 0
H39: 0
H40: 0
B41: Total | D41: =SUM(D21:D40) -> 0 | E41: =SUM(E21:E40) -> 0 | F41: =SUM(F21:F40) -> 0 | G41: 0 | H41: 0 | I41: 0 | J41: 0 | K41: 0 | L41: 0 | M41: 0 | N41: 0
M42: Balance as per Sheet 2 | N42: ='2. 2013 Continuity Schedule'!CG66 -> -244467.4585
M43: Variance | N43: =N41-N42 -> 244467.4585
A45: 1 For Account 1562, the allocation to customer classes should be performed on the basis of the test year distribution revenue allocation to customer classes found in the Applicant’s Cost of Service application that was most recently approved at the time of disposition of the 1562 account balances
A47: 2 Residual Account balance to be allocated to rate classes in proportion to the recovery share as established when rate riders were implemented.

Sheet 5. Allocation of Balances(old) (hidden)
D4: Amounts from Sheet 2 | E4: Allocator | F4: =IF(LEN(TRIM('4. Billing Determinants (old)'!$B21))=0, "", '4. Billing Determinants (old)'!$B21) ->  | G4: =IF(LEN(TRIM('4. Billing Determinants (old)'!$B22))=0, "", '4. Billing Determinants (old)'!$B22) ->  | H4: =IF(LEN(TRIM('4. Billing Determinants (old)'!$B23))=0, "", '4. Billing Determinants (old)'!$B23) ->  | I4: =IF(LEN(TRIM('4. Billing Determinants (old)'!$B24))=0, "", '4. Billing Determinants (old)'!$B24) ->  | J4: =IF(LEN(TRIM('4. Billing Determinants (old)'!$B25))=0, "", '4. Billing Determinants (old)'!$B25) ->  | K4: =IF(LEN(TRIM('4. Billing Determinants (old)'!$B26))=0, "", '4. Billing Determinants (old)'!$B26) ->  | L4: =IF(LEN(TRIM('4. Billing Determinants (old)'!$B27))=0, "", '4. Billing Determinants (old)'!$B27) ->  | M4: =IF(LEN(TRIM('4. Billing Determinants (old)'!$B28))=0, "", '4. Billing Determinants (old)'!$B28) ->  | N4: =IF(LEN(TRIM('4. Billing Determinants (old)'!$B29))=0, "", '4. Billing Determinants (old)'!$B29) ->  | O4: =IF(LEN(TRIM('4. Billing Determinants (old)'!$B30))=0, "", '4. Billing Determinants (old)'!$B30) ->  | P4: =IF(LEN(TRIM('4. Billing Determinants (old)'!$B31))=0, "", '4. Billing Determinants (old)'!$B31) ->  | Q4: =IF(LEN(TRIM('4. Billing Determinants (old)'!$B32))=0, "", '4. Billing Determinants (old)'!$B32) ->  | R4: =IF(LEN(TRIM('4. Billing Determinants (old)'!$B33))=0, "", '4. Billing Determinants (old)'!$B33) ->  | S4: =IF(LEN(TRIM('4. Billing Determinants (old)'!$B34))=0, "", '4. Billing Determinants (old)'!$B34) ->  | T4: =IF(LEN(TRIM('4. Billing Determinants (old)'!$B35))=0, "", '4. Billing Determinants (old)'!$B35) ->  | U4: =IF(LEN(TRIM('4. Billing Determinants (old)'!$B36))=0, "", '4. Billing Determinants (old)'!$B36) ->  | V4: =IF(LEN(TRIM('4. Billing Determinants (old)'!$B37))=0, "", '4. Billing Determinants (old)'!$B37) ->  | W4: =IF(LEN(TRIM('4. Billing Determinants (old)'!$B38))=0, "", '4. Billing Determinants (old)'!$B38) ->  | X4: =IF(LEN(TRIM('4. Billing Determinants (old)'!$B39))=0, "", '4. Billing Determinants (old)'!$B39) ->  | Y4: =IF(LEN(TRIM('4. Billing Determinants (old)'!$B40))=0, "", '4. Billing Determinants (old)'!$B40) -> 
B5: LV Variance Account | C5: 1550 | D5: ='2. 2013 Continuity Schedule'!CG24 -> 294540.3014 | E5: kWh | F5: =IF(F$4="",0,IF($E5="kWh",VLOOKUP(F$4,'4. Billing Determinants (old)'!$B$19:$N$41,4,0)/'4. Billing Determinants (old)'!$E$41*$D5,IF($E5="kW",VLOOKUP(F$4,'4. Billing Determinants (old)'!$B$19:$N$41,5,0)/'4. Billing Determinants (old)'!$F$41*$D5,IF($E5="Non-RPP kWh",VLOOKUP(F$4,'4. Billing Determinants (old)'!$B$19:$N$41,6,0)/'4. Billing Determinants (old)'!$G$41*$D5,IF($E5="Distribution Rev.",VLOOKUP(F$4,'4. Billing Determinants (old)'!$B$19:$N$41,8,0)/'4. Billing Determinants (old)'!$I$41*$D5, VLOOKUP(F$4,'4. Billing Determinants (old)'!$B$19:$N$41,3,0)/'4. Billing Determinants (old)'!$D$41*$D5))))) -> 0 | G5: =IF(G$4="",0,IF($E5="kWh",VLOOKUP(G$4,'4. Billing Determinants (old)'!$B$19:$N$41,4,0)/'4. Billing Determinants (old)'!$E$41*$D5,IF($E5="kW",VLOOKUP(G$4,'4. Billing Determinants (old)'!$B$19:$N$41,5,0)/'4. Billing Determinants (old)'!$F$41*$D5,IF($E5="Non-RPP kWh",VLOOKUP(G$4,'4. Billing Determinants (old)'!$B$19:$N$41,6,0)/'4. Billing Determinants (old)'!$G$41*$D5,IF($E5="Distribution Rev.",VLOOKUP(G$4,'4. Billing Determinants (old)'!$B$19:$N$41,8,0)/'4. Billing Determinants (old)'!$I$41*$D5, VLOOKUP(G$4,'4. Billing Determinants (old)'!$B$19:$N$41,3,0)/'4. Billing Determinants (old)'!$D$41*$D5))))) -> 0 | H5: =IF(H$4="",0,IF($E5="kWh",VLOOKUP(H$4,'4. Billing Determinants (old)'!$B$19:$N$41,4,0)/'4. Billing Determinants (old)'!$E$41*$D5,IF($E5="kW",VLOOKUP(H$4,'4. Billing Determinants (old)'!$B$19:$N$41,5,0)/'4. Billing Determinants (old)'!$F$41*$D5,IF($E5="Non-RPP kWh",VLOOKUP(H$4,'4. Billing Determinants (old)'!$B$19:$N$41,6,0)/'4. Billing Determinants (old)'!$G$41*$D5,IF($E5="Distribution Rev.",VLOOKUP(H$4,'4. Billing Determinants (old)'!$B$19:$N$41,8,0)/'4. Billing Determinants (old)'!$I$41*$D5, VLOOKUP(H$4,'4. Billing Determinants (old)'!$B$19:$N$41,3,0)/'4. Billing Determinants (old)'!$D$41*$D5))))) -> 0 | I5: =IF(I$4="",0,IF($E5="kWh",VLOOKUP(I$4,'4. Billing Determinants (old)'!$B$19:$N$41,4,0)/'4. Billing Determinants (old)'!$E$41*$D5,IF($E5="kW",VLOOKUP(I$4,'4. Billing Determinants (old)'!$B$19:$N$41,5,0)/'4. Billing Determinants (old)'!$F$41*$D5,IF($E5="Non-RPP kWh",VLOOKUP(I$4,'4. Billing Determinants (old)'!$B$19:$N$41,6,0)/'4. Billing Determinants (old)'!$G$41*$D5,IF($E5="Distribution Rev.",VLOOKUP(I$4,'4. Billing Determinants (old)'!$B$19:$N$41,8,0)/'4. Billing Determinants (old)'!$I$41*$D5, VLOOKUP(I$4,'4. Billing Determinants (old)'!$B$19:$N$41,3,0)/'4. Billing Determinants (old)'!$D$41*$D5))))) -> 0 | J5: =IF(J$4="",0,IF($E5="kWh",VLOOKUP(J$4,'4. Billing Determinants (old)'!$B$19:$N$41,4,0)/'4. Billing Determinants (old)'!$E$41*$D5,IF($E5="kW",VLOOKUP(J$4,'4. Billing Determinants (old)'!$B$19:$N$41,5,0)/'4. Billing Determinants (old)'!$F$41*$D5,IF($E5="Non-RPP kWh",VLOOKUP(J$4,'4. Billing Determinants (old)'!$B$19:$N$41,6,0)/'4. Billing Determinants (old)'!$G$41*$D5,IF($E5="Distribution Rev.",VLOOKUP(J$4,'4. Billing Determinants (old)'!$B$19:$N$41,8,0)/'4. Billing Determinants (old)'!$I$41*$D5, VLOOKUP(J$4,'4. Billing Determinants (old)'!$B$19:$N$41,3,0)/'4. Billing Determinants (old)'!$D$41*$D5))))) -> 0 | K5: =IF(K$4="",0,IF($E5="kWh",VLOOKUP(K$4,'4. Billing Determinants (old)'!$B$19:$N$41,4,0)/'4. Billing Determinants (old)'!$E$41*$D5,IF($E5="kW",VLOOKUP(K$4,'4. Billing Determinants (old)'!$B$19:$N$41,5,0)/'4. Billing Determinants (old)'!$F$41*$D5,IF($E5="Non-RPP kWh",VLOOKUP(K$4,'4. Billing Determinants (old)'!$B$19:$N$41,6,0)/'4. Billing Determinants (old)'!$G$41*$D5,IF($E5="Distribution Rev.",VLOOKUP(K$4,'4. Billing Determinants (old)'!$B$19:$N$41,8,0)/'4. Billing Determinants (old)'!$I$41*$D5, VLOOKUP(K$4,'4. Billing Determinants (old)'!$B$19:$N$41,3,0)/'4. Billing Determinants (old)'!$D$41*$D5))))) -> 0 | L5: =IF(L$4="",0,IF($E5="kWh",VLOOKUP(L$4,'4. Billing Determinants (old)'!$B$19:$N$41,4,0)/'4. Billing Determinants (old)'!$E$41*$D5,IF($E5="kW",VLOOKUP(L$4,'4. Billing Determinants (old)'!$B$19:$N$41,5,0)/'4. Billing Determinants (old)'!$F$41*$D5,IF($E5="Non-RPP kWh",VLOOKUP(L$4,'4. Billing Determinants (old)'!$B$19:$N$41,6,0)/'4. Billing Determinants (old)'!$G$41*$D5,IF($E5="Distribution Rev.",VLOOKUP(L$4,'4. Billing Determinants (old)'!$B$19:$N$41,8,0)/'4. Billing Determinants (old)'!$I$41*$D5, VLOOKUP(L$4,'4. Billing Determinants (old)'!$B$19:$N$41,3,0)/'4. Billing Determinants (old)'!$D$41*$D5))))) -> 0 | M5: =IF(M$4="",0,IF($E5="kWh",VLOOKUP(M$4,'4. Billing Determinants (old)'!$B$19:$N$41,4,0)/'4. Billing Determinants (old)'!$E$41*$D5,IF($E5="kW",VLOOKUP(M$4,'4. Billing Determinants (old)'!$B$19:$N$41,5,0)/'4. Billing Determinants (old)'!$F$41*$D5,IF($E5="Non-RPP kWh",VLOOKUP(M$4,'4. Billing Determinants (old)'!$B$19:$N$41,6,0)/'4. Billing Determinants (old)'!$G$41*$D5,IF($E5="Distribution Rev.",VLOOKUP(M$4,'4. Billing Determinants (old)'!$B$19:$N$41,8,0)/'4. Billing Determinants (old)'!$I$41*$D5, VLOOKUP(M$4,'4. Billing Determinants (old)'!$B$19:$N$41,3,0)/'4. Billing Determinants (old)'!$D$41*$D5))))) -> 0 | N5: =IF(N$4="",0,IF($E5="kWh",VLOOKUP(N$4,'4. Billing Determinants (old)'!$B$19:$N$41,4,0)/'4. Billing Determinants (old)'!$E$41*$D5,IF($E5="kW",VLOOKUP(N$4,'4. Billing Determinants (old)'!$B$19:$N$41,5,0)/'4. Billing Determinants (old)'!$F$41*$D5,IF($E5="Non-RPP kWh",VLOOKUP(N$4,'4. Billing Determinants (old)'!$B$19:$N$41,6,0)/'4. Billing Determinants (old)'!$G$41*$D5,IF($E5="Distribution Rev.",VLOOKUP(N$4,'4. Billing Determinants (old)'!$B$19:$N$41,8,0)/'4. Billing Determinants (old)'!$I$41*$D5, VLOOKUP(N$4,'4. Billing Determinants (old)'!$B$19:$N$41,3,0)/'4. Billing Determinants (old)'!$D$41*$D5))))) -> 0 | O5: =IF(O$4="",0,IF($E5="kWh",VLOOKUP(O$4,'4. Billing Determinants (old)'!$B$19:$N$41,4,0)/'4. Billing Determinants (old)'!$E$41*$D5,IF($E5="kW",VLOOKUP(O$4,'4. Billing Determinants (old)'!$B$19:$N$41,5,0)/'4. Billing Determinants (old)'!$F$41*$D5,IF($E5="Non-RPP kWh",VLOOKUP(O$4,'4. Billing Determinants (old)'!$B$19:$N$41,6,0)/'4. Billing Determinants (old)'!$G$41*$D5,IF($E5="Distribution Rev.",VLOOKUP(O$4,'4. Billing Determinants (old)'!$B$19:$N$41,8,0)/'4. Billing Determinants (old)'!$I$41*$D5, VLOOKUP(O$4,'4. Billing Determinants (old)'!$B$19:$N$41,3,0)/'4. Billing Determinants (old)'!$D$41*$D5))))) -> 0 | P5: =IF(P$4="",0,IF($E5="kWh",VLOOKUP(P$4,'4. Billing Determinants (old)'!$B$19:$N$41,4,0)/'4. Billing Determinants (old)'!$E$41*$D5,IF($E5="kW",VLOOKUP(P$4,'4. Billing Determinants (old)'!$B$19:$N$41,5,0)/'4. Billing Determinants (old)'!$F$41*$D5,IF($E5="Non-RPP kWh",VLOOKUP(P$4,'4. Billing Determinants (old)'!$B$19:$N$41,6,0)/'4. Billing Determinants (old)'!$G$41*$D5,IF($E5="Distribution Rev.",VLOOKUP(P$4,'4. Billing Determinants (old)'!$B$19:$N$41,8,0)/'4. Billing Determinants (old)'!$I$41*$D5, VLOOKUP(P$4,'4. Billing Determinants (old)'!$B$19:$N$41,3,0)/'4. Billing Determinants (old)'!$D$41*$D5))))) -> 0 | Q5: =IF(Q$4="",0,IF($E5="kWh",VLOOKUP(Q$4,'4. Billing Determinants (old)'!$B$19:$N$41,4,0)/'4. Billing Determinants (old)'!$E$41*$D5,IF($E5="kW",VLOOKUP(Q$4,'4. Billing Determinants (old)'!$B$19:$N$41,5,0)/'4. Billing Determinants (old)'!$F$41*$D5,IF($E5="Non-RPP kWh",VLOOKUP(Q$4,'4. Billing Determinants (old)'!$B$19:$N$41,6,0)/'4. Billing Determinants (old)'!$G$41*$D5,IF($E5="Distribution Rev.",VLOOKUP(Q$4,'4. Billing Determinants (old)'!$B$19:$N$41,8,0)/'4. Billing Determinants (old)'!$I$41*$D5, VLOOKUP(Q$4,'4. Billing Determinants (old)'!$B$19:$N$41,3,0)/'4. Billing Determinants (old)'!$D$41*$D5))))) -> 0 | R5: =IF(R$4="",0,IF($E5="kWh",VLOOKUP(R$4,'4. Billing Determinants (old)'!$B$19:$N$41,4,0)/'4. Billing Determinants (old)'!$E$41*$D5,IF($E5="kW",VLOOKUP(R$4,'4. Billing Determinants (old)'!$B$19:$N$41,5,0)/'4. Billing Determinants (old)'!$F$41*$D5,IF($E5="Non-RPP kWh",VLOOKUP(R$4,'4. Billing Determinants (old)'!$B$19:$N$41,6,0)/'4. Billing Determinants (old)'!$G$41*$D5,IF($E5="Distribution Rev.",VLOOKUP(R$4,'4. Billing Determinants (old)'!$B$19:$N$41,8,0)/'4. Billing Determinants (old)'!$I$41*$D5, VLOOKUP(R$4,'4. Billing Determinants (old)'!$B$19:$N$41,3,0)/'4. Billing Determinants (old)'!$D$41*$D5))))) -> 0 | S5: =IF(S$4="",0,IF($E5="kWh",VLOOKUP(S$4,'4. Billing Determinants (old)'!$B$19:$N$41,4,0)/'4. Billing Determinants (old)'!$E$41*$D5,IF($E5="kW",VLOOKUP(S$4,'4. Billing Determinants (old)'!$B$19:$N$41,5,0)/'4. Billing Determinants (old)'!$F$41*$D5,IF($E5="Non-RPP kWh",VLOOKUP(S$4,'4. Billing Determinants (old)'!$B$19:$N$41,6,0)/'4. Billing Determinants (old)'!$G$41*$D5,IF($E5="Distribution Rev.",VLOOKUP(S$4,'4. Billing Determinants (old)'!$B$19:$N$41,8,0)/'4. Billing Determinants (old)'!$I$41*$D5, VLOOKUP(S$4,'4. Billing Determinants (old)'!$B$19:$N$41,3,0)/'4. Billing Determinants (old)'!$D$41*$D5))))) -> 0 | T5: =IF(T$4="",0,IF($E5="kWh",VLOOKUP(T$4,'4. Billing Determinants (old)'!$B$19:$N$41,4,0)/'4. Billing Determinants (old)'!$E$41*$D5,IF($E5="kW",VLOOKUP(T$4,'4. Billing Determinants (old)'!$B$19:$N$41,5,0)/'4. Billing Determinants (old)'!$F$41*$D5,IF($E5="Non-RPP kWh",VLOOKUP(T$4,'4. Billing Determinants (old)'!$B$19:$N$41,6,0)/'4. Billing Determinants (old)'!$G$41*$D5,IF($E5="Distribution Rev.",VLOOKUP(T$4,'4. Billing Determinants (old)'!$B$19:$N$41,8,0)/'4. Billing Determinants (old)'!$I$41*$D5, VLOOKUP(T$4,'4. Billing Determinants (old)'!$B$19:$N$41,3,0)/'4. Billing Determinants (old)'!$D$41*$D5))))) -> 0 | U5: =IF(U$4="",0,IF($E5="kWh",VLOOKUP(U$4,'4. Billing Determinants (old)'!$B$19:$N$41,4,0)/'4. Billing Determinants (old)'!$E$41*$D5,IF($E5="kW",VLOOKUP(U$4,'4. Billing Determinants (old)'!$B$19:$N$41,5,0)/'4. Billing Determinants (old)'!$F$41*$D5,IF($E5="Non-RPP kWh",VLOOKUP(U$4,'4. Billing Determinants (old)'!$B$19:$N$41,6,0)/'4. Billing Determinants (old)'!$G$41*$D5,IF($E5="Distribution Rev.",VLOOKUP(U$4,'4. Billing Determinants (old)'!$B$19:$N$41,8,0)/'4. Billing Determinants (old)'!$I$41*$D5, VLOOKUP(U$4,'4. Billing Determinants (old)'!$B$19:$N$41,3,0)/'4. Billing Determinants (old)'!$D$41*$D5))))) -> 0 | V5: =IF(V$4="",0,IF($E5="kWh",VLOOKUP(V$4,'4. Billing Determinants (old)'!$B$19:$N$41,4,0)/'4. Billing Determinants (old)'!$E$41*$D5,IF($E5="kW",VLOOKUP(V$4,'4. Billing Determinants (old)'!$B$19:$N$41,5,0)/'4. Billing Determinants (old)'!$F$41*$D5,IF($E5="Non-RPP kWh",VLOOKUP(V$4,'4. Billing Determinants (old)'!$B$19:$N$41,6,0)/'4. Billing Determinants (old)'!$G$41*$D5,IF($E5="Distribution Rev.",VLOOKUP(V$4,'4. Billing Determinants (old)'!$B$19:$N$41,8,0)/'4. Billing Determinants (old)'!$I$41*$D5, VLOOKUP(V$4,'4. Billing Determinants (old)'!$B$19:$N$41,3,0)/'4. Billing Determinants (old)'!$D$41*$D5))))) -> 0 | W5: =IF(W$4="",0,IF($E5="kWh",VLOOKUP(W$4,'4. Billing Determinants (old)'!$B$19:$N$41,4,0)/'4. Billing Determinants (old)'!$E$41*$D5,IF($E5="kW",VLOOKUP(W$4,'4. Billing Determinants (old)'!$B$19:$N$41,5,0)/'4. Billing Determinants (old)'!$F$41*$D5,IF($E5="Non-RPP kWh",VLOOKUP(W$4,'4. Billing Determinants (old)'!$B$19:$N$41,6,0)/'4. Billing Determinants (old)'!$G$41*$D5,IF($E5="Distribution Rev.",VLOOKUP(W$4,'4. Billing Determinants (old)'!$B$19:$N$41,8,0)/'4. Billing Determinants (old)'!$I$41*$D5, VLOOKUP(W$4,'4. Billing Determinants (old)'!$B$19:$N$41,3,0)/'4. Billing Determinants (old)'!$D$41*$D5))))) -> 0 | X5: =IF(X$4="",0,IF($E5="kWh",VLOOKUP(X$4,'4. Billing Determinants (old)'!$B$19:$N$41,4,0)/'4. Billing Determinants (old)'!$E$41*$D5,IF($E5="kW",VLOOKUP(X$4,'4. Billing Determinants (old)'!$B$19:$N$41,5,0)/'4. Billing Determinants (old)'!$F$41*$D5,IF($E5="Non-RPP kWh",VLOOKUP(X$4,'4. Billing Determinants (old)'!$B$19:$N$41,6,0)/'4. Billing Determinants (old)'!$G$41*$D5,IF($E5="Distribution Rev.",VLOOKUP(X$4,'4. Billing Determinants (old)'!$B$19:$N$41,8,0)/'4. Billing Determinants (old)'!$I$41*$D5, VLOOKUP(X$4,'4. Billing Determinants (old)'!$B$19:$N$41,3,0)/'4. Billing Determinants (old)'!$D$41*$D5))))) -> 0 | Y5: =IF(Y$4="",0,IF($E5="kWh",VLOOKUP(Y$4,'4. Billing Determinants (old)'!$B$19:$N$41,4,0)/'4. Billing Determinants (old)'!$E$41*$D5,IF($E5="kW",VLOOKUP(Y$4,'4. Billing Determinants (old)'!$B$19:$N$41,5,0)/'4. Billing Determinants (old)'!$F$41*$D5,IF($E5="Non-RPP kWh",VLOOKUP(Y$4,'4. Billing Determinants (old)'!$B$19:$N$41,6,0)/'4. Billing Determinants (old)'!$G$41*$D5,IF($E5="Distribution Rev.",VLOOKUP(Y$4,'4. Billing Determinants (old)'!$B$19:$N$41,8,0)/'4. Billing Determinants (old)'!$I$41*$D5, VLOOKUP(Y$4,'4. Billing Determinants (old)'!$B$19:$N$41,3,0)/'4. Billing Determinants (old)'!$D$41*$D5))))) -> 0
B6: RSVA - Wholesale Market Service Charge | C6: 1580 | D6: ='2. 2013 Continuity Schedule'!CG26 -> -3584918.182 | E6: kWh | F6: =IF(F$4="",0,IF($E6="kWh",VLOOKUP(F$4,'4. Billing Determinants (old)'!$B$19:$N$41,4,0)/'4. Billing Determinants (old)'!$E$41*$D6,IF($E6="kW",VLOOKUP(F$4,'4. Billing Determinants (old)'!$B$19:$N$41,5,0)/'4. Billing Determinants (old)'!$F$41*$D6,IF($E6="Non-RPP kWh",VLOOKUP(F$4,'4. Billing Determinants (old)'!$B$19:$N$41,6,0)/'4. Billing Determinants (old)'!$G$41*$D6,IF($E6="Distribution Rev.",VLOOKUP(F$4,'4. Billing Determinants (old)'!$B$19:$N$41,8,0)/'4. Billing Determinants (old)'!$I$41*$D6, VLOOKUP(F$4,'4. Billing Determinants (old)'!$B$19:$N$41,3,0)/'4. Billing Determinants (old)'!$D$41*$D6))))) -> 0 | G6: =IF(G$4="",0,IF($E6="kWh",VLOOKUP(G$4,'4. Billing Determinants (old)'!$B$19:$N$41,4,0)/'4. Billing Determinants (old)'!$E$41*$D6,IF($E6="kW",VLOOKUP(G$4,'4. Billing Determinants (old)'!$B$19:$N$41,5,0)/'4. Billing Determinants (old)'!$F$41*$D6,IF($E6="Non-RPP kWh",VLOOKUP(G$4,'4. Billing Determinants (old)'!$B$19:$N$41,6,0)/'4. Billing Determinants (old)'!$G$41*$D6,IF($E6="Distribution Rev.",VLOOKUP(G$4,'4. Billing Determinants (old)'!$B$19:$N$41,8,0)/'4. Billing Determinants (old)'!$I$41*$D6, VLOOKUP(G$4,'4. Billing Determinants (old)'!$B$19:$N$41,3,0)/'4. Billing Determinants (old)'!$D$41*$D6))))) -> 0 | H6: =IF(H$4="",0,IF($E6="kWh",VLOOKUP(H$4,'4. Billing Determinants (old)'!$B$19:$N$41,4,0)/'4. Billing Determinants (old)'!$E$41*$D6,IF($E6="kW",VLOOKUP(H$4,'4. Billing Determinants (old)'!$B$19:$N$41,5,0)/'4. Billing Determinants (old)'!$F$41*$D6,IF($E6="Non-RPP kWh",VLOOKUP(H$4,'4. Billing Determinants (old)'!$B$19:$N$41,6,0)/'4. Billing Determinants (old)'!$G$41*$D6,IF($E6="Distribution Rev.",VLOOKUP(H$4,'4. Billing Determinants (old)'!$B$19:$N$41,8,0)/'4. Billing Determinants (old)'!$I$41*$D6, VLOOKUP(H$4,'4. Billing Determinants (old)'!$B$19:$N$41,3,0)/'4. Billing Determinants (old)'!$D$41*$D6))))) -> 0 | I6: =IF(I$4="",0,IF($E6="kWh",VLOOKUP(I$4,'4. Billing Determinants (old)'!$B$19:$N$41,4,0)/'4. Billing Determinants (old)'!$E$41*$D6,IF($E6="kW",VLOOKUP(I$4,'4. Billing Determinants (old)'!$B$19:$N$41,5,0)/'4. Billing Determinants (old)'!$F$41*$D6,IF($E6="Non-RPP kWh",VLOOKUP(I$4,'4. Billing Determinants (old)'!$B$19:$N$41,6,0)/'4. Billing Determinants (old)'!$G$41*$D6,IF($E6="Distribution Rev.",VLOOKUP(I$4,'4. Billing Determinants (old)'!$B$19:$N$41,8,0)/'4. Billing Determinants (old)'!$I$41*$D6, VLOOKUP(I$4,'4. Billing Determinants (old)'!$B$19:$N$41,3,0)/'4. Billing Determinants (old)'!$D$41*$D6))))) -> 0 | J6: =IF(J$4="",0,IF($E6="kWh",VLOOKUP(J$4,'4. Billing Determinants (old)'!$B$19:$N$41,4,0)/'4. Billing Determinants (old)'!$E$41*$D6,IF($E6="kW",VLOOKUP(J$4,'4. Billing Determinants (old)'!$B$19:$N$41,5,0)/'4. Billing Determinants (old)'!$F$41*$D6,IF($E6="Non-RPP kWh",VLOOKUP(J$4,'4. Billing Determinants (old)'!$B$19:$N$41,6,0)/'4. Billing Determinants (old)'!$G$41*$D6,IF($E6="Distribution Rev.",VLOOKUP(J$4,'4. Billing Determinants (old)'!$B$19:$N$41,8,0)/'4. Billing Determinants (old)'!$I$41*$D6, VLOOKUP(J$4,'4. Billing Determinants (old)'!$B$19:$N$41,3,0)/'4. Billing Determinants (old)'!$D$41*$D6))))) -> 0 | K6: =IF(K$4="",0,IF($E6="kWh",VLOOKUP(K$4,'4. Billing Determinants (old)'!$B$19:$N$41,4,0)/'4. Billing Determinants (old)'!$E$41*$D6,IF($E6="kW",VLOOKUP(K$4,'4. Billing Determinants (old)'!$B$19:$N$41,5,0)/'4. Billing Determinants (old)'!$F$41*$D6,IF($E6="Non-RPP kWh",VLOOKUP(K$4,'4. Billing Determinants (old)'!$B$19:$N$41,6,0)/'4. Billing Determinants (old)'!$G$41*$D6,IF($E6="Distribution Rev.",VLOOKUP(K$4,'4. Billing Determinants (old)'!$B$19:$N$41,8,0)/'4. Billing Determinants (old)'!$I$41*$D6, VLOOKUP(K$4,'4. Billing Determinants (old)'!$B$19:$N$41,3,0)/'4. Billing Determinants (old)'!$D$41*$D6))))) -> 0 | L6: =IF(L$4="",0,IF($E6="kWh",VLOOKUP(L$4,'4. Billing Determinants (old)'!$B$19:$N$41,4,0)/'4. Billing Determinants (old)'!$E$41*$D6,IF($E6="kW",VLOOKUP(L$4,'4. Billing Determinants (old)'!$B$19:$N$41,5,0)/'4. Billing Determinants (old)'!$F$41*$D6,IF($E6="Non-RPP kWh",VLOOKUP(L$4,'4. Billing Determinants (old)'!$B$19:$N$41,6,0)/'4. Billing Determinants (old)'!$G$41*$D6,IF($E6="Distribution Rev.",VLOOKUP(L$4,'4. Billing Determinants (old)'!$B$19:$N$41,8,0)/'4. Billing Determinants (old)'!$I$41*$D6, VLOOKUP(L$4,'4. Billing Determinants (old)'!$B$19:$N$41,3,0)/'4. Billing Determinants (old)'!$D$41*$D6))))) -> 0 | M6: =IF(M$4="",0,IF($E6="kWh",VLOOKUP(M$4,'4. Billing Determinants (old)'!$B$19:$N$41,4,0)/'4. Billing Determinants (old)'!$E$41*$D6,IF($E6="kW",VLOOKUP(M$4,'4. Billing Determinants (old)'!$B$19:$N$41,5,0)/'4. Billing Determinants (old)'!$F$41*$D6,IF($E6="Non-RPP kWh",VLOOKUP(M$4,'4. Billing Determinants (old)'!$B$19:$N$41,6,0)/'4. Billing Determinants (old)'!$G$41*$D6,IF($E6="Distribution Rev.",VLOOKUP(M$4,'4. Billing Determinants (old)'!$B$19:$N$41,8,0)/'4. Billing Determinants (old)'!$I$41*$D6, VLOOKUP(M$4,'4. Billing Determinants (old)'!$B$19:$N$41,3,0)/'4. Billing Determinants (old)'!$D$41*$D6))))) -> 0 | N6: =IF(N$4="",0,IF($E6="kWh",VLOOKUP(N$4,'4. Billing Determinants (old)'!$B$19:$N$41,4,0)/'4. Billing Determinants (old)'!$E$41*$D6,IF($E6="kW",VLOOKUP(N$4,'4. Billing Determinants (old)'!$B$19:$N$41,5,0)/'4. Billing Determinants (old)'!$F$41*$D6,IF($E6="Non-RPP kWh",VLOOKUP(N$4,'4. Billing Determinants (old)'!$B$19:$N$41,6,0)/'4. Billing Determinants (old)'!$G$41*$D6,IF($E6="Distribution Rev.",VLOOKUP(N$4,'4. Billing Determinants (old)'!$B$19:$N$41,8,0)/'4. Billing Determinants (old)'!$I$41*$D6, VLOOKUP(N$4,'4. Billing Determinants (old)'!$B$19:$N$41,3,0)/'4. Billing Determinants (old)'!$D$41*$D6))))) -> 0 | O6: =IF(O$4="",0,IF($E6="kWh",VLOOKUP(O$4,'4. Billing Determinants (old)'!$B$19:$N$41,4,0)/'4. Billing Determinants (old)'!$E$41*$D6,IF($E6="kW",VLOOKUP(O$4,'4. Billing Determinants (old)'!$B$19:$N$41,5,0)/'4. Billing Determinants (old)'!$F$41*$D6,IF($E6="Non-RPP kWh",VLOOKUP(O$4,'4. Billing Determinants (old)'!$B$19:$N$41,6,0)/'4. Billing Determinants (old)'!$G$41*$D6,IF($E6="Distribution Rev.",VLOOKUP(O$4,'4. Billing Determinants (old)'!$B$19:$N$41,8,0)/'4. Billing Determinants (old)'!$I$41*$D6, VLOOKUP(O$4,'4. Billing Determinants (old)'!$B$19:$N$41,3,0)/'4. Billing Determinants (old)'!$D$41*$D6))))) -> 0 | P6: =IF(P$4="",0,IF($E6="kWh",VLOOKUP(P$4,'4. Billing Determinants (old)'!$B$19:$N$41,4,0)/'4. Billing Determinants (old)'!$E$41*$D6,IF($E6="kW",VLOOKUP(P$4,'4. Billing Determinants (old)'!$B$19:$N$41,5,0)/'4. Billing Determinants (old)'!$F$41*$D6,IF($E6="Non-RPP kWh",VLOOKUP(P$4,'4. Billing Determinants (old)'!$B$19:$N$41,6,0)/'4. Billing Determinants (old)'!$G$41*$D6,IF($E6="Distribution Rev.",VLOOKUP(P$4,'4. Billing Determinants (old)'!$B$19:$N$41,8,0)/'4. Billing Determinants (old)'!$I$41*$D6, VLOOKUP(P$4,'4. Billing Determinants (old)'!$B$19:$N$41,3,0)/'4. Billing Determinants (old)'!$D$41*$D6))))) -> 0 | Q6: =IF(Q$4="",0,IF($E6="kWh",VLOOKUP(Q$4,'4. Billing Determinants (old)'!$B$19:$N$41,4,0)/'4. Billing Determinants (old)'!$E$41*$D6,IF($E6="kW",VLOOKUP(Q$4,'4. Billing Determinants (old)'!$B$19:$N$41,5,0)/'4. Billing Determinants (old)'!$F$41*$D6,IF($E6="Non-RPP kWh",VLOOKUP(Q$4,'4. Billing Determinants (old)'!$B$19:$N$41,6,0)/'4. Billing Determinants (old)'!$G$41*$D6,IF($E6="Distribution Rev.",VLOOKUP(Q$4,'4. Billing Determinants (old)'!$B$19:$N$41,8,0)/'4. Billing Determinants (old)'!$I$41*$D6, VLOOKUP(Q$4,'4. Billing Determinants (old)'!$B$19:$N$41,3,0)/'4. Billing Determinants (old)'!$D$41*$D6))))) -> 0 | R6: =IF(R$4="",0,IF($E6="kWh",VLOOKUP(R$4,'4. Billing Determinants (old)'!$B$19:$N$41,4,0)/'4. Billing Determinants (old)'!$E$41*$D6,IF($E6="kW",VLOOKUP(R$4,'4. Billing Determinants (old)'!$B$19:$N$41,5,0)/'4. Billing Determinants (old)'!$F$41*$D6,IF($E6="Non-RPP kWh",VLOOKUP(R$4,'4. Billing Determinants (old)'!$B$19:$N$41,6,0)/'4. Billing Determinants (old)'!$G$41*$D6,IF($E6="Distribution Rev.",VLOOKUP(R$4,'4. Billing Determinants (old)'!$B$19:$N$41,8,0)/'4. Billing Determinants (old)'!$I$41*$D6, VLOOKUP(R$4,'4. Billing Determinants (old)'!$B$19:$N$41,3,0)/'4. Billing Determinants (old)'!$D$41*$D6))))) -> 0 | S6: =IF(S$4="",0,IF($E6="kWh",VLOOKUP(S$4,'4. Billing Determinants (old)'!$B$19:$N$41,4,0)/'4. Billing Determinants (old)'!$E$41*$D6,IF($E6="kW",VLOOKUP(S$4,'4. Billing Determinants (old)'!$B$19:$N$41,5,0)/'4. Billing Determinants (old)'!$F$41*$D6,IF($E6="Non-RPP kWh",VLOOKUP(S$4,'4. Billing Determinants (old)'!$B$19:$N$41,6,0)/'4. Billing Determinants (old)'!$G$41*$D6,IF($E6="Distribution Rev.",VLOOKUP(S$4,'4. Billing Determinants (old)'!$B$19:$N$41,8,0)/'4. Billing Determinants (old)'!$I$41*$D6, VLOOKUP(S$4,'4. Billing Determinants (old)'!$B$19:$N$41,3,0)/'4. Billing Determinants (old)'!$D$41*$D6))))) -> 0 | T6: =IF(T$4="",0,IF($E6="kWh",VLOOKUP(T$4,'4. Billing Determinants (old)'!$B$19:$N$41,4,0)/'4. Billing Determinants (old)'!$E$41*$D6,IF($E6="kW",VLOOKUP(T$4,'4. Billing Determinants (old)'!$B$19:$N$41,5,0)/'4. Billing Determinants (old)'!$F$41*$D6,IF($E6="Non-RPP kWh",VLOOKUP(T$4,'4. Billing Determinants (old)'!$B$19:$N$41,6,0)/'4. Billing Determinants (old)'!$G$41*$D6,IF($E6="Distribution Rev.",VLOOKUP(T$4,'4. Billing Determinants (old)'!$B$19:$N$41,8,0)/'4. Billing Determinants (old)'!$I$41*$D6, VLOOKUP(T$4,'4. Billing Determinants (old)'!$B$19:$N$41,3,0)/'4. Billing Determinants (old)'!$D$41*$D6))))) -> 0 | U6: =IF(U$4="",0,IF($E6="kWh",VLOOKUP(U$4,'4. Billing Determinants (old)'!$B$19:$N$41,4,0)/'4. Billing Determinants (old)'!$E$41*$D6,IF($E6="kW",VLOOKUP(U$4,'4. Billing Determinants (old)'!$B$19:$N$41,5,0)/'4. Billing Determinants (old)'!$F$41*$D6,IF($E6="Non-RPP kWh",VLOOKUP(U$4,'4. Billing Determinants (old)'!$B$19:$N$41,6,0)/'4. Billing Determinants (old)'!$G$41*$D6,IF($E6="Distribution Rev.",VLOOKUP(U$4,'4. Billing Determinants (old)'!$B$19:$N$41,8,0)/'4. Billing Determinants (old)'!$I$41*$D6, VLOOKUP(U$4,'4. Billing Determinants (old)'!$B$19:$N$41,3,0)/'4. Billing Determinants (old)'!$D$41*$D6))))) -> 0 | V6: =IF(V$4="",0,IF($E6="kWh",VLOOKUP(V$4,'4. Billing Determinants (old)'!$B$19:$N$41,4,0)/'4. Billing Determinants (old)'!$E$41*$D6,IF($E6="kW",VLOOKUP(V$4,'4. Billing Determinants (old)'!$B$19:$N$41,5,0)/'4. Billing Determinants (old)'!$F$41*$D6,IF($E6="Non-RPP kWh",VLOOKUP(V$4,'4. Billing Determinants (old)'!$B$19:$N$41,6,0)/'4. Billing Determinants (old)'!$G$41*$D6,IF($E6="Distribution Rev.",VLOOKUP(V$4,'4. Billing Determinants (old)'!$B$19:$N$41,8,0)/'4. Billing Determinants (old)'!$I$41*$D6, VLOOKUP(V$4,'4. Billing Determinants (old)'!$B$19:$N$41,3,0)/'4. Billing Determinants (old)'!$D$41*$D6))))) -> 0 | W6: =IF(W$4="",0,IF($E6="kWh",VLOOKUP(W$4,'4. Billing Determinants (old)'!$B$19:$N$41,4,0)/'4. Billing Determinants (old)'!$E$41*$D6,IF($E6="kW",VLOOKUP(W$4,'4. Billing Determinants (old)'!$B$19:$N$41,5,0)/'4. Billing Determinants (old)'!$F$41*$D6,IF($E6="Non-RPP kWh",VLOOKUP(W$4,'4. Billing Determinants (old)'!$B$19:$N$41,6,0)/'4. Billing Determinants (old)'!$G$41*$D6,IF($E6="Distribution Rev.",VLOOKUP(W$4,'4. Billing Determinants (old)'!$B$19:$N$41,8,0)/'4. Billing Determinants (old)'!$I$41*$D6, VLOOKUP(W$4,'4. Billing Determinants (old)'!$B$19:$N$41,3,0)/'4. Billing Determinants (old)'!$D$41*$D6))))) -> 0 | X6: =IF(X$4="",0,IF($E6="kWh",VLOOKUP(X$4,'4. Billing Determinants (old)'!$B$19:$N$41,4,0)/'4. Billing Determinants (old)'!$E$41*$D6,IF($E6="kW",VLOOKUP(X$4,'4. Billing Determinants (old)'!$B$19:$N$41,5,0)/'4. Billing Determinants (old)'!$F$41*$D6,IF($E6="Non-RPP kWh",VLOOKUP(X$4,'4. Billing Determinants (old)'!$B$19:$N$41,6,0)/'4. Billing Determinants (old)'!$G$41*$D6,IF($E6="Distribution Rev.",VLOOKUP(X$4,'4. Billing Determinants (old)'!$B$19:$N$41,8,0)/'4. Billing Determinants (old)'!$I$41*$D6, VLOOKUP(X$4,'4. Billing Determinants (old)'!$B$19:$N$41,3,0)/'4. Billing Determinants (old)'!$D$41*$D6))))) -> 0 | Y6: =IF(Y$4="",0,IF($E6="kWh",VLOOKUP(Y$4,'4. Billing Determinants (old)'!$B$19:$N$41,4,0)/'4. Billing Determinants (old)'!$E$41*$D6,IF($E6="kW",VLOOKUP(Y$4,'4. Billing Determinants (old)'!$B$19:$N$41,5,0)/'4. Billing Determinants (old)'!$F$41*$D6,IF($E6="Non-RPP kWh",VLOOKUP(Y$4,'4. Billing Determinants (old)'!$B$19:$N$41,6,0)/'4. Billing Determinants (old)'!$G$41*$D6,IF($E6="Distribution Rev.",VLOOKUP(Y$4,'4. Billing Determinants (old)'!$B$19:$N$41,8,0)/'4. Billing Determinants (old)'!$I$41*$D6, VLOOKUP(Y$4,'4. Billing Determinants (old)'!$B$19:$N$41,3,0)/'4. Billing Determinants (old)'!$D$41*$D6))))) -> 0
B7: RSVA - Retail Transmission Network Charge | C7: 1584 | D7: ='2. 2013 Continuity Schedule'!CG27 -> 3452626.629 | E7: kWh | F7: =IF(F$4="",0,IF($E7="kWh",VLOOKUP(F$4,'4. Billing Determinants (old)'!$B$19:$N$41,4,0)/'4. Billing Determinants (old)'!$E$41*$D7,IF($E7="kW",VLOOKUP(F$4,'4. Billing Determinants (old)'!$B$19:$N$41,5,0)/'4. Billing Determinants (old)'!$F$41*$D7,IF($E7="Non-RPP kWh",VLOOKUP(F$4,'4. Billing Determinants (old)'!$B$19:$N$41,6,0)/'4. Billing Determinants (old)'!$G$41*$D7,IF($E7="Distribution Rev.",VLOOKUP(F$4,'4. Billing Determinants (old)'!$B$19:$N$41,8,0)/'4. Billing Determinants (old)'!$I$41*$D7, VLOOKUP(F$4,'4. Billing Determinants (old)'!$B$19:$N$41,3,0)/'4. Billing Determinants (old)'!$D$41*$D7))))) -> 0 | G7: =IF(G$4="",0,IF($E7="kWh",VLOOKUP(G$4,'4. Billing Determinants (old)'!$B$19:$N$41,4,0)/'4. Billing Determinants (old)'!$E$41*$D7,IF($E7="kW",VLOOKUP(G$4,'4. Billing Determinants (old)'!$B$19:$N$41,5,0)/'4. Billing Determinants (old)'!$F$41*$D7,IF($E7="Non-RPP kWh",VLOOKUP(G$4,'4. Billing Determinants (old)'!$B$19:$N$41,6,0)/'4. Billing Determinants (old)'!$G$41*$D7,IF($E7="Distribution Rev.",VLOOKUP(G$4,'4. Billing Determinants (old)'!$B$19:$N$41,8,0)/'4. Billing Determinants (old)'!$I$41*$D7, VLOOKUP(G$4,'4. Billing Determinants (old)'!$B$19:$N$41,3,0)/'4. Billing Determinants (old)'!$D$41*$D7))))) -> 0 | H7: =IF(H$4="",0,IF($E7="kWh",VLOOKUP(H$4,'4. Billing Determinants (old)'!$B$19:$N$41,4,0)/'4. Billing Determinants (old)'!$E$41*$D7,IF($E7="kW",VLOOKUP(H$4,'4. Billing Determinants (old)'!$B$19:$N$41,5,0)/'4. Billing Determinants (old)'!$F$41*$D7,IF($E7="Non-RPP kWh",VLOOKUP(H$4,'4. Billing Determinants (old)'!$B$19:$N$41,6,0)/'4. Billing Determinants (old)'!$G$41*$D7,IF($E7="Distribution Rev.",VLOOKUP(H$4,'4. Billing Determinants (old)'!$B$19:$N$41,8,0)/'4. Billing Determinants (old)'!$I$41*$D7, VLOOKUP(H$4,'4. Billing Determinants (old)'!$B$19:$N$41,3,0)/'4. Billing Determinants (old)'!$D$41*$D7))))) -> 0 | I7: =IF(I$4="",0,IF($E7="kWh",VLOOKUP(I$4,'4. Billing Determinants (old)'!$B$19:$N$41,4,0)/'4. Billing Determinants (old)'!$E$41*$D7,IF($E7="kW",VLOOKUP(I$4,'4. Billing Determinants (old)'!$B$19:$N$41,5,0)/'4. Billing Determinants (old)'!$F$41*$D7,IF($E7="Non-RPP kWh",VLOOKUP(I$4,'4. Billing Determinants (old)'!$B$19:$N$41,6,0)/'4. Billing Determinants (old)'!$G$41*$D7,IF($E7="Distribution Rev.",VLOOKUP(I$4,'4. Billing Determinants (old)'!$B$19:$N$41,8,0)/'4. Billing Determinants (old)'!$I$41*$D7, VLOOKUP(I$4,'4. Billing Determinants (old)'!$B$19:$N$41,3,0)/'4. Billing Determinants (old)'!$D$41*$D7))))) -> 0 | J7: =IF(J$4="",0,IF($E7="kWh",VLOOKUP(J$4,'4. Billing Determinants (old)'!$B$19:$N$41,4,0)/'4. Billing Determinants (old)'!$E$41*$D7,IF($E7="kW",VLOOKUP(J$4,'4. Billing Determinants (old)'!$B$19:$N$41,5,0)/'4. Billing Determinants (old)'!$F$41*$D7,IF($E7="Non-RPP kWh",VLOOKUP(J$4,'4. Billing Determinants (old)'!$B$19:$N$41,6,0)/'4. Billing Determinants (old)'!$G$41*$D7,IF($E7="Distribution Rev.",VLOOKUP(J$4,'4. Billing Determinants (old)'!$B$19:$N$41,8,0)/'4. Billing Determinants (old)'!$I$41*$D7, VLOOKUP(J$4,'4. Billing Determinants (old)'!$B$19:$N$41,3,0)/'4. Billing Determinants (old)'!$D$41*$D7))))) -> 0 | K7: =IF(K$4="",0,IF($E7="kWh",VLOOKUP(K$4,'4. Billing Determinants (old)'!$B$19:$N$41,4,0)/'4. Billing Determinants (old)'!$E$41*$D7,IF($E7="kW",VLOOKUP(K$4,'4. Billing Determinants (old)'!$B$19:$N$41,5,0)/'4. Billing Determinants (old)'!$F$41*$D7,IF($E7="Non-RPP kWh",VLOOKUP(K$4,'4. Billing Determinants (old)'!$B$19:$N$41,6,0)/'4. Billing Determinants (old)'!$G$41*$D7,IF($E7="Distribution Rev.",VLOOKUP(K$4,'4. Billing Determinants (old)'!$B$19:$N$41,8,0)/'4. Billing Determinants (old)'!$I$41*$D7, VLOOKUP(K$4,'4. Billing Determinants (old)'!$B$19:$N$41,3,0)/'4. Billing Determinants (old)'!$D$41*$D7))))) -> 0 | L7: =IF(L$4="",0,IF($E7="kWh",VLOOKUP(L$4,'4. Billing Determinants (old)'!$B$19:$N$41,4,0)/'4. Billing Determinants (old)'!$E$41*$D7,IF($E7="kW",VLOOKUP(L$4,'4. Billing Determinants (old)'!$B$19:$N$41,5,0)/'4. Billing Determinants (old)'!$F$41*$D7,IF($E7="Non-RPP kWh",VLOOKUP(L$4,'4. Billing Determinants (old)'!$B$19:$N$41,6,0)/'4. Billing Determinants (old)'!$G$41*$D7,IF($E7="Distribution Rev.",VLOOKUP(L$4,'4. Billing Determinants (old)'!$B$19:$N$41,8,0)/'4. Billing Determinants (old)'!$I$41*$D7, VLOOKUP(L$4,'4. Billing Determinants (old)'!$B$19:$N$41,3,0)/'4. Billing Determinants (old)'!$D$41*$D7))))) -> 0 | M7: =IF(M$4="",0,IF($E7="kWh",VLOOKUP(M$4,'4. Billing Determinants (old)'!$B$19:$N$41,4,0)/'4. Billing Determinants (old)'!$E$41*$D7,IF($E7="kW",VLOOKUP(M$4,'4. Billing Determinants (old)'!$B$19:$N$41,5,0)/'4. Billing Determinants (old)'!$F$41*$D7,IF($E7="Non-RPP kWh",VLOOKUP(M$4,'4. Billing Determinants (old)'!$B$19:$N$41,6,0)/'4. Billing Determinants (old)'!$G$41*$D7,IF($E7="Distribution Rev.",VLOOKUP(M$4,'4. Billing Determinants (old)'!$B$19:$N$41,8,0)/'4. Billing Determinants (old)'!$I$41*$D7, VLOOKUP(M$4,'4. Billing Determinants (old)'!$B$19:$N$41,3,0)/'4. Billing Determinants (old)'!$D$41*$D7))))) -> 0 | N7: =IF(N$4="",0,IF($E7="kWh",VLOOKUP(N$4,'4. Billing Determinants (old)'!$B$19:$N$41,4,0)/'4. Billing Determinants (old)'!$E$41*$D7,IF($E7="kW",VLOOKUP(N$4,'4. Billing Determinants (old)'!$B$19:$N$41,5,0)/'4. Billing Determinants (old)'!$F$41*$D7,IF($E7="Non-RPP kWh",VLOOKUP(N$4,'4. Billing Determinants (old)'!$B$19:$N$41,6,0)/'4. Billing Determinants (old)'!$G$41*$D7,IF($E7="Distribution Rev.",VLOOKUP(N$4,'4. Billing Determinants (old)'!$B$19:$N$41,8,0)/'4. Billing Determinants (old)'!$I$41*$D7, VLOOKUP(N$4,'4. Billing Determinants (old)'!$B$19:$N$41,3,0)/'4. Billing Determinants (old)'!$D$41*$D7))))) -> 0 | O7: =IF(O$4="",0,IF($E7="kWh",VLOOKUP(O$4,'4. Billing Determinants (old)'!$B$19:$N$41,4,0)/'4. Billing Determinants (old)'!$E$41*$D7,IF($E7="kW",VLOOKUP(O$4,'4. Billing Determinants (old)'!$B$19:$N$41,5,0)/'4. Billing Determinants (old)'!$F$41*$D7,IF($E7="Non-RPP kWh",VLOOKUP(O$4,'4. Billing Determinants (old)'!$B$19:$N$41,6,0)/'4. Billing Determinants (old)'!$G$41*$D7,IF($E7="Distribution Rev.",VLOOKUP(O$4,'4. Billing Determinants (old)'!$B$19:$N$41,8,0)/'4. Billing Determinants (old)'!$I$41*$D7, VLOOKUP(O$4,'4. Billing Determinants (old)'!$B$19:$N$41,3,0)/'4. Billing Determinants (old)'!$D$41*$D7))))) -> 0 | P7: =IF(P$4="",0,IF($E7="kWh",VLOOKUP(P$4,'4. Billing Determinants (old)'!$B$19:$N$41,4,0)/'4. Billing Determinants (old)'!$E$41*$D7,IF($E7="kW",VLOOKUP(P$4,'4. Billing Determinants (old)'!$B$19:$N$41,5,0)/'4. Billing Determinants (old)'!$F$41*$D7,IF($E7="Non-RPP kWh",VLOOKUP(P$4,'4. Billing Determinants (old)'!$B$19:$N$41,6,0)/'4. Billing Determinants (old)'!$G$41*$D7,IF($E7="Distribution Rev.",VLOOKUP(P$4,'4. Billing Determinants (old)'!$B$19:$N$41,8,0)/'4. Billing Determinants (old)'!$I$41*$D7, VLOOKUP(P$4,'4. Billing Determinants (old)'!$B$19:$N$41,3,0)/'4. Billing Determinants (old)'!$D$41*$D7))))) -> 0 | Q7: =IF(Q$4="",0,IF($E7="kWh",VLOOKUP(Q$4,'4. Billing Determinants (old)'!$B$19:$N$41,4,0)/'4. Billing Determinants (old)'!$E$41*$D7,IF($E7="kW",VLOOKUP(Q$4,'4. Billing Determinants (old)'!$B$19:$N$41,5,0)/'4. Billing Determinants (old)'!$F$41*$D7,IF($E7="Non-RPP kWh",VLOOKUP(Q$4,'4. Billing Determinants (old)'!$B$19:$N$41,6,0)/'4. Billing Determinants (old)'!$G$41*$D7,IF($E7="Distribution Rev.",VLOOKUP(Q$4,'4. Billing Determinants (old)'!$B$19:$N$41,8,0)/'4. Billing Determinants (old)'!$I$41*$D7, VLOOKUP(Q$4,'4. Billing Determinants (old)'!$B$19:$N$41,3,0)/'4. Billing Determinants (old)'!$D$41*$D7))))) -> 0 | R7: =IF(R$4="",0,IF($E7="kWh",VLOOKUP(R$4,'4. Billing Determinants (old)'!$B$19:$N$41,4,0)/'4. Billing Determinants (old)'!$E$41*$D7,IF($E7="kW",VLOOKUP(R$4,'4. Billing Determinants (old)'!$B$19:$N$41,5,0)/'4. Billing Determinants (old)'!$F$41*$D7,IF($E7="Non-RPP kWh",VLOOKUP(R$4,'4. Billing Determinants (old)'!$B$19:$N$41,6,0)/'4. Billing Determinants (old)'!$G$41*$D7,IF($E7="Distribution Rev.",VLOOKUP(R$4,'4. Billing Determinants (old)'!$B$19:$N$41,8,0)/'4. Billing Determinants (old)'!$I$41*$D7, VLOOKUP(R$4,'4. Billing Determinants (old)'!$B$19:$N$41,3,0)/'4. Billing Determinants (old)'!$D$41*$D7))))) -> 0 | S7: =IF(S$4="",0,IF($E7="kWh",VLOOKUP(S$4,'4. Billing Determinants (old)'!$B$19:$N$41,4,0)/'4. Billing Determinants (old)'!$E$41*$D7,IF($E7="kW",VLOOKUP(S$4,'4. Billing Determinants (old)'!$B$19:$N$41,5,0)/'4. Billing Determinants (old)'!$F$41*$D7,IF($E7="Non-RPP kWh",VLOOKUP(S$4,'4. Billing Determinants (old)'!$B$19:$N$41,6,0)/'4. Billing Determinants (old)'!$G$41*$D7,IF($E7="Distribution Rev.",VLOOKUP(S$4,'4. Billing Determinants (old)'!$B$19:$N$41,8,0)/'4. Billing Determinants (old)'!$I$41*$D7, VLOOKUP(S$4,'4. Billing Determinants (old)'!$B$19:$N$41,3,0)/'4. Billing Determinants (old)'!$D$41*$D7))))) -> 0 | T7: =IF(T$4="",0,IF($E7="kWh",VLOOKUP(T$4,'4. Billing Determinants (old)'!$B$19:$N$41,4,0)/'4. Billing Determinants (old)'!$E$41*$D7,IF($E7="kW",VLOOKUP(T$4,'4. Billing Determinants (old)'!$B$19:$N$41,5,0)/'4. Billing Determinants (old)'!$F$41*$D7,IF($E7="Non-RPP kWh",VLOOKUP(T$4,'4. Billing Determinants (old)'!$B$19:$N$41,6,0)/'4. Billing Determinants (old)'!$G$41*$D7,IF($E7="Distribution Rev.",VLOOKUP(T$4,'4. Billing Determinants (old)'!$B$19:$N$41,8,0)/'4. Billing Determinants (old)'!$I$41*$D7, VLOOKUP(T$4,'4. Billing Determinants (old)'!$B$19:$N$41,3,0)/'4. Billing Determinants (old)'!$D$41*$D7))))) -> 0 | U7: =IF(U$4="",0,IF($E7="kWh",VLOOKUP(U$4,'4. Billing Determinants (old)'!$B$19:$N$41,4,0)/'4. Billing Determinants (old)'!$E$41*$D7,IF($E7="kW",VLOOKUP(U$4,'4. Billing Determinants (old)'!$B$19:$N$41,5,0)/'4. Billing Determinants (old)'!$F$41*$D7,IF($E7="Non-RPP kWh",VLOOKUP(U$4,'4. Billing Determinants (old)'!$B$19:$N$41,6,0)/'4. Billing Determinants (old)'!$G$41*$D7,IF($E7="Distribution Rev.",VLOOKUP(U$4,'4. Billing Determinants (old)'!$B$19:$N$41,8,0)/'4. Billing Determinants (old)'!$I$41*$D7, VLOOKUP(U$4,'4. Billing Determinants (old)'!$B$19:$N$41,3,0)/'4. Billing Determinants (old)'!$D$41*$D7))))) -> 0 | V7: =IF(V$4="",0,IF($E7="kWh",VLOOKUP(V$4,'4. Billing Determinants (old)'!$B$19:$N$41,4,0)/'4. Billing Determinants (old)'!$E$41*$D7,IF($E7="kW",VLOOKUP(V$4,'4. Billing Determinants (old)'!$B$19:$N$41,5,0)/'4. Billing Determinants (old)'!$F$41*$D7,IF($E7="Non-RPP kWh",VLOOKUP(V$4,'4. Billing Determinants (old)'!$B$19:$N$41,6,0)/'4. Billing Determinants (old)'!$G$41*$D7,IF($E7="Distribution Rev.",VLOOKUP(V$4,'4. Billing Determinants (old)'!$B$19:$N$41,8,0)/'4. Billing Determinants (old)'!$I$41*$D7, VLOOKUP(V$4,'4. Billing Determinants (old)'!$B$19:$N$41,3,0)/'4. Billing Determinants (old)'!$D$41*$D7))))) -> 0 | W7: =IF(W$4="",0,IF($E7="kWh",VLOOKUP(W$4,'4. Billing Determinants (old)'!$B$19:$N$41,4,0)/'4. Billing Determinants (old)'!$E$41*$D7,IF($E7="kW",VLOOKUP(W$4,'4. Billing Determinants (old)'!$B$19:$N$41,5,0)/'4. Billing Determinants (old)'!$F$41*$D7,IF($E7="Non-RPP kWh",VLOOKUP(W$4,'4. Billing Determinants (old)'!$B$19:$N$41,6,0)/'4. Billing Determinants (old)'!$G$41*$D7,IF($E7="Distribution Rev.",VLOOKUP(W$4,'4. Billing Determinants (old)'!$B$19:$N$41,8,0)/'4. Billing Determinants (old)'!$I$41*$D7, VLOOKUP(W$4,'4. Billing Determinants (old)'!$B$19:$N$41,3,0)/'4. Billing Determinants (old)'!$D$41*$D7))))) -> 0 | X7: =IF(X$4="",0,IF($E7="kWh",VLOOKUP(X$4,'4. Billing Determinants (old)'!$B$19:$N$41,4,0)/'4. Billing Determinants (old)'!$E$41*$D7,IF($E7="kW",VLOOKUP(X$4,'4. Billing Determinants (old)'!$B$19:$N$41,5,0)/'4. Billing Determinants (old)'!$F$41*$D7,IF($E7="Non-RPP kWh",VLOOKUP(X$4,'4. Billing Determinants (old)'!$B$19:$N$41,6,0)/'4. Billing Determinants (old)'!$G$41*$D7,IF($E7="Distribution Rev.",VLOOKUP(X$4,'4. Billing Determinants (old)'!$B$19:$N$41,8,0)/'4. Billing Determinants (old)'!$I$41*$D7, VLOOKUP(X$4,'4. Billing Determinants (old)'!$B$19:$N$41,3,0)/'4. Billing Determinants (old)'!$D$41*$D7))))) -> 0 | Y7: =IF(Y$4="",0,IF($E7="kWh",VLOOKUP(Y$4,'4. Billing Determinants (old)'!$B$19:$N$41,4,0)/'4. Billing Determinants (old)'!$E$41*$D7,IF($E7="kW",VLOOKUP(Y$4,'4. Billing Determinants (old)'!$B$19:$N$41,5,0)/'4. Billing Determinants (old)'!$F$41*$D7,IF($E7="Non-RPP kWh",VLOOKUP(Y$4,'4. Billing Determinants (old)'!$B$19:$N$41,6,0)/'4. Billing Determinants (old)'!$G$41*$D7,IF($E7="Distribution Rev.",VLOOKUP(Y$4,'4. Billing Determinants (old)'!$B$19:$N$41,8,0)/'4. Billing Determinants (old)'!$I$41*$D7, VLOOKUP(Y$4,'4. Billing Determinants (old)'!$B$19:$N$41,3,0)/'4. Billing Determinants (old)'!$D$41*$D7))))) -> 0
B8: RSVA - Retail Transmission Connection Charge | C8: 1586 | D8: ='2. 2013 Continuity Schedule'!CG28 -> 1339852.592 | E8: kWh | F8: =IF(F$4="",0,IF($E8="kWh",VLOOKUP(F$4,'4. Billing Determinants (old)'!$B$19:$N$41,4,0)/'4. Billing Determinants (old)'!$E$41*$D8,IF($E8="kW",VLOOKUP(F$4,'4. Billing Determinants (old)'!$B$19:$N$41,5,0)/'4. Billing Determinants (old)'!$F$41*$D8,IF($E8="Non-RPP kWh",VLOOKUP(F$4,'4. Billing Determinants (old)'!$B$19:$N$41,6,0)/'4. Billing Determinants (old)'!$G$41*$D8,IF($E8="Distribution Rev.",VLOOKUP(F$4,'4. Billing Determinants (old)'!$B$19:$N$41,8,0)/'4. Billing Determinants (old)'!$I$41*$D8, VLOOKUP(F$4,'4. Billing Determinants (old)'!$B$19:$N$41,3,0)/'4. Billing Determinants (old)'!$D$41*$D8))))) -> 0 | G8: =IF(G$4="",0,IF($E8="kWh",VLOOKUP(G$4,'4. Billing Determinants (old)'!$B$19:$N$41,4,0)/'4. Billing Determinants (old)'!$E$41*$D8,IF($E8="kW",VLOOKUP(G$4,'4. Billing Determinants (old)'!$B$19:$N$41,5,0)/'4. Billing Determinants (old)'!$F$41*$D8,IF($E8="Non-RPP kWh",VLOOKUP(G$4,'4. Billing Determinants (old)'!$B$19:$N$41,6,0)/'4. Billing Determinants (old)'!$G$41*$D8,IF($E8="Distribution Rev.",VLOOKUP(G$4,'4. Billing Determinants (old)'!$B$19:$N$41,8,0)/'4. Billing Determinants (old)'!$I$41*$D8, VLOOKUP(G$4,'4. Billing Determinants (old)'!$B$19:$N$41,3,0)/'4. Billing Determinants (old)'!$D$41*$D8))))) -> 0 | H8: =IF(H$4="",0,IF($E8="kWh",VLOOKUP(H$4,'4. Billing Determinants (old)'!$B$19:$N$41,4,0)/'4. Billing Determinants (old)'!$E$41*$D8,IF($E8="kW",VLOOKUP(H$4,'4. Billing Determinants (old)'!$B$19:$N$41,5,0)/'4. Billing Determinants (old)'!$F$41*$D8,IF($E8="Non-RPP kWh",VLOOKUP(H$4,'4. Billing Determinants (old)'!$B$19:$N$41,6,0)/'4. Billing Determinants (old)'!$G$41*$D8,IF($E8="Distribution Rev.",VLOOKUP(H$4,'4. Billing Determinants (old)'!$B$19:$N$41,8,0)/'4. Billing Determinants (old)'!$I$41*$D8, VLOOKUP(H$4,'4. Billing Determinants (old)'!$B$19:$N$41,3,0)/'4. Billing Determinants (old)'!$D$41*$D8))))) -> 0 | I8: =IF(I$4="",0,IF($E8="kWh",VLOOKUP(I$4,'4. Billing Determinants (old)'!$B$19:$N$41,4,0)/'4. Billing Determinants (old)'!$E$41*$D8,IF($E8="kW",VLOOKUP(I$4,'4. Billing Determinants (old)'!$B$19:$N$41,5,0)/'4. Billing Determinants (old)'!$F$41*$D8,IF($E8="Non-RPP kWh",VLOOKUP(I$4,'4. Billing Determinants (old)'!$B$19:$N$41,6,0)/'4. Billing Determinants (old)'!$G$41*$D8,IF($E8="Distribution Rev.",VLOOKUP(I$4,'4. Billing Determinants (old)'!$B$19:$N$41,8,0)/'4. Billing Determinants (old)'!$I$41*$D8, VLOOKUP(I$4,'4. Billing Determinants (old)'!$B$19:$N$41,3,0)/'4. Billing Determinants (old)'!$D$41*$D8))))) -> 0 | J8: =IF(J$4="",0,IF($E8="kWh",VLOOKUP(J$4,'4. Billing Determinants (old)'!$B$19:$N$41,4,0)/'4. Billing Determinants (old)'!$E$41*$D8,IF($E8="kW",VLOOKUP(J$4,'4. Billing Determinants (old)'!$B$19:$N$41,5,0)/'4. Billing Determinants (old)'!$F$41*$D8,IF($E8="Non-RPP kWh",VLOOKUP(J$4,'4. Billing Determinants (old)'!$B$19:$N$41,6,0)/'4. Billing Determinants (old)'!$G$41*$D8,IF($E8="Distribution Rev.",VLOOKUP(J$4,'4. Billing Determinants (old)'!$B$19:$N$41,8,0)/'4. Billing Determinants (old)'!$I$41*$D8, VLOOKUP(J$4,'4. Billing Determinants (old)'!$B$19:$N$41,3,0)/'4. Billing Determinants (old)'!$D$41*$D8))))) -> 0 | K8: =IF(K$4="",0,IF($E8="kWh",VLOOKUP(K$4,'4. Billing Determinants (old)'!$B$19:$N$41,4,0)/'4. Billing Determinants (old)'!$E$41*$D8,IF($E8="kW",VLOOKUP(K$4,'4. Billing Determinants (old)'!$B$19:$N$41,5,0)/'4. Billing Determinants (old)'!$F$41*$D8,IF($E8="Non-RPP kWh",VLOOKUP(K$4,'4. Billing Determinants (old)'!$B$19:$N$41,6,0)/'4. Billing Determinants (old)'!$G$41*$D8,IF($E8="Distribution Rev.",VLOOKUP(K$4,'4. Billing Determinants (old)'!$B$19:$N$41,8,0)/'4. Billing Determinants (old)'!$I$41*$D8, VLOOKUP(K$4,'4. Billing Determinants (old)'!$B$19:$N$41,3,0)/'4. Billing Determinants (old)'!$D$41*$D8))))) -> 0 | L8: =IF(L$4="",0,IF($E8="kWh",VLOOKUP(L$4,'4. Billing Determinants (old)'!$B$19:$N$41,4,0)/'4. Billing Determinants (old)'!$E$41*$D8,IF($E8="kW",VLOOKUP(L$4,'4. Billing Determinants (old)'!$B$19:$N$41,5,0)/'4. Billing Determinants (old)'!$F$41*$D8,IF($E8="Non-RPP kWh",VLOOKUP(L$4,'4. Billing Determinants (old)'!$B$19:$N$41,6,0)/'4. Billing Determinants (old)'!$G$41*$D8,IF($E8="Distribution Rev.",VLOOKUP(L$4,'4. Billing Determinants (old)'!$B$19:$N$41,8,0)/'4. Billing Determinants (old)'!$I$41*$D8, VLOOKUP(L$4,'4. Billing Determinants (old)'!$B$19:$N$41,3,0)/'4. Billing Determinants (old)'!$D$41*$D8))))) -> 0 | M8: =IF(M$4="",0,IF($E8="kWh",VLOOKUP(M$4,'4. Billing Determinants (old)'!$B$19:$N$41,4,0)/'4. Billing Determinants (old)'!$E$41*$D8,IF($E8="kW",VLOOKUP(M$4,'4. Billing Determinants (old)'!$B$19:$N$41,5,0)/'4. Billing Determinants (old)'!$F$41*$D8,IF($E8="Non-RPP kWh",VLOOKUP(M$4,'4. Billing Determinants (old)'!$B$19:$N$41,6,0)/'4. Billing Determinants (old)'!$G$41*$D8,IF($E8="Distribution Rev.",VLOOKUP(M$4,'4. Billing Determinants (old)'!$B$19:$N$41,8,0)/'4. Billing Determinants (old)'!$I$41*$D8, VLOOKUP(M$4,'4. Billing Determinants (old)'!$B$19:$N$41,3,0)/'4. Billing Determinants (old)'!$D$41*$D8))))) -> 0 | N8: =IF(N$4="",0,IF($E8="kWh",VLOOKUP(N$4,'4. Billing Determinants (old)'!$B$19:$N$41,4,0)/'4. Billing Determinants (old)'!$E$41*$D8,IF($E8="kW",VLOOKUP(N$4,'4. Billing Determinants (old)'!$B$19:$N$41,5,0)/'4. Billing Determinants (old)'!$F$41*$D8,IF($E8="Non-RPP kWh",VLOOKUP(N$4,'4. Billing Determinants (old)'!$B$19:$N$41,6,0)/'4. Billing Determinants (old)'!$G$41*$D8,IF($E8="Distribution Rev.",VLOOKUP(N$4,'4. Billing Determinants (old)'!$B$19:$N$41,8,0)/'4. Billing Determinants (old)'!$I$41*$D8, VLOOKUP(N$4,'4. Billing Determinants (old)'!$B$19:$N$41,3,0)/'4. Billing Determinants (old)'!$D$41*$D8))))) -> 0 | O8: =IF(O$4="",0,IF($E8="kWh",VLOOKUP(O$4,'4. Billing Determinants (old)'!$B$19:$N$41,4,0)/'4. Billing Determinants (old)'!$E$41*$D8,IF($E8="kW",VLOOKUP(O$4,'4. Billing Determinants (old)'!$B$19:$N$41,5,0)/'4. Billing Determinants (old)'!$F$41*$D8,IF($E8="Non-RPP kWh",VLOOKUP(O$4,'4. Billing Determinants (old)'!$B$19:$N$41,6,0)/'4. Billing Determinants (old)'!$G$41*$D8,IF($E8="Distribution Rev.",VLOOKUP(O$4,'4. Billing Determinants (old)'!$B$19:$N$41,8,0)/'4. Billing Determinants (old)'!$I$41*$D8, VLOOKUP(O$4,'4. Billing Determinants (old)'!$B$19:$N$41,3,0)/'4. Billing Determinants (old)'!$D$41*$D8))))) -> 0 | P8: =IF(P$4="",0,IF($E8="kWh",VLOOKUP(P$4,'4. Billing Determinants (old)'!$B$19:$N$41,4,0)/'4. Billing Determinants (old)'!$E$41*$D8,IF($E8="kW",VLOOKUP(P$4,'4. Billing Determinants (old)'!$B$19:$N$41,5,0)/'4. Billing Determinants (old)'!$F$41*$D8,IF($E8="Non-RPP kWh",VLOOKUP(P$4,'4. Billing Determinants (old)'!$B$19:$N$41,6,0)/'4. Billing Determinants (old)'!$G$41*$D8,IF($E8="Distribution Rev.",VLOOKUP(P$4,'4. Billing Determinants (old)'!$B$19:$N$41,8,0)/'4. Billing Determinants (old)'!$I$41*$D8, VLOOKUP(P$4,'4. Billing Determinants (old)'!$B$19:$N$41,3,0)/'4. Billing Determinants (old)'!$D$41*$D8))))) -> 0 | Q8: =IF(Q$4="",0,IF($E8="kWh",VLOOKUP(Q$4,'4. Billing Determinants (old)'!$B$19:$N$41,4,0)/'4. Billing Determinants (old)'!$E$41*$D8,IF($E8="kW",VLOOKUP(Q$4,'4. Billing Determinants (old)'!$B$19:$N$41,5,0)/'4. Billing Determinants (old)'!$F$41*$D8,IF($E8="Non-RPP kWh",VLOOKUP(Q$4,'4. Billing Determinants (old)'!$B$19:$N$41,6,0)/'4. Billing Determinants (old)'!$G$41*$D8,IF($E8="Distribution Rev.",VLOOKUP(Q$4,'4. Billing Determinants (old)'!$B$19:$N$41,8,0)/'4. Billing Determinants (old)'!$I$41*$D8, VLOOKUP(Q$4,'4. Billing Determinants (old)'!$B$19:$N$41,3,0)/'4. Billing Determinants (old)'!$D$41*$D8))))) -> 0 | R8: =IF(R$4="",0,IF($E8="kWh",VLOOKUP(R$4,'4. Billing Determinants (old)'!$B$19:$N$41,4,0)/'4. Billing Determinants (old)'!$E$41*$D8,IF($E8="kW",VLOOKUP(R$4,'4. Billing Determinants (old)'!$B$19:$N$41,5,0)/'4. Billing Determinants (old)'!$F$41*$D8,IF($E8="Non-RPP kWh",VLOOKUP(R$4,'4. Billing Determinants (old)'!$B$19:$N$41,6,0)/'4. Billing Determinants (old)'!$G$41*$D8,IF($E8="Distribution Rev.",VLOOKUP(R$4,'4. Billing Determinants (old)'!$B$19:$N$41,8,0)/'4. Billing Determinants (old)'!$I$41*$D8, VLOOKUP(R$4,'4. Billing Determinants (old)'!$B$19:$N$41,3,0)/'4. Billing Determinants (old)'!$D$41*$D8))))) -> 0 | S8: =IF(S$4="",0,IF($E8="kWh",VLOOKUP(S$4,'4. Billing Determinants (old)'!$B$19:$N$41,4,0)/'4. Billing Determinants (old)'!$E$41*$D8,IF($E8="kW",VLOOKUP(S$4,'4. Billing Determinants (old)'!$B$19:$N$41,5,0)/'4. Billing Determinants (old)'!$F$41*$D8,IF($E8="Non-RPP kWh",VLOOKUP(S$4,'4. Billing Determinants (old)'!$B$19:$N$41,6,0)/'4. Billing Determinants (old)'!$G$41*$D8,IF($E8="Distribution Rev.",VLOOKUP(S$4,'4. Billing Determinants (old)'!$B$19:$N$41,8,0)/'4. Billing Determinants (old)'!$I$41*$D8, VLOOKUP(S$4,'4. Billing Determinants (old)'!$B$19:$N$41,3,0)/'4. Billing Determinants (old)'!$D$41*$D8))))) -> 0 | T8: =IF(T$4="",0,IF($E8="kWh",VLOOKUP(T$4,'4. Billing Determinants (old)'!$B$19:$N$41,4,0)/'4. Billing Determinants (old)'!$E$41*$D8,IF($E8="kW",VLOOKUP(T$4,'4. Billing Determinants (old)'!$B$19:$N$41,5,0)/'4. Billing Determinants (old)'!$F$41*$D8,IF($E8="Non-RPP kWh",VLOOKUP(T$4,'4. Billing Determinants (old)'!$B$19:$N$41,6,0)/'4. Billing Determinants (old)'!$G$41*$D8,IF($E8="Distribution Rev.",VLOOKUP(T$4,'4. Billing Determinants (old)'!$B$19:$N$41,8,0)/'4. Billing Determinants (old)'!$I$41*$D8, VLOOKUP(T$4,'4. Billing Determinants (old)'!$B$19:$N$41,3,0)/'4. Billing Determinants (old)'!$D$41*$D8))))) -> 0 | U8: =IF(U$4="",0,IF($E8="kWh",VLOOKUP(U$4,'4. Billing Determinants (old)'!$B$19:$N$41,4,0)/'4. Billing Determinants (old)'!$E$41*$D8,IF($E8="kW",VLOOKUP(U$4,'4. Billing Determinants (old)'!$B$19:$N$41,5,0)/'4. Billing Determinants (old)'!$F$41*$D8,IF($E8="Non-RPP kWh",VLOOKUP(U$4,'4. Billing Determinants (old)'!$B$19:$N$41,6,0)/'4. Billing Determinants (old)'!$G$41*$D8,IF($E8="Distribution Rev.",VLOOKUP(U$4,'4. Billing Determinants (old)'!$B$19:$N$41,8,0)/'4. Billing Determinants (old)'!$I$41*$D8, VLOOKUP(U$4,'4. Billing Determinants (old)'!$B$19:$N$41,3,0)/'4. Billing Determinants (old)'!$D$41*$D8))))) -> 0 | V8: =IF(V$4="",0,IF($E8="kWh",VLOOKUP(V$4,'4. Billing Determinants (old)'!$B$19:$N$41,4,0)/'4. Billing Determinants (old)'!$E$41*$D8,IF($E8="kW",VLOOKUP(V$4,'4. Billing Determinants (old)'!$B$19:$N$41,5,0)/'4. Billing Determinants (old)'!$F$41*$D8,IF($E8="Non-RPP kWh",VLOOKUP(V$4,'4. Billing Determinants (old)'!$B$19:$N$41,6,0)/'4. Billing Determinants (old)'!$G$41*$D8,IF($E8="Distribution Rev.",VLOOKUP(V$4,'4. Billing Determinants (old)'!$B$19:$N$41,8,0)/'4. Billing Determinants (old)'!$I$41*$D8, VLOOKUP(V$4,'4. Billing Determinants (old)'!$B$19:$N$41,3,0)/'4. Billing Determinants (old)'!$D$41*$D8))))) -> 0 | W8: =IF(W$4="",0,IF($E8="kWh",VLOOKUP(W$4,'4. Billing Determinants (old)'!$B$19:$N$41,4,0)/'4. Billing Determinants (old)'!$E$41*$D8,IF($E8="kW",VLOOKUP(W$4,'4. Billing Determinants (old)'!$B$19:$N$41,5,0)/'4. Billing Determinants (old)'!$F$41*$D8,IF($E8="Non-RPP kWh",VLOOKUP(W$4,'4. Billing Determinants (old)'!$B$19:$N$41,6,0)/'4. Billing Determinants (old)'!$G$41*$D8,IF($E8="Distribution Rev.",VLOOKUP(W$4,'4. Billing Determinants (old)'!$B$19:$N$41,8,0)/'4. Billing Determinants (old)'!$I$41*$D8, VLOOKUP(W$4,'4. Billing Determinants (old)'!$B$19:$N$41,3,0)/'4. Billing Determinants (old)'!$D$41*$D8))))) -> 0 | X8: =IF(X$4="",0,IF($E8="kWh",VLOOKUP(X$4,'4. Billing Determinants (old)'!$B$19:$N$41,4,0)/'4. Billing Determinants (old)'!$E$41*$D8,IF($E8="kW",VLOOKUP(X$4,'4. Billing Determinants (old)'!$B$19:$N$41,5,0)/'4. Billing Determinants (old)'!$F$41*$D8,IF($E8="Non-RPP kWh",VLOOKUP(X$4,'4. Billing Determinants (old)'!$B$19:$N$41,6,0)/'4. Billing Determinants (old)'!$G$41*$D8,IF($E8="Distribution Rev.",VLOOKUP(X$4,'4. Billing Determinants (old)'!$B$19:$N$41,8,0)/'4. Billing Determinants (old)'!$I$41*$D8, VLOOKUP(X$4,'4. Billing Determinants (old)'!$B$19:$N$41,3,0)/'4. Billing Determinants (old)'!$D$41*$D8))))) -> 0 | Y8: =IF(Y$4="",0,IF($E8="kWh",VLOOKUP(Y$4,'4. Billing Determinants (old)'!$B$19:$N$41,4,0)/'4. Billing Determinants (old)'!$E$41*$D8,IF($E8="kW",VLOOKUP(Y$4,'4. Billing Determinants (old)'!$B$19:$N$41,5,0)/'4. Billing Determinants (old)'!$F$41*$D8,IF($E8="Non-RPP kWh",VLOOKUP(Y$4,'4. Billing Determinants (old)'!$B$19:$N$41,6,0)/'4. Billing Determinants (old)'!$G$41*$D8,IF($E8="Distribution Rev.",VLOOKUP(Y$4,'4. Billing Determinants (old)'!$B$19:$N$41,8,0)/'4. Billing Determinants (old)'!$I$41*$D8, VLOOKUP(Y$4,'4. Billing Determinants (old)'!$B$19:$N$41,3,0)/'4. Billing Determinants (old)'!$D$41*$D8))))) -> 0
B9: RSVA - Power (excluding Global Adjustment) | C9: 1588 | D9: ='2. 2013 Continuity Schedule'!CG29 -> -3847663.356 | E9: kWh | F9: =IF(F$4="",0,IF($E9="kWh",VLOOKUP(F$4,'4. Billing Determinants (old)'!$B$19:$N$41,4,0)/'4. Billing Determinants (old)'!$E$41*$D9,IF($E9="kW",VLOOKUP(F$4,'4. Billing Determinants (old)'!$B$19:$N$41,5,0)/'4. Billing Determinants (old)'!$F$41*$D9,IF($E9="Non-RPP kWh",VLOOKUP(F$4,'4. Billing Determinants (old)'!$B$19:$N$41,6,0)/'4. Billing Determinants (old)'!$G$41*$D9,IF($E9="Distribution Rev.",VLOOKUP(F$4,'4. Billing Determinants (old)'!$B$19:$N$41,8,0)/'4. Billing Determinants (old)'!$I$41*$D9, VLOOKUP(F$4,'4. Billing Determinants (old)'!$B$19:$N$41,3,0)/'4. Billing Determinants (old)'!$D$41*$D9))))) -> 0 | G9: =IF(G$4="",0,IF($E9="kWh",VLOOKUP(G$4,'4. Billing Determinants (old)'!$B$19:$N$41,4,0)/'4. Billing Determinants (old)'!$E$41*$D9,IF($E9="kW",VLOOKUP(G$4,'4. Billing Determinants (old)'!$B$19:$N$41,5,0)/'4. Billing Determinants (old)'!$F$41*$D9,IF($E9="Non-RPP kWh",VLOOKUP(G$4,'4. Billing Determinants (old)'!$B$19:$N$41,6,0)/'4. Billing Determinants (old)'!$G$41*$D9,IF($E9="Distribution Rev.",VLOOKUP(G$4,'4. Billing Determinants (old)'!$B$19:$N$41,8,0)/'4. Billing Determinants (old)'!$I$41*$D9, VLOOKUP(G$4,'4. Billing Determinants (old)'!$B$19:$N$41,3,0)/'4. Billing Determinants (old)'!$D$41*$D9))))) -> 0 | H9: =IF(H$4="",0,IF($E9="kWh",VLOOKUP(H$4,'4. Billing Determinants (old)'!$B$19:$N$41,4,0)/'4. Billing Determinants (old)'!$E$41*$D9,IF($E9="kW",VLOOKUP(H$4,'4. Billing Determinants (old)'!$B$19:$N$41,5,0)/'4. Billing Determinants (old)'!$F$41*$D9,IF($E9="Non-RPP kWh",VLOOKUP(H$4,'4. Billing Determinants (old)'!$B$19:$N$41,6,0)/'4. Billing Determinants (old)'!$G$41*$D9,IF($E9="Distribution Rev.",VLOOKUP(H$4,'4. Billing Determinants (old)'!$B$19:$N$41,8,0)/'4. Billing Determinants (old)'!$I$41*$D9, VLOOKUP(H$4,'4. Billing Determinants (old)'!$B$19:$N$41,3,0)/'4. Billing Determinants (old)'!$D$41*$D9))))) -> 0 | I9: =IF(I$4="",0,IF($E9="kWh",VLOOKUP(I$4,'4. Billing Determinants (old)'!$B$19:$N$41,4,0)/'4. Billing Determinants (old)'!$E$41*$D9,IF($E9="kW",VLOOKUP(I$4,'4. Billing Determinants (old)'!$B$19:$N$41,5,0)/'4. Billing Determinants (old)'!$F$41*$D9,IF($E9="Non-RPP kWh",VLOOKUP(I$4,'4. Billing Determinants (old)'!$B$19:$N$41,6,0)/'4. Billing Determinants (old)'!$G$41*$D9,IF($E9="Distribution Rev.",VLOOKUP(I$4,'4. Billing Determinants (old)'!$B$19:$N$41,8,0)/'4. Billing Determinants (old)'!$I$41*$D9, VLOOKUP(I$4,'4. Billing Determinants (old)'!$B$19:$N$41,3,0)/'4. Billing Determinants (old)'!$D$41*$D9))))) -> 0 | J9: =IF(J$4="",0,IF($E9="kWh",VLOOKUP(J$4,'4. Billing Determinants (old)'!$B$19:$N$41,4,0)/'4. Billing Determinants (old)'!$E$41*$D9,IF($E9="kW",VLOOKUP(J$4,'4. Billing Determinants (old)'!$B$19:$N$41,5,0)/'4. Billing Determinants (old)'!$F$41*$D9,IF($E9="Non-RPP kWh",VLOOKUP(J$4,'4. Billing Determinants (old)'!$B$19:$N$41,6,0)/'4. Billing Determinants (old)'!$G$41*$D9,IF($E9="Distribution Rev.",VLOOKUP(J$4,'4. Billing Determinants (old)'!$B$19:$N$41,8,0)/'4. Billing Determinants (old)'!$I$41*$D9, VLOOKUP(J$4,'4. Billing Determinants (old)'!$B$19:$N$41,3,0)/'4. Billing Determinants (old)'!$D$41*$D9))))) -> 0 | K9: =IF(K$4="",0,IF($E9="kWh",VLOOKUP(K$4,'4. Billing Determinants (old)'!$B$19:$N$41,4,0)/'4. Billing Determinants (old)'!$E$41*$D9,IF($E9="kW",VLOOKUP(K$4,'4. Billing Determinants (old)'!$B$19:$N$41,5,0)/'4. Billing Determinants (old)'!$F$41*$D9,IF($E9="Non-RPP kWh",VLOOKUP(K$4,'4. Billing Determinants (old)'!$B$19:$N$41,6,0)/'4. Billing Determinants (old)'!$G$41*$D9,IF($E9="Distribution Rev.",VLOOKUP(K$4,'4. Billing Determinants (old)'!$B$19:$N$41,8,0)/'4. Billing Determinants (old)'!$I$41*$D9, VLOOKUP(K$4,'4. Billing Determinants (old)'!$B$19:$N$41,3,0)/'4. Billing Determinants (old)'!$D$41*$D9))))) -> 0 | L9: =IF(L$4="",0,IF($E9="kWh",VLOOKUP(L$4,'4. Billing Determinants (old)'!$B$19:$N$41,4,0)/'4. Billing Determinants (old)'!$E$41*$D9,IF($E9="kW",VLOOKUP(L$4,'4. Billing Determinants (old)'!$B$19:$N$41,5,0)/'4. Billing Determinants (old)'!$F$41*$D9,IF($E9="Non-RPP kWh",VLOOKUP(L$4,'4. Billing Determinants (old)'!$B$19:$N$41,6,0)/'4. Billing Determinants (old)'!$G$41*$D9,IF($E9="Distribution Rev.",VLOOKUP(L$4,'4. Billing Determinants (old)'!$B$19:$N$41,8,0)/'4. Billing Determinants (old)'!$I$41*$D9, VLOOKUP(L$4,'4. Billing Determinants (old)'!$B$19:$N$41,3,0)/'4. Billing Determinants (old)'!$D$41*$D9))))) -> 0 | M9: =IF(M$4="",0,IF($E9="kWh",VLOOKUP(M$4,'4. Billing Determinants (old)'!$B$19:$N$41,4,0)/'4. Billing Determinants (old)'!$E$41*$D9,IF($E9="kW",VLOOKUP(M$4,'4. Billing Determinants (old)'!$B$19:$N$41,5,0)/'4. Billing Determinants (old)'!$F$41*$D9,IF($E9="Non-RPP kWh",VLOOKUP(M$4,'4. Billing Determinants (old)'!$B$19:$N$41,6,0)/'4. Billing Determinants (old)'!$G$41*$D9,IF($E9="Distribution Rev.",VLOOKUP(M$4,'4. Billing Determinants (old)'!$B$19:$N$41,8,0)/'4. Billing Determinants (old)'!$I$41*$D9, VLOOKUP(M$4,'4. Billing Determinants (old)'!$B$19:$N$41,3,0)/'4. Billing Determinants (old)'!$D$41*$D9))))) -> 0 | N9: =IF(N$4="",0,IF($E9="kWh",VLOOKUP(N$4,'4. Billing Determinants (old)'!$B$19:$N$41,4,0)/'4. Billing Determinants (old)'!$E$41*$D9,IF($E9="kW",VLOOKUP(N$4,'4. Billing Determinants (old)'!$B$19:$N$41,5,0)/'4. Billing Determinants (old)'!$F$41*$D9,IF($E9="Non-RPP kWh",VLOOKUP(N$4,'4. Billing Determinants (old)'!$B$19:$N$41,6,0)/'4. Billing Determinants (old)'!$G$41*$D9,IF($E9="Distribution Rev.",VLOOKUP(N$4,'4. Billing Determinants (old)'!$B$19:$N$41,8,0)/'4. Billing Determinants (old)'!$I$41*$D9, VLOOKUP(N$4,'4. Billing Determinants (old)'!$B$19:$N$41,3,0)/'4. Billing Determinants (old)'!$D$41*$D9))))) -> 0 | O9: =IF(O$4="",0,IF($E9="kWh",VLOOKUP(O$4,'4. Billing Determinants (old)'!$B$19:$N$41,4,0)/'4. Billing Determinants (old)'!$E$41*$D9,IF($E9="kW",VLOOKUP(O$4,'4. Billing Determinants (old)'!$B$19:$N$41,5,0)/'4. Billing Determinants (old)'!$F$41*$D9,IF($E9="Non-RPP kWh",VLOOKUP(O$4,'4. Billing Determinants (old)'!$B$19:$N$41,6,0)/'4. Billing Determinants (old)'!$G$41*$D9,IF($E9="Distribution Rev.",VLOOKUP(O$4,'4. Billing Determinants (old)'!$B$19:$N$41,8,0)/'4. Billing Determinants (old)'!$I$41*$D9, VLOOKUP(O$4,'4. Billing Determinants (old)'!$B$19:$N$41,3,0)/'4. Billing Determinants (old)'!$D$41*$D9))))) -> 0 | P9: =IF(P$4="",0,IF($E9="kWh",VLOOKUP(P$4,'4. Billing Determinants (old)'!$B$19:$N$41,4,0)/'4. Billing Determinants (old)'!$E$41*$D9,IF($E9="kW",VLOOKUP(P$4,'4. Billing Determinants (old)'!$B$19:$N$41,5,0)/'4. Billing Determinants (old)'!$F$41*$D9,IF($E9="Non-RPP kWh",VLOOKUP(P$4,'4. Billing Determinants (old)'!$B$19:$N$41,6,0)/'4. Billing Determinants (old)'!$G$41*$D9,IF($E9="Distribution Rev.",VLOOKUP(P$4,'4. Billing Determinants (old)'!$B$19:$N$41,8,0)/'4. Billing Determinants (old)'!$I$41*$D9, VLOOKUP(P$4,'4. Billing Determinants (old)'!$B$19:$N$41,3,0)/'4. Billing Determinants (old)'!$D$41*$D9))))) -> 0 | Q9: =IF(Q$4="",0,IF($E9="kWh",VLOOKUP(Q$4,'4. Billing Determinants (old)'!$B$19:$N$41,4,0)/'4. Billing Determinants (old)'!$E$41*$D9,IF($E9="kW",VLOOKUP(Q$4,'4. Billing Determinants (old)'!$B$19:$N$41,5,0)/'4. Billing Determinants (old)'!$F$41*$D9,IF($E9="Non-RPP kWh",VLOOKUP(Q$4,'4. Billing Determinants (old)'!$B$19:$N$41,6,0)/'4. Billing Determinants (old)'!$G$41*$D9,IF($E9="Distribution Rev.",VLOOKUP(Q$4,'4. Billing Determinants (old)'!$B$19:$N$41,8,0)/'4. Billing Determinants (old)'!$I$41*$D9, VLOOKUP(Q$4,'4. Billing Determinants (old)'!$B$19:$N$41,3,0)/'4. Billing Determinants (old)'!$D$41*$D9))))) -> 0 | R9: =IF(R$4="",0,IF($E9="kWh",VLOOKUP(R$4,'4. Billing Determinants (old)'!$B$19:$N$41,4,0)/'4. Billing Determinants (old)'!$E$41*$D9,IF($E9="kW",VLOOKUP(R$4,'4. Billing Determinants (old)'!$B$19:$N$41,5,0)/'4. Billing Determinants (old)'!$F$41*$D9,IF($E9="Non-RPP kWh",VLOOKUP(R$4,'4. Billing Determinants (old)'!$B$19:$N$41,6,0)/'4. Billing Determinants (old)'!$G$41*$D9,IF($E9="Distribution Rev.",VLOOKUP(R$4,'4. Billing Determinants (old)'!$B$19:$N$41,8,0)/'4. Billing Determinants (old)'!$I$41*$D9, VLOOKUP(R$4,'4. Billing Determinants (old)'!$B$19:$N$41,3,0)/'4. Billing Determinants (old)'!$D$41*$D9))))) -> 0 | S9: =IF(S$4="",0,IF($E9="kWh",VLOOKUP(S$4,'4. Billing Determinants (old)'!$B$19:$N$41,4,0)/'4. Billing Determinants (old)'!$E$41*$D9,IF($E9="kW",VLOOKUP(S$4,'4. Billing Determinants (old)'!$B$19:$N$41,5,0)/'4. Billing Determinants (old)'!$F$41*$D9,IF($E9="Non-RPP kWh",VLOOKUP(S$4,'4. Billing Determinants (old)'!$B$19:$N$41,6,0)/'4. Billing Determinants (old)'!$G$41*$D9,IF($E9="Distribution Rev.",VLOOKUP(S$4,'4. Billing Determinants (old)'!$B$19:$N$41,8,0)/'4. Billing Determinants (old)'!$I$41*$D9, VLOOKUP(S$4,'4. Billing Determinants (old)'!$B$19:$N$41,3,0)/'4. Billing Determinants (old)'!$D$41*$D9))))) -> 0 | T9: =IF(T$4="",0,IF($E9="kWh",VLOOKUP(T$4,'4. Billing Determinants (old)'!$B$19:$N$41,4,0)/'4. Billing Determinants (old)'!$E$41*$D9,IF($E9="kW",VLOOKUP(T$4,'4. Billing Determinants (old)'!$B$19:$N$41,5,0)/'4. Billing Determinants (old)'!$F$41*$D9,IF($E9="Non-RPP kWh",VLOOKUP(T$4,'4. Billing Determinants (old)'!$B$19:$N$41,6,0)/'4. Billing Determinants (old)'!$G$41*$D9,IF($E9="Distribution Rev.",VLOOKUP(T$4,'4. Billing Determinants (old)'!$B$19:$N$41,8,0)/'4. Billing Determinants (old)'!$I$41*$D9, VLOOKUP(T$4,'4. Billing Determinants (old)'!$B$19:$N$41,3,0)/'4. Billing Determinants (old)'!$D$41*$D9))))) -> 0 | U9: =IF(U$4="",0,IF($E9="kWh",VLOOKUP(U$4,'4. Billing Determinants (old)'!$B$19:$N$41,4,0)/'4. Billing Determinants (old)'!$E$41*$D9,IF($E9="kW",VLOOKUP(U$4,'4. Billing Determinants (old)'!$B$19:$N$41,5,0)/'4. Billing Determinants (old)'!$F$41*$D9,IF($E9="Non-RPP kWh",VLOOKUP(U$4,'4. Billing Determinants (old)'!$B$19:$N$41,6,0)/'4. Billing Determinants (old)'!$G$41*$D9,IF($E9="Distribution Rev.",VLOOKUP(U$4,'4. Billing Determinants (old)'!$B$19:$N$41,8,0)/'4. Billing Determinants (old)'!$I$41*$D9, VLOOKUP(U$4,'4. Billing Determinants (old)'!$B$19:$N$41,3,0)/'4. Billing Determinants (old)'!$D$41*$D9))))) -> 0 | V9: =IF(V$4="",0,IF($E9="kWh",VLOOKUP(V$4,'4. Billing Determinants (old)'!$B$19:$N$41,4,0)/'4. Billing Determinants (old)'!$E$41*$D9,IF($E9="kW",VLOOKUP(V$4,'4. Billing Determinants (old)'!$B$19:$N$41,5,0)/'4. Billing Determinants (old)'!$F$41*$D9,IF($E9="Non-RPP kWh",VLOOKUP(V$4,'4. Billing Determinants (old)'!$B$19:$N$41,6,0)/'4. Billing Determinants (old)'!$G$41*$D9,IF($E9="Distribution Rev.",VLOOKUP(V$4,'4. Billing Determinants (old)'!$B$19:$N$41,8,0)/'4. Billing Determinants (old)'!$I$41*$D9, VLOOKUP(V$4,'4. Billing Determinants (old)'!$B$19:$N$41,3,0)/'4. Billing Determinants (old)'!$D$41*$D9))))) -> 0 | W9: =IF(W$4="",0,IF($E9="kWh",VLOOKUP(W$4,'4. Billing Determinants (old)'!$B$19:$N$41,4,0)/'4. Billing Determinants (old)'!$E$41*$D9,IF($E9="kW",VLOOKUP(W$4,'4. Billing Determinants (old)'!$B$19:$N$41,5,0)/'4. Billing Determinants (old)'!$F$41*$D9,IF($E9="Non-RPP kWh",VLOOKUP(W$4,'4. Billing Determinants (old)'!$B$19:$N$41,6,0)/'4. Billing Determinants (old)'!$G$41*$D9,IF($E9="Distribution Rev.",VLOOKUP(W$4,'4. Billing Determinants (old)'!$B$19:$N$41,8,0)/'4. Billing Determinants (old)'!$I$41*$D9, VLOOKUP(W$4,'4. Billing Determinants (old)'!$B$19:$N$41,3,0)/'4. Billing Determinants (old)'!$D$41*$D9))))) -> 0 | X9: =IF(X$4="",0,IF($E9="kWh",VLOOKUP(X$4,'4. Billing Determinants (old)'!$B$19:$N$41,4,0)/'4. Billing Determinants (old)'!$E$41*$D9,IF($E9="kW",VLOOKUP(X$4,'4. Billing Determinants (old)'!$B$19:$N$41,5,0)/'4. Billing Determinants (old)'!$F$41*$D9,IF($E9="Non-RPP kWh",VLOOKUP(X$4,'4. Billing Determinants (old)'!$B$19:$N$41,6,0)/'4. Billing Determinants (old)'!$G$41*$D9,IF($E9="Distribution Rev.",VLOOKUP(X$4,'4. Billing Determinants (old)'!$B$19:$N$41,8,0)/'4. Billing Determinants (old)'!$I$41*$D9, VLOOKUP(X$4,'4. Billing Determinants (old)'!$B$19:$N$41,3,0)/'4. Billing Determinants (old)'!$D$41*$D9))))) -> 0 | Y9: =IF(Y$4="",0,IF($E9="kWh",VLOOKUP(Y$4,'4. Billing Determinants (old)'!$B$19:$N$41,4,0)/'4. Billing Determinants (old)'!$E$41*$D9,IF($E9="kW",VLOOKUP(Y$4,'4. Billing Determinants (old)'!$B$19:$N$41,5,0)/'4. Billing Determinants (old)'!$F$41*$D9,IF($E9="Non-RPP kWh",VLOOKUP(Y$4,'4. Billing Determinants (old)'!$B$19:$N$41,6,0)/'4. Billing Determinants (old)'!$G$41*$D9,IF($E9="Distribution Rev.",VLOOKUP(Y$4,'4. Billing Determinants (old)'!$B$19:$N$41,8,0)/'4. Billing Determinants (old)'!$I$41*$D9, VLOOKUP(Y$4,'4. Billing Determinants (old)'!$B$19:$N$41,3,0)/'4. Billing Determinants (old)'!$D$41*$D9))))) -> 0
B10: RSVA - Power - Sub-account - Global Adjustment | C10: 1588 | D10: ='2. 2013 Continuity Schedule'!CG30 -> 3086846.531 | E10: Non-RPP kWh | F10: =IF(F$4="",0,IF($E10="kWh",VLOOKUP(F$4,'4. Billing Determinants (old)'!$B$19:$N$41,4,0)/'4. Billing Determinants (old)'!$E$41*$D10,IF($E10="kW",VLOOKUP(F$4,'4. Billing Determinants (old)'!$B$19:$N$41,5,0)/'4. Billing Determinants (old)'!$F$41*$D10,IF($E10="Non-RPP kWh",VLOOKUP(F$4,'4. Billing Determinants (old)'!$B$19:$N$41,6,0)/'4. Billing Determinants (old)'!$G$41*$D10,IF($E10="Distribution Rev.",VLOOKUP(F$4,'4. Billing Determinants (old)'!$B$19:$N$41,8,0)/'4. Billing Determinants (old)'!$I$41*$D10, VLOOKUP(F$4,'4. Billing Determinants (old)'!$B$19:$N$41,3,0)/'4. Billing Determinants (old)'!$D$41*$D10))))) -> 0 | G10: =IF(G$4="",0,IF($E10="kWh",VLOOKUP(G$4,'4. Billing Determinants (old)'!$B$19:$N$41,4,0)/'4. Billing Determinants (old)'!$E$41*$D10,IF($E10="kW",VLOOKUP(G$4,'4. Billing Determinants (old)'!$B$19:$N$41,5,0)/'4. Billing Determinants (old)'!$F$41*$D10,IF($E10="Non-RPP kWh",VLOOKUP(G$4,'4. Billing Determinants (old)'!$B$19:$N$41,6,0)/'4. Billing Determinants (old)'!$G$41*$D10,IF($E10="Distribution Rev.",VLOOKUP(G$4,'4. Billing Determinants (old)'!$B$19:$N$41,8,0)/'4. Billing Determinants (old)'!$I$41*$D10, VLOOKUP(G$4,'4. Billing Determinants (old)'!$B$19:$N$41,3,0)/'4. Billing Determinants (old)'!$D$41*$D10))))) -> 0 | H10: =IF(H$4="",0,IF($E10="kWh",VLOOKUP(H$4,'4. Billing Determinants (old)'!$B$19:$N$41,4,0)/'4. Billing Determinants (old)'!$E$41*$D10,IF($E10="kW",VLOOKUP(H$4,'4. Billing Determinants (old)'!$B$19:$N$41,5,0)/'4. Billing Determinants (old)'!$F$41*$D10,IF($E10="Non-RPP kWh",VLOOKUP(H$4,'4. Billing Determinants (old)'!$B$19:$N$41,6,0)/'4. Billing Determinants (old)'!$G$41*$D10,IF($E10="Distribution Rev.",VLOOKUP(H$4,'4. Billing Determinants (old)'!$B$19:$N$41,8,0)/'4. Billing Determinants (old)'!$I$41*$D10, VLOOKUP(H$4,'4. Billing Determinants (old)'!$B$19:$N$41,3,0)/'4. Billing Determinants (old)'!$D$41*$D10))))) -> 0 | I10: =IF(I$4="",0,IF($E10="kWh",VLOOKUP(I$4,'4. Billing Determinants (old)'!$B$19:$N$41,4,0)/'4. Billing Determinants (old)'!$E$41*$D10,IF($E10="kW",VLOOKUP(I$4,'4. Billing Determinants (old)'!$B$19:$N$41,5,0)/'4. Billing Determinants (old)'!$F$41*$D10,IF($E10="Non-RPP kWh",VLOOKUP(I$4,'4. Billing Determinants (old)'!$B$19:$N$41,6,0)/'4. Billing Determinants (old)'!$G$41*$D10,IF($E10="Distribution Rev.",VLOOKUP(I$4,'4. Billing Determinants (old)'!$B$19:$N$41,8,0)/'4. Billing Determinants (old)'!$I$41*$D10, VLOOKUP(I$4,'4. Billing Determinants (old)'!$B$19:$N$41,3,0)/'4. Billing Determinants (old)'!$D$41*$D10))))) -> 0 | J10: =IF(J$4="",0,IF($E10="kWh",VLOOKUP(J$4,'4. Billing Determinants (old)'!$B$19:$N$41,4,0)/'4. Billing Determinants (old)'!$E$41*$D10,IF($E10="kW",VLOOKUP(J$4,'4. Billing Determinants (old)'!$B$19:$N$41,5,0)/'4. Billing Determinants (old)'!$F$41*$D10,IF($E10="Non-RPP kWh",VLOOKUP(J$4,'4. Billing Determinants (old)'!$B$19:$N$41,6,0)/'4. Billing Determinants (old)'!$G$41*$D10,IF($E10="Distribution Rev.",VLOOKUP(J$4,'4. Billing Determinants (old)'!$B$19:$N$41,8,0)/'4. Billing Determinants (old)'!$I$41*$D10, VLOOKUP(J$4,'4. Billing Determinants (old)'!$B$19:$N$41,3,0)/'4. Billing Determinants (old)'!$D$41*$D10))))) -> 0 | K10: =IF(K$4="",0,IF($E10="kWh",VLOOKUP(K$4,'4. Billing Determinants (old)'!$B$19:$N$41,4,0)/'4. Billing Determinants (old)'!$E$41*$D10,IF($E10="kW",VLOOKUP(K$4,'4. Billing Determinants (old)'!$B$19:$N$41,5,0)/'4. Billing Determinants (old)'!$F$41*$D10,IF($E10="Non-RPP kWh",VLOOKUP(K$4,'4. Billing Determinants (old)'!$B$19:$N$41,6,0)/'4. Billing Determinants (old)'!$G$41*$D10,IF($E10="Distribution Rev.",VLOOKUP(K$4,'4. Billing Determinants (old)'!$B$19:$N$41,8,0)/'4. Billing Determinants (old)'!$I$41*$D10, VLOOKUP(K$4,'4. Billing Determinants (old)'!$B$19:$N$41,3,0)/'4. Billing Determinants (old)'!$D$41*$D10))))) -> 0 | L10: =IF(L$4="",0,IF($E10="kWh",VLOOKUP(L$4,'4. Billing Determinants (old)'!$B$19:$N$41,4,0)/'4. Billing Determinants (old)'!$E$41*$D10,IF($E10="kW",VLOOKUP(L$4,'4. Billing Determinants (old)'!$B$19:$N$41,5,0)/'4. Billing Determinants (old)'!$F$41*$D10,IF($E10="Non-RPP kWh",VLOOKUP(L$4,'4. Billing Determinants (old)'!$B$19:$N$41,6,0)/'4. Billing Determinants (old)'!$G$41*$D10,IF($E10="Distribution Rev.",VLOOKUP(L$4,'4. Billing Determinants (old)'!$B$19:$N$41,8,0)/'4. Billing Determinants (old)'!$I$41*$D10, VLOOKUP(L$4,'4. Billing Determinants (old)'!$B$19:$N$41,3,0)/'4. Billing Determinants (old)'!$D$41*$D10))))) -> 0 | M10: =IF(M$4="",0,IF($E10="kWh",VLOOKUP(M$4,'4. Billing Determinants (old)'!$B$19:$N$41,4,0)/'4. Billing Determinants (old)'!$E$41*$D10,IF($E10="kW",VLOOKUP(M$4,'4. Billing Determinants (old)'!$B$19:$N$41,5,0)/'4. Billing Determinants (old)'!$F$41*$D10,IF($E10="Non-RPP kWh",VLOOKUP(M$4,'4. Billing Determinants (old)'!$B$19:$N$41,6,0)/'4. Billing Determinants (old)'!$G$41*$D10,IF($E10="Distribution Rev.",VLOOKUP(M$4,'4. Billing Determinants (old)'!$B$19:$N$41,8,0)/'4. Billing Determinants (old)'!$I$41*$D10, VLOOKUP(M$4,'4. Billing Determinants (old)'!$B$19:$N$41,3,0)/'4. Billing Determinants (old)'!$D$41*$D10))))) -> 0 | N10: =IF(N$4="",0,IF($E10="kWh",VLOOKUP(N$4,'4. Billing Determinants (old)'!$B$19:$N$41,4,0)/'4. Billing Determinants (old)'!$E$41*$D10,IF($E10="kW",VLOOKUP(N$4,'4. Billing Determinants (old)'!$B$19:$N$41,5,0)/'4. Billing Determinants (old)'!$F$41*$D10,IF($E10="Non-RPP kWh",VLOOKUP(N$4,'4. Billing Determinants (old)'!$B$19:$N$41,6,0)/'4. Billing Determinants (old)'!$G$41*$D10,IF($E10="Distribution Rev.",VLOOKUP(N$4,'4. Billing Determinants (old)'!$B$19:$N$41,8,0)/'4. Billing Determinants (old)'!$I$41*$D10, VLOOKUP(N$4,'4. Billing Determinants (old)'!$B$19:$N$41,3,0)/'4. Billing Determinants (old)'!$D$41*$D10))))) -> 0 | O10: =IF(O$4="",0,IF($E10="kWh",VLOOKUP(O$4,'4. Billing Determinants (old)'!$B$19:$N$41,4,0)/'4. Billing Determinants (old)'!$E$41*$D10,IF($E10="kW",VLOOKUP(O$4,'4. Billing Determinants (old)'!$B$19:$N$41,5,0)/'4. Billing Determinants (old)'!$F$41*$D10,IF($E10="Non-RPP kWh",VLOOKUP(O$4,'4. Billing Determinants (old)'!$B$19:$N$41,6,0)/'4. Billing Determinants (old)'!$G$41*$D10,IF($E10="Distribution Rev.",VLOOKUP(O$4,'4. Billing Determinants (old)'!$B$19:$N$41,8,0)/'4. Billing Determinants (old)'!$I$41*$D10, VLOOKUP(O$4,'4. Billing Determinants (old)'!$B$19:$N$41,3,0)/'4. Billing Determinants (old)'!$D$41*$D10))))) -> 0 | P10: =IF(P$4="",0,IF($E10="kWh",VLOOKUP(P$4,'4. Billing Determinants (old)'!$B$19:$N$41,4,0)/'4. Billing Determinants (old)'!$E$41*$D10,IF($E10="kW",VLOOKUP(P$4,'4. Billing Determinants (old)'!$B$19:$N$41,5,0)/'4. Billing Determinants (old)'!$F$41*$D10,IF($E10="Non-RPP kWh",VLOOKUP(P$4,'4. Billing Determinants (old)'!$B$19:$N$41,6,0)/'4. Billing Determinants (old)'!$G$41*$D10,IF($E10="Distribution Rev.",VLOOKUP(P$4,'4. Billing Determinants (old)'!$B$19:$N$41,8,0)/'4. Billing Determinants (old)'!$I$41*$D10, VLOOKUP(P$4,'4. Billing Determinants (old)'!$B$19:$N$41,3,0)/'4. Billing Determinants (old)'!$D$41*$D10))))) -> 0 | Q10: =IF(Q$4="",0,IF($E10="kWh",VLOOKUP(Q$4,'4. Billing Determinants (old)'!$B$19:$N$41,4,0)/'4. Billing Determinants (old)'!$E$41*$D10,IF($E10="kW",VLOOKUP(Q$4,'4. Billing Determinants (old)'!$B$19:$N$41,5,0)/'4. Billing Determinants (old)'!$F$41*$D10,IF($E10="Non-RPP kWh",VLOOKUP(Q$4,'4. Billing Determinants (old)'!$B$19:$N$41,6,0)/'4. Billing Determinants (old)'!$G$41*$D10,IF($E10="Distribution Rev.",VLOOKUP(Q$4,'4. Billing Determinants (old)'!$B$19:$N$41,8,0)/'4. Billing Determinants (old)'!$I$41*$D10, VLOOKUP(Q$4,'4. Billing Determinants (old)'!$B$19:$N$41,3,0)/'4. Billing Determinants (old)'!$D$41*$D10))))) -> 0 | R10: =IF(R$4="",0,IF($E10="kWh",VLOOKUP(R$4,'4. Billing Determinants (old)'!$B$19:$N$41,4,0)/'4. Billing Determinants (old)'!$E$41*$D10,IF($E10="kW",VLOOKUP(R$4,'4. Billing Determinants (old)'!$B$19:$N$41,5,0)/'4. Billing Determinants (old)'!$F$41*$D10,IF($E10="Non-RPP kWh",VLOOKUP(R$4,'4. Billing Determinants (old)'!$B$19:$N$41,6,0)/'4. Billing Determinants (old)'!$G$41*$D10,IF($E10="Distribution Rev.",VLOOKUP(R$4,'4. Billing Determinants (old)'!$B$19:$N$41,8,0)/'4. Billing Determinants (old)'!$I$41*$D10, VLOOKUP(R$4,'4. Billing Determinants (old)'!$B$19:$N$41,3,0)/'4. Billing Determinants (old)'!$D$41*$D10))))) -> 0 | S10: =IF(S$4="",0,IF($E10="kWh",VLOOKUP(S$4,'4. Billing Determinants (old)'!$B$19:$N$41,4,0)/'4. Billing Determinants (old)'!$E$41*$D10,IF($E10="kW",VLOOKUP(S$4,'4. Billing Determinants (old)'!$B$19:$N$41,5,0)/'4. Billing Determinants (old)'!$F$41*$D10,IF($E10="Non-RPP kWh",VLOOKUP(S$4,'4. Billing Determinants (old)'!$B$19:$N$41,6,0)/'4. Billing Determinants (old)'!$G$41*$D10,IF($E10="Distribution Rev.",VLOOKUP(S$4,'4. Billing Determinants (old)'!$B$19:$N$41,8,0)/'4. Billing Determinants (old)'!$I$41*$D10, VLOOKUP(S$4,'4. Billing Determinants (old)'!$B$19:$N$41,3,0)/'4. Billing Determinants (old)'!$D$41*$D10))))) -> 0 | T10: =IF(T$4="",0,IF($E10="kWh",VLOOKUP(T$4,'4. Billing Determinants (old)'!$B$19:$N$41,4,0)/'4. Billing Determinants (old)'!$E$41*$D10,IF($E10="kW",VLOOKUP(T$4,'4. Billing Determinants (old)'!$B$19:$N$41,5,0)/'4. Billing Determinants (old)'!$F$41*$D10,IF($E10="Non-RPP kWh",VLOOKUP(T$4,'4. Billing Determinants (old)'!$B$19:$N$41,6,0)/'4. Billing Determinants (old)'!$G$41*$D10,IF($E10="Distribution Rev.",VLOOKUP(T$4,'4. Billing Determinants (old)'!$B$19:$N$41,8,0)/'4. Billing Determinants (old)'!$I$41*$D10, VLOOKUP(T$4,'4. Billing Determinants (old)'!$B$19:$N$41,3,0)/'4. Billing Determinants (old)'!$D$41*$D10))))) -> 0 | U10: =IF(U$4="",0,IF($E10="kWh",VLOOKUP(U$4,'4. Billing Determinants (old)'!$B$19:$N$41,4,0)/'4. Billing Determinants (old)'!$E$41*$D10,IF($E10="kW",VLOOKUP(U$4,'4. Billing Determinants (old)'!$B$19:$N$41,5,0)/'4. Billing Determinants (old)'!$F$41*$D10,IF($E10="Non-RPP kWh",VLOOKUP(U$4,'4. Billing Determinants (old)'!$B$19:$N$41,6,0)/'4. Billing Determinants (old)'!$G$41*$D10,IF($E10="Distribution Rev.",VLOOKUP(U$4,'4. Billing Determinants (old)'!$B$19:$N$41,8,0)/'4. Billing Determinants (old)'!$I$41*$D10, VLOOKUP(U$4,'4. Billing Determinants (old)'!$B$19:$N$41,3,0)/'4. Billing Determinants (old)'!$D$41*$D10))))) -> 0 | V10: =IF(V$4="",0,IF($E10="kWh",VLOOKUP(V$4,'4. Billing Determinants (old)'!$B$19:$N$41,4,0)/'4. Billing Determinants (old)'!$E$41*$D10,IF($E10="kW",VLOOKUP(V$4,'4. Billing Determinants (old)'!$B$19:$N$41,5,0)/'4. Billing Determinants (old)'!$F$41*$D10,IF($E10="Non-RPP kWh",VLOOKUP(V$4,'4. Billing Determinants (old)'!$B$19:$N$41,6,0)/'4. Billing Determinants (old)'!$G$41*$D10,IF($E10="Distribution Rev.",VLOOKUP(V$4,'4. Billing Determinants (old)'!$B$19:$N$41,8,0)/'4. Billing Determinants (old)'!$I$41*$D10, VLOOKUP(V$4,'4. Billing Determinants (old)'!$B$19:$N$41,3,0)/'4. Billing Determinants (old)'!$D$41*$D10))))) -> 0 | W10: =IF(W$4="",0,IF($E10="kWh",VLOOKUP(W$4,'4. Billing Determinants (old)'!$B$19:$N$41,4,0)/'4. Billing Determinants (old)'!$E$41*$D10,IF($E10="kW",VLOOKUP(W$4,'4. Billing Determinants (old)'!$B$19:$N$41,5,0)/'4. Billing Determinants (old)'!$F$41*$D10,IF($E10="Non-RPP kWh",VLOOKUP(W$4,'4. Billing Determinants (old)'!$B$19:$N$41,6,0)/'4. Billing Determinants (old)'!$G$41*$D10,IF($E10="Distribution Rev.",VLOOKUP(W$4,'4. Billing Determinants (old)'!$B$19:$N$41,8,0)/'4. Billing Determinants (old)'!$I$41*$D10, VLOOKUP(W$4,'4. Billing Determinants (old)'!$B$19:$N$41,3,0)/'4. Billing Determinants (old)'!$D$41*$D10))))) -> 0 | X10: =IF(X$4="",0,IF($E10="kWh",VLOOKUP(X$4,'4. Billing Determinants (old)'!$B$19:$N$41,4,0)/'4. Billing Determinants (old)'!$E$41*$D10,IF($E10="kW",VLOOKUP(X$4,'4. Billing Determinants (old)'!$B$19:$N$41,5,0)/'4. Billing Determinants (old)'!$F$41*$D10,IF($E10="Non-RPP kWh",VLOOKUP(X$4,'4. Billing Determinants (old)'!$B$19:$N$41,6,0)/'4. Billing Determinants (old)'!$G$41*$D10,IF($E10="Distribution Rev.",VLOOKUP(X$4,'4. Billing Determinants (old)'!$B$19:$N$41,8,0)/'4. Billing Determinants (old)'!$I$41*$D10, VLOOKUP(X$4,'4. Billing Determinants (old)'!$B$19:$N$41,3,0)/'4. Billing Determinants (old)'!$D$41*$D10))))) -> 0 | Y10: =IF(Y$4="",0,IF($E10="kWh",VLOOKUP(Y$4,'4. Billing Determinants (old)'!$B$19:$N$41,4,0)/'4. Billing Determinants (old)'!$E$41*$D10,IF($E10="kW",VLOOKUP(Y$4,'4. Billing Determinants (old)'!$B$19:$N$41,5,0)/'4. Billing Determinants (old)'!$F$41*$D10,IF($E10="Non-RPP kWh",VLOOKUP(Y$4,'4. Billing Determinants (old)'!$B$19:$N$41,6,0)/'4. Billing Determinants (old)'!$G$41*$D10,IF($E10="Distribution Rev.",VLOOKUP(Y$4,'4. Billing Determinants (old)'!$B$19:$N$41,8,0)/'4. Billing Determinants (old)'!$I$41*$D10, VLOOKUP(Y$4,'4. Billing Determinants (old)'!$B$19:$N$41,3,0)/'4. Billing Determinants (old)'!$D$41*$D10))))) -> 0
B11: Recovery of Regulatory Asset Balances | C11: 1590 | D11: ='2. 2013 Continuity Schedule'!CG31 -> 0 | E11: kWh | F11: =IF(F$4="",0,IF($E11="kWh",VLOOKUP(F$4,'4. Billing Determinants (old)'!$B$19:$N$41,4,0)/'4. Billing Determinants (old)'!$E$41*$D11,IF($E11="kW",VLOOKUP(F$4,'4. Billing Determinants (old)'!$B$19:$N$41,5,0)/'4. Billing Determinants (old)'!$F$41*$D11,IF($E11="Non-RPP kWh",VLOOKUP(F$4,'4. Billing Determinants (old)'!$B$19:$N$41,6,0)/'4. Billing Determinants (old)'!$G$41*$D11,IF($E11="Distribution Rev.",VLOOKUP(F$4,'4. Billing Determinants (old)'!$B$19:$N$41,8,0)/'4. Billing Determinants (old)'!$I$41*$D11, VLOOKUP(F$4,'4. Billing Determinants (old)'!$B$19:$N$41,3,0)/'4. Billing Determinants (old)'!$D$41*$D11))))) -> 0 | G11: =IF(G$4="",0,IF($E11="kWh",VLOOKUP(G$4,'4. Billing Determinants (old)'!$B$19:$N$41,4,0)/'4. Billing Determinants (old)'!$E$41*$D11,IF($E11="kW",VLOOKUP(G$4,'4. Billing Determinants (old)'!$B$19:$N$41,5,0)/'4. Billing Determinants (old)'!$F$41*$D11,IF($E11="Non-RPP kWh",VLOOKUP(G$4,'4. Billing Determinants (old)'!$B$19:$N$41,6,0)/'4. Billing Determinants (old)'!$G$41*$D11,IF($E11="Distribution Rev.",VLOOKUP(G$4,'4. Billing Determinants (old)'!$B$19:$N$41,8,0)/'4. Billing Determinants (old)'!$I$41*$D11, VLOOKUP(G$4,'4. Billing Determinants (old)'!$B$19:$N$41,3,0)/'4. Billing Determinants (old)'!$D$41*$D11))))) -> 0 | H11: =IF(H$4="",0,IF($E11="kWh",VLOOKUP(H$4,'4. Billing Determinants (old)'!$B$19:$N$41,4,0)/'4. Billing Determinants (old)'!$E$41*$D11,IF($E11="kW",VLOOKUP(H$4,'4. Billing Determinants (old)'!$B$19:$N$41,5,0)/'4. Billing Determinants (old)'!$F$41*$D11,IF($E11="Non-RPP kWh",VLOOKUP(H$4,'4. Billing Determinants (old)'!$B$19:$N$41,6,0)/'4. Billing Determinants (old)'!$G$41*$D11,IF($E11="Distribution Rev.",VLOOKUP(H$4,'4. Billing Determinants (old)'!$B$19:$N$41,8,0)/'4. Billing Determinants (old)'!$I$41*$D11, VLOOKUP(H$4,'4. Billing Determinants (old)'!$B$19:$N$41,3,0)/'4. Billing Determinants (old)'!$D$41*$D11))))) -> 0 | I11: =IF(I$4="",0,IF($E11="kWh",VLOOKUP(I$4,'4. Billing Determinants (old)'!$B$19:$N$41,4,0)/'4. Billing Determinants (old)'!$E$41*$D11,IF($E11="kW",VLOOKUP(I$4,'4. Billing Determinants (old)'!$B$19:$N$41,5,0)/'4. Billing Determinants (old)'!$F$41*$D11,IF($E11="Non-RPP kWh",VLOOKUP(I$4,'4. Billing Determinants (old)'!$B$19:$N$41,6,0)/'4. Billing Determinants (old)'!$G$41*$D11,IF($E11="Distribution Rev.",VLOOKUP(I$4,'4. Billing Determinants (old)'!$B$19:$N$41,8,0)/'4. Billing Determinants (old)'!$I$41*$D11, VLOOKUP(I$4,'4. Billing Determinants (old)'!$B$19:$N$41,3,0)/'4. Billing Determinants (old)'!$D$41*$D11))))) -> 0 | J11: =IF(J$4="",0,IF($E11="kWh",VLOOKUP(J$4,'4. Billing Determinants (old)'!$B$19:$N$41,4,0)/'4. Billing Determinants (old)'!$E$41*$D11,IF($E11="kW",VLOOKUP(J$4,'4. Billing Determinants (old)'!$B$19:$N$41,5,0)/'4. Billing Determinants (old)'!$F$41*$D11,IF($E11="Non-RPP kWh",VLOOKUP(J$4,'4. Billing Determinants (old)'!$B$19:$N$41,6,0)/'4. Billing Determinants (old)'!$G$41*$D11,IF($E11="Distribution Rev.",VLOOKUP(J$4,'4. Billing Determinants (old)'!$B$19:$N$41,8,0)/'4. Billing Determinants (old)'!$I$41*$D11, VLOOKUP(J$4,'4. Billing Determinants (old)'!$B$19:$N$41,3,0)/'4. Billing Determinants (old)'!$D$41*$D11))))) -> 0 | K11: =IF(K$4="",0,IF($E11="kWh",VLOOKUP(K$4,'4. Billing Determinants (old)'!$B$19:$N$41,4,0)/'4. Billing Determinants (old)'!$E$41*$D11,IF($E11="kW",VLOOKUP(K$4,'4. Billing Determinants (old)'!$B$19:$N$41,5,0)/'4. Billing Determinants (old)'!$F$41*$D11,IF($E11="Non-RPP kWh",VLOOKUP(K$4,'4. Billing Determinants (old)'!$B$19:$N$41,6,0)/'4. Billing Determinants (old)'!$G$41*$D11,IF($E11="Distribution Rev.",VLOOKUP(K$4,'4. Billing Determinants (old)'!$B$19:$N$41,8,0)/'4. Billing Determinants (old)'!$I$41*$D11, VLOOKUP(K$4,'4. Billing Determinants (old)'!$B$19:$N$41,3,0)/'4. Billing Determinants (old)'!$D$41*$D11))))) -> 0 | L11: =IF(L$4="",0,IF($E11="kWh",VLOOKUP(L$4,'4. Billing Determinants (old)'!$B$19:$N$41,4,0)/'4. Billing Determinants (old)'!$E$41*$D11,IF($E11="kW",VLOOKUP(L$4,'4. Billing Determinants (old)'!$B$19:$N$41,5,0)/'4. Billing Determinants (old)'!$F$41*$D11,IF($E11="Non-RPP kWh",VLOOKUP(L$4,'4. Billing Determinants (old)'!$B$19:$N$41,6,0)/'4. Billing Determinants (old)'!$G$41*$D11,IF($E11="Distribution Rev.",VLOOKUP(L$4,'4. Billing Determinants (old)'!$B$19:$N$41,8,0)/'4. Billing Determinants (old)'!$I$41*$D11, VLOOKUP(L$4,'4. Billing Determinants (old)'!$B$19:$N$41,3,0)/'4. Billing Determinants (old)'!$D$41*$D11))))) -> 0 | M11: =IF(M$4="",0,IF($E11="kWh",VLOOKUP(M$4,'4. Billing Determinants (old)'!$B$19:$N$41,4,0)/'4. Billing Determinants (old)'!$E$41*$D11,IF($E11="kW",VLOOKUP(M$4,'4. Billing Determinants (old)'!$B$19:$N$41,5,0)/'4. Billing Determinants (old)'!$F$41*$D11,IF($E11="Non-RPP kWh",VLOOKUP(M$4,'4. Billing Determinants (old)'!$B$19:$N$41,6,0)/'4. Billing Determinants (old)'!$G$41*$D11,IF($E11="Distribution Rev.",VLOOKUP(M$4,'4. Billing Determinants (old)'!$B$19:$N$41,8,0)/'4. Billing Determinants (old)'!$I$41*$D11, VLOOKUP(M$4,'4. Billing Determinants (old)'!$B$19:$N$41,3,0)/'4. Billing Determinants (old)'!$D$41*$D11))))) -> 0 | N11: =IF(N$4="",0,IF($E11="kWh",VLOOKUP(N$4,'4. Billing Determinants (old)'!$B$19:$N$41,4,0)/'4. Billing Determinants (old)'!$E$41*$D11,IF($E11="kW",VLOOKUP(N$4,'4. Billing Determinants (old)'!$B$19:$N$41,5,0)/'4. Billing Determinants (old)'!$F$41*$D11,IF($E11="Non-RPP kWh",VLOOKUP(N$4,'4. Billing Determinants (old)'!$B$19:$N$41,6,0)/'4. Billing Determinants (old)'!$G$41*$D11,IF($E11="Distribution Rev.",VLOOKUP(N$4,'4. Billing Determinants (old)'!$B$19:$N$41,8,0)/'4. Billing Determinants (old)'!$I$41*$D11, VLOOKUP(N$4,'4. Billing Determinants (old)'!$B$19:$N$41,3,0)/'4. Billing Determinants (old)'!$D$41*$D11))))) -> 0 | O11: =IF(O$4="",0,IF($E11="kWh",VLOOKUP(O$4,'4. Billing Determinants (old)'!$B$19:$N$41,4,0)/'4. Billing Determinants (old)'!$E$41*$D11,IF($E11="kW",VLOOKUP(O$4,'4. Billing Determinants (old)'!$B$19:$N$41,5,0)/'4. Billing Determinants (old)'!$F$41*$D11,IF($E11="Non-RPP kWh",VLOOKUP(O$4,'4. Billing Determinants (old)'!$B$19:$N$41,6,0)/'4. Billing Determinants (old)'!$G$41*$D11,IF($E11="Distribution Rev.",VLOOKUP(O$4,'4. Billing Determinants (old)'!$B$19:$N$41,8,0)/'4. Billing Determinants (old)'!$I$41*$D11, VLOOKUP(O$4,'4. Billing Determinants (old)'!$B$19:$N$41,3,0)/'4. Billing Determinants (old)'!$D$41*$D11))))) -> 0 | P11: =IF(P$4="",0,IF($E11="kWh",VLOOKUP(P$4,'4. Billing Determinants (old)'!$B$19:$N$41,4,0)/'4. Billing Determinants (old)'!$E$41*$D11,IF($E11="kW",VLOOKUP(P$4,'4. Billing Determinants (old)'!$B$19:$N$41,5,0)/'4. Billing Determinants (old)'!$F$41*$D11,IF($E11="Non-RPP kWh",VLOOKUP(P$4,'4. Billing Determinants (old)'!$B$19:$N$41,6,0)/'4. Billing Determinants (old)'!$G$41*$D11,IF($E11="Distribution Rev.",VLOOKUP(P$4,'4. Billing Determinants (old)'!$B$19:$N$41,8,0)/'4. Billing Determinants (old)'!$I$41*$D11, VLOOKUP(P$4,'4. Billing Determinants (old)'!$B$19:$N$41,3,0)/'4. Billing Determinants (old)'!$D$41*$D11))))) -> 0 | Q11: =IF(Q$4="",0,IF($E11="kWh",VLOOKUP(Q$4,'4. Billing Determinants (old)'!$B$19:$N$41,4,0)/'4. Billing Determinants (old)'!$E$41*$D11,IF($E11="kW",VLOOKUP(Q$4,'4. Billing Determinants (old)'!$B$19:$N$41,5,0)/'4. Billing Determinants (old)'!$F$41*$D11,IF($E11="Non-RPP kWh",VLOOKUP(Q$4,'4. Billing Determinants (old)'!$B$19:$N$41,6,0)/'4. Billing Determinants (old)'!$G$41*$D11,IF($E11="Distribution Rev.",VLOOKUP(Q$4,'4. Billing Determinants (old)'!$B$19:$N$41,8,0)/'4. Billing Determinants (old)'!$I$41*$D11, VLOOKUP(Q$4,'4. Billing Determinants (old)'!$B$19:$N$41,3,0)/'4. Billing Determinants (old)'!$D$41*$D11))))) -> 0 | R11: =IF(R$4="",0,IF($E11="kWh",VLOOKUP(R$4,'4. Billing Determinants (old)'!$B$19:$N$41,4,0)/'4. Billing Determinants (old)'!$E$41*$D11,IF($E11="kW",VLOOKUP(R$4,'4. Billing Determinants (old)'!$B$19:$N$41,5,0)/'4. Billing Determinants (old)'!$F$41*$D11,IF($E11="Non-RPP kWh",VLOOKUP(R$4,'4. Billing Determinants (old)'!$B$19:$N$41,6,0)/'4. Billing Determinants (old)'!$G$41*$D11,IF($E11="Distribution Rev.",VLOOKUP(R$4,'4. Billing Determinants (old)'!$B$19:$N$41,8,0)/'4. Billing Determinants (old)'!$I$41*$D11, VLOOKUP(R$4,'4. Billing Determinants (old)'!$B$19:$N$41,3,0)/'4. Billing Determinants (old)'!$D$41*$D11))))) -> 0 | S11: =IF(S$4="",0,IF($E11="kWh",VLOOKUP(S$4,'4. Billing Determinants (old)'!$B$19:$N$41,4,0)/'4. Billing Determinants (old)'!$E$41*$D11,IF($E11="kW",VLOOKUP(S$4,'4. Billing Determinants (old)'!$B$19:$N$41,5,0)/'4. Billing Determinants (old)'!$F$41*$D11,IF($E11="Non-RPP kWh",VLOOKUP(S$4,'4. Billing Determinants (old)'!$B$19:$N$41,6,0)/'4. Billing Determinants (old)'!$G$41*$D11,IF($E11="Distribution Rev.",VLOOKUP(S$4,'4. Billing Determinants (old)'!$B$19:$N$41,8,0)/'4. Billing Determinants (old)'!$I$41*$D11, VLOOKUP(S$4,'4. Billing Determinants (old)'!$B$19:$N$41,3,0)/'4. Billing Determinants (old)'!$D$41*$D11))))) -> 0 | T11: =IF(T$4="",0,IF($E11="kWh",VLOOKUP(T$4,'4. Billing Determinants (old)'!$B$19:$N$41,4,0)/'4. Billing Determinants (old)'!$E$41*$D11,IF($E11="kW",VLOOKUP(T$4,'4. Billing Determinants (old)'!$B$19:$N$41,5,0)/'4. Billing Determinants (old)'!$F$41*$D11,IF($E11="Non-RPP kWh",VLOOKUP(T$4,'4. Billing Determinants (old)'!$B$19:$N$41,6,0)/'4. Billing Determinants (old)'!$G$41*$D11,IF($E11="Distribution Rev.",VLOOKUP(T$4,'4. Billing Determinants (old)'!$B$19:$N$41,8,0)/'4. Billing Determinants (old)'!$I$41*$D11, VLOOKUP(T$4,'4. Billing Determinants (old)'!$B$19:$N$41,3,0)/'4. Billing Determinants (old)'!$D$41*$D11))))) -> 0 | U11: =IF(U$4="",0,IF($E11="kWh",VLOOKUP(U$4,'4. Billing Determinants (old)'!$B$19:$N$41,4,0)/'4. Billing Determinants (old)'!$E$41*$D11,IF($E11="kW",VLOOKUP(U$4,'4. Billing Determinants (old)'!$B$19:$N$41,5,0)/'4. Billing Determinants (old)'!$F$41*$D11,IF($E11="Non-RPP kWh",VLOOKUP(U$4,'4. Billing Determinants (old)'!$B$19:$N$41,6,0)/'4. Billing Determinants (old)'!$G$41*$D11,IF($E11="Distribution Rev.",VLOOKUP(U$4,'4. Billing Determinants (old)'!$B$19:$N$41,8,0)/'4. Billing Determinants (old)'!$I$41*$D11, VLOOKUP(U$4,'4. Billing Determinants (old)'!$B$19:$N$41,3,0)/'4. Billing Determinants (old)'!$D$41*$D11))))) -> 0 | V11: =IF(V$4="",0,IF($E11="kWh",VLOOKUP(V$4,'4. Billing Determinants (old)'!$B$19:$N$41,4,0)/'4. Billing Determinants (old)'!$E$41*$D11,IF($E11="kW",VLOOKUP(V$4,'4. Billing Determinants (old)'!$B$19:$N$41,5,0)/'4. Billing Determinants (old)'!$F$41*$D11,IF($E11="Non-RPP kWh",VLOOKUP(V$4,'4. Billing Determinants (old)'!$B$19:$N$41,6,0)/'4. Billing Determinants (old)'!$G$41*$D11,IF($E11="Distribution Rev.",VLOOKUP(V$4,'4. Billing Determinants (old)'!$B$19:$N$41,8,0)/'4. Billing Determinants (old)'!$I$41*$D11, VLOOKUP(V$4,'4. Billing Determinants (old)'!$B$19:$N$41,3,0)/'4. Billing Determinants (old)'!$D$41*$D11))))) -> 0 | W11: =IF(W$4="",0,IF($E11="kWh",VLOOKUP(W$4,'4. Billing Determinants (old)'!$B$19:$N$41,4,0)/'4. Billing Determinants (old)'!$E$41*$D11,IF($E11="kW",VLOOKUP(W$4,'4. Billing Determinants (old)'!$B$19:$N$41,5,0)/'4. Billing Determinants (old)'!$F$41*$D11,IF($E11="Non-RPP kWh",VLOOKUP(W$4,'4. Billing Determinants (old)'!$B$19:$N$41,6,0)/'4. Billing Determinants (old)'!$G$41*$D11,IF($E11="Distribution Rev.",VLOOKUP(W$4,'4. Billing Determinants (old)'!$B$19:$N$41,8,0)/'4. Billing Determinants (old)'!$I$41*$D11, VLOOKUP(W$4,'4. Billing Determinants (old)'!$B$19:$N$41,3,0)/'4. Billing Determinants (old)'!$D$41*$D11))))) -> 0 | X11: =IF(X$4="",0,IF($E11="kWh",VLOOKUP(X$4,'4. Billing Determinants (old)'!$B$19:$N$41,4,0)/'4. Billing Determinants (old)'!$E$41*$D11,IF($E11="kW",VLOOKUP(X$4,'4. Billing Determinants (old)'!$B$19:$N$41,5,0)/'4. Billing Determinants (old)'!$F$41*$D11,IF($E11="Non-RPP kWh",VLOOKUP(X$4,'4. Billing Determinants (old)'!$B$19:$N$41,6,0)/'4. Billing Determinants (old)'!$G$41*$D11,IF($E11="Distribution Rev.",VLOOKUP(X$4,'4. Billing Determinants (old)'!$B$19:$N$41,8,0)/'4. Billing Determinants (old)'!$I$41*$D11, VLOOKUP(X$4,'4. Billing Determinants (old)'!$B$19:$N$41,3,0)/'4. Billing Determinants (old)'!$D$41*$D11))))) -> 0 | Y11: =IF(Y$4="",0,IF($E11="kWh",VLOOKUP(Y$4,'4. Billing Determinants (old)'!$B$19:$N$41,4,0)/'4. Billing Determinants (old)'!$E$41*$D11,IF($E11="kW",VLOOKUP(Y$4,'4. Billing Determinants (old)'!$B$19:$N$41,5,0)/'4. Billing Determinants (old)'!$F$41*$D11,IF($E11="Non-RPP kWh",VLOOKUP(Y$4,'4. Billing Determinants (old)'!$B$19:$N$41,6,0)/'4. Billing Determinants (old)'!$G$41*$D11,IF($E11="Distribution Rev.",VLOOKUP(Y$4,'4. Billing Determinants (old)'!$B$19:$N$41,8,0)/'4. Billing Determinants (old)'!$I$41*$D11, VLOOKUP(Y$4,'4. Billing Determinants (old)'!$B$19:$N$41,3,0)/'4. Billing Determinants (old)'!$D$41*$D11))))) -> 0
B12: Disposition and Recovery/Refund of Regulatory Balances (2008) | C12: 1595 | D12: ='2. 2013 Continuity Schedule'!CG32 -> -1395184.019 | E12: kWh | F12: =IF(F$4="",0,IF($E12="kWh",VLOOKUP(F$4,'4. Billing Determinants (old)'!$B$19:$N$41,4,0)/'4. Billing Determinants (old)'!$E$41*$D12,IF($E12="kW",VLOOKUP(F$4,'4. Billing Determinants (old)'!$B$19:$N$41,5,0)/'4. Billing Determinants (old)'!$F$41*$D12,IF($E12="Non-RPP kWh",VLOOKUP(F$4,'4. Billing Determinants (old)'!$B$19:$N$41,6,0)/'4. Billing Determinants (old)'!$G$41*$D12,IF($E12="Distribution Rev.",VLOOKUP(F$4,'4. Billing Determinants (old)'!$B$19:$N$41,8,0)/'4. Billing Determinants (old)'!$I$41*$D12, VLOOKUP(F$4,'4. Billing Determinants (old)'!$B$19:$N$41,3,0)/'4. Billing Determinants (old)'!$D$41*$D12))))) -> 0 | G12: =IF(G$4="",0,IF($E12="kWh",VLOOKUP(G$4,'4. Billing Determinants (old)'!$B$19:$N$41,4,0)/'4. Billing Determinants (old)'!$E$41*$D12,IF($E12="kW",VLOOKUP(G$4,'4. Billing Determinants (old)'!$B$19:$N$41,5,0)/'4. Billing Determinants (old)'!$F$41*$D12,IF($E12="Non-RPP kWh",VLOOKUP(G$4,'4. Billing Determinants (old)'!$B$19:$N$41,6,0)/'4. Billing Determinants (old)'!$G$41*$D12,IF($E12="Distribution Rev.",VLOOKUP(G$4,'4. Billing Determinants (old)'!$B$19:$N$41,8,0)/'4. Billing Determinants (old)'!$I$41*$D12, VLOOKUP(G$4,'4. Billing Determinants (old)'!$B$19:$N$41,3,0)/'4. Billing Determinants (old)'!$D$41*$D12))))) -> 0 | H12: =IF(H$4="",0,IF($E12="kWh",VLOOKUP(H$4,'4. Billing Determinants (old)'!$B$19:$N$41,4,0)/'4. Billing Determinants (old)'!$E$41*$D12,IF($E12="kW",VLOOKUP(H$4,'4. Billing Determinants (old)'!$B$19:$N$41,5,0)/'4. Billing Determinants (old)'!$F$41*$D12,IF($E12="Non-RPP kWh",VLOOKUP(H$4,'4. Billing Determinants (old)'!$B$19:$N$41,6,0)/'4. Billing Determinants (old)'!$G$41*$D12,IF($E12="Distribution Rev.",VLOOKUP(H$4,'4. Billing Determinants (old)'!$B$19:$N$41,8,0)/'4. Billing Determinants (old)'!$I$41*$D12, VLOOKUP(H$4,'4. Billing Determinants (old)'!$B$19:$N$41,3,0)/'4. Billing Determinants (old)'!$D$41*$D12))))) -> 0 | I12: =IF(I$4="",0,IF($E12="kWh",VLOOKUP(I$4,'4. Billing Determinants (old)'!$B$19:$N$41,4,0)/'4. Billing Determinants (old)'!$E$41*$D12,IF($E12="kW",VLOOKUP(I$4,'4. Billing Determinants (old)'!$B$19:$N$41,5,0)/'4. Billing Determinants (old)'!$F$41*$D12,IF($E12="Non-RPP kWh",VLOOKUP(I$4,'4. Billing Determinants (old)'!$B$19:$N$41,6,0)/'4. Billing Determinants (old)'!$G$41*$D12,IF($E12="Distribution Rev.",VLOOKUP(I$4,'4. Billing Determinants (old)'!$B$19:$N$41,8,0)/'4. Billing Determinants (old)'!$I$41*$D12, VLOOKUP(I$4,'4. Billing Determinants (old)'!$B$19:$N$41,3,0)/'4. Billing Determinants (old)'!$D$41*$D12))))) -> 0 | J12: =IF(J$4="",0,IF($E12="kWh",VLOOKUP(J$4,'4. Billing Determinants (old)'!$B$19:$N$41,4,0)/'4. Billing Determinants (old)'!$E$41*$D12,IF($E12="kW",VLOOKUP(J$4,'4. Billing Determinants (old)'!$B$19:$N$41,5,0)/'4. Billing Determinants (old)'!$F$41*$D12,IF($E12="Non-RPP kWh",VLOOKUP(J$4,'4. Billing Determinants (old)'!$B$19:$N$41,6,0)/'4. Billing Determinants (old)'!$G$41*$D12,IF($E12="Distribution Rev.",VLOOKUP(J$4,'4. Billing Determinants (old)'!$B$19:$N$41,8,0)/'4. Billing Determinants (old)'!$I$41*$D12, VLOOKUP(J$4,'4. Billing Determinants (old)'!$B$19:$N$41,3,0)/'4. Billing Determinants (old)'!$D$41*$D12))))) -> 0 | K12: =IF(K$4="",0,IF($E12="kWh",VLOOKUP(K$4,'4. Billing Determinants (old)'!$B$19:$N$41,4,0)/'4. Billing Determinants (old)'!$E$41*$D12,IF($E12="kW",VLOOKUP(K$4,'4. Billing Determinants (old)'!$B$19:$N$41,5,0)/'4. Billing Determinants (old)'!$F$41*$D12,IF($E12="Non-RPP kWh",VLOOKUP(K$4,'4. Billing Determinants (old)'!$B$19:$N$41,6,0)/'4. Billing Determinants (old)'!$G$41*$D12,IF($E12="Distribution Rev.",VLOOKUP(K$4,'4. Billing Determinants (old)'!$B$19:$N$41,8,0)/'4. Billing Determinants (old)'!$I$41*$D12, VLOOKUP(K$4,'4. Billing Determinants (old)'!$B$19:$N$41,3,0)/'4. Billing Determinants (old)'!$D$41*$D12))))) -> 0 | L12: =IF(L$4="",0,IF($E12="kWh",VLOOKUP(L$4,'4. Billing Determinants (old)'!$B$19:$N$41,4,0)/'4. Billing Determinants (old)'!$E$41*$D12,IF($E12="kW",VLOOKUP(L$4,'4. Billing Determinants (old)'!$B$19:$N$41,5,0)/'4. Billing Determinants (old)'!$F$41*$D12,IF($E12="Non-RPP kWh",VLOOKUP(L$4,'4. Billing Determinants (old)'!$B$19:$N$41,6,0)/'4. Billing Determinants (old)'!$G$41*$D12,IF($E12="Distribution Rev.",VLOOKUP(L$4,'4. Billing Determinants (old)'!$B$19:$N$41,8,0)/'4. Billing Determinants (old)'!$I$41*$D12, VLOOKUP(L$4,'4. Billing Determinants (old)'!$B$19:$N$41,3,0)/'4. Billing Determinants (old)'!$D$41*$D12))))) -> 0 | M12: =IF(M$4="",0,IF($E12="kWh",VLOOKUP(M$4,'4. Billing Determinants (old)'!$B$19:$N$41,4,0)/'4. Billing Determinants (old)'!$E$41*$D12,IF($E12="kW",VLOOKUP(M$4,'4. Billing Determinants (old)'!$B$19:$N$41,5,0)/'4. Billing Determinants (old)'!$F$41*$D12,IF($E12="Non-RPP kWh",VLOOKUP(M$4,'4. Billing Determinants (old)'!$B$19:$N$41,6,0)/'4. Billing Determinants (old)'!$G$41*$D12,IF($E12="Distribution Rev.",VLOOKUP(M$4,'4. Billing Determinants (old)'!$B$19:$N$41,8,0)/'4. Billing Determinants (old)'!$I$41*$D12, VLOOKUP(M$4,'4. Billing Determinants (old)'!$B$19:$N$41,3,0)/'4. Billing Determinants (old)'!$D$41*$D12))))) -> 0 | N12: =IF(N$4="",0,IF($E12="kWh",VLOOKUP(N$4,'4. Billing Determinants (old)'!$B$19:$N$41,4,0)/'4. Billing Determinants (old)'!$E$41*$D12,IF($E12="kW",VLOOKUP(N$4,'4. Billing Determinants (old)'!$B$19:$N$41,5,0)/'4. Billing Determinants (old)'!$F$41*$D12,IF($E12="Non-RPP kWh",VLOOKUP(N$4,'4. Billing Determinants (old)'!$B$19:$N$41,6,0)/'4. Billing Determinants (old)'!$G$41*$D12,IF($E12="Distribution Rev.",VLOOKUP(N$4,'4. Billing Determinants (old)'!$B$19:$N$41,8,0)/'4. Billing Determinants (old)'!$I$41*$D12, VLOOKUP(N$4,'4. Billing Determinants (old)'!$B$19:$N$41,3,0)/'4. Billing Determinants (old)'!$D$41*$D12))))) -> 0 | O12: =IF(O$4="",0,IF($E12="kWh",VLOOKUP(O$4,'4. Billing Determinants (old)'!$B$19:$N$41,4,0)/'4. Billing Determinants (old)'!$E$41*$D12,IF($E12="kW",VLOOKUP(O$4,'4. Billing Determinants (old)'!$B$19:$N$41,5,0)/'4. Billing Determinants (old)'!$F$41*$D12,IF($E12="Non-RPP kWh",VLOOKUP(O$4,'4. Billing Determinants (old)'!$B$19:$N$41,6,0)/'4. Billing Determinants (old)'!$G$41*$D12,IF($E12="Distribution Rev.",VLOOKUP(O$4,'4. Billing Determinants (old)'!$B$19:$N$41,8,0)/'4. Billing Determinants (old)'!$I$41*$D12, VLOOKUP(O$4,'4. Billing Determinants (old)'!$B$19:$N$41,3,0)/'4. Billing Determinants (old)'!$D$41*$D12))))) -> 0 | P12: =IF(P$4="",0,IF($E12="kWh",VLOOKUP(P$4,'4. Billing Determinants (old)'!$B$19:$N$41,4,0)/'4. Billing Determinants (old)'!$E$41*$D12,IF($E12="kW",VLOOKUP(P$4,'4. Billing Determinants (old)'!$B$19:$N$41,5,0)/'4. Billing Determinants (old)'!$F$41*$D12,IF($E12="Non-RPP kWh",VLOOKUP(P$4,'4. Billing Determinants (old)'!$B$19:$N$41,6,0)/'4. Billing Determinants (old)'!$G$41*$D12,IF($E12="Distribution Rev.",VLOOKUP(P$4,'4. Billing Determinants (old)'!$B$19:$N$41,8,0)/'4. Billing Determinants (old)'!$I$41*$D12, VLOOKUP(P$4,'4. Billing Determinants (old)'!$B$19:$N$41,3,0)/'4. Billing Determinants (old)'!$D$41*$D12))))) -> 0 | Q12: =IF(Q$4="",0,IF($E12="kWh",VLOOKUP(Q$4,'4. Billing Determinants (old)'!$B$19:$N$41,4,0)/'4. Billing Determinants (old)'!$E$41*$D12,IF($E12="kW",VLOOKUP(Q$4,'4. Billing Determinants (old)'!$B$19:$N$41,5,0)/'4. Billing Determinants (old)'!$F$41*$D12,IF($E12="Non-RPP kWh",VLOOKUP(Q$4,'4. Billing Determinants (old)'!$B$19:$N$41,6,0)/'4. Billing Determinants (old)'!$G$41*$D12,IF($E12="Distribution Rev.",VLOOKUP(Q$4,'4. Billing Determinants (old)'!$B$19:$N$41,8,0)/'4. Billing Determinants (old)'!$I$41*$D12, VLOOKUP(Q$4,'4. Billing Determinants (old)'!$B$19:$N$41,3,0)/'4. Billing Determinants (old)'!$D$41*$D12))))) -> 0 | R12: =IF(R$4="",0,IF($E12="kWh",VLOOKUP(R$4,'4. Billing Determinants (old)'!$B$19:$N$41,4,0)/'4. Billing Determinants (old)'!$E$41*$D12,IF($E12="kW",VLOOKUP(R$4,'4. Billing Determinants (old)'!$B$19:$N$41,5,0)/'4. Billing Determinants (old)'!$F$41*$D12,IF($E12="Non-RPP kWh",VLOOKUP(R$4,'4. Billing Determinants (old)'!$B$19:$N$41,6,0)/'4. Billing Determinants (old)'!$G$41*$D12,IF($E12="Distribution Rev.",VLOOKUP(R$4,'4. Billing Determinants (old)'!$B$19:$N$41,8,0)/'4. Billing Determinants (old)'!$I$41*$D12, VLOOKUP(R$4,'4. Billing Determinants (old)'!$B$19:$N$41,3,0)/'4. Billing Determinants (old)'!$D$41*$D12))))) -> 0 | S12: =IF(S$4="",0,IF($E12="kWh",VLOOKUP(S$4,'4. Billing Determinants (old)'!$B$19:$N$41,4,0)/'4. Billing Determinants (old)'!$E$41*$D12,IF($E12="kW",VLOOKUP(S$4,'4. Billing Determinants (old)'!$B$19:$N$41,5,0)/'4. Billing Determinants (old)'!$F$41*$D12,IF($E12="Non-RPP kWh",VLOOKUP(S$4,'4. Billing Determinants (old)'!$B$19:$N$41,6,0)/'4. Billing Determinants (old)'!$G$41*$D12,IF($E12="Distribution Rev.",VLOOKUP(S$4,'4. Billing Determinants (old)'!$B$19:$N$41,8,0)/'4. Billing Determinants (old)'!$I$41*$D12, VLOOKUP(S$4,'4. Billing Determinants (old)'!$B$19:$N$41,3,0)/'4. Billing Determinants (old)'!$D$41*$D12))))) -> 0 | T12: =IF(T$4="",0,IF($E12="kWh",VLOOKUP(T$4,'4. Billing Determinants (old)'!$B$19:$N$41,4,0)/'4. Billing Determinants (old)'!$E$41*$D12,IF($E12="kW",VLOOKUP(T$4,'4. Billing Determinants (old)'!$B$19:$N$41,5,0)/'4. Billing Determinants (old)'!$F$41*$D12,IF($E12="Non-RPP kWh",VLOOKUP(T$4,'4. Billing Determinants (old)'!$B$19:$N$41,6,0)/'4. Billing Determinants (old)'!$G$41*$D12,IF($E12="Distribution Rev.",VLOOKUP(T$4,'4. Billing Determinants (old)'!$B$19:$N$41,8,0)/'4. Billing Determinants (old)'!$I$41*$D12, VLOOKUP(T$4,'4. Billing Determinants (old)'!$B$19:$N$41,3,0)/'4. Billing Determinants (old)'!$D$41*$D12))))) -> 0 | U12: =IF(U$4="",0,IF($E12="kWh",VLOOKUP(U$4,'4. Billing Determinants (old)'!$B$19:$N$41,4,0)/'4. Billing Determinants (old)'!$E$41*$D12,IF($E12="kW",VLOOKUP(U$4,'4. Billing Determinants (old)'!$B$19:$N$41,5,0)/'4. Billing Determinants (old)'!$F$41*$D12,IF($E12="Non-RPP kWh",VLOOKUP(U$4,'4. Billing Determinants (old)'!$B$19:$N$41,6,0)/'4. Billing Determinants (old)'!$G$41*$D12,IF($E12="Distribution Rev.",VLOOKUP(U$4,'4. Billing Determinants (old)'!$B$19:$N$41,8,0)/'4. Billing Determinants (old)'!$I$41*$D12, VLOOKUP(U$4,'4. Billing Determinants (old)'!$B$19:$N$41,3,0)/'4. Billing Determinants (old)'!$D$41*$D12))))) -> 0 | V12: =IF(V$4="",0,IF($E12="kWh",VLOOKUP(V$4,'4. Billing Determinants (old)'!$B$19:$N$41,4,0)/'4. Billing Determinants (old)'!$E$41*$D12,IF($E12="kW",VLOOKUP(V$4,'4. Billing Determinants (old)'!$B$19:$N$41,5,0)/'4. Billing Determinants (old)'!$F$41*$D12,IF($E12="Non-RPP kWh",VLOOKUP(V$4,'4. Billing Determinants (old)'!$B$19:$N$41,6,0)/'4. Billing Determinants (old)'!$G$41*$D12,IF($E12="Distribution Rev.",VLOOKUP(V$4,'4. Billing Determinants (old)'!$B$19:$N$41,8,0)/'4. Billing Determinants (old)'!$I$41*$D12, VLOOKUP(V$4,'4. Billing Determinants (old)'!$B$19:$N$41,3,0)/'4. Billing Determinants (old)'!$D$41*$D12))))) -> 0 | W12: =IF(W$4="",0,IF($E12="kWh",VLOOKUP(W$4,'4. Billing Determinants (old)'!$B$19:$N$41,4,0)/'4. Billing Determinants (old)'!$E$41*$D12,IF($E12="kW",VLOOKUP(W$4,'4. Billing Determinants (old)'!$B$19:$N$41,5,0)/'4. Billing Determinants (old)'!$F$41*$D12,IF($E12="Non-RPP kWh",VLOOKUP(W$4,'4. Billing Determinants (old)'!$B$19:$N$41,6,0)/'4. Billing Determinants (old)'!$G$41*$D12,IF($E12="Distribution Rev.",VLOOKUP(W$4,'4. Billing Determinants (old)'!$B$19:$N$41,8,0)/'4. Billing Determinants (old)'!$I$41*$D12, VLOOKUP(W$4,'4. Billing Determinants (old)'!$B$19:$N$41,3,0)/'4. Billing Determinants (old)'!$D$41*$D12))))) -> 0 | X12: =IF(X$4="",0,IF($E12="kWh",VLOOKUP(X$4,'4. Billing Determinants (old)'!$B$19:$N$41,4,0)/'4. Billing Determinants (old)'!$E$41*$D12,IF($E12="kW",VLOOKUP(X$4,'4. Billing Determinants (old)'!$B$19:$N$41,5,0)/'4. Billing Determinants (old)'!$F$41*$D12,IF($E12="Non-RPP kWh",VLOOKUP(X$4,'4. Billing Determinants (old)'!$B$19:$N$41,6,0)/'4. Billing Determinants (old)'!$G$41*$D12,IF($E12="Distribution Rev.",VLOOKUP(X$4,'4. Billing Determinants (old)'!$B$19:$N$41,8,0)/'4. Billing Determinants (old)'!$I$41*$D12, VLOOKUP(X$4,'4. Billing Determinants (old)'!$B$19:$N$41,3,0)/'4. Billing Determinants (old)'!$D$41*$D12))))) -> 0 | Y12: =IF(Y$4="",0,IF($E12="kWh",VLOOKUP(Y$4,'4. Billing Determinants (old)'!$B$19:$N$41,4,0)/'4. Billing Determinants (old)'!$E$41*$D12,IF($E12="kW",VLOOKUP(Y$4,'4. Billing Determinants (old)'!$B$19:$N$41,5,0)/'4. Billing Determinants (old)'!$F$41*$D12,IF($E12="Non-RPP kWh",VLOOKUP(Y$4,'4. Billing Determinants (old)'!$B$19:$N$41,6,0)/'4. Billing Determinants (old)'!$G$41*$D12,IF($E12="Distribution Rev.",VLOOKUP(Y$4,'4. Billing Determinants (old)'!$B$19:$N$41,8,0)/'4. Billing Determinants (old)'!$I$41*$D12, VLOOKUP(Y$4,'4. Billing Determinants (old)'!$B$19:$N$41,3,0)/'4. Billing Determinants (old)'!$D$41*$D12))))) -> 0
B13: Disposition and Recovery/Refund of Regulatory Balances (2009) | C13: 1595 | D13: ='2. 2013 Continuity Schedule'!CG33 -> -1181899.714 | E13: kWh | F13: =IF(F$4="",0,IF($E13="kWh",VLOOKUP(F$4,'4. Billing Determinants (old)'!$B$19:$N$41,4,0)/'4. Billing Determinants (old)'!$E$41*$D13,IF($E13="kW",VLOOKUP(F$4,'4. Billing Determinants (old)'!$B$19:$N$41,5,0)/'4. Billing Determinants (old)'!$F$41*$D13,IF($E13="Non-RPP kWh",VLOOKUP(F$4,'4. Billing Determinants (old)'!$B$19:$N$41,6,0)/'4. Billing Determinants (old)'!$G$41*$D13,IF($E13="Distribution Rev.",VLOOKUP(F$4,'4. Billing Determinants (old)'!$B$19:$N$41,8,0)/'4. Billing Determinants (old)'!$I$41*$D13, VLOOKUP(F$4,'4. Billing Determinants (old)'!$B$19:$N$41,3,0)/'4. Billing Determinants (old)'!$D$41*$D13))))) -> 0 | G13: =IF(G$4="",0,IF($E13="kWh",VLOOKUP(G$4,'4. Billing Determinants (old)'!$B$19:$N$41,4,0)/'4. Billing Determinants (old)'!$E$41*$D13,IF($E13="kW",VLOOKUP(G$4,'4. Billing Determinants (old)'!$B$19:$N$41,5,0)/'4. Billing Determinants (old)'!$F$41*$D13,IF($E13="Non-RPP kWh",VLOOKUP(G$4,'4. Billing Determinants (old)'!$B$19:$N$41,6,0)/'4. Billing Determinants (old)'!$G$41*$D13,IF($E13="Distribution Rev.",VLOOKUP(G$4,'4. Billing Determinants (old)'!$B$19:$N$41,8,0)/'4. Billing Determinants (old)'!$I$41*$D13, VLOOKUP(G$4,'4. Billing Determinants (old)'!$B$19:$N$41,3,0)/'4. Billing Determinants (old)'!$D$41*$D13))))) -> 0 | H13: =IF(H$4="",0,IF($E13="kWh",VLOOKUP(H$4,'4. Billing Determinants (old)'!$B$19:$N$41,4,0)/'4. Billing Determinants (old)'!$E$41*$D13,IF($E13="kW",VLOOKUP(H$4,'4. Billing Determinants (old)'!$B$19:$N$41,5,0)/'4. Billing Determinants (old)'!$F$41*$D13,IF($E13="Non-RPP kWh",VLOOKUP(H$4,'4. Billing Determinants (old)'!$B$19:$N$41,6,0)/'4. Billing Determinants (old)'!$G$41*$D13,IF($E13="Distribution Rev.",VLOOKUP(H$4,'4. Billing Determinants (old)'!$B$19:$N$41,8,0)/'4. Billing Determinants (old)'!$I$41*$D13, VLOOKUP(H$4,'4. Billing Determinants (old)'!$B$19:$N$41,3,0)/'4. Billing Determinants (old)'!$D$41*$D13))))) -> 0 | I13: =IF(I$4="",0,IF($E13="kWh",VLOOKUP(I$4,'4. Billing Determinants (old)'!$B$19:$N$41,4,0)/'4. Billing Determinants (old)'!$E$41*$D13,IF($E13="kW",VLOOKUP(I$4,'4. Billing Determinants (old)'!$B$19:$N$41,5,0)/'4. Billing Determinants (old)'!$F$41*$D13,IF($E13="Non-RPP kWh",VLOOKUP(I$4,'4. Billing Determinants (old)'!$B$19:$N$41,6,0)/'4. Billing Determinants (old)'!$G$41*$D13,IF($E13="Distribution Rev.",VLOOKUP(I$4,'4. Billing Determinants (old)'!$B$19:$N$41,8,0)/'4. Billing Determinants (old)'!$I$41*$D13, VLOOKUP(I$4,'4. Billing Determinants (old)'!$B$19:$N$41,3,0)/'4. Billing Determinants (old)'!$D$41*$D13))))) -> 0 | J13: =IF(J$4="",0,IF($E13="kWh",VLOOKUP(J$4,'4. Billing Determinants (old)'!$B$19:$N$41,4,0)/'4. Billing Determinants (old)'!$E$41*$D13,IF($E13="kW",VLOOKUP(J$4,'4. Billing Determinants (old)'!$B$19:$N$41,5,0)/'4. Billing Determinants (old)'!$F$41*$D13,IF($E13="Non-RPP kWh",VLOOKUP(J$4,'4. Billing Determinants (old)'!$B$19:$N$41,6,0)/'4. Billing Determinants (old)'!$G$41*$D13,IF($E13="Distribution Rev.",VLOOKUP(J$4,'4. Billing Determinants (old)'!$B$19:$N$41,8,0)/'4. Billing Determinants (old)'!$I$41*$D13, VLOOKUP(J$4,'4. Billing Determinants (old)'!$B$19:$N$41,3,0)/'4. Billing Determinants (old)'!$D$41*$D13))))) -> 0 | K13: =IF(K$4="",0,IF($E13="kWh",VLOOKUP(K$4,'4. Billing Determinants (old)'!$B$19:$N$41,4,0)/'4. Billing Determinants (old)'!$E$41*$D13,IF($E13="kW",VLOOKUP(K$4,'4. Billing Determinants (old)'!$B$19:$N$41,5,0)/'4. Billing Determinants (old)'!$F$41*$D13,IF($E13="Non-RPP kWh",VLOOKUP(K$4,'4. Billing Determinants (old)'!$B$19:$N$41,6,0)/'4. Billing Determinants (old)'!$G$41*$D13,IF($E13="Distribution Rev.",VLOOKUP(K$4,'4. Billing Determinants (old)'!$B$19:$N$41,8,0)/'4. Billing Determinants (old)'!$I$41*$D13, VLOOKUP(K$4,'4. Billing Determinants (old)'!$B$19:$N$41,3,0)/'4. Billing Determinants (old)'!$D$41*$D13))))) -> 0 | L13: =IF(L$4="",0,IF($E13="kWh",VLOOKUP(L$4,'4. Billing Determinants (old)'!$B$19:$N$41,4,0)/'4. Billing Determinants (old)'!$E$41*$D13,IF($E13="kW",VLOOKUP(L$4,'4. Billing Determinants (old)'!$B$19:$N$41,5,0)/'4. Billing Determinants (old)'!$F$41*$D13,IF($E13="Non-RPP kWh",VLOOKUP(L$4,'4. Billing Determinants (old)'!$B$19:$N$41,6,0)/'4. Billing Determinants (old)'!$G$41*$D13,IF($E13="Distribution Rev.",VLOOKUP(L$4,'4. Billing Determinants (old)'!$B$19:$N$41,8,0)/'4. Billing Determinants (old)'!$I$41*$D13, VLOOKUP(L$4,'4. Billing Determinants (old)'!$B$19:$N$41,3,0)/'4. Billing Determinants (old)'!$D$41*$D13))))) -> 0 | M13: =IF(M$4="",0,IF($E13="kWh",VLOOKUP(M$4,'4. Billing Determinants (old)'!$B$19:$N$41,4,0)/'4. Billing Determinants (old)'!$E$41*$D13,IF($E13="kW",VLOOKUP(M$4,'4. Billing Determinants (old)'!$B$19:$N$41,5,0)/'4. Billing Determinants (old)'!$F$41*$D13,IF($E13="Non-RPP kWh",VLOOKUP(M$4,'4. Billing Determinants (old)'!$B$19:$N$41,6,0)/'4. Billing Determinants (old)'!$G$41*$D13,IF($E13="Distribution Rev.",VLOOKUP(M$4,'4. Billing Determinants (old)'!$B$19:$N$41,8,0)/'4. Billing Determinants (old)'!$I$41*$D13, VLOOKUP(M$4,'4. Billing Determinants (old)'!$B$19:$N$41,3,0)/'4. Billing Determinants (old)'!$D$41*$D13))))) -> 0 | N13: =IF(N$4="",0,IF($E13="kWh",VLOOKUP(N$4,'4. Billing Determinants (old)'!$B$19:$N$41,4,0)/'4. Billing Determinants (old)'!$E$41*$D13,IF($E13="kW",VLOOKUP(N$4,'4. Billing Determinants (old)'!$B$19:$N$41,5,0)/'4. Billing Determinants (old)'!$F$41*$D13,IF($E13="Non-RPP kWh",VLOOKUP(N$4,'4. Billing Determinants (old)'!$B$19:$N$41,6,0)/'4. Billing Determinants (old)'!$G$41*$D13,IF($E13="Distribution Rev.",VLOOKUP(N$4,'4. Billing Determinants (old)'!$B$19:$N$41,8,0)/'4. Billing Determinants (old)'!$I$41*$D13, VLOOKUP(N$4,'4. Billing Determinants (old)'!$B$19:$N$41,3,0)/'4. Billing Determinants (old)'!$D$41*$D13))))) -> 0 | O13: =IF(O$4="",0,IF($E13="kWh",VLOOKUP(O$4,'4. Billing Determinants (old)'!$B$19:$N$41,4,0)/'4. Billing Determinants (old)'!$E$41*$D13,IF($E13="kW",VLOOKUP(O$4,'4. Billing Determinants (old)'!$B$19:$N$41,5,0)/'4. Billing Determinants (old)'!$F$41*$D13,IF($E13="Non-RPP kWh",VLOOKUP(O$4,'4. Billing Determinants (old)'!$B$19:$N$41,6,0)/'4. Billing Determinants (old)'!$G$41*$D13,IF($E13="Distribution Rev.",VLOOKUP(O$4,'4. Billing Determinants (old)'!$B$19:$N$41,8,0)/'4. Billing Determinants (old)'!$I$41*$D13, VLOOKUP(O$4,'4. Billing Determinants (old)'!$B$19:$N$41,3,0)/'4. Billing Determinants (old)'!$D$41*$D13))))) -> 0 | P13: =IF(P$4="",0,IF($E13="kWh",VLOOKUP(P$4,'4. Billing Determinants (old)'!$B$19:$N$41,4,0)/'4. Billing Determinants (old)'!$E$41*$D13,IF($E13="kW",VLOOKUP(P$4,'4. Billing Determinants (old)'!$B$19:$N$41,5,0)/'4. Billing Determinants (old)'!$F$41*$D13,IF($E13="Non-RPP kWh",VLOOKUP(P$4,'4. Billing Determinants (old)'!$B$19:$N$41,6,0)/'4. Billing Determinants (old)'!$G$41*$D13,IF($E13="Distribution Rev.",VLOOKUP(P$4,'4. Billing Determinants (old)'!$B$19:$N$41,8,0)/'4. Billing Determinants (old)'!$I$41*$D13, VLOOKUP(P$4,'4. Billing Determinants (old)'!$B$19:$N$41,3,0)/'4. Billing Determinants (old)'!$D$41*$D13))))) -> 0 | Q13: =IF(Q$4="",0,IF($E13="kWh",VLOOKUP(Q$4,'4. Billing Determinants (old)'!$B$19:$N$41,4,0)/'4. Billing Determinants (old)'!$E$41*$D13,IF($E13="kW",VLOOKUP(Q$4,'4. Billing Determinants (old)'!$B$19:$N$41,5,0)/'4. Billing Determinants (old)'!$F$41*$D13,IF($E13="Non-RPP kWh",VLOOKUP(Q$4,'4. Billing Determinants (old)'!$B$19:$N$41,6,0)/'4. Billing Determinants (old)'!$G$41*$D13,IF($E13="Distribution Rev.",VLOOKUP(Q$4,'4. Billing Determinants (old)'!$B$19:$N$41,8,0)/'4. Billing Determinants (old)'!$I$41*$D13, VLOOKUP(Q$4,'4. Billing Determinants (old)'!$B$19:$N$41,3,0)/'4. Billing Determinants (old)'!$D$41*$D13))))) -> 0 | R13: =IF(R$4="",0,IF($E13="kWh",VLOOKUP(R$4,'4. Billing Determinants (old)'!$B$19:$N$41,4,0)/'4. Billing Determinants (old)'!$E$41*$D13,IF($E13="kW",VLOOKUP(R$4,'4. Billing Determinants (old)'!$B$19:$N$41,5,0)/'4. Billing Determinants (old)'!$F$41*$D13,IF($E13="Non-RPP kWh",VLOOKUP(R$4,'4. Billing Determinants (old)'!$B$19:$N$41,6,0)/'4. Billing Determinants (old)'!$G$41*$D13,IF($E13="Distribution Rev.",VLOOKUP(R$4,'4. Billing Determinants (old)'!$B$19:$N$41,8,0)/'4. Billing Determinants (old)'!$I$41*$D13, VLOOKUP(R$4,'4. Billing Determinants (old)'!$B$19:$N$41,3,0)/'4. Billing Determinants (old)'!$D$41*$D13))))) -> 0 | S13: =IF(S$4="",0,IF($E13="kWh",VLOOKUP(S$4,'4. Billing Determinants (old)'!$B$19:$N$41,4,0)/'4. Billing Determinants (old)'!$E$41*$D13,IF($E13="kW",VLOOKUP(S$4,'4. Billing Determinants (old)'!$B$19:$N$41,5,0)/'4. Billing Determinants (old)'!$F$41*$D13,IF($E13="Non-RPP kWh",VLOOKUP(S$4,'4. Billing Determinants (old)'!$B$19:$N$41,6,0)/'4. Billing Determinants (old)'!$G$41*$D13,IF($E13="Distribution Rev.",VLOOKUP(S$4,'4. Billing Determinants (old)'!$B$19:$N$41,8,0)/'4. Billing Determinants (old)'!$I$41*$D13, VLOOKUP(S$4,'4. Billing Determinants (old)'!$B$19:$N$41,3,0)/'4. Billing Determinants (old)'!$D$41*$D13))))) -> 0 | T13: =IF(T$4="",0,IF($E13="kWh",VLOOKUP(T$4,'4. Billing Determinants (old)'!$B$19:$N$41,4,0)/'4. Billing Determinants (old)'!$E$41*$D13,IF($E13="kW",VLOOKUP(T$4,'4. Billing Determinants (old)'!$B$19:$N$41,5,0)/'4. Billing Determinants (old)'!$F$41*$D13,IF($E13="Non-RPP kWh",VLOOKUP(T$4,'4. Billing Determinants (old)'!$B$19:$N$41,6,0)/'4. Billing Determinants (old)'!$G$41*$D13,IF($E13="Distribution Rev.",VLOOKUP(T$4,'4. Billing Determinants (old)'!$B$19:$N$41,8,0)/'4. Billing Determinants (old)'!$I$41*$D13, VLOOKUP(T$4,'4. Billing Determinants (old)'!$B$19:$N$41,3,0)/'4. Billing Determinants (old)'!$D$41*$D13))))) -> 0 | U13: =IF(U$4="",0,IF($E13="kWh",VLOOKUP(U$4,'4. Billing Determinants (old)'!$B$19:$N$41,4,0)/'4. Billing Determinants (old)'!$E$41*$D13,IF($E13="kW",VLOOKUP(U$4,'4. Billing Determinants (old)'!$B$19:$N$41,5,0)/'4. Billing Determinants (old)'!$F$41*$D13,IF($E13="Non-RPP kWh",VLOOKUP(U$4,'4. Billing Determinants (old)'!$B$19:$N$41,6,0)/'4. Billing Determinants (old)'!$G$41*$D13,IF($E13="Distribution Rev.",VLOOKUP(U$4,'4. Billing Determinants (old)'!$B$19:$N$41,8,0)/'4. Billing Determinants (old)'!$I$41*$D13, VLOOKUP(U$4,'4. Billing Determinants (old)'!$B$19:$N$41,3,0)/'4. Billing Determinants (old)'!$D$41*$D13))))) -> 0 | V13: =IF(V$4="",0,IF($E13="kWh",VLOOKUP(V$4,'4. Billing Determinants (old)'!$B$19:$N$41,4,0)/'4. Billing Determinants (old)'!$E$41*$D13,IF($E13="kW",VLOOKUP(V$4,'4. Billing Determinants (old)'!$B$19:$N$41,5,0)/'4. Billing Determinants (old)'!$F$41*$D13,IF($E13="Non-RPP kWh",VLOOKUP(V$4,'4. Billing Determinants (old)'!$B$19:$N$41,6,0)/'4. Billing Determinants (old)'!$G$41*$D13,IF($E13="Distribution Rev.",VLOOKUP(V$4,'4. Billing Determinants (old)'!$B$19:$N$41,8,0)/'4. Billing Determinants (old)'!$I$41*$D13, VLOOKUP(V$4,'4. Billing Determinants (old)'!$B$19:$N$41,3,0)/'4. Billing Determinants (old)'!$D$41*$D13))))) -> 0 | W13: =IF(W$4="",0,IF($E13="kWh",VLOOKUP(W$4,'4. Billing Determinants (old)'!$B$19:$N$41,4,0)/'4. Billing Determinants (old)'!$E$41*$D13,IF($E13="kW",VLOOKUP(W$4,'4. Billing Determinants (old)'!$B$19:$N$41,5,0)/'4. Billing Determinants (old)'!$F$41*$D13,IF($E13="Non-RPP kWh",VLOOKUP(W$4,'4. Billing Determinants (old)'!$B$19:$N$41,6,0)/'4. Billing Determinants (old)'!$G$41*$D13,IF($E13="Distribution Rev.",VLOOKUP(W$4,'4. Billing Determinants (old)'!$B$19:$N$41,8,0)/'4. Billing Determinants (old)'!$I$41*$D13, VLOOKUP(W$4,'4. Billing Determinants (old)'!$B$19:$N$41,3,0)/'4. Billing Determinants (old)'!$D$41*$D13))))) -> 0 | X13: =IF(X$4="",0,IF($E13="kWh",VLOOKUP(X$4,'4. Billing Determinants (old)'!$B$19:$N$41,4,0)/'4. Billing Determinants (old)'!$E$41*$D13,IF($E13="kW",VLOOKUP(X$4,'4. Billing Determinants (old)'!$B$19:$N$41,5,0)/'4. Billing Determinants (old)'!$F$41*$D13,IF($E13="Non-RPP kWh",VLOOKUP(X$4,'4. Billing Determinants (old)'!$B$19:$N$41,6,0)/'4. Billing Determinants (old)'!$G$41*$D13,IF($E13="Distribution Rev.",VLOOKUP(X$4,'4. Billing Determinants (old)'!$B$19:$N$41,8,0)/'4. Billing Determinants (old)'!$I$41*$D13, VLOOKUP(X$4,'4. Billing Determinants (old)'!$B$19:$N$41,3,0)/'4. Billing Determinants (old)'!$D$41*$D13))))) -> 0 | Y13: =IF(Y$4="",0,IF($E13="kWh",VLOOKUP(Y$4,'4. Billing Determinants (old)'!$B$19:$N$41,4,0)/'4. Billing Determinants (old)'!$E$41*$D13,IF($E13="kW",VLOOKUP(Y$4,'4. Billing Determinants (old)'!$B$19:$N$41,5,0)/'4. Billing Determinants (old)'!$F$41*$D13,IF($E13="Non-RPP kWh",VLOOKUP(Y$4,'4. Billing Determinants (old)'!$B$19:$N$41,6,0)/'4. Billing Determinants (old)'!$G$41*$D13,IF($E13="Distribution Rev.",VLOOKUP(Y$4,'4. Billing Determinants (old)'!$B$19:$N$41,8,0)/'4. Billing Determinants (old)'!$I$41*$D13, VLOOKUP(Y$4,'4. Billing Determinants (old)'!$B$19:$N$41,3,0)/'4. Billing Determinants (old)'!$D$41*$D13))))) -> 0
B14: Disposition and Recovery/Refund of Regulatory Balances (2010) | C14: 1595 | D14: ='2. 2013 Continuity Schedule'!CG34 -> -320296.2865 | E14: kWh | F14: =IF(F$4="",0,IF($E14="kWh",VLOOKUP(F$4,'4. Billing Determinants (old)'!$B$19:$N$41,4,0)/'4. Billing Determinants (old)'!$E$41*$D14,IF($E14="kW",VLOOKUP(F$4,'4. Billing Determinants (old)'!$B$19:$N$41,5,0)/'4. Billing Determinants (old)'!$F$41*$D14,IF($E14="Non-RPP kWh",VLOOKUP(F$4,'4. Billing Determinants (old)'!$B$19:$N$41,6,0)/'4. Billing Determinants (old)'!$G$41*$D14,IF($E14="Distribution Rev.",VLOOKUP(F$4,'4. Billing Determinants (old)'!$B$19:$N$41,8,0)/'4. Billing Determinants (old)'!$I$41*$D14, VLOOKUP(F$4,'4. Billing Determinants (old)'!$B$19:$N$41,3,0)/'4. Billing Determinants (old)'!$D$41*$D14))))) -> 0 | G14: =IF(G$4="",0,IF($E14="kWh",VLOOKUP(G$4,'4. Billing Determinants (old)'!$B$19:$N$41,4,0)/'4. Billing Determinants (old)'!$E$41*$D14,IF($E14="kW",VLOOKUP(G$4,'4. Billing Determinants (old)'!$B$19:$N$41,5,0)/'4. Billing Determinants (old)'!$F$41*$D14,IF($E14="Non-RPP kWh",VLOOKUP(G$4,'4. Billing Determinants (old)'!$B$19:$N$41,6,0)/'4. Billing Determinants (old)'!$G$41*$D14,IF($E14="Distribution Rev.",VLOOKUP(G$4,'4. Billing Determinants (old)'!$B$19:$N$41,8,0)/'4. Billing Determinants (old)'!$I$41*$D14, VLOOKUP(G$4,'4. Billing Determinants (old)'!$B$19:$N$41,3,0)/'4. Billing Determinants (old)'!$D$41*$D14))))) -> 0 | H14: =IF(H$4="",0,IF($E14="kWh",VLOOKUP(H$4,'4. Billing Determinants (old)'!$B$19:$N$41,4,0)/'4. Billing Determinants (old)'!$E$41*$D14,IF($E14="kW",VLOOKUP(H$4,'4. Billing Determinants (old)'!$B$19:$N$41,5,0)/'4. Billing Determinants (old)'!$F$41*$D14,IF($E14="Non-RPP kWh",VLOOKUP(H$4,'4. Billing Determinants (old)'!$B$19:$N$41,6,0)/'4. Billing Determinants (old)'!$G$41*$D14,IF($E14="Distribution Rev.",VLOOKUP(H$4,'4. Billing Determinants (old)'!$B$19:$N$41,8,0)/'4. Billing Determinants (old)'!$I$41*$D14, VLOOKUP(H$4,'4. Billing Determinants (old)'!$B$19:$N$41,3,0)/'4. Billing Determinants (old)'!$D$41*$D14))))) -> 0 | I14: =IF(I$4="",0,IF($E14="kWh",VLOOKUP(I$4,'4. Billing Determinants (old)'!$B$19:$N$41,4,0)/'4. Billing Determinants (old)'!$E$41*$D14,IF($E14="kW",VLOOKUP(I$4,'4. Billing Determinants (old)'!$B$19:$N$41,5,0)/'4. Billing Determinants (old)'!$F$41*$D14,IF($E14="Non-RPP kWh",VLOOKUP(I$4,'4. Billing Determinants (old)'!$B$19:$N$41,6,0)/'4. Billing Determinants (old)'!$G$41*$D14,IF($E14="Distribution Rev.",VLOOKUP(I$4,'4. Billing Determinants (old)'!$B$19:$N$41,8,0)/'4. Billing Determinants (old)'!$I$41*$D14, VLOOKUP(I$4,'4. Billing Determinants (old)'!$B$19:$N$41,3,0)/'4. Billing Determinants (old)'!$D$41*$D14))))) -> 0 | J14: =IF(J$4="",0,IF($E14="kWh",VLOOKUP(J$4,'4. Billing Determinants (old)'!$B$19:$N$41,4,0)/'4. Billing Determinants (old)'!$E$41*$D14,IF($E14="kW",VLOOKUP(J$4,'4. Billing Determinants (old)'!$B$19:$N$41,5,0)/'4. Billing Determinants (old)'!$F$41*$D14,IF($E14="Non-RPP kWh",VLOOKUP(J$4,'4. Billing Determinants (old)'!$B$19:$N$41,6,0)/'4. Billing Determinants (old)'!$G$41*$D14,IF($E14="Distribution Rev.",VLOOKUP(J$4,'4. Billing Determinants (old)'!$B$19:$N$41,8,0)/'4. Billing Determinants (old)'!$I$41*$D14, VLOOKUP(J$4,'4. Billing Determinants (old)'!$B$19:$N$41,3,0)/'4. Billing Determinants (old)'!$D$41*$D14))))) -> 0 | K14: =IF(K$4="",0,IF($E14="kWh",VLOOKUP(K$4,'4. Billing Determinants (old)'!$B$19:$N$41,4,0)/'4. Billing Determinants (old)'!$E$41*$D14,IF($E14="kW",VLOOKUP(K$4,'4. Billing Determinants (old)'!$B$19:$N$41,5,0)/'4. Billing Determinants (old)'!$F$41*$D14,IF($E14="Non-RPP kWh",VLOOKUP(K$4,'4. Billing Determinants (old)'!$B$19:$N$41,6,0)/'4. Billing Determinants (old)'!$G$41*$D14,IF($E14="Distribution Rev.",VLOOKUP(K$4,'4. Billing Determinants (old)'!$B$19:$N$41,8,0)/'4. Billing Determinants (old)'!$I$41*$D14, VLOOKUP(K$4,'4. Billing Determinants (old)'!$B$19:$N$41,3,0)/'4. Billing Determinants (old)'!$D$41*$D14))))) -> 0 | L14: =IF(L$4="",0,IF($E14="kWh",VLOOKUP(L$4,'4. Billing Determinants (old)'!$B$19:$N$41,4,0)/'4. Billing Determinants (old)'!$E$41*$D14,IF($E14="kW",VLOOKUP(L$4,'4. Billing Determinants (old)'!$B$19:$N$41,5,0)/'4. Billing Determinants (old)'!$F$41*$D14,IF($E14="Non-RPP kWh",VLOOKUP(L$4,'4. Billing Determinants (old)'!$B$19:$N$41,6,0)/'4. Billing Determinants (old)'!$G$41*$D14,IF($E14="Distribution Rev.",VLOOKUP(L$4,'4. Billing Determinants (old)'!$B$19:$N$41,8,0)/'4. Billing Determinants (old)'!$I$41*$D14, VLOOKUP(L$4,'4. Billing Determinants (old)'!$B$19:$N$41,3,0)/'4. Billing Determinants (old)'!$D$41*$D14))))) -> 0 | M14: =IF(M$4="",0,IF($E14="kWh",VLOOKUP(M$4,'4. Billing Determinants (old)'!$B$19:$N$41,4,0)/'4. Billing Determinants (old)'!$E$41*$D14,IF($E14="kW",VLOOKUP(M$4,'4. Billing Determinants (old)'!$B$19:$N$41,5,0)/'4. Billing Determinants (old)'!$F$41*$D14,IF($E14="Non-RPP kWh",VLOOKUP(M$4,'4. Billing Determinants (old)'!$B$19:$N$41,6,0)/'4. Billing Determinants (old)'!$G$41*$D14,IF($E14="Distribution Rev.",VLOOKUP(M$4,'4. Billing Determinants (old)'!$B$19:$N$41,8,0)/'4. Billing Determinants (old)'!$I$41*$D14, VLOOKUP(M$4,'4. Billing Determinants (old)'!$B$19:$N$41,3,0)/'4. Billing Determinants (old)'!$D$41*$D14))))) -> 0 | N14: =IF(N$4="",0,IF($E14="kWh",VLOOKUP(N$4,'4. Billing Determinants (old)'!$B$19:$N$41,4,0)/'4. Billing Determinants (old)'!$E$41*$D14,IF($E14="kW",VLOOKUP(N$4,'4. Billing Determinants (old)'!$B$19:$N$41,5,0)/'4. Billing Determinants (old)'!$F$41*$D14,IF($E14="Non-RPP kWh",VLOOKUP(N$4,'4. Billing Determinants (old)'!$B$19:$N$41,6,0)/'4. Billing Determinants (old)'!$G$41*$D14,IF($E14="Distribution Rev.",VLOOKUP(N$4,'4. Billing Determinants (old)'!$B$19:$N$41,8,0)/'4. Billing Determinants (old)'!$I$41*$D14, VLOOKUP(N$4,'4. Billing Determinants (old)'!$B$19:$N$41,3,0)/'4. Billing Determinants (old)'!$D$41*$D14))))) -> 0 | O14: =IF(O$4="",0,IF($E14="kWh",VLOOKUP(O$4,'4. Billing Determinants (old)'!$B$19:$N$41,4,0)/'4. Billing Determinants (old)'!$E$41*$D14,IF($E14="kW",VLOOKUP(O$4,'4. Billing Determinants (old)'!$B$19:$N$41,5,0)/'4. Billing Determinants (old)'!$F$41*$D14,IF($E14="Non-RPP kWh",VLOOKUP(O$4,'4. Billing Determinants (old)'!$B$19:$N$41,6,0)/'4. Billing Determinants (old)'!$G$41*$D14,IF($E14="Distribution Rev.",VLOOKUP(O$4,'4. Billing Determinants (old)'!$B$19:$N$41,8,0)/'4. Billing Determinants (old)'!$I$41*$D14, VLOOKUP(O$4,'4. Billing Determinants (old)'!$B$19:$N$41,3,0)/'4. Billing Determinants (old)'!$D$41*$D14))))) -> 0 | P14: =IF(P$4="",0,IF($E14="kWh",VLOOKUP(P$4,'4. Billing Determinants (old)'!$B$19:$N$41,4,0)/'4. Billing Determinants (old)'!$E$41*$D14,IF($E14="kW",VLOOKUP(P$4,'4. Billing Determinants (old)'!$B$19:$N$41,5,0)/'4. Billing Determinants (old)'!$F$41*$D14,IF($E14="Non-RPP kWh",VLOOKUP(P$4,'4. Billing Determinants (old)'!$B$19:$N$41,6,0)/'4. Billing Determinants (old)'!$G$41*$D14,IF($E14="Distribution Rev.",VLOOKUP(P$4,'4. Billing Determinants (old)'!$B$19:$N$41,8,0)/'4. Billing Determinants (old)'!$I$41*$D14, VLOOKUP(P$4,'4. Billing Determinants (old)'!$B$19:$N$41,3,0)/'4. Billing Determinants (old)'!$D$41*$D14))))) -> 0 | Q14: =IF(Q$4="",0,IF($E14="kWh",VLOOKUP(Q$4,'4. Billing Determinants (old)'!$B$19:$N$41,4,0)/'4. Billing Determinants (old)'!$E$41*$D14,IF($E14="kW",VLOOKUP(Q$4,'4. Billing Determinants (old)'!$B$19:$N$41,5,0)/'4. Billing Determinants (old)'!$F$41*$D14,IF($E14="Non-RPP kWh",VLOOKUP(Q$4,'4. Billing Determinants (old)'!$B$19:$N$41,6,0)/'4. Billing Determinants (old)'!$G$41*$D14,IF($E14="Distribution Rev.",VLOOKUP(Q$4,'4. Billing Determinants (old)'!$B$19:$N$41,8,0)/'4. Billing Determinants (old)'!$I$41*$D14, VLOOKUP(Q$4,'4. Billing Determinants (old)'!$B$19:$N$41,3,0)/'4. Billing Determinants (old)'!$D$41*$D14))))) -> 0 | R14: =IF(R$4="",0,IF($E14="kWh",VLOOKUP(R$4,'4. Billing Determinants (old)'!$B$19:$N$41,4,0)/'4. Billing Determinants (old)'!$E$41*$D14,IF($E14="kW",VLOOKUP(R$4,'4. Billing Determinants (old)'!$B$19:$N$41,5,0)/'4. Billing Determinants (old)'!$F$41*$D14,IF($E14="Non-RPP kWh",VLOOKUP(R$4,'4. Billing Determinants (old)'!$B$19:$N$41,6,0)/'4. Billing Determinants (old)'!$G$41*$D14,IF($E14="Distribution Rev.",VLOOKUP(R$4,'4. Billing Determinants (old)'!$B$19:$N$41,8,0)/'4. Billing Determinants (old)'!$I$41*$D14, VLOOKUP(R$4,'4. Billing Determinants (old)'!$B$19:$N$41,3,0)/'4. Billing Determinants (old)'!$D$41*$D14))))) -> 0 | S14: =IF(S$4="",0,IF($E14="kWh",VLOOKUP(S$4,'4. Billing Determinants (old)'!$B$19:$N$41,4,0)/'4. Billing Determinants (old)'!$E$41*$D14,IF($E14="kW",VLOOKUP(S$4,'4. Billing Determinants (old)'!$B$19:$N$41,5,0)/'4. Billing Determinants (old)'!$F$41*$D14,IF($E14="Non-RPP kWh",VLOOKUP(S$4,'4. Billing Determinants (old)'!$B$19:$N$41,6,0)/'4. Billing Determinants (old)'!$G$41*$D14,IF($E14="Distribution Rev.",VLOOKUP(S$4,'4. Billing Determinants (old)'!$B$19:$N$41,8,0)/'4. Billing Determinants (old)'!$I$41*$D14, VLOOKUP(S$4,'4. Billing Determinants (old)'!$B$19:$N$41,3,0)/'4. Billing Determinants (old)'!$D$41*$D14))))) -> 0 | T14: =IF(T$4="",0,IF($E14="kWh",VLOOKUP(T$4,'4. Billing Determinants (old)'!$B$19:$N$41,4,0)/'4. Billing Determinants (old)'!$E$41*$D14,IF($E14="kW",VLOOKUP(T$4,'4. Billing Determinants (old)'!$B$19:$N$41,5,0)/'4. Billing Determinants (old)'!$F$41*$D14,IF($E14="Non-RPP kWh",VLOOKUP(T$4,'4. Billing Determinants (old)'!$B$19:$N$41,6,0)/'4. Billing Determinants (old)'!$G$41*$D14,IF($E14="Distribution Rev.",VLOOKUP(T$4,'4. Billing Determinants (old)'!$B$19:$N$41,8,0)/'4. Billing Determinants (old)'!$I$41*$D14, VLOOKUP(T$4,'4. Billing Determinants (old)'!$B$19:$N$41,3,0)/'4. Billing Determinants (old)'!$D$41*$D14))))) -> 0 | U14: =IF(U$4="",0,IF($E14="kWh",VLOOKUP(U$4,'4. Billing Determinants (old)'!$B$19:$N$41,4,0)/'4. Billing Determinants (old)'!$E$41*$D14,IF($E14="kW",VLOOKUP(U$4,'4. Billing Determinants (old)'!$B$19:$N$41,5,0)/'4. Billing Determinants (old)'!$F$41*$D14,IF($E14="Non-RPP kWh",VLOOKUP(U$4,'4. Billing Determinants (old)'!$B$19:$N$41,6,0)/'4. Billing Determinants (old)'!$G$41*$D14,IF($E14="Distribution Rev.",VLOOKUP(U$4,'4. Billing Determinants (old)'!$B$19:$N$41,8,0)/'4. Billing Determinants (old)'!$I$41*$D14, VLOOKUP(U$4,'4. Billing Determinants (old)'!$B$19:$N$41,3,0)/'4. Billing Determinants (old)'!$D$41*$D14))))) -> 0 | V14: =IF(V$4="",0,IF($E14="kWh",VLOOKUP(V$4,'4. Billing Determinants (old)'!$B$19:$N$41,4,0)/'4. Billing Determinants (old)'!$E$41*$D14,IF($E14="kW",VLOOKUP(V$4,'4. Billing Determinants (old)'!$B$19:$N$41,5,0)/'4. Billing Determinants (old)'!$F$41*$D14,IF($E14="Non-RPP kWh",VLOOKUP(V$4,'4. Billing Determinants (old)'!$B$19:$N$41,6,0)/'4. Billing Determinants (old)'!$G$41*$D14,IF($E14="Distribution Rev.",VLOOKUP(V$4,'4. Billing Determinants (old)'!$B$19:$N$41,8,0)/'4. Billing Determinants (old)'!$I$41*$D14, VLOOKUP(V$4,'4. Billing Determinants (old)'!$B$19:$N$41,3,0)/'4. Billing Determinants (old)'!$D$41*$D14))))) -> 0 | W14: =IF(W$4="",0,IF($E14="kWh",VLOOKUP(W$4,'4. Billing Determinants (old)'!$B$19:$N$41,4,0)/'4. Billing Determinants (old)'!$E$41*$D14,IF($E14="kW",VLOOKUP(W$4,'4. Billing Determinants (old)'!$B$19:$N$41,5,0)/'4. Billing Determinants (old)'!$F$41*$D14,IF($E14="Non-RPP kWh",VLOOKUP(W$4,'4. Billing Determinants (old)'!$B$19:$N$41,6,0)/'4. Billing Determinants (old)'!$G$41*$D14,IF($E14="Distribution Rev.",VLOOKUP(W$4,'4. Billing Determinants (old)'!$B$19:$N$41,8,0)/'4. Billing Determinants (old)'!$I$41*$D14, VLOOKUP(W$4,'4. Billing Determinants (old)'!$B$19:$N$41,3,0)/'4. Billing Determinants (old)'!$D$41*$D14))))) -> 0 | X14: =IF(X$4="",0,IF($E14="kWh",VLOOKUP(X$4,'4. Billing Determinants (old)'!$B$19:$N$41,4,0)/'4. Billing Determinants (old)'!$E$41*$D14,IF($E14="kW",VLOOKUP(X$4,'4. Billing Determinants (old)'!$B$19:$N$41,5,0)/'4. Billing Determinants (old)'!$F$41*$D14,IF($E14="Non-RPP kWh",VLOOKUP(X$4,'4. Billing Determinants (old)'!$B$19:$N$41,6,0)/'4. Billing Determinants (old)'!$G$41*$D14,IF($E14="Distribution Rev.",VLOOKUP(X$4,'4. Billing Determinants (old)'!$B$19:$N$41,8,0)/'4. Billing Determinants (old)'!$I$41*$D14, VLOOKUP(X$4,'4. Billing Determinants (old)'!$B$19:$N$41,3,0)/'4. Billing Determinants (old)'!$D$41*$D14))))) -> 0 | Y14: =IF(Y$4="",0,IF($E14="kWh",VLOOKUP(Y$4,'4. Billing Determinants (old)'!$B$19:$N$41,4,0)/'4. Billing Determinants (old)'!$E$41*$D14,IF($E14="kW",VLOOKUP(Y$4,'4. Billing Determinants (old)'!$B$19:$N$41,5,0)/'4. Billing Determinants (old)'!$F$41*$D14,IF($E14="Non-RPP kWh",VLOOKUP(Y$4,'4. Billing Determinants (old)'!$B$19:$N$41,6,0)/'4. Billing Determinants (old)'!$G$41*$D14,IF($E14="Distribution Rev.",VLOOKUP(Y$4,'4. Billing Determinants (old)'!$B$19:$N$41,8,0)/'4. Billing Determinants (old)'!$I$41*$D14, VLOOKUP(Y$4,'4. Billing Determinants (old)'!$B$19:$N$41,3,0)/'4. Billing Determinants (old)'!$D$41*$D14))))) -> 0
B15: Total of Group 1 Accounts (excluding 1588 sub-account) | D15: =SUM(D5:D14)-D10 -> -5242942.035 | F15: =SUM(F5:F14)-F10 -> 0 | G15: =SUM(G5:G14)-G10 -> 0 | H15: 0 | I15: 0 | J15: 0 | K15: 0 | L15: 0 | M15: 0 | N15: 0 | O15: 0 | P15: 0 | Q15: 0 | R15: 0 | S15: 0 | T15: 0 | U15: 0 | V15: 0 | W15: 0 | X15: 0 | Y15: 0
B17: Other Regulatory Assets - Sub-Account - OEB Cost Assessments | C17: 1508 | D17: ='2. 2013 Continuity Schedule'!#REF! ->  | F17: =IF(F$4="",0,IF($E17="kWh",VLOOKUP(F$4,'4. Billing Determinants (old)'!$B$19:$N$41,4,0)/'4. Billing Determinants (old)'!$E$41*$D17,IF($E17="kW",VLOOKUP(F$4,'4. Billing Determinants (old)'!$B$19:$N$41,5,0)/'4. Billing Determinants (old)'!$F$41*$D17,IF($E17="Non-RPP kWh",VLOOKUP(F$4,'4. Billing Determinants (old)'!$B$19:$N$41,6,0)/'4. Billing Determinants (old)'!$G$41*$D17,IF($E17="Distribution Rev.",VLOOKUP(F$4,'4. Billing Determinants (old)'!$B$19:$N$41,8,0)/'4. Billing Determinants (old)'!$I$41*$D17, VLOOKUP(F$4,'4. Billing Determinants (old)'!$B$19:$N$41,3,0)/'4. Billing Determinants (old)'!$D$41*$D17))))) -> 0 | G17: =IF(G$4="",0,IF($E17="kWh",VLOOKUP(G$4,'4. Billing Determinants (old)'!$B$19:$N$41,4,0)/'4. Billing Determinants (old)'!$E$41*$D17,IF($E17="kW",VLOOKUP(G$4,'4. Billing Determinants (old)'!$B$19:$N$41,5,0)/'4. Billing Determinants (old)'!$F$41*$D17,IF($E17="Non-RPP kWh",VLOOKUP(G$4,'4. Billing Determinants (old)'!$B$19:$N$41,6,0)/'4. Billing Determinants (old)'!$G$41*$D17,IF($E17="Distribution Rev.",VLOOKUP(G$4,'4. Billing Determinants (old)'!$B$19:$N$41,8,0)/'4. Billing Determinants (old)'!$I$41*$D17, VLOOKUP(G$4,'4. Billing Determinants (old)'!$B$19:$N$41,3,0)/'4. Billing Determinants (old)'!$D$41*$D17))))) -> 0 | H17: =IF(H$4="",0,IF($E17="kWh",VLOOKUP(H$4,'4. Billing Determinants (old)'!$B$19:$N$41,4,0)/'4. Billing Determinants (old)'!$E$41*$D17,IF($E17="kW",VLOOKUP(H$4,'4. Billing Determinants (old)'!$B$19:$N$41,5,0)/'4. Billing Determinants (old)'!$F$41*$D17,IF($E17="Non-RPP kWh",VLOOKUP(H$4,'4. Billing Determinants (old)'!$B$19:$N$41,6,0)/'4. Billing Determinants (old)'!$G$41*$D17,IF($E17="Distribution Rev.",VLOOKUP(H$4,'4. Billing Determinants (old)'!$B$19:$N$41,8,0)/'4. Billing Determinants (old)'!$I$41*$D17, VLOOKUP(H$4,'4. Billing Determinants (old)'!$B$19:$N$41,3,0)/'4. Billing Determinants (old)'!$D$41*$D17))))) -> 0 | I17: =IF(I$4="",0,IF($E17="kWh",VLOOKUP(I$4,'4. Billing Determinants (old)'!$B$19:$N$41,4,0)/'4. Billing Determinants (old)'!$E$41*$D17,IF($E17="kW",VLOOKUP(I$4,'4. Billing Determinants (old)'!$B$19:$N$41,5,0)/'4. Billing Determinants (old)'!$F$41*$D17,IF($E17="Non-RPP kWh",VLOOKUP(I$4,'4. Billing Determinants (old)'!$B$19:$N$41,6,0)/'4. Billing Determinants (old)'!$G$41*$D17,IF($E17="Distribution Rev.",VLOOKUP(I$4,'4. Billing Determinants (old)'!$B$19:$N$41,8,0)/'4. Billing Determinants (old)'!$I$41*$D17, VLOOKUP(I$4,'4. Billing Determinants (old)'!$B$19:$N$41,3,0)/'4. Billing Determinants (old)'!$D$41*$D17))))) -> 0 | J17: =IF(J$4="",0,IF($E17="kWh",VLOOKUP(J$4,'4. Billing Determinants (old)'!$B$19:$N$41,4,0)/'4. Billing Determinants (old)'!$E$41*$D17,IF($E17="kW",VLOOKUP(J$4,'4. Billing Determinants (old)'!$B$19:$N$41,5,0)/'4. Billing Determinants (old)'!$F$41*$D17,IF($E17="Non-RPP kWh",VLOOKUP(J$4,'4. Billing Determinants (old)'!$B$19:$N$41,6,0)/'4. Billing Determinants (old)'!$G$41*$D17,IF($E17="Distribution Rev.",VLOOKUP(J$4,'4. Billing Determinants (old)'!$B$19:$N$41,8,0)/'4. Billing Determinants (old)'!$I$41*$D17, VLOOKUP(J$4,'4. Billing Determinants (old)'!$B$19:$N$41,3,0)/'4. Billing Determinants (old)'!$D$41*$D17))))) -> 0 | K17: =IF(K$4="",0,IF($E17="kWh",VLOOKUP(K$4,'4. Billing Determinants (old)'!$B$19:$N$41,4,0)/'4. Billing Determinants (old)'!$E$41*$D17,IF($E17="kW",VLOOKUP(K$4,'4. Billing Determinants (old)'!$B$19:$N$41,5,0)/'4. Billing Determinants (old)'!$F$41*$D17,IF($E17="Non-RPP kWh",VLOOKUP(K$4,'4. Billing Determinants (old)'!$B$19:$N$41,6,0)/'4. Billing Determinants (old)'!$G$41*$D17,IF($E17="Distribution Rev.",VLOOKUP(K$4,'4. Billing Determinants (old)'!$B$19:$N$41,8,0)/'4. Billing Determinants (old)'!$I$41*$D17, VLOOKUP(K$4,'4. Billing Determinants (old)'!$B$19:$N$41,3,0)/'4. Billing Determinants (old)'!$D$41*$D17))))) -> 0 | L17: =IF(L$4="",0,IF($E17="kWh",VLOOKUP(L$4,'4. Billing Determinants (old)'!$B$19:$N$41,4,0)/'4. Billing Determinants (old)'!$E$41*$D17,IF($E17="kW",VLOOKUP(L$4,'4. Billing Determinants (old)'!$B$19:$N$41,5,0)/'4. Billing Determinants (old)'!$F$41*$D17,IF($E17="Non-RPP kWh",VLOOKUP(L$4,'4. Billing Determinants (old)'!$B$19:$N$41,6,0)/'4. Billing Determinants (old)'!$G$41*$D17,IF($E17="Distribution Rev.",VLOOKUP(L$4,'4. Billing Determinants (old)'!$B$19:$N$41,8,0)/'4. Billing Determinants (old)'!$I$41*$D17, VLOOKUP(L$4,'4. Billing Determinants (old)'!$B$19:$N$41,3,0)/'4. Billing Determinants (old)'!$D$41*$D17))))) -> 0 | M17: =IF(M$4="",0,IF($E17="kWh",VLOOKUP(M$4,'4. Billing Determinants (old)'!$B$19:$N$41,4,0)/'4. Billing Determinants (old)'!$E$41*$D17,IF($E17="kW",VLOOKUP(M$4,'4. Billing Determinants (old)'!$B$19:$N$41,5,0)/'4. Billing Determinants (old)'!$F$41*$D17,IF($E17="Non-RPP kWh",VLOOKUP(M$4,'4. Billing Determinants (old)'!$B$19:$N$41,6,0)/'4. Billing Determinants (old)'!$G$41*$D17,IF($E17="Distribution Rev.",VLOOKUP(M$4,'4. Billing Determinants (old)'!$B$19:$N$41,8,0)/'4. Billing Determinants (old)'!$I$41*$D17, VLOOKUP(M$4,'4. Billing Determinants (old)'!$B$19:$N$41,3,0)/'4. Billing Determinants (old)'!$D$41*$D17))))) -> 0 | N17: =IF(N$4="",0,IF($E17="kWh",VLOOKUP(N$4,'4. Billing Determinants (old)'!$B$19:$N$41,4,0)/'4. Billing Determinants (old)'!$E$41*$D17,IF($E17="kW",VLOOKUP(N$4,'4. Billing Determinants (old)'!$B$19:$N$41,5,0)/'4. Billing Determinants (old)'!$F$41*$D17,IF($E17="Non-RPP kWh",VLOOKUP(N$4,'4. Billing Determinants (old)'!$B$19:$N$41,6,0)/'4. Billing Determinants (old)'!$G$41*$D17,IF($E17="Distribution Rev.",VLOOKUP(N$4,'4. Billing Determinants (old)'!$B$19:$N$41,8,0)/'4. Billing Determinants (old)'!$I$41*$D17, VLOOKUP(N$4,'4. Billing Determinants (old)'!$B$19:$N$41,3,0)/'4. Billing Determinants (old)'!$D$41*$D17))))) -> 0 | O17: =IF(O$4="",0,IF($E17="kWh",VLOOKUP(O$4,'4. Billing Determinants (old)'!$B$19:$N$41,4,0)/'4. Billing Determinants (old)'!$E$41*$D17,IF($E17="kW",VLOOKUP(O$4,'4. Billing Determinants (old)'!$B$19:$N$41,5,0)/'4. Billing Determinants (old)'!$F$41*$D17,IF($E17="Non-RPP kWh",VLOOKUP(O$4,'4. Billing Determinants (old)'!$B$19:$N$41,6,0)/'4. Billing Determinants (old)'!$G$41*$D17,IF($E17="Distribution Rev.",VLOOKUP(O$4,'4. Billing Determinants (old)'!$B$19:$N$41,8,0)/'4. Billing Determinants (old)'!$I$41*$D17, VLOOKUP(O$4,'4. Billing Determinants (old)'!$B$19:$N$41,3,0)/'4. Billing Determinants (old)'!$D$41*$D17))))) -> 0 | P17: =IF(P$4="",0,IF($E17="kWh",VLOOKUP(P$4,'4. Billing Determinants (old)'!$B$19:$N$41,4,0)/'4. Billing Determinants (old)'!$E$41*$D17,IF($E17="kW",VLOOKUP(P$4,'4. Billing Determinants (old)'!$B$19:$N$41,5,0)/'4. Billing Determinants (old)'!$F$41*$D17,IF($E17="Non-RPP kWh",VLOOKUP(P$4,'4. Billing Determinants (old)'!$B$19:$N$41,6,0)/'4. Billing Determinants (old)'!$G$41*$D17,IF($E17="Distribution Rev.",VLOOKUP(P$4,'4. Billing Determinants (old)'!$B$19:$N$41,8,0)/'4. Billing Determinants (old)'!$I$41*$D17, VLOOKUP(P$4,'4. Billing Determinants (old)'!$B$19:$N$41,3,0)/'4. Billing Determinants (old)'!$D$41*$D17))))) -> 0 | Q17: =IF(Q$4="",0,IF($E17="kWh",VLOOKUP(Q$4,'4. Billing Determinants (old)'!$B$19:$N$41,4,0)/'4. Billing Determinants (old)'!$E$41*$D17,IF($E17="kW",VLOOKUP(Q$4,'4. Billing Determinants (old)'!$B$19:$N$41,5,0)/'4. Billing Determinants (old)'!$F$41*$D17,IF($E17="Non-RPP kWh",VLOOKUP(Q$4,'4. Billing Determinants (old)'!$B$19:$N$41,6,0)/'4. Billing Determinants (old)'!$G$41*$D17,IF($E17="Distribution Rev.",VLOOKUP(Q$4,'4. Billing Determinants (old)'!$B$19:$N$41,8,0)/'4. Billing Determinants (old)'!$I$41*$D17, VLOOKUP(Q$4,'4. Billing Determinants (old)'!$B$19:$N$41,3,0)/'4. Billing Determinants (old)'!$D$41*$D17))))) -> 0 | R17: =IF(R$4="",0,IF($E17="kWh",VLOOKUP(R$4,'4. Billing Determinants (old)'!$B$19:$N$41,4,0)/'4. Billing Determinants (old)'!$E$41*$D17,IF($E17="kW",VLOOKUP(R$4,'4. Billing Determinants (old)'!$B$19:$N$41,5,0)/'4. Billing Determinants (old)'!$F$41*$D17,IF($E17="Non-RPP kWh",VLOOKUP(R$4,'4. Billing Determinants (old)'!$B$19:$N$41,6,0)/'4. Billing Determinants (old)'!$G$41*$D17,IF($E17="Distribution Rev.",VLOOKUP(R$4,'4. Billing Determinants (old)'!$B$19:$N$41,8,0)/'4. Billing Determinants (old)'!$I$41*$D17, VLOOKUP(R$4,'4. Billing Determinants (old)'!$B$19:$N$41,3,0)/'4. Billing Determinants (old)'!$D$41*$D17))))) -> 0 | S17: =IF(S$4="",0,IF($E17="kWh",VLOOKUP(S$4,'4. Billing Determinants (old)'!$B$19:$N$41,4,0)/'4. Billing Determinants (old)'!$E$41*$D17,IF($E17="kW",VLOOKUP(S$4,'4. Billing Determinants (old)'!$B$19:$N$41,5,0)/'4. Billing Determinants (old)'!$F$41*$D17,IF($E17="Non-RPP kWh",VLOOKUP(S$4,'4. Billing Determinants (old)'!$B$19:$N$41,6,0)/'4. Billing Determinants (old)'!$G$41*$D17,IF($E17="Distribution Rev.",VLOOKUP(S$4,'4. Billing Determinants (old)'!$B$19:$N$41,8,0)/'4. Billing Determinants (old)'!$I$41*$D17, VLOOKUP(S$4,'4. Billing Determinants (old)'!$B$19:$N$41,3,0)/'4. Billing Determinants (old)'!$D$41*$D17))))) -> 0 | T17: =IF(T$4="",0,IF($E17="kWh",VLOOKUP(T$4,'4. Billing Determinants (old)'!$B$19:$N$41,4,0)/'4. Billing Determinants (old)'!$E$41*$D17,IF($E17="kW",VLOOKUP(T$4,'4. Billing Determinants (old)'!$B$19:$N$41,5,0)/'4. Billing Determinants (old)'!$F$41*$D17,IF($E17="Non-RPP kWh",VLOOKUP(T$4,'4. Billing Determinants (old)'!$B$19:$N$41,6,0)/'4. Billing Determinants (old)'!$G$41*$D17,IF($E17="Distribution Rev.",VLOOKUP(T$4,'4. Billing Determinants (old)'!$B$19:$N$41,8,0)/'4. Billing Determinants (old)'!$I$41*$D17, VLOOKUP(T$4,'4. Billing Determinants (old)'!$B$19:$N$41,3,0)/'4. Billing Determinants (old)'!$D$41*$D17))))) -> 0 | U17: =IF(U$4="",0,IF($E17="kWh",VLOOKUP(U$4,'4. Billing Determinants (old)'!$B$19:$N$41,4,0)/'4. Billing Determinants (old)'!$E$41*$D17,IF($E17="kW",VLOOKUP(U$4,'4. Billing Determinants (old)'!$B$19:$N$41,5,0)/'4. Billing Determinants (old)'!$F$41*$D17,IF($E17="Non-RPP kWh",VLOOKUP(U$4,'4. Billing Determinants (old)'!$B$19:$N$41,6,0)/'4. Billing Determinants (old)'!$G$41*$D17,IF($E17="Distribution Rev.",VLOOKUP(U$4,'4. Billing Determinants (old)'!$B$19:$N$41,8,0)/'4. Billing Determinants (old)'!$I$41*$D17, VLOOKUP(U$4,'4. Billing Determinants (old)'!$B$19:$N$41,3,0)/'4. Billing Determinants (old)'!$D$41*$D17))))) -> 0 | V17: =IF(V$4="",0,IF($E17="kWh",VLOOKUP(V$4,'4. Billing Determinants (old)'!$B$19:$N$41,4,0)/'4. Billing Determinants (old)'!$E$41*$D17,IF($E17="kW",VLOOKUP(V$4,'4. Billing Determinants (old)'!$B$19:$N$41,5,0)/'4. Billing Determinants (old)'!$F$41*$D17,IF($E17="Non-RPP kWh",VLOOKUP(V$4,'4. Billing Determinants (old)'!$B$19:$N$41,6,0)/'4. Billing Determinants (old)'!$G$41*$D17,IF($E17="Distribution Rev.",VLOOKUP(V$4,'4. Billing Determinants (old)'!$B$19:$N$41,8,0)/'4. Billing Determinants (old)'!$I$41*$D17, VLOOKUP(V$4,'4. Billing Determinants (old)'!$B$19:$N$41,3,0)/'4. Billing Determinants (old)'!$D$41*$D17))))) -> 0 | W17: =IF(W$4="",0,IF($E17="kWh",VLOOKUP(W$4,'4. Billing Determinants (old)'!$B$19:$N$41,4,0)/'4. Billing Determinants (old)'!$E$41*$D17,IF($E17="kW",VLOOKUP(W$4,'4. Billing Determinants (old)'!$B$19:$N$41,5,0)/'4. Billing Determinants (old)'!$F$41*$D17,IF($E17="Non-RPP kWh",VLOOKUP(W$4,'4. Billing Determinants (old)'!$B$19:$N$41,6,0)/'4. Billing Determinants (old)'!$G$41*$D17,IF($E17="Distribution Rev.",VLOOKUP(W$4,'4. Billing Determinants (old)'!$B$19:$N$41,8,0)/'4. Billing Determinants (old)'!$I$41*$D17, VLOOKUP(W$4,'4. Billing Determinants (old)'!$B$19:$N$41,3,0)/'4. Billing Determinants (old)'!$D$41*$D17))))) -> 0 | X17: =IF(X$4="",0,IF($E17="kWh",VLOOKUP(X$4,'4. Billing Determinants (old)'!$B$19:$N$41,4,0)/'4. Billing Determinants (old)'!$E$41*$D17,IF($E17="kW",VLOOKUP(X$4,'4. Billing Determinants (old)'!$B$19:$N$41,5,0)/'4. Billing Determinants (old)'!$F$41*$D17,IF($E17="Non-RPP kWh",VLOOKUP(X$4,'4. Billing Determinants (old)'!$B$19:$N$41,6,0)/'4. Billing Determinants (old)'!$G$41*$D17,IF($E17="Distribution Rev.",VLOOKUP(X$4,'4. Billing Determinants (old)'!$B$19:$N$41,8,0)/'4. Billing Determinants (old)'!$I$41*$D17, VLOOKUP(X$4,'4. Billing Determinants (old)'!$B$19:$N$41,3,0)/'4. Billing Determinants (old)'!$D$41*$D17))))) -> 0 | Y17: =IF(Y$4="",0,IF($E17="kWh",VLOOKUP(Y$4,'4. Billing Determinants (old)'!$B$19:$N$41,4,0)/'4. Billing Determinants (old)'!$E$41*$D17,IF($E17="kW",VLOOKUP(Y$4,'4. Billing Determinants (old)'!$B$19:$N$41,5,0)/'4. Billing Determinants (old)'!$F$41*$D17,IF($E17="Non-RPP kWh",VLOOKUP(Y$4,'4. Billing Determinants (old)'!$B$19:$N$41,6,0)/'4. Billing Determinants (old)'!$G$41*$D17,IF($E17="Distribution Rev.",VLOOKUP(Y$4,'4. Billing Determinants (old)'!$B$19:$N$41,8,0)/'4. Billing Determinants (old)'!$I$41*$D17, VLOOKUP(Y$4,'4. Billing Determinants (old)'!$B$19:$N$41,3,0)/'4. Billing Determinants (old)'!$D$41*$D17))))) -> 0
B18: Other Regulatory Assets - Sub-Account - Pension Contributions | C18: 1508 | D18: ='2. 2013 Continuity Schedule'!#REF! ->  | F18: =IF(F$4="",0,IF($E18="kWh",VLOOKUP(F$4,'4. Billing Determinants (old)'!$B$19:$N$41,4,0)/'4. Billing Determinants (old)'!$E$41*$D18,IF($E18="kW",VLOOKUP(F$4,'4. Billing Determinants (old)'!$B$19:$N$41,5,0)/'4. Billing Determinants (old)'!$F$41*$D18,IF($E18="Non-RPP kWh",VLOOKUP(F$4,'4. Billing Determinants (old)'!$B$19:$N$41,6,0)/'4. Billing Determinants (old)'!$G$41*$D18,IF($E18="Distribution Rev.",VLOOKUP(F$4,'4. Billing Determinants (old)'!$B$19:$N$41,8,0)/'4. Billing Determinants (old)'!$I$41*$D18, VLOOKUP(F$4,'4. Billing Determinants (old)'!$B$19:$N$41,3,0)/'4. Billing Determinants (old)'!$D$41*$D18))))) -> 0 | G18: =IF(G$4="",0,IF($E18="kWh",VLOOKUP(G$4,'4. Billing Determinants (old)'!$B$19:$N$41,4,0)/'4. Billing Determinants (old)'!$E$41*$D18,IF($E18="kW",VLOOKUP(G$4,'4. Billing Determinants (old)'!$B$19:$N$41,5,0)/'4. Billing Determinants (old)'!$F$41*$D18,IF($E18="Non-RPP kWh",VLOOKUP(G$4,'4. Billing Determinants (old)'!$B$19:$N$41,6,0)/'4. Billing Determinants (old)'!$G$41*$D18,IF($E18="Distribution Rev.",VLOOKUP(G$4,'4. Billing Determinants (old)'!$B$19:$N$41,8,0)/'4. Billing Determinants (old)'!$I$41*$D18, VLOOKUP(G$4,'4. Billing Determinants (old)'!$B$19:$N$41,3,0)/'4. Billing Determinants (old)'!$D$41*$D18))))) -> 0 | H18: =IF(H$4="",0,IF($E18="kWh",VLOOKUP(H$4,'4. Billing Determinants (old)'!$B$19:$N$41,4,0)/'4. Billing Determinants (old)'!$E$41*$D18,IF($E18="kW",VLOOKUP(H$4,'4. Billing Determinants (old)'!$B$19:$N$41,5,0)/'4. Billing Determinants (old)'!$F$41*$D18,IF($E18="Non-RPP kWh",VLOOKUP(H$4,'4. Billing Determinants (old)'!$B$19:$N$41,6,0)/'4. Billing Determinants (old)'!$G$41*$D18,IF($E18="Distribution Rev.",VLOOKUP(H$4,'4. Billing Determinants (old)'!$B$19:$N$41,8,0)/'4. Billing Determinants (old)'!$I$41*$D18, VLOOKUP(H$4,'4. Billing Determinants (old)'!$B$19:$N$41,3,0)/'4. Billing Determinants (old)'!$D$41*$D18))))) -> 0 | I18: =IF(I$4="",0,IF($E18="kWh",VLOOKUP(I$4,'4. Billing Determinants (old)'!$B$19:$N$41,4,0)/'4. Billing Determinants (old)'!$E$41*$D18,IF($E18="kW",VLOOKUP(I$4,'4. Billing Determinants (old)'!$B$19:$N$41,5,0)/'4. Billing Determinants (old)'!$F$41*$D18,IF($E18="Non-RPP kWh",VLOOKUP(I$4,'4. Billing Determinants (old)'!$B$19:$N$41,6,0)/'4. Billing Determinants (old)'!$G$41*$D18,IF($E18="Distribution Rev.",VLOOKUP(I$4,'4. Billing Determinants (old)'!$B$19:$N$41,8,0)/'4. Billing Determinants (old)'!$I$41*$D18, VLOOKUP(I$4,'4. Billing Determinants (old)'!$B$19:$N$41,3,0)/'4. Billing Determinants (old)'!$D$41*$D18))))) -> 0 | J18: =IF(J$4="",0,IF($E18="kWh",VLOOKUP(J$4,'4. Billing Determinants (old)'!$B$19:$N$41,4,0)/'4. Billing Determinants (old)'!$E$41*$D18,IF($E18="kW",VLOOKUP(J$4,'4. Billing Determinants (old)'!$B$19:$N$41,5,0)/'4. Billing Determinants (old)'!$F$41*$D18,IF($E18="Non-RPP kWh",VLOOKUP(J$4,'4. Billing Determinants (old)'!$B$19:$N$41,6,0)/'4. Billing Determinants (old)'!$G$41*$D18,IF($E18="Distribution Rev.",VLOOKUP(J$4,'4. Billing Determinants (old)'!$B$19:$N$41,8,0)/'4. Billing Determinants (old)'!$I$41*$D18, VLOOKUP(J$4,'4. Billing Determinants (old)'!$B$19:$N$41,3,0)/'4. Billing Determinants (old)'!$D$41*$D18))))) -> 0 | K18: =IF(K$4="",0,IF($E18="kWh",VLOOKUP(K$4,'4. Billing Determinants (old)'!$B$19:$N$41,4,0)/'4. Billing Determinants (old)'!$E$41*$D18,IF($E18="kW",VLOOKUP(K$4,'4. Billing Determinants (old)'!$B$19:$N$41,5,0)/'4. Billing Determinants (old)'!$F$41*$D18,IF($E18="Non-RPP kWh",VLOOKUP(K$4,'4. Billing Determinants (old)'!$B$19:$N$41,6,0)/'4. Billing Determinants (old)'!$G$41*$D18,IF($E18="Distribution Rev.",VLOOKUP(K$4,'4. Billing Determinants (old)'!$B$19:$N$41,8,0)/'4. Billing Determinants (old)'!$I$41*$D18, VLOOKUP(K$4,'4. Billing Determinants (old)'!$B$19:$N$41,3,0)/'4. Billing Determinants (old)'!$D$41*$D18))))) -> 0 | L18: =IF(L$4="",0,IF($E18="kWh",VLOOKUP(L$4,'4. Billing Determinants (old)'!$B$19:$N$41,4,0)/'4. Billing Determinants (old)'!$E$41*$D18,IF($E18="kW",VLOOKUP(L$4,'4. Billing Determinants (old)'!$B$19:$N$41,5,0)/'4. Billing Determinants (old)'!$F$41*$D18,IF($E18="Non-RPP kWh",VLOOKUP(L$4,'4. Billing Determinants (old)'!$B$19:$N$41,6,0)/'4. Billing Determinants (old)'!$G$41*$D18,IF($E18="Distribution Rev.",VLOOKUP(L$4,'4. Billing Determinants (old)'!$B$19:$N$41,8,0)/'4. Billing Determinants (old)'!$I$41*$D18, VLOOKUP(L$4,'4. Billing Determinants (old)'!$B$19:$N$41,3,0)/'4. Billing Determinants (old)'!$D$41*$D18))))) -> 0 | M18: =IF(M$4="",0,IF($E18="kWh",VLOOKUP(M$4,'4. Billing Determinants (old)'!$B$19:$N$41,4,0)/'4. Billing Determinants (old)'!$E$41*$D18,IF($E18="kW",VLOOKUP(M$4,'4. Billing Determinants (old)'!$B$19:$N$41,5,0)/'4. Billing Determinants (old)'!$F$41*$D18,IF($E18="Non-RPP kWh",VLOOKUP(M$4,'4. Billing Determinants (old)'!$B$19:$N$41,6,0)/'4. Billing Determinants (old)'!$G$41*$D18,IF($E18="Distribution Rev.",VLOOKUP(M$4,'4. Billing Determinants (old)'!$B$19:$N$41,8,0)/'4. Billing Determinants (old)'!$I$41*$D18, VLOOKUP(M$4,'4. Billing Determinants (old)'!$B$19:$N$41,3,0)/'4. Billing Determinants (old)'!$D$41*$D18))))) -> 0 | N18: =IF(N$4="",0,IF($E18="kWh",VLOOKUP(N$4,'4. Billing Determinants (old)'!$B$19:$N$41,4,0)/'4. Billing Determinants (old)'!$E$41*$D18,IF($E18="kW",VLOOKUP(N$4,'4. Billing Determinants (old)'!$B$19:$N$41,5,0)/'4. Billing Determinants (old)'!$F$41*$D18,IF($E18="Non-RPP kWh",VLOOKUP(N$4,'4. Billing Determinants (old)'!$B$19:$N$41,6,0)/'4. Billing Determinants (old)'!$G$41*$D18,IF($E18="Distribution Rev.",VLOOKUP(N$4,'4. Billing Determinants (old)'!$B$19:$N$41,8,0)/'4. Billing Determinants (old)'!$I$41*$D18, VLOOKUP(N$4,'4. Billing Determinants (old)'!$B$19:$N$41,3,0)/'4. Billing Determinants (old)'!$D$41*$D18))))) -> 0 | O18: =IF(O$4="",0,IF($E18="kWh",VLOOKUP(O$4,'4. Billing Determinants (old)'!$B$19:$N$41,4,0)/'4. Billing Determinants (old)'!$E$41*$D18,IF($E18="kW",VLOOKUP(O$4,'4. Billing Determinants (old)'!$B$19:$N$41,5,0)/'4. Billing Determinants (old)'!$F$41*$D18,IF($E18="Non-RPP kWh",VLOOKUP(O$4,'4. Billing Determinants (old)'!$B$19:$N$41,6,0)/'4. Billing Determinants (old)'!$G$41*$D18,IF($E18="Distribution Rev.",VLOOKUP(O$4,'4. Billing Determinants (old)'!$B$19:$N$41,8,0)/'4. Billing Determinants (old)'!$I$41*$D18, VLOOKUP(O$4,'4. Billing Determinants (old)'!$B$19:$N$41,3,0)/'4. Billing Determinants (old)'!$D$41*$D18))))) -> 0 | P18: =IF(P$4="",0,IF($E18="kWh",VLOOKUP(P$4,'4. Billing Determinants (old)'!$B$19:$N$41,4,0)/'4. Billing Determinants (old)'!$E$41*$D18,IF($E18="kW",VLOOKUP(P$4,'4. Billing Determinants (old)'!$B$19:$N$41,5,0)/'4. Billing Determinants (old)'!$F$41*$D18,IF($E18="Non-RPP kWh",VLOOKUP(P$4,'4. Billing Determinants (old)'!$B$19:$N$41,6,0)/'4. Billing Determinants (old)'!$G$41*$D18,IF($E18="Distribution Rev.",VLOOKUP(P$4,'4. Billing Determinants (old)'!$B$19:$N$41,8,0)/'4. Billing Determinants (old)'!$I$41*$D18, VLOOKUP(P$4,'4. Billing Determinants (old)'!$B$19:$N$41,3,0)/'4. Billing Determinants (old)'!$D$41*$D18))))) -> 0 | Q18: =IF(Q$4="",0,IF($E18="kWh",VLOOKUP(Q$4,'4. Billing Determinants (old)'!$B$19:$N$41,4,0)/'4. Billing Determinants (old)'!$E$41*$D18,IF($E18="kW",VLOOKUP(Q$4,'4. Billing Determinants (old)'!$B$19:$N$41,5,0)/'4. Billing Determinants (old)'!$F$41*$D18,IF($E18="Non-RPP kWh",VLOOKUP(Q$4,'4. Billing Determinants (old)'!$B$19:$N$41,6,0)/'4. Billing Determinants (old)'!$G$41*$D18,IF($E18="Distribution Rev.",VLOOKUP(Q$4,'4. Billing Determinants (old)'!$B$19:$N$41,8,0)/'4. Billing Determinants (old)'!$I$41*$D18, VLOOKUP(Q$4,'4. Billing Determinants (old)'!$B$19:$N$41,3,0)/'4. Billing Determinants (old)'!$D$41*$D18))))) -> 0 | R18: =IF(R$4="",0,IF($E18="kWh",VLOOKUP(R$4,'4. Billing Determinants (old)'!$B$19:$N$41,4,0)/'4. Billing Determinants (old)'!$E$41*$D18,IF($E18="kW",VLOOKUP(R$4,'4. Billing Determinants (old)'!$B$19:$N$41,5,0)/'4. Billing Determinants (old)'!$F$41*$D18,IF($E18="Non-RPP kWh",VLOOKUP(R$4,'4. Billing Determinants (old)'!$B$19:$N$41,6,0)/'4. Billing Determinants (old)'!$G$41*$D18,IF($E18="Distribution Rev.",VLOOKUP(R$4,'4. Billing Determinants (old)'!$B$19:$N$41,8,0)/'4. Billing Determinants (old)'!$I$41*$D18, VLOOKUP(R$4,'4. Billing Determinants (old)'!$B$19:$N$41,3,0)/'4. Billing Determinants (old)'!$D$41*$D18))))) -> 0 | S18: =IF(S$4="",0,IF($E18="kWh",VLOOKUP(S$4,'4. Billing Determinants (old)'!$B$19:$N$41,4,0)/'4. Billing Determinants (old)'!$E$41*$D18,IF($E18="kW",VLOOKUP(S$4,'4. Billing Determinants (old)'!$B$19:$N$41,5,0)/'4. Billing Determinants (old)'!$F$41*$D18,IF($E18="Non-RPP kWh",VLOOKUP(S$4,'4. Billing Determinants (old)'!$B$19:$N$41,6,0)/'4. Billing Determinants (old)'!$G$41*$D18,IF($E18="Distribution Rev.",VLOOKUP(S$4,'4. Billing Determinants (old)'!$B$19:$N$41,8,0)/'4. Billing Determinants (old)'!$I$41*$D18, VLOOKUP(S$4,'4. Billing Determinants (old)'!$B$19:$N$41,3,0)/'4. Billing Determinants (old)'!$D$41*$D18))))) -> 0 | T18: =IF(T$4="",0,IF($E18="kWh",VLOOKUP(T$4,'4. Billing Determinants (old)'!$B$19:$N$41,4,0)/'4. Billing Determinants (old)'!$E$41*$D18,IF($E18="kW",VLOOKUP(T$4,'4. Billing Determinants (old)'!$B$19:$N$41,5,0)/'4. Billing Determinants (old)'!$F$41*$D18,IF($E18="Non-RPP kWh",VLOOKUP(T$4,'4. Billing Determinants (old)'!$B$19:$N$41,6,0)/'4. Billing Determinants (old)'!$G$41*$D18,IF($E18="Distribution Rev.",VLOOKUP(T$4,'4. Billing Determinants (old)'!$B$19:$N$41,8,0)/'4. Billing Determinants (old)'!$I$41*$D18, VLOOKUP(T$4,'4. Billing Determinants (old)'!$B$19:$N$41,3,0)/'4. Billing Determinants (old)'!$D$41*$D18))))) -> 0 | U18: =IF(U$4="",0,IF($E18="kWh",VLOOKUP(U$4,'4. Billing Determinants (old)'!$B$19:$N$41,4,0)/'4. Billing Determinants (old)'!$E$41*$D18,IF($E18="kW",VLOOKUP(U$4,'4. Billing Determinants (old)'!$B$19:$N$41,5,0)/'4. Billing Determinants (old)'!$F$41*$D18,IF($E18="Non-RPP kWh",VLOOKUP(U$4,'4. Billing Determinants (old)'!$B$19:$N$41,6,0)/'4. Billing Determinants (old)'!$G$41*$D18,IF($E18="Distribution Rev.",VLOOKUP(U$4,'4. Billing Determinants (old)'!$B$19:$N$41,8,0)/'4. Billing Determinants (old)'!$I$41*$D18, VLOOKUP(U$4,'4. Billing Determinants (old)'!$B$19:$N$41,3,0)/'4. Billing Determinants (old)'!$D$41*$D18))))) -> 0 | V18: =IF(V$4="",0,IF($E18="kWh",VLOOKUP(V$4,'4. Billing Determinants (old)'!$B$19:$N$41,4,0)/'4. Billing Determinants (old)'!$E$41*$D18,IF($E18="kW",VLOOKUP(V$4,'4. Billing Determinants (old)'!$B$19:$N$41,5,0)/'4. Billing Determinants (old)'!$F$41*$D18,IF($E18="Non-RPP kWh",VLOOKUP(V$4,'4. Billing Determinants (old)'!$B$19:$N$41,6,0)/'4. Billing Determinants (old)'!$G$41*$D18,IF($E18="Distribution Rev.",VLOOKUP(V$4,'4. Billing Determinants (old)'!$B$19:$N$41,8,0)/'4. Billing Determinants (old)'!$I$41*$D18, VLOOKUP(V$4,'4. Billing Determinants (old)'!$B$19:$N$41,3,0)/'4. Billing Determinants (old)'!$D$41*$D18))))) -> 0 | W18: =IF(W$4="",0,IF($E18="kWh",VLOOKUP(W$4,'4. Billing Determinants (old)'!$B$19:$N$41,4,0)/'4. Billing Determinants (old)'!$E$41*$D18,IF($E18="kW",VLOOKUP(W$4,'4. Billing Determinants (old)'!$B$19:$N$41,5,0)/'4. Billing Determinants (old)'!$F$41*$D18,IF($E18="Non-RPP kWh",VLOOKUP(W$4,'4. Billing Determinants (old)'!$B$19:$N$41,6,0)/'4. Billing Determinants (old)'!$G$41*$D18,IF($E18="Distribution Rev.",VLOOKUP(W$4,'4. Billing Determinants (old)'!$B$19:$N$41,8,0)/'4. Billing Determinants (old)'!$I$41*$D18, VLOOKUP(W$4,'4. Billing Determinants (old)'!$B$19:$N$41,3,0)/'4. Billing Determinants (old)'!$D$41*$D18))))) -> 0 | X18: =IF(X$4="",0,IF($E18="kWh",VLOOKUP(X$4,'4. Billing Determinants (old)'!$B$19:$N$41,4,0)/'4. Billing Determinants (old)'!$E$41*$D18,IF($E18="kW",VLOOKUP(X$4,'4. Billing Determinants (old)'!$B$19:$N$41,5,0)/'4. Billing Determinants (old)'!$F$41*$D18,IF($E18="Non-RPP kWh",VLOOKUP(X$4,'4. Billing Determinants (old)'!$B$19:$N$41,6,0)/'4. Billing Determinants (old)'!$G$41*$D18,IF($E18="Distribution Rev.",VLOOKUP(X$4,'4. Billing Determinants (old)'!$B$19:$N$41,8,0)/'4. Billing Determinants (old)'!$I$41*$D18, VLOOKUP(X$4,'4. Billing Determinants (old)'!$B$19:$N$41,3,0)/'4. Billing Determinants (old)'!$D$41*$D18))))) -> 0 | Y18: =IF(Y$4="",0,IF($E18="kWh",VLOOKUP(Y$4,'4. Billing Determinants (old)'!$B$19:$N$41,4,0)/'4. Billing Determinants (old)'!$E$41*$D18,IF($E18="kW",VLOOKUP(Y$4,'4. Billing Determinants (old)'!$B$19:$N$41,5,0)/'4. Billing Determinants (old)'!$F$41*$D18,IF($E18="Non-RPP kWh",VLOOKUP(Y$4,'4. Billing Determinants (old)'!$B$19:$N$41,6,0)/'4. Billing Determinants (old)'!$G$41*$D18,IF($E18="Distribution Rev.",VLOOKUP(Y$4,'4. Billing Determinants (old)'!$B$19:$N$41,8,0)/'4. Billing Determinants (old)'!$I$41*$D18, VLOOKUP(Y$4,'4. Billing Determinants (old)'!$B$19:$N$41,3,0)/'4. Billing Determinants (old)'!$D$41*$D18))))) -> 0
B19: Other Regulatory Assets - Sub-Account - Deferred IFRS Transition Costs | C19: 1508 | D19: ='2. 2013 Continuity Schedule'!CG45 -> 544360.0841 | F19: =IF(F$4="",0,IF($E19="kWh",VLOOKUP(F$4,'4. Billing Determinants (old)'!$B$19:$N$41,4,0)/'4. Billing Determinants (old)'!$E$41*$D19,IF($E19="kW",VLOOKUP(F$4,'4. Billing Determinants (old)'!$B$19:$N$41,5,0)/'4. Billing Determinants (old)'!$F$41*$D19,IF($E19="Non-RPP kWh",VLOOKUP(F$4,'4. Billing Determinants (old)'!$B$19:$N$41,6,0)/'4. Billing Determinants (old)'!$G$41*$D19,IF($E19="Distribution Rev.",VLOOKUP(F$4,'4. Billing Determinants (old)'!$B$19:$N$41,8,0)/'4. Billing Determinants (old)'!$I$41*$D19, VLOOKUP(F$4,'4. Billing Determinants (old)'!$B$19:$N$41,3,0)/'4. Billing Determinants (old)'!$D$41*$D19))))) -> 0 | G19: =IF(G$4="",0,IF($E19="kWh",VLOOKUP(G$4,'4. Billing Determinants (old)'!$B$19:$N$41,4,0)/'4. Billing Determinants (old)'!$E$41*$D19,IF($E19="kW",VLOOKUP(G$4,'4. Billing Determinants (old)'!$B$19:$N$41,5,0)/'4. Billing Determinants (old)'!$F$41*$D19,IF($E19="Non-RPP kWh",VLOOKUP(G$4,'4. Billing Determinants (old)'!$B$19:$N$41,6,0)/'4. Billing Determinants (old)'!$G$41*$D19,IF($E19="Distribution Rev.",VLOOKUP(G$4,'4. Billing Determinants (old)'!$B$19:$N$41,8,0)/'4. Billing Determinants (old)'!$I$41*$D19, VLOOKUP(G$4,'4. Billing Determinants (old)'!$B$19:$N$41,3,0)/'4. Billing Determinants (old)'!$D$41*$D19))))) -> 0 | H19: =IF(H$4="",0,IF($E19="kWh",VLOOKUP(H$4,'4. Billing Determinants (old)'!$B$19:$N$41,4,0)/'4. Billing Determinants (old)'!$E$41*$D19,IF($E19="kW",VLOOKUP(H$4,'4. Billing Determinants (old)'!$B$19:$N$41,5,0)/'4. Billing Determinants (old)'!$F$41*$D19,IF($E19="Non-RPP kWh",VLOOKUP(H$4,'4. Billing Determinants (old)'!$B$19:$N$41,6,0)/'4. Billing Determinants (old)'!$G$41*$D19,IF($E19="Distribution Rev.",VLOOKUP(H$4,'4. Billing Determinants (old)'!$B$19:$N$41,8,0)/'4. Billing Determinants (old)'!$I$41*$D19, VLOOKUP(H$4,'4. Billing Determinants (old)'!$B$19:$N$41,3,0)/'4. Billing Determinants (old)'!$D$41*$D19))))) -> 0 | I19: =IF(I$4="",0,IF($E19="kWh",VLOOKUP(I$4,'4. Billing Determinants (old)'!$B$19:$N$41,4,0)/'4. Billing Determinants (old)'!$E$41*$D19,IF($E19="kW",VLOOKUP(I$4,'4. Billing Determinants (old)'!$B$19:$N$41,5,0)/'4. Billing Determinants (old)'!$F$41*$D19,IF($E19="Non-RPP kWh",VLOOKUP(I$4,'4. Billing Determinants (old)'!$B$19:$N$41,6,0)/'4. Billing Determinants (old)'!$G$41*$D19,IF($E19="Distribution Rev.",VLOOKUP(I$4,'4. Billing Determinants (old)'!$B$19:$N$41,8,0)/'4. Billing Determinants (old)'!$I$41*$D19, VLOOKUP(I$4,'4. Billing Determinants (old)'!$B$19:$N$41,3,0)/'4. Billing Determinants (old)'!$D$41*$D19))))) -> 0 | J19: =IF(J$4="",0,IF($E19="kWh",VLOOKUP(J$4,'4. Billing Determinants (old)'!$B$19:$N$41,4,0)/'4. Billing Determinants (old)'!$E$41*$D19,IF($E19="kW",VLOOKUP(J$4,'4. Billing Determinants (old)'!$B$19:$N$41,5,0)/'4. Billing Determinants (old)'!$F$41*$D19,IF($E19="Non-RPP kWh",VLOOKUP(J$4,'4. Billing Determinants (old)'!$B$19:$N$41,6,0)/'4. Billing Determinants (old)'!$G$41*$D19,IF($E19="Distribution Rev.",VLOOKUP(J$4,'4. Billing Determinants (old)'!$B$19:$N$41,8,0)/'4. Billing Determinants (old)'!$I$41*$D19, VLOOKUP(J$4,'4. Billing Determinants (old)'!$B$19:$N$41,3,0)/'4. Billing Determinants (old)'!$D$41*$D19))))) -> 0 | K19: =IF(K$4="",0,IF($E19="kWh",VLOOKUP(K$4,'4. Billing Determinants (old)'!$B$19:$N$41,4,0)/'4. Billing Determinants (old)'!$E$41*$D19,IF($E19="kW",VLOOKUP(K$4,'4. Billing Determinants (old)'!$B$19:$N$41,5,0)/'4. Billing Determinants (old)'!$F$41*$D19,IF($E19="Non-RPP kWh",VLOOKUP(K$4,'4. Billing Determinants (old)'!$B$19:$N$41,6,0)/'4. Billing Determinants (old)'!$G$41*$D19,IF($E19="Distribution Rev.",VLOOKUP(K$4,'4. Billing Determinants (old)'!$B$19:$N$41,8,0)/'4. Billing Determinants (old)'!$I$41*$D19, VLOOKUP(K$4,'4. Billing Determinants (old)'!$B$19:$N$41,3,0)/'4. Billing Determinants (old)'!$D$41*$D19))))) -> 0 | L19: =IF(L$4="",0,IF($E19="kWh",VLOOKUP(L$4,'4. Billing Determinants (old)'!$B$19:$N$41,4,0)/'4. Billing Determinants (old)'!$E$41*$D19,IF($E19="kW",VLOOKUP(L$4,'4. Billing Determinants (old)'!$B$19:$N$41,5,0)/'4. Billing Determinants (old)'!$F$41*$D19,IF($E19="Non-RPP kWh",VLOOKUP(L$4,'4. Billing Determinants (old)'!$B$19:$N$41,6,0)/'4. Billing Determinants (old)'!$G$41*$D19,IF($E19="Distribution Rev.",VLOOKUP(L$4,'4. Billing Determinants (old)'!$B$19:$N$41,8,0)/'4. Billing Determinants (old)'!$I$41*$D19, VLOOKUP(L$4,'4. Billing Determinants (old)'!$B$19:$N$41,3,0)/'4. Billing Determinants (old)'!$D$41*$D19))))) -> 0 | M19: =IF(M$4="",0,IF($E19="kWh",VLOOKUP(M$4,'4. Billing Determinants (old)'!$B$19:$N$41,4,0)/'4. Billing Determinants (old)'!$E$41*$D19,IF($E19="kW",VLOOKUP(M$4,'4. Billing Determinants (old)'!$B$19:$N$41,5,0)/'4. Billing Determinants (old)'!$F$41*$D19,IF($E19="Non-RPP kWh",VLOOKUP(M$4,'4. Billing Determinants (old)'!$B$19:$N$41,6,0)/'4. Billing Determinants (old)'!$G$41*$D19,IF($E19="Distribution Rev.",VLOOKUP(M$4,'4. Billing Determinants (old)'!$B$19:$N$41,8,0)/'4. Billing Determinants (old)'!$I$41*$D19, VLOOKUP(M$4,'4. Billing Determinants (old)'!$B$19:$N$41,3,0)/'4. Billing Determinants (old)'!$D$41*$D19))))) -> 0 | N19: =IF(N$4="",0,IF($E19="kWh",VLOOKUP(N$4,'4. Billing Determinants (old)'!$B$19:$N$41,4,0)/'4. Billing Determinants (old)'!$E$41*$D19,IF($E19="kW",VLOOKUP(N$4,'4. Billing Determinants (old)'!$B$19:$N$41,5,0)/'4. Billing Determinants (old)'!$F$41*$D19,IF($E19="Non-RPP kWh",VLOOKUP(N$4,'4. Billing Determinants (old)'!$B$19:$N$41,6,0)/'4. Billing Determinants (old)'!$G$41*$D19,IF($E19="Distribution Rev.",VLOOKUP(N$4,'4. Billing Determinants (old)'!$B$19:$N$41,8,0)/'4. Billing Determinants (old)'!$I$41*$D19, VLOOKUP(N$4,'4. Billing Determinants (old)'!$B$19:$N$41,3,0)/'4. Billing Determinants (old)'!$D$41*$D19))))) -> 0 | O19: =IF(O$4="",0,IF($E19="kWh",VLOOKUP(O$4,'4. Billing Determinants (old)'!$B$19:$N$41,4,0)/'4. Billing Determinants (old)'!$E$41*$D19,IF($E19="kW",VLOOKUP(O$4,'4. Billing Determinants (old)'!$B$19:$N$41,5,0)/'4. Billing Determinants (old)'!$F$41*$D19,IF($E19="Non-RPP kWh",VLOOKUP(O$4,'4. Billing Determinants (old)'!$B$19:$N$41,6,0)/'4. Billing Determinants (old)'!$G$41*$D19,IF($E19="Distribution Rev.",VLOOKUP(O$4,'4. Billing Determinants (old)'!$B$19:$N$41,8,0)/'4. Billing Determinants (old)'!$I$41*$D19, VLOOKUP(O$4,'4. Billing Determinants (old)'!$B$19:$N$41,3,0)/'4. Billing Determinants (old)'!$D$41*$D19))))) -> 0 | P19: =IF(P$4="",0,IF($E19="kWh",VLOOKUP(P$4,'4. Billing Determinants (old)'!$B$19:$N$41,4,0)/'4. Billing Determinants (old)'!$E$41*$D19,IF($E19="kW",VLOOKUP(P$4,'4. Billing Determinants (old)'!$B$19:$N$41,5,0)/'4. Billing Determinants (old)'!$F$41*$D19,IF($E19="Non-RPP kWh",VLOOKUP(P$4,'4. Billing Determinants (old)'!$B$19:$N$41,6,0)/'4. Billing Determinants (old)'!$G$41*$D19,IF($E19="Distribution Rev.",VLOOKUP(P$4,'4. Billing Determinants (old)'!$B$19:$N$41,8,0)/'4. Billing Determinants (old)'!$I$41*$D19, VLOOKUP(P$4,'4. Billing Determinants (old)'!$B$19:$N$41,3,0)/'4. Billing Determinants (old)'!$D$41*$D19))))) -> 0 | Q19: =IF(Q$4="",0,IF($E19="kWh",VLOOKUP(Q$4,'4. Billing Determinants (old)'!$B$19:$N$41,4,0)/'4. Billing Determinants (old)'!$E$41*$D19,IF($E19="kW",VLOOKUP(Q$4,'4. Billing Determinants (old)'!$B$19:$N$41,5,0)/'4. Billing Determinants (old)'!$F$41*$D19,IF($E19="Non-RPP kWh",VLOOKUP(Q$4,'4. Billing Determinants (old)'!$B$19:$N$41,6,0)/'4. Billing Determinants (old)'!$G$41*$D19,IF($E19="Distribution Rev.",VLOOKUP(Q$4,'4. Billing Determinants (old)'!$B$19:$N$41,8,0)/'4. Billing Determinants (old)'!$I$41*$D19, VLOOKUP(Q$4,'4. Billing Determinants (old)'!$B$19:$N$41,3,0)/'4. Billing Determinants (old)'!$D$41*$D19))))) -> 0 | R19: =IF(R$4="",0,IF($E19="kWh",VLOOKUP(R$4,'4. Billing Determinants (old)'!$B$19:$N$41,4,0)/'4. Billing Determinants (old)'!$E$41*$D19,IF($E19="kW",VLOOKUP(R$4,'4. Billing Determinants (old)'!$B$19:$N$41,5,0)/'4. Billing Determinants (old)'!$F$41*$D19,IF($E19="Non-RPP kWh",VLOOKUP(R$4,'4. Billing Determinants (old)'!$B$19:$N$41,6,0)/'4. Billing Determinants (old)'!$G$41*$D19,IF($E19="Distribution Rev.",VLOOKUP(R$4,'4. Billing Determinants (old)'!$B$19:$N$41,8,0)/'4. Billing Determinants (old)'!$I$41*$D19, VLOOKUP(R$4,'4. Billing Determinants (old)'!$B$19:$N$41,3,0)/'4. Billing Determinants (old)'!$D$41*$D19))))) -> 0 | S19: =IF(S$4="",0,IF($E19="kWh",VLOOKUP(S$4,'4. Billing Determinants (old)'!$B$19:$N$41,4,0)/'4. Billing Determinants (old)'!$E$41*$D19,IF($E19="kW",VLOOKUP(S$4,'4. Billing Determinants (old)'!$B$19:$N$41,5,0)/'4. Billing Determinants (old)'!$F$41*$D19,IF($E19="Non-RPP kWh",VLOOKUP(S$4,'4. Billing Determinants (old)'!$B$19:$N$41,6,0)/'4. Billing Determinants (old)'!$G$41*$D19,IF($E19="Distribution Rev.",VLOOKUP(S$4,'4. Billing Determinants (old)'!$B$19:$N$41,8,0)/'4. Billing Determinants (old)'!$I$41*$D19, VLOOKUP(S$4,'4. Billing Determinants (old)'!$B$19:$N$41,3,0)/'4. Billing Determinants (old)'!$D$41*$D19))))) -> 0 | T19: =IF(T$4="",0,IF($E19="kWh",VLOOKUP(T$4,'4. Billing Determinants (old)'!$B$19:$N$41,4,0)/'4. Billing Determinants (old)'!$E$41*$D19,IF($E19="kW",VLOOKUP(T$4,'4. Billing Determinants (old)'!$B$19:$N$41,5,0)/'4. Billing Determinants (old)'!$F$41*$D19,IF($E19="Non-RPP kWh",VLOOKUP(T$4,'4. Billing Determinants (old)'!$B$19:$N$41,6,0)/'4. Billing Determinants (old)'!$G$41*$D19,IF($E19="Distribution Rev.",VLOOKUP(T$4,'4. Billing Determinants (old)'!$B$19:$N$41,8,0)/'4. Billing Determinants (old)'!$I$41*$D19, VLOOKUP(T$4,'4. Billing Determinants (old)'!$B$19:$N$41,3,0)/'4. Billing Determinants (old)'!$D$41*$D19))))) -> 0 | U19: =IF(U$4="",0,IF($E19="kWh",VLOOKUP(U$4,'4. Billing Determinants (old)'!$B$19:$N$41,4,0)/'4. Billing Determinants (old)'!$E$41*$D19,IF($E19="kW",VLOOKUP(U$4,'4. Billing Determinants (old)'!$B$19:$N$41,5,0)/'4. Billing Determinants (old)'!$F$41*$D19,IF($E19="Non-RPP kWh",VLOOKUP(U$4,'4. Billing Determinants (old)'!$B$19:$N$41,6,0)/'4. Billing Determinants (old)'!$G$41*$D19,IF($E19="Distribution Rev.",VLOOKUP(U$4,'4. Billing Determinants (old)'!$B$19:$N$41,8,0)/'4. Billing Determinants (old)'!$I$41*$D19, VLOOKUP(U$4,'4. Billing Determinants (old)'!$B$19:$N$41,3,0)/'4. Billing Determinants (old)'!$D$41*$D19))))) -> 0 | V19: =IF(V$4="",0,IF($E19="kWh",VLOOKUP(V$4,'4. Billing Determinants (old)'!$B$19:$N$41,4,0)/'4. Billing Determinants (old)'!$E$41*$D19,IF($E19="kW",VLOOKUP(V$4,'4. Billing Determinants (old)'!$B$19:$N$41,5,0)/'4. Billing Determinants (old)'!$F$41*$D19,IF($E19="Non-RPP kWh",VLOOKUP(V$4,'4. Billing Determinants (old)'!$B$19:$N$41,6,0)/'4. Billing Determinants (old)'!$G$41*$D19,IF($E19="Distribution Rev.",VLOOKUP(V$4,'4. Billing Determinants (old)'!$B$19:$N$41,8,0)/'4. Billing Determinants (old)'!$I$41*$D19, VLOOKUP(V$4,'4. Billing Determinants (old)'!$B$19:$N$41,3,0)/'4. Billing Determinants (old)'!$D$41*$D19))))) -> 0 | W19: =IF(W$4="",0,IF($E19="kWh",VLOOKUP(W$4,'4. Billing Determinants (old)'!$B$19:$N$41,4,0)/'4. Billing Determinants (old)'!$E$41*$D19,IF($E19="kW",VLOOKUP(W$4,'4. Billing Determinants (old)'!$B$19:$N$41,5,0)/'4. Billing Determinants (old)'!$F$41*$D19,IF($E19="Non-RPP kWh",VLOOKUP(W$4,'4. Billing Determinants (old)'!$B$19:$N$41,6,0)/'4. Billing Determinants (old)'!$G$41*$D19,IF($E19="Distribution Rev.",VLOOKUP(W$4,'4. Billing Determinants (old)'!$B$19:$N$41,8,0)/'4. Billing Determinants (old)'!$I$41*$D19, VLOOKUP(W$4,'4. Billing Determinants (old)'!$B$19:$N$41,3,0)/'4. Billing Determinants (old)'!$D$41*$D19))))) -> 0 | X19: =IF(X$4="",0,IF($E19="kWh",VLOOKUP(X$4,'4. Billing Determinants (old)'!$B$19:$N$41,4,0)/'4. Billing Determinants (old)'!$E$41*$D19,IF($E19="kW",VLOOKUP(X$4,'4. Billing Determinants (old)'!$B$19:$N$41,5,0)/'4. Billing Determinants (old)'!$F$41*$D19,IF($E19="Non-RPP kWh",VLOOKUP(X$4,'4. Billing Determinants (old)'!$B$19:$N$41,6,0)/'4. Billing Determinants (old)'!$G$41*$D19,IF($E19="Distribution Rev.",VLOOKUP(X$4,'4. Billing Determinants (old)'!$B$19:$N$41,8,0)/'4. Billing Determinants (old)'!$I$41*$D19, VLOOKUP(X$4,'4. Billing Determinants (old)'!$B$19:$N$41,3,0)/'4. Billing Determinants (old)'!$D$41*$D19))))) -> 0 | Y19: =IF(Y$4="",0,IF($E19="kWh",VLOOKUP(Y$4,'4. Billing Determinants (old)'!$B$19:$N$41,4,0)/'4. Billing Determinants (old)'!$E$41*$D19,IF($E19="kW",VLOOKUP(Y$4,'4. Billing Determinants (old)'!$B$19:$N$41,5,0)/'4. Billing Determinants (old)'!$F$41*$D19,IF($E19="Non-RPP kWh",VLOOKUP(Y$4,'4. Billing Determinants (old)'!$B$19:$N$41,6,0)/'4. Billing Determinants (old)'!$G$41*$D19,IF($E19="Distribution Rev.",VLOOKUP(Y$4,'4. Billing Determinants (old)'!$B$19:$N$41,8,0)/'4. Billing Determinants (old)'!$I$41*$D19, VLOOKUP(Y$4,'4. Billing Determinants (old)'!$B$19:$N$41,3,0)/'4. Billing Determinants (old)'!$D$41*$D19))))) -> 0
B20: Other Regulatory Assets - Sub-Account - Incremental Capital Charges | C20: 1508 | D20: ='2. 2013 Continuity Schedule'!CG46 -> 12496.85574 | F20: =IF(F$4="",0,IF($E20="kWh",VLOOKUP(F$4,'4. Billing Determinants (old)'!$B$19:$N$41,4,0)/'4. Billing Determinants (old)'!$E$41*$D20,IF($E20="kW",VLOOKUP(F$4,'4. Billing Determinants (old)'!$B$19:$N$41,5,0)/'4. Billing Determinants (old)'!$F$41*$D20,IF($E20="Non-RPP kWh",VLOOKUP(F$4,'4. Billing Determinants (old)'!$B$19:$N$41,6,0)/'4. Billing Determinants (old)'!$G$41*$D20,IF($E20="Distribution Rev.",VLOOKUP(F$4,'4. Billing Determinants (old)'!$B$19:$N$41,8,0)/'4. Billing Determinants (old)'!$I$41*$D20, VLOOKUP(F$4,'4. Billing Determinants (old)'!$B$19:$N$41,3,0)/'4. Billing Determinants (old)'!$D$41*$D20))))) -> 0 | G20: =IF(G$4="",0,IF($E20="kWh",VLOOKUP(G$4,'4. Billing Determinants (old)'!$B$19:$N$41,4,0)/'4. Billing Determinants (old)'!$E$41*$D20,IF($E20="kW",VLOOKUP(G$4,'4. Billing Determinants (old)'!$B$19:$N$41,5,0)/'4. Billing Determinants (old)'!$F$41*$D20,IF($E20="Non-RPP kWh",VLOOKUP(G$4,'4. Billing Determinants (old)'!$B$19:$N$41,6,0)/'4. Billing Determinants (old)'!$G$41*$D20,IF($E20="Distribution Rev.",VLOOKUP(G$4,'4. Billing Determinants (old)'!$B$19:$N$41,8,0)/'4. Billing Determinants (old)'!$I$41*$D20, VLOOKUP(G$4,'4. Billing Determinants (old)'!$B$19:$N$41,3,0)/'4. Billing Determinants (old)'!$D$41*$D20))))) -> 0 | H20: =IF(H$4="",0,IF($E20="kWh",VLOOKUP(H$4,'4. Billing Determinants (old)'!$B$19:$N$41,4,0)/'4. Billing Determinants (old)'!$E$41*$D20,IF($E20="kW",VLOOKUP(H$4,'4. Billing Determinants (old)'!$B$19:$N$41,5,0)/'4. Billing Determinants (old)'!$F$41*$D20,IF($E20="Non-RPP kWh",VLOOKUP(H$4,'4. Billing Determinants (old)'!$B$19:$N$41,6,0)/'4. Billing Determinants (old)'!$G$41*$D20,IF($E20="Distribution Rev.",VLOOKUP(H$4,'4. Billing Determinants (old)'!$B$19:$N$41,8,0)/'4. Billing Determinants (old)'!$I$41*$D20, VLOOKUP(H$4,'4. Billing Determinants (old)'!$B$19:$N$41,3,0)/'4. Billing Determinants (old)'!$D$41*$D20))))) -> 0 | I20: =IF(I$4="",0,IF($E20="kWh",VLOOKUP(I$4,'4. Billing Determinants (old)'!$B$19:$N$41,4,0)/'4. Billing Determinants (old)'!$E$41*$D20,IF($E20="kW",VLOOKUP(I$4,'4. Billing Determinants (old)'!$B$19:$N$41,5,0)/'4. Billing Determinants (old)'!$F$41*$D20,IF($E20="Non-RPP kWh",VLOOKUP(I$4,'4. Billing Determinants (old)'!$B$19:$N$41,6,0)/'4. Billing Determinants (old)'!$G$41*$D20,IF($E20="Distribution Rev.",VLOOKUP(I$4,'4. Billing Determinants (old)'!$B$19:$N$41,8,0)/'4. Billing Determinants (old)'!$I$41*$D20, VLOOKUP(I$4,'4. Billing Determinants (old)'!$B$19:$N$41,3,0)/'4. Billing Determinants (old)'!$D$41*$D20))))) -> 0 | J20: =IF(J$4="",0,IF($E20="kWh",VLOOKUP(J$4,'4. Billing Determinants (old)'!$B$19:$N$41,4,0)/'4. Billing Determinants (old)'!$E$41*$D20,IF($E20="kW",VLOOKUP(J$4,'4. Billing Determinants (old)'!$B$19:$N$41,5,0)/'4. Billing Determinants (old)'!$F$41*$D20,IF($E20="Non-RPP kWh",VLOOKUP(J$4,'4. Billing Determinants (old)'!$B$19:$N$41,6,0)/'4. Billing Determinants (old)'!$G$41*$D20,IF($E20="Distribution Rev.",VLOOKUP(J$4,'4. Billing Determinants (old)'!$B$19:$N$41,8,0)/'4. Billing Determinants (old)'!$I$41*$D20, VLOOKUP(J$4,'4. Billing Determinants (old)'!$B$19:$N$41,3,0)/'4. Billing Determinants (old)'!$D$41*$D20))))) -> 0 | K20: =IF(K$4="",0,IF($E20="kWh",VLOOKUP(K$4,'4. Billing Determinants (old)'!$B$19:$N$41,4,0)/'4. Billing Determinants (old)'!$E$41*$D20,IF($E20="kW",VLOOKUP(K$4,'4. Billing Determinants (old)'!$B$19:$N$41,5,0)/'4. Billing Determinants (old)'!$F$41*$D20,IF($E20="Non-RPP kWh",VLOOKUP(K$4,'4. Billing Determinants (old)'!$B$19:$N$41,6,0)/'4. Billing Determinants (old)'!$G$41*$D20,IF($E20="Distribution Rev.",VLOOKUP(K$4,'4. Billing Determinants (old)'!$B$19:$N$41,8,0)/'4. Billing Determinants (old)'!$I$41*$D20, VLOOKUP(K$4,'4. Billing Determinants (old)'!$B$19:$N$41,3,0)/'4. Billing Determinants (old)'!$D$41*$D20))))) -> 0 | L20: =IF(L$4="",0,IF($E20="kWh",VLOOKUP(L$4,'4. Billing Determinants (old)'!$B$19:$N$41,4,0)/'4. Billing Determinants (old)'!$E$41*$D20,IF($E20="kW",VLOOKUP(L$4,'4. Billing Determinants (old)'!$B$19:$N$41,5,0)/'4. Billing Determinants (old)'!$F$41*$D20,IF($E20="Non-RPP kWh",VLOOKUP(L$4,'4. Billing Determinants (old)'!$B$19:$N$41,6,0)/'4. Billing Determinants (old)'!$G$41*$D20,IF($E20="Distribution Rev.",VLOOKUP(L$4,'4. Billing Determinants (old)'!$B$19:$N$41,8,0)/'4. Billing Determinants (old)'!$I$41*$D20, VLOOKUP(L$4,'4. Billing Determinants (old)'!$B$19:$N$41,3,0)/'4. Billing Determinants (old)'!$D$41*$D20))))) -> 0 | M20: =IF(M$4="",0,IF($E20="kWh",VLOOKUP(M$4,'4. Billing Determinants (old)'!$B$19:$N$41,4,0)/'4. Billing Determinants (old)'!$E$41*$D20,IF($E20="kW",VLOOKUP(M$4,'4. Billing Determinants (old)'!$B$19:$N$41,5,0)/'4. Billing Determinants (old)'!$F$41*$D20,IF($E20="Non-RPP kWh",VLOOKUP(M$4,'4. Billing Determinants (old)'!$B$19:$N$41,6,0)/'4. Billing Determinants (old)'!$G$41*$D20,IF($E20="Distribution Rev.",VLOOKUP(M$4,'4. Billing Determinants (old)'!$B$19:$N$41,8,0)/'4. Billing Determinants (old)'!$I$41*$D20, VLOOKUP(M$4,'4. Billing Determinants (old)'!$B$19:$N$41,3,0)/'4. Billing Determinants (old)'!$D$41*$D20))))) -> 0 | N20: =IF(N$4="",0,IF($E20="kWh",VLOOKUP(N$4,'4. Billing Determinants (old)'!$B$19:$N$41,4,0)/'4. Billing Determinants (old)'!$E$41*$D20,IF($E20="kW",VLOOKUP(N$4,'4. Billing Determinants (old)'!$B$19:$N$41,5,0)/'4. Billing Determinants (old)'!$F$41*$D20,IF($E20="Non-RPP kWh",VLOOKUP(N$4,'4. Billing Determinants (old)'!$B$19:$N$41,6,0)/'4. Billing Determinants (old)'!$G$41*$D20,IF($E20="Distribution Rev.",VLOOKUP(N$4,'4. Billing Determinants (old)'!$B$19:$N$41,8,0)/'4. Billing Determinants (old)'!$I$41*$D20, VLOOKUP(N$4,'4. Billing Determinants (old)'!$B$19:$N$41,3,0)/'4. Billing Determinants (old)'!$D$41*$D20))))) -> 0 | O20: =IF(O$4="",0,IF($E20="kWh",VLOOKUP(O$4,'4. Billing Determinants (old)'!$B$19:$N$41,4,0)/'4. Billing Determinants (old)'!$E$41*$D20,IF($E20="kW",VLOOKUP(O$4,'4. Billing Determinants (old)'!$B$19:$N$41,5,0)/'4. Billing Determinants (old)'!$F$41*$D20,IF($E20="Non-RPP kWh",VLOOKUP(O$4,'4. Billing Determinants (old)'!$B$19:$N$41,6,0)/'4. Billing Determinants (old)'!$G$41*$D20,IF($E20="Distribution Rev.",VLOOKUP(O$4,'4. Billing Determinants (old)'!$B$19:$N$41,8,0)/'4. Billing Determinants (old)'!$I$41*$D20, VLOOKUP(O$4,'4. Billing Determinants (old)'!$B$19:$N$41,3,0)/'4. Billing Determinants (old)'!$D$41*$D20))))) -> 0 | P20: =IF(P$4="",0,IF($E20="kWh",VLOOKUP(P$4,'4. Billing Determinants (old)'!$B$19:$N$41,4,0)/'4. Billing Determinants (old)'!$E$41*$D20,IF($E20="kW",VLOOKUP(P$4,'4. Billing Determinants (old)'!$B$19:$N$41,5,0)/'4. Billing Determinants (old)'!$F$41*$D20,IF($E20="Non-RPP kWh",VLOOKUP(P$4,'4. Billing Determinants (old)'!$B$19:$N$41,6,0)/'4. Billing Determinants (old)'!$G$41*$D20,IF($E20="Distribution Rev.",VLOOKUP(P$4,'4. Billing Determinants (old)'!$B$19:$N$41,8,0)/'4. Billing Determinants (old)'!$I$41*$D20, VLOOKUP(P$4,'4. Billing Determinants (old)'!$B$19:$N$41,3,0)/'4. Billing Determinants (old)'!$D$41*$D20))))) -> 0 | Q20: =IF(Q$4="",0,IF($E20="kWh",VLOOKUP(Q$4,'4. Billing Determinants (old)'!$B$19:$N$41,4,0)/'4. Billing Determinants (old)'!$E$41*$D20,IF($E20="kW",VLOOKUP(Q$4,'4. Billing Determinants (old)'!$B$19:$N$41,5,0)/'4. Billing Determinants (old)'!$F$41*$D20,IF($E20="Non-RPP kWh",VLOOKUP(Q$4,'4. Billing Determinants (old)'!$B$19:$N$41,6,0)/'4. Billing Determinants (old)'!$G$41*$D20,IF($E20="Distribution Rev.",VLOOKUP(Q$4,'4. Billing Determinants (old)'!$B$19:$N$41,8,0)/'4. Billing Determinants (old)'!$I$41*$D20, VLOOKUP(Q$4,'4. Billing Determinants (old)'!$B$19:$N$41,3,0)/'4. Billing Determinants (old)'!$D$41*$D20))))) -> 0 | R20: =IF(R$4="",0,IF($E20="kWh",VLOOKUP(R$4,'4. Billing Determinants (old)'!$B$19:$N$41,4,0)/'4. Billing Determinants (old)'!$E$41*$D20,IF($E20="kW",VLOOKUP(R$4,'4. Billing Determinants (old)'!$B$19:$N$41,5,0)/'4. Billing Determinants (old)'!$F$41*$D20,IF($E20="Non-RPP kWh",VLOOKUP(R$4,'4. Billing Determinants (old)'!$B$19:$N$41,6,0)/'4. Billing Determinants (old)'!$G$41*$D20,IF($E20="Distribution Rev.",VLOOKUP(R$4,'4. Billing Determinants (old)'!$B$19:$N$41,8,0)/'4. Billing Determinants (old)'!$I$41*$D20, VLOOKUP(R$4,'4. Billing Determinants (old)'!$B$19:$N$41,3,0)/'4. Billing Determinants (old)'!$D$41*$D20))))) -> 0 | S20: =IF(S$4="",0,IF($E20="kWh",VLOOKUP(S$4,'4. Billing Determinants (old)'!$B$19:$N$41,4,0)/'4. Billing Determinants (old)'!$E$41*$D20,IF($E20="kW",VLOOKUP(S$4,'4. Billing Determinants (old)'!$B$19:$N$41,5,0)/'4. Billing Determinants (old)'!$F$41*$D20,IF($E20="Non-RPP kWh",VLOOKUP(S$4,'4. Billing Determinants (old)'!$B$19:$N$41,6,0)/'4. Billing Determinants (old)'!$G$41*$D20,IF($E20="Distribution Rev.",VLOOKUP(S$4,'4. Billing Determinants (old)'!$B$19:$N$41,8,0)/'4. Billing Determinants (old)'!$I$41*$D20, VLOOKUP(S$4,'4. Billing Determinants (old)'!$B$19:$N$41,3,0)/'4. Billing Determinants (old)'!$D$41*$D20))))) -> 0 | T20: =IF(T$4="",0,IF($E20="kWh",VLOOKUP(T$4,'4. Billing Determinants (old)'!$B$19:$N$41,4,0)/'4. Billing Determinants (old)'!$E$41*$D20,IF($E20="kW",VLOOKUP(T$4,'4. Billing Determinants (old)'!$B$19:$N$41,5,0)/'4. Billing Determinants (old)'!$F$41*$D20,IF($E20="Non-RPP kWh",VLOOKUP(T$4,'4. Billing Determinants (old)'!$B$19:$N$41,6,0)/'4. Billing Determinants (old)'!$G$41*$D20,IF($E20="Distribution Rev.",VLOOKUP(T$4,'4. Billing Determinants (old)'!$B$19:$N$41,8,0)/'4. Billing Determinants (old)'!$I$41*$D20, VLOOKUP(T$4,'4. Billing Determinants (old)'!$B$19:$N$41,3,0)/'4. Billing Determinants (old)'!$D$41*$D20))))) -> 0 | U20: =IF(U$4="",0,IF($E20="kWh",VLOOKUP(U$4,'4. Billing Determinants (old)'!$B$19:$N$41,4,0)/'4. Billing Determinants (old)'!$E$41*$D20,IF($E20="kW",VLOOKUP(U$4,'4. Billing Determinants (old)'!$B$19:$N$41,5,0)/'4. Billing Determinants (old)'!$F$41*$D20,IF($E20="Non-RPP kWh",VLOOKUP(U$4,'4. Billing Determinants (old)'!$B$19:$N$41,6,0)/'4. Billing Determinants (old)'!$G$41*$D20,IF($E20="Distribution Rev.",VLOOKUP(U$4,'4. Billing Determinants (old)'!$B$19:$N$41,8,0)/'4. Billing Determinants (old)'!$I$41*$D20, VLOOKUP(U$4,'4. Billing Determinants (old)'!$B$19:$N$41,3,0)/'4. Billing Determinants (old)'!$D$41*$D20))))) -> 0 | V20: =IF(V$4="",0,IF($E20="kWh",VLOOKUP(V$4,'4. Billing Determinants (old)'!$B$19:$N$41,4,0)/'4. Billing Determinants (old)'!$E$41*$D20,IF($E20="kW",VLOOKUP(V$4,'4. Billing Determinants (old)'!$B$19:$N$41,5,0)/'4. Billing Determinants (old)'!$F$41*$D20,IF($E20="Non-RPP kWh",VLOOKUP(V$4,'4. Billing Determinants (old)'!$B$19:$N$41,6,0)/'4. Billing Determinants (old)'!$G$41*$D20,IF($E20="Distribution Rev.",VLOOKUP(V$4,'4. Billing Determinants (old)'!$B$19:$N$41,8,0)/'4. Billing Determinants (old)'!$I$41*$D20, VLOOKUP(V$4,'4. Billing Determinants (old)'!$B$19:$N$41,3,0)/'4. Billing Determinants (old)'!$D$41*$D20))))) -> 0 | W20: =IF(W$4="",0,IF($E20="kWh",VLOOKUP(W$4,'4. Billing Determinants (old)'!$B$19:$N$41,4,0)/'4. Billing Determinants (old)'!$E$41*$D20,IF($E20="kW",VLOOKUP(W$4,'4. Billing Determinants (old)'!$B$19:$N$41,5,0)/'4. Billing Determinants (old)'!$F$41*$D20,IF($E20="Non-RPP kWh",VLOOKUP(W$4,'4. Billing Determinants (old)'!$B$19:$N$41,6,0)/'4. Billing Determinants (old)'!$G$41*$D20,IF($E20="Distribution Rev.",VLOOKUP(W$4,'4. Billing Determinants (old)'!$B$19:$N$41,8,0)/'4. Billing Determinants (old)'!$I$41*$D20, VLOOKUP(W$4,'4. Billing Determinants (old)'!$B$19:$N$41,3,0)/'4. Billing Determinants (old)'!$D$41*$D20))))) -> 0 | X20: =IF(X$4="",0,IF($E20="kWh",VLOOKUP(X$4,'4. Billing Determinants (old)'!$B$19:$N$41,4,0)/'4. Billing Determinants (old)'!$E$41*$D20,IF($E20="kW",VLOOKUP(X$4,'4. Billing Determinants (old)'!$B$19:$N$41,5,0)/'4. Billing Determinants (old)'!$F$41*$D20,IF($E20="Non-RPP kWh",VLOOKUP(X$4,'4. Billing Determinants (old)'!$B$19:$N$41,6,0)/'4. Billing Determinants (old)'!$G$41*$D20,IF($E20="Distribution Rev.",VLOOKUP(X$4,'4. Billing Determinants (old)'!$B$19:$N$41,8,0)/'4. Billing Determinants (old)'!$I$41*$D20, VLOOKUP(X$4,'4. Billing Determinants (old)'!$B$19:$N$41,3,0)/'4. Billing Determinants (old)'!$D$41*$D20))))) -> 0 | Y20: =IF(Y$4="",0,IF($E20="kWh",VLOOKUP(Y$4,'4. Billing Determinants (old)'!$B$19:$N$41,4,0)/'4. Billing Determinants (old)'!$E$41*$D20,IF($E20="kW",VLOOKUP(Y$4,'4. Billing Determinants (old)'!$B$19:$N$41,5,0)/'4. Billing Determinants (old)'!$F$41*$D20,IF($E20="Non-RPP kWh",VLOOKUP(Y$4,'4. Billing Determinants (old)'!$B$19:$N$41,6,0)/'4. Billing Determinants (old)'!$G$41*$D20,IF($E20="Distribution Rev.",VLOOKUP(Y$4,'4. Billing Determinants (old)'!$B$19:$N$41,8,0)/'4. Billing Determinants (old)'!$I$41*$D20, VLOOKUP(Y$4,'4. Billing Determinants (old)'!$B$19:$N$41,3,0)/'4. Billing Determinants (old)'!$D$41*$D20))))) -> 0
B21: Other Regulatory Assets - Sub-Account - Financial Assistance Payment and Recovery Variance - Ontario Clean Energy Benefit Act | C21: 1508 | D21: ='2. 2013 Continuity Schedule'!#REF! ->  | F21: =IF(F$4="",0,IF($E21="kWh",VLOOKUP(F$4,'4. Billing Determinants (old)'!$B$19:$N$41,4,0)/'4. Billing Determinants (old)'!$E$41*$D21,IF($E21="kW",VLOOKUP(F$4,'4. Billing Determinants (old)'!$B$19:$N$41,5,0)/'4. Billing Determinants (old)'!$F$41*$D21,IF($E21="Non-RPP kWh",VLOOKUP(F$4,'4. Billing Determinants (old)'!$B$19:$N$41,6,0)/'4. Billing Determinants (old)'!$G$41*$D21,IF($E21="Distribution Rev.",VLOOKUP(F$4,'4. Billing Determinants (old)'!$B$19:$N$41,8,0)/'4. Billing Determinants (old)'!$I$41*$D21, VLOOKUP(F$4,'4. Billing Determinants (old)'!$B$19:$N$41,3,0)/'4. Billing Determinants (old)'!$D$41*$D21))))) -> 0 | G21: =IF(G$4="",0,IF($E21="kWh",VLOOKUP(G$4,'4. Billing Determinants (old)'!$B$19:$N$41,4,0)/'4. Billing Determinants (old)'!$E$41*$D21,IF($E21="kW",VLOOKUP(G$4,'4. Billing Determinants (old)'!$B$19:$N$41,5,0)/'4. Billing Determinants (old)'!$F$41*$D21,IF($E21="Non-RPP kWh",VLOOKUP(G$4,'4. Billing Determinants (old)'!$B$19:$N$41,6,0)/'4. Billing Determinants (old)'!$G$41*$D21,IF($E21="Distribution Rev.",VLOOKUP(G$4,'4. Billing Determinants (old)'!$B$19:$N$41,8,0)/'4. Billing Determinants (old)'!$I$41*$D21, VLOOKUP(G$4,'4. Billing Determinants (old)'!$B$19:$N$41,3,0)/'4. Billing Determinants (old)'!$D$41*$D21))))) -> 0 | H21: =IF(H$4="",0,IF($E21="kWh",VLOOKUP(H$4,'4. Billing Determinants (old)'!$B$19:$N$41,4,0)/'4. Billing Determinants (old)'!$E$41*$D21,IF($E21="kW",VLOOKUP(H$4,'4. Billing Determinants (old)'!$B$19:$N$41,5,0)/'4. Billing Determinants (old)'!$F$41*$D21,IF($E21="Non-RPP kWh",VLOOKUP(H$4,'4. Billing Determinants (old)'!$B$19:$N$41,6,0)/'4. Billing Determinants (old)'!$G$41*$D21,IF($E21="Distribution Rev.",VLOOKUP(H$4,'4. Billing Determinants (old)'!$B$19:$N$41,8,0)/'4. Billing Determinants (old)'!$I$41*$D21, VLOOKUP(H$4,'4. Billing Determinants (old)'!$B$19:$N$41,3,0)/'4. Billing Determinants (old)'!$D$41*$D21))))) -> 0 | I21: =IF(I$4="",0,IF($E21="kWh",VLOOKUP(I$4,'4. Billing Determinants (old)'!$B$19:$N$41,4,0)/'4. Billing Determinants (old)'!$E$41*$D21,IF($E21="kW",VLOOKUP(I$4,'4. Billing Determinants (old)'!$B$19:$N$41,5,0)/'4. Billing Determinants (old)'!$F$41*$D21,IF($E21="Non-RPP kWh",VLOOKUP(I$4,'4. Billing Determinants (old)'!$B$19:$N$41,6,0)/'4. Billing Determinants (old)'!$G$41*$D21,IF($E21="Distribution Rev.",VLOOKUP(I$4,'4. Billing Determinants (old)'!$B$19:$N$41,8,0)/'4. Billing Determinants (old)'!$I$41*$D21, VLOOKUP(I$4,'4. Billing Determinants (old)'!$B$19:$N$41,3,0)/'4. Billing Determinants (old)'!$D$41*$D21))))) -> 0 | J21: =IF(J$4="",0,IF($E21="kWh",VLOOKUP(J$4,'4. Billing Determinants (old)'!$B$19:$N$41,4,0)/'4. Billing Determinants (old)'!$E$41*$D21,IF($E21="kW",VLOOKUP(J$4,'4. Billing Determinants (old)'!$B$19:$N$41,5,0)/'4. Billing Determinants (old)'!$F$41*$D21,IF($E21="Non-RPP kWh",VLOOKUP(J$4,'4. Billing Determinants (old)'!$B$19:$N$41,6,0)/'4. Billing Determinants (old)'!$G$41*$D21,IF($E21="Distribution Rev.",VLOOKUP(J$4,'4. Billing Determinants (old)'!$B$19:$N$41,8,0)/'4. Billing Determinants (old)'!$I$41*$D21, VLOOKUP(J$4,'4. Billing Determinants (old)'!$B$19:$N$41,3,0)/'4. Billing Determinants (old)'!$D$41*$D21))))) -> 0 | K21: =IF(K$4="",0,IF($E21="kWh",VLOOKUP(K$4,'4. Billing Determinants (old)'!$B$19:$N$41,4,0)/'4. Billing Determinants (old)'!$E$41*$D21,IF($E21="kW",VLOOKUP(K$4,'4. Billing Determinants (old)'!$B$19:$N$41,5,0)/'4. Billing Determinants (old)'!$F$41*$D21,IF($E21="Non-RPP kWh",VLOOKUP(K$4,'4. Billing Determinants (old)'!$B$19:$N$41,6,0)/'4. Billing Determinants (old)'!$G$41*$D21,IF($E21="Distribution Rev.",VLOOKUP(K$4,'4. Billing Determinants (old)'!$B$19:$N$41,8,0)/'4. Billing Determinants (old)'!$I$41*$D21, VLOOKUP(K$4,'4. Billing Determinants (old)'!$B$19:$N$41,3,0)/'4. Billing Determinants (old)'!$D$41*$D21))))) -> 0 | L21: =IF(L$4="",0,IF($E21="kWh",VLOOKUP(L$4,'4. Billing Determinants (old)'!$B$19:$N$41,4,0)/'4. Billing Determinants (old)'!$E$41*$D21,IF($E21="kW",VLOOKUP(L$4,'4. Billing Determinants (old)'!$B$19:$N$41,5,0)/'4. Billing Determinants (old)'!$F$41*$D21,IF($E21="Non-RPP kWh",VLOOKUP(L$4,'4. Billing Determinants (old)'!$B$19:$N$41,6,0)/'4. Billing Determinants (old)'!$G$41*$D21,IF($E21="Distribution Rev.",VLOOKUP(L$4,'4. Billing Determinants (old)'!$B$19:$N$41,8,0)/'4. Billing Determinants (old)'!$I$41*$D21, VLOOKUP(L$4,'4. Billing Determinants (old)'!$B$19:$N$41,3,0)/'4. Billing Determinants (old)'!$D$41*$D21))))) -> 0 | M21: =IF(M$4="",0,IF($E21="kWh",VLOOKUP(M$4,'4. Billing Determinants (old)'!$B$19:$N$41,4,0)/'4. Billing Determinants (old)'!$E$41*$D21,IF($E21="kW",VLOOKUP(M$4,'4. Billing Determinants (old)'!$B$19:$N$41,5,0)/'4. Billing Determinants (old)'!$F$41*$D21,IF($E21="Non-RPP kWh",VLOOKUP(M$4,'4. Billing Determinants (old)'!$B$19:$N$41,6,0)/'4. Billing Determinants (old)'!$G$41*$D21,IF($E21="Distribution Rev.",VLOOKUP(M$4,'4. Billing Determinants (old)'!$B$19:$N$41,8,0)/'4. Billing Determinants (old)'!$I$41*$D21, VLOOKUP(M$4,'4. Billing Determinants (old)'!$B$19:$N$41,3,0)/'4. Billing Determinants (old)'!$D$41*$D21))))) -> 0 | N21: =IF(N$4="",0,IF($E21="kWh",VLOOKUP(N$4,'4. Billing Determinants (old)'!$B$19:$N$41,4,0)/'4. Billing Determinants (old)'!$E$41*$D21,IF($E21="kW",VLOOKUP(N$4,'4. Billing Determinants (old)'!$B$19:$N$41,5,0)/'4. Billing Determinants (old)'!$F$41*$D21,IF($E21="Non-RPP kWh",VLOOKUP(N$4,'4. Billing Determinants (old)'!$B$19:$N$41,6,0)/'4. Billing Determinants (old)'!$G$41*$D21,IF($E21="Distribution Rev.",VLOOKUP(N$4,'4. Billing Determinants (old)'!$B$19:$N$41,8,0)/'4. Billing Determinants (old)'!$I$41*$D21, VLOOKUP(N$4,'4. Billing Determinants (old)'!$B$19:$N$41,3,0)/'4. Billing Determinants (old)'!$D$41*$D21))))) -> 0 | O21: =IF(O$4="",0,IF($E21="kWh",VLOOKUP(O$4,'4. Billing Determinants (old)'!$B$19:$N$41,4,0)/'4. Billing Determinants (old)'!$E$41*$D21,IF($E21="kW",VLOOKUP(O$4,'4. Billing Determinants (old)'!$B$19:$N$41,5,0)/'4. Billing Determinants (old)'!$F$41*$D21,IF($E21="Non-RPP kWh",VLOOKUP(O$4,'4. Billing Determinants (old)'!$B$19:$N$41,6,0)/'4. Billing Determinants (old)'!$G$41*$D21,IF($E21="Distribution Rev.",VLOOKUP(O$4,'4. Billing Determinants (old)'!$B$19:$N$41,8,0)/'4. Billing Determinants (old)'!$I$41*$D21, VLOOKUP(O$4,'4. Billing Determinants (old)'!$B$19:$N$41,3,0)/'4. Billing Determinants (old)'!$D$41*$D21))))) -> 0 | P21: =IF(P$4="",0,IF($E21="kWh",VLOOKUP(P$4,'4. Billing Determinants (old)'!$B$19:$N$41,4,0)/'4. Billing Determinants (old)'!$E$41*$D21,IF($E21="kW",VLOOKUP(P$4,'4. Billing Determinants (old)'!$B$19:$N$41,5,0)/'4. Billing Determinants (old)'!$F$41*$D21,IF($E21="Non-RPP kWh",VLOOKUP(P$4,'4. Billing Determinants (old)'!$B$19:$N$41,6,0)/'4. Billing Determinants (old)'!$G$41*$D21,IF($E21="Distribution Rev.",VLOOKUP(P$4,'4. Billing Determinants (old)'!$B$19:$N$41,8,0)/'4. Billing Determinants (old)'!$I$41*$D21, VLOOKUP(P$4,'4. Billing Determinants (old)'!$B$19:$N$41,3,0)/'4. Billing Determinants (old)'!$D$41*$D21))))) -> 0 | Q21: =IF(Q$4="",0,IF($E21="kWh",VLOOKUP(Q$4,'4. Billing Determinants (old)'!$B$19:$N$41,4,0)/'4. Billing Determinants (old)'!$E$41*$D21,IF($E21="kW",VLOOKUP(Q$4,'4. Billing Determinants (old)'!$B$19:$N$41,5,0)/'4. Billing Determinants (old)'!$F$41*$D21,IF($E21="Non-RPP kWh",VLOOKUP(Q$4,'4. Billing Determinants (old)'!$B$19:$N$41,6,0)/'4. Billing Determinants (old)'!$G$41*$D21,IF($E21="Distribution Rev.",VLOOKUP(Q$4,'4. Billing Determinants (old)'!$B$19:$N$41,8,0)/'4. Billing Determinants (old)'!$I$41*$D21, VLOOKUP(Q$4,'4. Billing Determinants (old)'!$B$19:$N$41,3,0)/'4. Billing Determinants (old)'!$D$41*$D21))))) -> 0 | R21: =IF(R$4="",0,IF($E21="kWh",VLOOKUP(R$4,'4. Billing Determinants (old)'!$B$19:$N$41,4,0)/'4. Billing Determinants (old)'!$E$41*$D21,IF($E21="kW",VLOOKUP(R$4,'4. Billing Determinants (old)'!$B$19:$N$41,5,0)/'4. Billing Determinants (old)'!$F$41*$D21,IF($E21="Non-RPP kWh",VLOOKUP(R$4,'4. Billing Determinants (old)'!$B$19:$N$41,6,0)/'4. Billing Determinants (old)'!$G$41*$D21,IF($E21="Distribution Rev.",VLOOKUP(R$4,'4. Billing Determinants (old)'!$B$19:$N$41,8,0)/'4. Billing Determinants (old)'!$I$41*$D21, VLOOKUP(R$4,'4. Billing Determinants (old)'!$B$19:$N$41,3,0)/'4. Billing Determinants (old)'!$D$41*$D21))))) -> 0 | S21: =IF(S$4="",0,IF($E21="kWh",VLOOKUP(S$4,'4. Billing Determinants (old)'!$B$19:$N$41,4,0)/'4. Billing Determinants (old)'!$E$41*$D21,IF($E21="kW",VLOOKUP(S$4,'4. Billing Determinants (old)'!$B$19:$N$41,5,0)/'4. Billing Determinants (old)'!$F$41*$D21,IF($E21="Non-RPP kWh",VLOOKUP(S$4,'4. Billing Determinants (old)'!$B$19:$N$41,6,0)/'4. Billing Determinants (old)'!$G$41*$D21,IF($E21="Distribution Rev.",VLOOKUP(S$4,'4. Billing Determinants (old)'!$B$19:$N$41,8,0)/'4. Billing Determinants (old)'!$I$41*$D21, VLOOKUP(S$4,'4. Billing Determinants (old)'!$B$19:$N$41,3,0)/'4. Billing Determinants (old)'!$D$41*$D21))))) -> 0 | T21: =IF(T$4="",0,IF($E21="kWh",VLOOKUP(T$4,'4. Billing Determinants (old)'!$B$19:$N$41,4,0)/'4. Billing Determinants (old)'!$E$41*$D21,IF($E21="kW",VLOOKUP(T$4,'4. Billing Determinants (old)'!$B$19:$N$41,5,0)/'4. Billing Determinants (old)'!$F$41*$D21,IF($E21="Non-RPP kWh",VLOOKUP(T$4,'4. Billing Determinants (old)'!$B$19:$N$41,6,0)/'4. Billing Determinants (old)'!$G$41*$D21,IF($E21="Distribution Rev.",VLOOKUP(T$4,'4. Billing Determinants (old)'!$B$19:$N$41,8,0)/'4. Billing Determinants (old)'!$I$41*$D21, VLOOKUP(T$4,'4. Billing Determinants (old)'!$B$19:$N$41,3,0)/'4. Billing Determinants (old)'!$D$41*$D21))))) -> 0 | U21: =IF(U$4="",0,IF($E21="kWh",VLOOKUP(U$4,'4. Billing Determinants (old)'!$B$19:$N$41,4,0)/'4. Billing Determinants (old)'!$E$41*$D21,IF($E21="kW",VLOOKUP(U$4,'4. Billing Determinants (old)'!$B$19:$N$41,5,0)/'4. Billing Determinants (old)'!$F$41*$D21,IF($E21="Non-RPP kWh",VLOOKUP(U$4,'4. Billing Determinants (old)'!$B$19:$N$41,6,0)/'4. Billing Determinants (old)'!$G$41*$D21,IF($E21="Distribution Rev.",VLOOKUP(U$4,'4. Billing Determinants (old)'!$B$19:$N$41,8,0)/'4. Billing Determinants (old)'!$I$41*$D21, VLOOKUP(U$4,'4. Billing Determinants (old)'!$B$19:$N$41,3,0)/'4. Billing Determinants (old)'!$D$41*$D21))))) -> 0 | V21: =IF(V$4="",0,IF($E21="kWh",VLOOKUP(V$4,'4. Billing Determinants (old)'!$B$19:$N$41,4,0)/'4. Billing Determinants (old)'!$E$41*$D21,IF($E21="kW",VLOOKUP(V$4,'4. Billing Determinants (old)'!$B$19:$N$41,5,0)/'4. Billing Determinants (old)'!$F$41*$D21,IF($E21="Non-RPP kWh",VLOOKUP(V$4,'4. Billing Determinants (old)'!$B$19:$N$41,6,0)/'4. Billing Determinants (old)'!$G$41*$D21,IF($E21="Distribution Rev.",VLOOKUP(V$4,'4. Billing Determinants (old)'!$B$19:$N$41,8,0)/'4. Billing Determinants (old)'!$I$41*$D21, VLOOKUP(V$4,'4. Billing Determinants (old)'!$B$19:$N$41,3,0)/'4. Billing Determinants (old)'!$D$41*$D21))))) -> 0 | W21: =IF(W$4="",0,IF($E21="kWh",VLOOKUP(W$4,'4. Billing Determinants (old)'!$B$19:$N$41,4,0)/'4. Billing Determinants (old)'!$E$41*$D21,IF($E21="kW",VLOOKUP(W$4,'4. Billing Determinants (old)'!$B$19:$N$41,5,0)/'4. Billing Determinants (old)'!$F$41*$D21,IF($E21="Non-RPP kWh",VLOOKUP(W$4,'4. Billing Determinants (old)'!$B$19:$N$41,6,0)/'4. Billing Determinants (old)'!$G$41*$D21,IF($E21="Distribution Rev.",VLOOKUP(W$4,'4. Billing Determinants (old)'!$B$19:$N$41,8,0)/'4. Billing Determinants (old)'!$I$41*$D21, VLOOKUP(W$4,'4. Billing Determinants (old)'!$B$19:$N$41,3,0)/'4. Billing Determinants (old)'!$D$41*$D21))))) -> 0 | X21: =IF(X$4="",0,IF($E21="kWh",VLOOKUP(X$4,'4. Billing Determinants (old)'!$B$19:$N$41,4,0)/'4. Billing Determinants (old)'!$E$41*$D21,IF($E21="kW",VLOOKUP(X$4,'4. Billing Determinants (old)'!$B$19:$N$41,5,0)/'4. Billing Determinants (old)'!$F$41*$D21,IF($E21="Non-RPP kWh",VLOOKUP(X$4,'4. Billing Determinants (old)'!$B$19:$N$41,6,0)/'4. Billing Determinants (old)'!$G$41*$D21,IF($E21="Distribution Rev.",VLOOKUP(X$4,'4. Billing Determinants (old)'!$B$19:$N$41,8,0)/'4. Billing Determinants (old)'!$I$41*$D21, VLOOKUP(X$4,'4. Billing Determinants (old)'!$B$19:$N$41,3,0)/'4. Billing Determinants (old)'!$D$41*$D21))))) -> 0 | Y21: =IF(Y$4="",0,IF($E21="kWh",VLOOKUP(Y$4,'4. Billing Determinants (old)'!$B$19:$N$41,4,0)/'4. Billing Determinants (old)'!$E$41*$D21,IF($E21="kW",VLOOKUP(Y$4,'4. Billing Determinants (old)'!$B$19:$N$41,5,0)/'4. Billing Determinants (old)'!$F$41*$D21,IF($E21="Non-RPP kWh",VLOOKUP(Y$4,'4. Billing Determinants (old)'!$B$19:$N$41,6,0)/'4. Billing Determinants (old)'!$G$41*$D21,IF($E21="Distribution Rev.",VLOOKUP(Y$4,'4. Billing Determinants (old)'!$B$19:$N$41,8,0)/'4. Billing Determinants (old)'!$I$41*$D21, VLOOKUP(Y$4,'4. Billing Determinants (old)'!$B$19:$N$41,3,0)/'4. Billing Determinants (old)'!$D$41*$D21))))) -> 0
